Workbook

Sheet Membership #
A1: 19 | B1: Jacie Burke | C1: She's Just That Sassy
A2: 77 | B2: Travis Patterson | C2: Dacs Breezin Rome
A3: 969 | B3: Kenzie Cook | C3: Pocos Lady Emerald
A4: 973 | B4: Sara Ivey | C4: Ms Heavenly Gator
A5: 81 | B5: Peyton Lynds | C5: Roxy
A6: 82 | B6: Scotia MacEachern | C6: Hick-a-Licious
A7: 83 | B7: Taylor Dickson | C7: Smarts Hicks
A8: 84 | B8: Amber Lloyd | C8: Lilly
A9: 85 | B9: Kaelyn Keddy | C9: Sight to Behold
A10: 85 | B10: Katelyn Keddy | C10: Sight to Behold
A11: 86 | B11: Chantelle Oulton | C11: Jack Sparrow
A12: 86 | B12: Chantelle Oulton | C12: Jack Sparrow
A13: 87 | B13: Kerissa Martin | C13: Wild Steppin' Phoenix
A14: 89 | B14: Hannah Rafuse | C14: Cookie
A15: 90 | B15: Tarissa Rafuse | C15: Sparkles
A16: 974 | B16: Kerissa Martin | C16: Wild Steppin Phoenix
A17: 93 | B17: Nicole Kent | C17: Legacy's Lacy Invite
A18: 94 | B18: Ainsley Marshall | C18: JW
A19: 97 | B19: MacKenize Hughes | C19: Batmans Famous Bugs
A20: 99 | B20: Ella Cowley | C20: Blazin Boots
A21: 100 | B21: Taylor Payzant | C21: Money out of my Pocket
A22: 501 | B22: Chuck Patterson
A23: 501 | B23: Marion MacDonald | C23: Looking for a Pay Day
A24: 502 | B24: Ryson Doucette | C24: Plan B
A25: 503 | B25: Kate Dew
A26: 504 | B26: Pat McLean | C26: Johnny Drama
A27: 505 | B27: Chris Bezanson | C27: Miss Conjelena Doc
A28: 506 | B28: Elaine MacLean | C28: Fast Tick to Vegas
A29: 507 | B29: Jason Wilkins / Alexis Wilkins | C29: PB King Leo Buck
A30: 508 | B30: Chris Philips | C30: Justa Blurr ta Fame
A31: 509 | B31: Emma Simpson | C31: She's a Myan Princess
A32: 510 | B32: Jason Lively | C32: Tip One Back
A33: 511 | B33: Elaine MacLean | C33: Wicked Latigo Doc
A34: 512 | B34: Kenny Burt
A35: 513 | B35: Justin Wade | C35: The Gentleman
A36: 514 | B36: Heather Morrison | C36: Black Fire Dash
A37: 515 | B37: Ed Grant | C37: I Own A Corona
A38: 516 | B38: Laurie Don Reginato | C38: TCR Gold Runny
A39: 517 | B39: Jessica Hawkins
A40: 518 | B40: Sylvester Weatherbie | C40: J.R.
A41: 519 | B41: Charlsea Fiske | C41: Lights Out Goys
A42: 520 | B42: John McAssey
A43: 521 | B43: Royden Naugler | C43: RR Smooth Richochet
A44: 522 | B44: Emma Taylor | C44: Takin A Chance
A45: 523 | B45: Nicole Dobson | C45: Barbeesimpossibleinprint
A46: 524 | B46: Stan Brown | C46: Kicked In Overdrive
A47: 525 | B47: Charmaine Gallant | C47: Six Viking
A48: 526 | B48: Talor Naugler | C48: Blazing Hot
A49: 527 | B49: Royce Naugler | C49: Rockin Ronnie
A50: 528 | B50: Talor Naugler | C50: A Touch of Lace
A51: 529 | B51: Reese LeBlanc | C51: Badger Bar ToWinSome
A52: 530 | B52: Joan Grant | C52: SLS Dash to Holland
A53: 531 | B53: Addison Peters | C53: He's A Little Wonder
A54: 532 | B54: Gracie MacLean | C54: Secret
A55: 533 | B55: Jessica Taylor | C55: Farrells Finest Man
A56: 534 | B56: Mary Lou Rankin Dentin | C56: Brandy's Chocolena
A57: 535 | B57: Shaun Allen | C57: Fancy
A58: 536 | B58: MaryLouRankinDenton | C58: Grey Check Lady
A59: 537 | B59: Alka Virick | C59: Corona Identity
A60: 538 | B60: Jean DuGas | C60: Pal's Lilguy
A61: 539 | B61: Alex Singer | C61: Plain White Trash
A62: 540 | B62: NOT TO BE USED
A63: 541 | B63: Mark McLean | C63: Mr. Lucky Fame
A64: 542 | B64: Kate Madsen | C64: Return Two Fame
A65: 543 | B65: Kathleen Zwaneveld | C65: Dirk Digler
A66: 544 | B66: Kevin Bateman | C66: Conquistadorwhizchc
A67: 545 | B67: Karen MacDonald | C67: Doc Belle Bandit
A68: 546 | B68: Charmaine Gallant | C68: Maybull
A69: 547 | B69: Lindsay Hilchie
A70: 548 | B70: Lindsay Hilchie | C70: Tri Bright Chance
A71: 549 | B71: Chris MacLean | C71: Lena`s Little Hayday
A72: 550 | B72: Eunice Dykstra
A73: 551 | B73: Riley Reginato | C73: Straight Firen Jet
A74: 552 | B74: Emily Messenger | C74: Luckys Starlet
A75: 553 | B75: Monica Buffett | C75: MB Victory Dance
A76: 554 | B76: Ashley Crane | C76: Diesel Powered Jet
A77: 555 | B77: Stephanie Clark | C77: OK Den
A78: 556 | B78: Stephaine Clark | C78: Perks A Flyin
A79: 557 | B79: Paige Angevine | C79: Tac Off
A80: 558 | B80: Kevin Eaton | C80: High Country Cricket
A81: 559 | B81: Craig Carey | C81: Whistlen Major
A82: 560 | B82: Joan Grant | C82: Nonstop Bay Boy
A83: 561 | B83: Makiah Sparks | C83: Mr Cookie
A84: 562 | B84: Karen Hatcher | C84: Going Postal
A85: 563 | B85: Kevin Bateman | C85: Jess Chasin A Hobby
A86: 564 | B86: Bree Johnston | C86: Lylebeta Zack
A87: 565 | B87: Kristen Beck | C87: Poco Desert Rose
A88: 566 | B88: Pat McLean | C88: Chisel Stone
A89: 568 | B89: Cathy Rankin | C89: Heza Doc Twists
A90: 569 | B90: Kate Dew | C90: Tiny Gay's Dasher
A91: 570 | B91: Bobby Stevens | C91: Rico Mancini
A92: 571 | B92: Ken Jardine | C92: Bullet
A93: 572 | B93: Maureen Murray | C93: Down Home Lady
A94: 573 | B94: Lucy Collier Gallant | C94: Ben Bodacious
A95: 574 | B95: Emma Lee Taylor | C95: SAQ Chiefs Two Bit
A96: 575 | B96: Robert Eaton | C96: Den
A97: 576 | B97: Kevin Eaton | C97: Hy Bred Inheritance
A98: 577 | B98: Lorie Angevine | C98: Two Zan Par Silver
A99: 578 | B99: Robert Eaton | C99: Impressive Ben
A100: 579 | B100: Joanne Scott | C100: Lily
A101: 580 | B101: Candace Sakalauskas | C101: LNTS Two Eyed Jackie
A102: 581 | B102: Jean DuGas
A103: 582 | B103: Roddie Benoit | C103: Bug Bar Bandit
A104: 583 | B104: Travis Patterson | C104: JT Rosie
A105: 584 | B105: Tammy Young | C105: Sonny Dee Thunder
A106: 585 | B106: Brittany McIntyre | C106: Cherry Can Do
A107: 586 | B107: Scott McLean | C107: Presto Lee
A108: 587 | B108: Erin Groves | C108: Over The Rainbow
A109: 588 | B109: Sarah LeBlanc | C109: Down Home Empress
A110: 589 | B110: Kim Sellars | C110: Hidden Assets
A111: 590 | B111: Charlotte McCarthy | C111: Smokey B Kay
A112: 591 | B112: Wendy MacLean | C112: White Sox N Flyin
A113: 592 | B113: Jessie Cummings | C113: Jet Tares
A114: 593 | B114: Samantha Miller | C114: Sheamos Promise
A115: 594 | B115: Hope Angevine | C115: Sulanist Mist
A116: 595 | B116: Kyle Beaton | C116: Diesel's Inferno
A117: 596 | B117: Lauren Daley | C117: Myas Skippen Redford
A118: 597 | B118: Cecile Dykstra | C118: Codys Zippin It Up
A119: 598 | B119: Roddie Benoit | C119: Ruled By Bully
A120: 599 | B120: Adrienne Benoit | C120: Grey Ghost
A121: 600 | B121: Stan Brown | C121: A Perty Sure Thing
A122: 601 | B122: Marion MacDonald | C122: Miss Guardian Angel
A123: 602 | B123: Laura Croft | C123: Zippo Silver Pine
A124: 603 | B124: Stacy Murray | C124: Express Mist
A125: 604 | B125: Gordon McCabe | C125: Apache Blue Nugget
A126: 605 | B126: Cindy Wamboldt | C126: Salty Bully Express
A127: 606 | B127: Tanya Naugler | C127: Driftin Two Dixie
A128: 607 | B128: Laura Morrison | C128: Chicks Painted Wagon
A129: 608 | B129: Kate Madsen | C129: Slide on Bye
A130: 609 | B130: Stacy Murray | C130: JD Grambler
A131: 610 | B131: Katherine Horsman | C131: Shiloh
A132: 611 | B132: Rebecca Fraser | C132: Granger Dee Doc
A133: 612 | B133: Kristen Beck | C133: Diablo's Blue Step
A134: 613 | B134: Kelly LeBlanc | C134: Starrs Double King
A135: 614 | B135: Georda MacInnis
A136: 615 | B136: Judy Bateman | C136: Hollywood Elite
A137: 616 | B137: Judy Bateman | C137: HM HollywoodRockstar
A138: 617 | B138: Elaine Mahaney | C138: Sabes Lightnin Bug
A139: 618 | B139: Audrey MacLeod | C139: Crown Royal JR
A140: 619 | B140: Cassie Daniels | C140: Sugar Ray Light Foot
A141: 620 | B141: Stephanie Daniels | C141: Fire Ball Max
A142: 621 | B142: Nichole Pothier | C142: Born To Boogie
A143: 622 | B143: Courtney Parker | C143: BW Rare Kinda Love
A144: 623 | B144: Connie Trider | C144: Hollywood Ranson
A145: 624 | B145: Dixie Tuffs | C145: Ima Frostee Bay B
A146: 625 | B146: Ryson Doucette | C146: Keeper of The Perks
A147: 626 | B147: Jeremy Graham | C147: Echo charged
A148: 627 | B148: Kaelyn Keddy | C148: Sight to Behold
A149: 628 | B149: Amanda Matchett | C149: Smoke M Pardner
A150: 629 | B150: Beth O'Leary | C150: Toms Final Dash
A151: 630 | B151: Beth O'Leary | C151: Kings Black
A152: 631 | B152: Nicole vanDyke | C152: Ima Bully
A153: 632 | B153: Breighanne Finlayson | C153: Dee Dun Smart
A154: 633 | B154: Ella Cowley | C154: Oscar
A155: 634 | B155: Katlyn Benere | C155: He's Got Class
A156: 635 | B156: Trudy Hemeon | C156: RS Painted Pretty
A157: 636 | B157: Ceilidh Gosse | C157: ELM Silver Crime
A158: 637 | B158: Caleb Buffett | C158: JMF Flashdance
A159: 638 | B159: Bella Peters | C159: Super Star
A160: 639 | B160: Sally King | C160: Watch That Digger Go
A161: 640 | B161: April Jollimore/Megan MacDonald | C161: Pilgrim
A162: 641 | B162: Ava Harb | C162: Super Rockie
A163: 642 | B163: John Blair | C163: Totally Kissed
A164: 643 | B164: Willow Brooks | C164: Mr Betta B Ware
A165: 644 | B165: Pat Rodney
A166: 645 | B166: Tammy Young | C166: Whoa Laredo
A167: 646 | B167: Taylor Blair
A168: 647 | B168: Courtney Parker | C168: BW Rare Kinda Love
A169: 648 | B169: Norman Blanchard | C169: Sheny Bugs
A170: 649 | B170: Cara Pettipas | C170: Shezabonafiedbully
A171: 650 | B171: Cara Pettipas | C171: Miss Wonder Bully
A172: 651 | B172: Olivia MacLean | C172: A Boy Named Sue
A173: 652 | B173: Molly O'Grady | C173: Teelano's Twister
A174: 653 | B174: Ryson Doucette | C174: Pawnee Kid N Gold
A175: 654 | B175: Deavan Chapman | C175: Enlighten
A176: 655 | B176: Julia Parker | C176: Boons Feature Star
A177: 656 | B177: Willow Brooks | C177: Free Spirit
A178: 657 | B178: Laura Morrison | C178: Steal Ta Fame
A179: 658 | B179: Heather Morrison | C179: Last Chance
A180: 659 | B180: Gloria Carey | C180: True Blue Tivios
A181: 660 | B181: Charles Edwards | C181: Rarer Than You Think
A182: 661 | B182: Clara Tooley | C182: Chicado Rebel
A183: 662 | B183: Shelly Moore | C183: Too Tough Cat
A184: 663 | B184: Dixie Tuffs | C184: Running Squirrel
A185: 664 | B185: Christine Doane | C185: Maromac Lexis
A186: 665 | B186: Robert Eaton | C186: FF Chick
A187: 666 | B187: Summer Fraser | C187: Sheza Smokin' Girl
A188: 667 | B188: Paige Angevine | C188: Skip
A189: 668 | B189: Amanda Young | C189: King Leo Buck
A190: 669 | B190: Roddie Benoit | C190: True Blue Slew
A191: 670 | B191: Allie Fox | C191: DNA Bold Bediuno
A192: 671 | B192: Paige Gray | C192: What's Up Doc
A193: 672 | B193: Maureen Murray | C193: Catch My Bones
A194: 673 | B194: Kristen Beck | C194: Monster Bunny
A195: 674 | B195: Kyle Beaton | C195: Jus For Kicks
A196: 675 | B196: Chris Philips | C196: Deacon Eye Boo
A197: 676 | B197: Linda Bird | C197: Moony's Black Magic
A198: 677 | B198: Jenna Paquet
A199: 678 | B199: Jocelyn d'Entremont | C199: KT Ruby N Tin
A200: 679 | B200: Clara Tooley | C200: All Hot N Easy
... 271 more rows

Sheet Stall List
A1: Tom Burt & Mark McGuire Memorial Jackpot 2021
B2: RING # | C2: NAME | D2: HORSE NAME | F2: Stall request info
A3: 1 | B3: 549 | C3: =IF(B3="","",(VLOOKUP(B3,'Membership #'!$A$1:$C$1005,2,FALSE))) -> Chris MacLean | D3: =IF(B3="","",(VLOOKUP(B3,'Membership #'!$A$1:$C$1005,3,FALSE))) -> Lena`s Little Hayday
A4: 2 | B4: 591 | C4: =IF(B4="","",(VLOOKUP(B4,'Membership #'!$A$1:$C$1005,2,FALSE))) -> Wendy MacLean | D4: =IF(B4="","",(VLOOKUP(B4,'Membership #'!$A$1:$C$1005,3,FALSE))) -> White Sox N Flyin
A5: 3 | B5: 532 | C5: =IF(B5="","",(VLOOKUP(B5,'Membership #'!$A$1:$C$1005,2,FALSE))) -> Gracie MacLean | D5: =IF(B5="","",(VLOOKUP(B5,'Membership #'!$A$1:$C$1005,3,FALSE))) -> Secret
A6: 4 | B6: 563 | C6: =IF(B6="","",(VLOOKUP(B6,'Membership #'!$A$1:$C$1005,2,FALSE))) -> Kevin Bateman | D6: =IF(B6="","",(VLOOKUP(B6,'Membership #'!$A$1:$C$1005,3,FALSE))) -> Jess Chasin A Hobby
A7: 5 | B7: 616 | C7: =IF(B7="","",(VLOOKUP(B7,'Membership #'!$A$1:$C$1005,2,FALSE))) -> Judy Bateman | D7: =IF(B7="","",(VLOOKUP(B7,'Membership #'!$A$1:$C$1005,3,FALSE))) -> HM HollywoodRockstar
A8: 6 | B8: 530 | C8: =IF(B8="","",(VLOOKUP(B8,'Membership #'!$A$1:$C$1005,2,FALSE))) -> Joan Grant | D8: =IF(B8="","",(VLOOKUP(B8,'Membership #'!$A$1:$C$1005,3,FALSE))) -> SLS Dash to Holland
A9: 7 | B9: 515 | C9: =IF(B9="","",(VLOOKUP(B9,'Membership #'!$A$1:$C$1005,2,FALSE))) -> Ed Grant | D9: =IF(B9="","",(VLOOKUP(B9,'Membership #'!$A$1:$C$1005,3,FALSE))) -> I Own A Corona
A10: 8 | B10: 968 | C10: =IF(B10="","",(VLOOKUP(B10,'Membership #'!$A$1:$C$1005,2,FALSE))) -> Madison Pelly | D10: =IF(B10="","",(VLOOKUP(B10,'Membership #'!$A$1:$C$1005,3,FALSE))) -> Westin
A11: 9 | B11: 768 | C11: =IF(B11="","",(VLOOKUP(B11,'Membership #'!$A$1:$C$1005,2,FALSE))) -> Tracey Higgins | D11: =IF(B11="","",(VLOOKUP(B11,'Membership #'!$A$1:$C$1005,3,FALSE))) -> Iza Wicked Wind
A12: 10 | B12: 908 | C12: =IF(B12="","",(VLOOKUP(B12,'Membership #'!$A$1:$C$1005,2,FALSE))) -> Josie Higgins | D12: =IF(B12="","",(VLOOKUP(B12,'Membership #'!$A$1:$C$1005,3,FALSE))) -> Rocket Man
A13: 11 | B13: 815 | C13: =IF(B13="","",(VLOOKUP(B13,'Membership #'!$A$1:$C$1005,2,FALSE))) -> Brooke Kennedy | D13: =IF(B13="","",(VLOOKUP(B13,'Membership #'!$A$1:$C$1005,3,FALSE))) -> Tic Toc Teazer
A14: 12 | B14: 750 | C14: =IF(B14="","",(VLOOKUP(B14,'Membership #'!$A$1:$C$1005,2,FALSE))) -> Tanya Kennedy | D14: =IF(B14="","",(VLOOKUP(B14,'Membership #'!$A$1:$C$1005,3,FALSE))) -> Old Stations Pride
A15: 13 | B15: 753 | C15: =IF(B15="","",(VLOOKUP(B15,'Membership #'!$A$1:$C$1005,2,FALSE))) -> Kayla Boudreau | D15: =IF(B15="","",(VLOOKUP(B15,'Membership #'!$A$1:$C$1005,3,FALSE))) -> Lady Jane
A16: 14 | B16: 954 | C16: =IF(B16="","",(VLOOKUP(B16,'Membership #'!$A$1:$C$1005,2,FALSE))) -> Scotia MacEachern | D16: =IF(B16="","",(VLOOKUP(B16,'Membership #'!$A$1:$C$1005,3,FALSE))) -> Hick-a-Licious
A17: 15 | B17: 684 | C17: =IF(B17="","",(VLOOKUP(B17,'Membership #'!$A$1:$C$1005,2,FALSE))) -> Shann Cox | D17: =IF(B17="","",(VLOOKUP(B17,'Membership #'!$A$1:$C$1005,3,FALSE))) -> Jags Cash Flow
A18: 16 | B18: 688 | C18: =IF(B18="","",(VLOOKUP(B18,'Membership #'!$A$1:$C$1005,2,FALSE))) -> Lenee Sampson | D18: =IF(B18="","",(VLOOKUP(B18,'Membership #'!$A$1:$C$1005,3,FALSE))) -> Six Dash Run
A19: 17 | B19: 80 | C19: =IF(B19="","",(VLOOKUP(B19,'Membership #'!$A$1:$C$1005,2,FALSE))) ->  | D19: =IF(B19="","",(VLOOKUP(B19,'Membership #'!$A$1:$C$1005,3,FALSE))) -> 
A20: 18 | B20: 922 | C20: =IF(B20="","",(VLOOKUP(B20,'Membership #'!$A$1:$C$1005,2,FALSE))) -> Stevi Jardine | D20: =IF(B20="","",(VLOOKUP(B20,'Membership #'!$A$1:$C$1005,3,FALSE))) -> Paytons Pretty Cool
A21: 19 | B21: 777 | C21: =IF(B21="","",(VLOOKUP(B21,'Membership #'!$A$1:$C$1005,2,FALSE))) -> Julia Parker | D21: =IF(B21="","",(VLOOKUP(B21,'Membership #'!$A$1:$C$1005,3,FALSE))) -> Doc's Spirit Prairie
A22: 20 | B22: 655 | C22: =IF(B22="","",(VLOOKUP(B22,'Membership #'!$A$1:$C$1005,2,FALSE))) -> Julia Parker | D22: =IF(B22="","",(VLOOKUP(B22,'Membership #'!$A$1:$C$1005,3,FALSE))) -> Boons Feature Star
A23: 21 | B23: 647 | C23: =IF(B23="","",(VLOOKUP(B23,'Membership #'!$A$1:$C$1005,2,FALSE))) -> Courtney Parker | D23: =IF(B23="","",(VLOOKUP(B23,'Membership #'!$A$1:$C$1005,3,FALSE))) -> BW Rare Kinda Love
A24: 22 | B24: 652 | C24: =IF(B24="","",(VLOOKUP(B24,'Membership #'!$A$1:$C$1005,2,FALSE))) -> Molly O'Grady | D24: =IF(B24="","",(VLOOKUP(B24,'Membership #'!$A$1:$C$1005,3,FALSE))) -> Teelano's Twister
A25: 23 | B25: 700 | C25: =IF(B25="","",(VLOOKUP(B25,'Membership #'!$A$1:$C$1005,2,FALSE))) -> Lindsay Baker | D25: =IF(B25="","",(VLOOKUP(B25,'Membership #'!$A$1:$C$1005,3,FALSE))) -> Boons Laughing Boy
A26: 24 | B26: 703 | C26: =IF(B26="","",(VLOOKUP(B26,'Membership #'!$A$1:$C$1005,2,FALSE))) -> Chris Baker | D26: =IF(B26="","",(VLOOKUP(B26,'Membership #'!$A$1:$C$1005,3,FALSE))) -> Jamer All Fired Up
A27: 25 | B27: 710 | C27: =IF(B27="","",(VLOOKUP(B27,'Membership #'!$A$1:$C$1005,2,FALSE))) -> Owen Baker | D27: =IF(B27="","",(VLOOKUP(B27,'Membership #'!$A$1:$C$1005,3,FALSE))) -> Tip It Back
A28: 26 | B28: 702 | C28: =IF(B28="","",(VLOOKUP(B28,'Membership #'!$A$1:$C$1005,2,FALSE))) -> Jenna Proctor | D28: =IF(B28="","",(VLOOKUP(B28,'Membership #'!$A$1:$C$1005,3,FALSE))) -> Painted to Perfection
A29: 27 | B29: 786 | C29: =IF(B29="","",(VLOOKUP(B29,'Membership #'!$A$1:$C$1005,2,FALSE))) -> Rileigh Conrod | D29: =IF(B29="","",(VLOOKUP(B29,'Membership #'!$A$1:$C$1005,3,FALSE))) -> Scotches Harley
A30: 28 | B30: 91 | C30: =IF(B30="","",(VLOOKUP(B30,'Membership #'!$A$1:$C$1005,2,FALSE))) ->  | D30: =IF(B30="","",(VLOOKUP(B30,'Membership #'!$A$1:$C$1005,3,FALSE))) -> 
A31: 29 | B31: 638 | C31: =IF(B31="","",(VLOOKUP(B31,'Membership #'!$A$1:$C$1005,2,FALSE))) -> Bella Peters | D31: =IF(B31="","",(VLOOKUP(B31,'Membership #'!$A$1:$C$1005,3,FALSE))) -> Super Star
A32: 30 | B32: 516 | C32: =IF(B32="","",(VLOOKUP(B32,'Membership #'!$A$1:$C$1005,2,FALSE))) -> Laurie Don Reginato | D32: =IF(B32="","",(VLOOKUP(B32,'Membership #'!$A$1:$C$1005,3,FALSE))) -> TCR Gold Runny
A33: 31 | B33: 531 | C33: =IF(B33="","",(VLOOKUP(B33,'Membership #'!$A$1:$C$1005,2,FALSE))) -> Addison Peters | D33: =IF(B33="","",(VLOOKUP(B33,'Membership #'!$A$1:$C$1005,3,FALSE))) -> He's A Little Wonder
A34: 32 | B34: 746 | C34: =IF(B34="","",(VLOOKUP(B34,'Membership #'!$A$1:$C$1005,2,FALSE))) -> Cassie MacDonald | D34: =IF(B34="","",(VLOOKUP(B34,'Membership #'!$A$1:$C$1005,3,FALSE))) -> Sandy Dew
A35: 33 | B35: 914 | C35: =IF(B35="","",(VLOOKUP(B35,'Membership #'!$A$1:$C$1005,2,FALSE))) -> Shelby MacPherson | D35: =IF(B35="","",(VLOOKUP(B35,'Membership #'!$A$1:$C$1005,3,FALSE))) -> Shelbys Badger Bar
A36: 34 | B36: 600 | C36: =IF(B36="","",(VLOOKUP(B36,'Membership #'!$A$1:$C$1005,2,FALSE))) -> Stan Brown | D36: =IF(B36="","",(VLOOKUP(B36,'Membership #'!$A$1:$C$1005,3,FALSE))) -> A Perty Sure Thing
A37: 35 | B37: 698 | C37: =IF(B37="","",(VLOOKUP(B37,'Membership #'!$A$1:$C$1005,2,FALSE))) -> Kaleigh Denton | D37: =IF(B37="","",(VLOOKUP(B37,'Membership #'!$A$1:$C$1005,3,FALSE))) -> Coleasaki
A38: 36 | B38: 534 | C38: =IF(B38="","",(VLOOKUP(B38,'Membership #'!$A$1:$C$1005,2,FALSE))) -> Mary Lou Rankin Dentin | D38: =IF(B38="","",(VLOOKUP(B38,'Membership #'!$A$1:$C$1005,3,FALSE))) -> Brandy's Chocolena
A39: 37 | B39: 918 | C39: =IF(B39="","",(VLOOKUP(B39,'Membership #'!$A$1:$C$1005,2,FALSE))) -> Keira Rose | D39: =IF(B39="","",(VLOOKUP(B39,'Membership #'!$A$1:$C$1005,3,FALSE))) -> LL Its All About Red
A40: 38 | B40: 967 | C40: =IF(B40="","",(VLOOKUP(B40,'Membership #'!$A$1:$C$1005,2,FALSE))) -> Marissa Hillier | D40: =IF(B40="","",(VLOOKUP(B40,'Membership #'!$A$1:$C$1005,3,FALSE))) -> Notice Betty Boop
A41: 39 | B41: 695 | C41: =IF(B41="","",(VLOOKUP(B41,'Membership #'!$A$1:$C$1005,2,FALSE))) -> Tessa Dicks | D41: =IF(B41="","",(VLOOKUP(B41,'Membership #'!$A$1:$C$1005,3,FALSE))) -> Charge's Dusty Luck
A42: 40 | B42: 928 | C42: =IF(B42="","",(VLOOKUP(B42,'Membership #'!$A$1:$C$1005,2,FALSE))) -> Tessa Dicks | D42: =IF(B42="","",(VLOOKUP(B42,'Membership #'!$A$1:$C$1005,3,FALSE))) -> ELM Dash of Crime
A43: 41 | B43: 971 | C43: =IF(B43="","",(VLOOKUP(B43,'Membership #'!$A$1:$C$1005,2,FALSE))) -> Arielle Burke | D43: =IF(B43="","",(VLOOKUP(B43,'Membership #'!$A$1:$C$1005,3,FALSE))) -> Elm Sally
A44: 42 | B44: 732 | C44: =IF(B44="","",(VLOOKUP(B44,'Membership #'!$A$1:$C$1005,2,FALSE))) -> Brenna Carrigan | D44: =IF(B44="","",(VLOOKUP(B44,'Membership #'!$A$1:$C$1005,3,FALSE))) -> Carlos
A45: 43 | B45: 855 | C45: =IF(B45="","",(VLOOKUP(B45,'Membership #'!$A$1:$C$1005,2,FALSE))) -> Jenelle Collier | D45: =IF(B45="","",(VLOOKUP(B45,'Membership #'!$A$1:$C$1005,3,FALSE))) -> Peppy Sans Surprise
A46: 44 | B46: 518 | C46: =IF(B46="","",(VLOOKUP(B46,'Membership #'!$A$1:$C$1005,2,FALSE))) -> Sylvester Weatherbie | D46: =IF(B46="","",(VLOOKUP(B46,'Membership #'!$A$1:$C$1005,3,FALSE))) -> J.R.
A47: 45 | B47: 657 | C47: =IF(B47="","",(VLOOKUP(B47,'Membership #'!$A$1:$C$1005,2,FALSE))) -> Laura Morrison | D47: =IF(B47="","",(VLOOKUP(B47,'Membership #'!$A$1:$C$1005,3,FALSE))) -> Steal Ta Fame
A48: 46 | B48: 699 | C48: =IF(B48="","",(VLOOKUP(B48,'Membership #'!$A$1:$C$1005,2,FALSE))) -> Laura Morrison | D48: =IF(B48="","",(VLOOKUP(B48,'Membership #'!$A$1:$C$1005,3,FALSE))) -> MDC Dark Revelation
A49: 47 | B49: 514 | C49: =IF(B49="","",(VLOOKUP(B49,'Membership #'!$A$1:$C$1005,2,FALSE))) -> Heather Morrison | D49: =IF(B49="","",(VLOOKUP(B49,'Membership #'!$A$1:$C$1005,3,FALSE))) -> Black Fire Dash
A50: 48 | B50: 636 | C50: =IF(B50="","",(VLOOKUP(B50,'Membership #'!$A$1:$C$1005,2,FALSE))) -> Ceilidh Gosse | D50: =IF(B50="","",(VLOOKUP(B50,'Membership #'!$A$1:$C$1005,3,FALSE))) -> ELM Silver Crime
A51: 49 | B51: 867 | C51: =IF(B51="","",(VLOOKUP(B51,'Membership #'!$A$1:$C$1005,2,FALSE))) -> Layla MacEachem | D51: =IF(B51="","",(VLOOKUP(B51,'Membership #'!$A$1:$C$1005,3,FALSE))) -> Shes a gem
A52: 50 | B52: 539 | C52: =IF(B52="","",(VLOOKUP(B52,'Membership #'!$A$1:$C$1005,2,FALSE))) -> Alex Singer | D52: =IF(B52="","",(VLOOKUP(B52,'Membership #'!$A$1:$C$1005,3,FALSE))) -> Plain White Trash
A53: 51 | B53: 892 | C53: =IF(B53="","",(VLOOKUP(B53,'Membership #'!$A$1:$C$1005,2,FALSE))) -> Donnie MacNeil | D53: =IF(B53="","",(VLOOKUP(B53,'Membership #'!$A$1:$C$1005,3,FALSE))) -> Gifted Go Gold
A54: 52 | B54: 556 | C54: =IF(B54="","",(VLOOKUP(B54,'Membership #'!$A$1:$C$1005,2,FALSE))) -> Stephaine Clark | D54: =IF(B54="","",(VLOOKUP(B54,'Membership #'!$A$1:$C$1005,3,FALSE))) -> Perks A Flyin
A55: 53 | B55: 666 | C55: =IF(B55="","",(VLOOKUP(B55,'Membership #'!$A$1:$C$1005,2,FALSE))) -> Summer Fraser | D55: =IF(B55="","",(VLOOKUP(B55,'Membership #'!$A$1:$C$1005,3,FALSE))) -> Sheza Smokin' Girl
A56: 54 | B56: 961 | C56: =IF(B56="","",(VLOOKUP(B56,'Membership #'!$A$1:$C$1005,2,FALSE))) -> Jacie Burke | D56: =IF(B56="","",(VLOOKUP(B56,'Membership #'!$A$1:$C$1005,3,FALSE))) -> She's Just That Sassy
A57: 55 | B57: 962 | C57: =IF(B57="","",(VLOOKUP(B57,'Membership #'!$A$1:$C$1005,2,FALSE))) -> Hariin Burke | D57: =IF(B57="","",(VLOOKUP(B57,'Membership #'!$A$1:$C$1005,3,FALSE))) -> Olds Bold Impulse
A58: 56 | B58: 963 | C58: =IF(B58="","",(VLOOKUP(B58,'Membership #'!$A$1:$C$1005,2,FALSE))) -> Leighton Burke | D58: =IF(B58="","",(VLOOKUP(B58,'Membership #'!$A$1:$C$1005,3,FALSE))) -> Boot Scootin Boogie
A59: 57 | B59: 909 | C59: =IF(B59="","",(VLOOKUP(B59,'Membership #'!$A$1:$C$1005,2,FALSE))) -> Rebecca Gillis | D59: =IF(B59="","",(VLOOKUP(B59,'Membership #'!$A$1:$C$1005,3,FALSE))) -> Martha's Tivio Moon
A60: 58 | B60: 583 | C60: =IF(B60="","",(VLOOKUP(B60,'Membership #'!$A$1:$C$1005,2,FALSE))) -> Travis Patterson | D60: =IF(B60="","",(VLOOKUP(B60,'Membership #'!$A$1:$C$1005,3,FALSE))) -> JT Rosie
A61: 59 | B61: 523 | C61: =IF(B61="","",(VLOOKUP(B61,'Membership #'!$A$1:$C$1005,2,FALSE))) -> Nicole Dobson | D61: =IF(B61="","",(VLOOKUP(B61,'Membership #'!$A$1:$C$1005,3,FALSE))) -> Barbeesimpossibleinprint
A62: 60 | C62: =IF(B62="","",(VLOOKUP(B62,'Membership #'!$A$1:$C$1005,2,FALSE))) ->  | D62: =IF(B62="","",(VLOOKUP(B62,'Membership #'!$A$1:$C$1005,3,FALSE))) -> 
A63: 61 | C63: =IF(B63="","",(VLOOKUP(B63,'Membership #'!$A$1:$C$1005,2,FALSE))) ->  | D63: =IF(B63="","",(VLOOKUP(B63,'Membership #'!$A$1:$C$1005,3,FALSE))) -> 
A64: 62 | C64: =IF(B64="","",(VLOOKUP(B64,'Membership #'!$A$1:$C$1005,2,FALSE))) ->  | D64: =IF(B64="","",(VLOOKUP(B64,'Membership #'!$A$1:$C$1005,3,FALSE))) -> 
A65: 63 | C65: =IF(B65="","",(VLOOKUP(B65,'Membership #'!$A$1:$C$1005,2,FALSE))) ->  | D65: =IF(B65="","",(VLOOKUP(B65,'Membership #'!$A$1:$C$1005,3,FALSE))) -> 
A66: 64 | C66: =IF(B66="","",(VLOOKUP(B66,'Membership #'!$A$1:$C$1005,2,FALSE))) ->  | D66: =IF(B66="","",(VLOOKUP(B66,'Membership #'!$A$1:$C$1005,3,FALSE))) -> 
A67: 65 | C67: =IF(B67="","",(VLOOKUP(B67,'Membership #'!$A$1:$C$1005,2,FALSE))) ->  | D67: =IF(B67="","",(VLOOKUP(B67,'Membership #'!$A$1:$C$1005,3,FALSE))) -> 
A68: 66 | C68: =IF(B68="","",(VLOOKUP(B68,'Membership #'!$A$1:$C$1005,2,FALSE))) ->  | D68: =IF(B68="","",(VLOOKUP(B68,'Membership #'!$A$1:$C$1005,3,FALSE))) -> 
A69: 67 | C69: =IF(B69="","",(VLOOKUP(B69,'Membership #'!$A$1:$C$1005,2,FALSE))) ->  | D69: =IF(B69="","",(VLOOKUP(B69,'Membership #'!$A$1:$C$1005,3,FALSE))) -> 
A70: 68 | C70: =IF(B70="","",(VLOOKUP(B70,'Membership #'!$A$1:$C$1005,2,FALSE))) ->  | D70: =IF(B70="","",(VLOOKUP(B70,'Membership #'!$A$1:$C$1005,3,FALSE))) -> 
A71: 69 | C71: =IF(B71="","",(VLOOKUP(B71,'Membership #'!$A$1:$C$1005,2,FALSE))) ->  | D71: =IF(B71="","",(VLOOKUP(B71,'Membership #'!$A$1:$C$1005,3,FALSE))) -> 
A72: 70 | D72: =IF(B72="","",(VLOOKUP(B72,'Membership #'!$A$1:$C$1005,3,FALSE))) -> 
A73: 71 | D73: =IF(B73="","",(VLOOKUP(B73,'Membership #'!$A$1:$C$1005,3,FALSE))) -> 
A74: 72 | D74: =IF(B74="","",(VLOOKUP(B74,'Membership #'!$A$1:$C$1005,3,FALSE))) -> 
A75: 73 | D75: =IF(B75="","",(VLOOKUP(B75,'Membership #'!$A$1:$C$1005,3,FALSE))) -> 
A76: 74 | D76: =IF(B76="","",(VLOOKUP(B76,'Membership #'!$A$1:$C$1005,3,FALSE))) -> 
A77: 75 | D77: =IF(B77="","",(VLOOKUP(B77,'Membership #'!$A$1:$C$1005,3,FALSE))) -> 
A78: 76 | D78: =IF(B78="","",(VLOOKUP(B78,'Membership #'!$A$1:$C$1005,3,FALSE))) -> 
A79: 77 | D79: =IF(B79="","",(VLOOKUP(B79,'Membership #'!$A$1:$C$1005,3,FALSE))) -> 
A80: 78 | D80: =IF(B80="","",(VLOOKUP(B80,'Membership #'!$A$1:$C$1005,3,FALSE))) -> 
A81: 79 | D81: =IF(B81="","",(VLOOKUP(B81,'Membership #'!$A$1:$C$1005,3,FALSE))) -> 
A82: 80 | D82: =IF(B82="","",(VLOOKUP(B82,'Membership #'!$A$1:$C$1005,3,FALSE))) -> 
A83: 81 | D83: =IF(B83="","",(VLOOKUP(B83,'Membership #'!$A$1:$C$1005,3,FALSE))) -> 
A84: 82 | D84: =IF(B84="","",(VLOOKUP(B84,'Membership #'!$A$1:$C$1005,3,FALSE))) -> 
A85: 83 | D85: =IF(B85="","",(VLOOKUP(B85,'Membership #'!$A$1:$C$1005,3,FALSE))) -> 
A86: 84 | D86: =IF(B86="","",(VLOOKUP(B86,'Membership #'!$A$1:$C$1005,3,FALSE))) -> 
A87: 85 | D87: =IF(B87="","",(VLOOKUP(B87,'Membership #'!$A$1:$C$1005,3,FALSE))) -> 
A88: 86 | D88: =IF(B88="","",(VLOOKUP(B88,'Membership #'!$A$1:$C$1005,3,FALSE))) -> 
A89: 87 | D89: =IF(B89="","",(VLOOKUP(B89,'Membership #'!$A$1:$C$1005,3,FALSE))) -> 
A90: 88 | D90: =IF(B90="","",(VLOOKUP(B90,'Membership #'!$A$1:$C$1005,3,FALSE))) -> 
A91: 89 | D91: =IF(B91="","",(VLOOKUP(B91,'Membership #'!$A$1:$C$1005,3,FALSE))) -> 
A92: 90 | D92: =IF(B92="","",(VLOOKUP(B92,'Membership #'!$A$1:$C$1005,3,FALSE))) -> 
A93: 91 | D93: =IF(B93="","",(VLOOKUP(B93,'Membership #'!$A$1:$C$1005,3,FALSE))) -> 
A94: 92 | D94: =IF(B94="","",(VLOOKUP(B94,'Membership #'!$A$1:$C$1005,3,FALSE))) -> 
A95: 93 | D95: =IF(B95="","",(VLOOKUP(B95,'Membership #'!$A$1:$C$1005,3,FALSE))) -> 
A96: 94 | D96: =IF(B96="","",(VLOOKUP(B96,'Membership #'!$A$1:$C$1005,3,FALSE))) -> 
A97: 95 | D97: =IF(B97="","",(VLOOKUP(B97,'Membership #'!$A$1:$C$1005,3,FALSE))) -> 
A98: 96 | D98: =IF(B98="","",(VLOOKUP(B98,'Membership #'!$A$1:$C$1005,3,FALSE))) -> 
A99: 97 | D99: =IF(B99="","",(VLOOKUP(B99,'Membership #'!$A$1:$C$1005,3,FALSE))) -> 
A100: 98 | D100: =IF(B100="","",(VLOOKUP(B100,'Membership #'!$A$1:$C$1005,3,FALSE))) -> 
A101: 99 | D101: =IF(B101="","",(VLOOKUP(B101,'Membership #'!$A$1:$C$1005,3,FALSE))) -> 
A102: 100 | D102: =IF(B102="","",(VLOOKUP(B102,'Membership #'!$A$1:$C$1005,3,FALSE))) -> 
A103: 101 | D103: =IF(B103="","",(VLOOKUP(B103,'Membership #'!$A$1:$C$1005,3,FALSE))) -> 
A104: 102 | D104: =IF(B104="","",(VLOOKUP(B104,'Membership #'!$A$1:$C$1005,3,FALSE))) -> 
A105: 103 | D105: =IF(B105="","",(VLOOKUP(B105,'Membership #'!$A$1:$C$1005,3,FALSE))) -> 
A106: 104 | D106: =IF(B106="","",(VLOOKUP(B106,'Membership #'!$A$1:$C$1005,3,FALSE))) -> 
A107: 105 | D107: =IF(B107="","",(VLOOKUP(B107,'Membership #'!$A$1:$C$1005,3,FALSE))) -> 
A108: 106 | D108: =IF(B108="","",(VLOOKUP(B108,'Membership #'!$A$1:$C$1005,3,FALSE))) -> 
A109: 107 | D109: =IF(B109="","",(VLOOKUP(B109,'Membership #'!$A$1:$C$1005,3,FALSE))) -> 
A110: 108 | D110: =IF(B110="","",(VLOOKUP(B110,'Membership #'!$A$1:$C$1005,3,FALSE))) -> 
A111: 109 | D111: =IF(B111="","",(VLOOKUP(B111,'Membership #'!$A$1:$C$1005,3,FALSE))) -> 
A112: 110 | D112: =IF(B112="","",(VLOOKUP(B112,'Membership #'!$A$1:$C$1005,3,FALSE))) -> 
A113: 111 | D113: =IF(B113="","",(VLOOKUP(B113,'Membership #'!$A$1:$C$1005,3,FALSE))) -> 
D114: =IF(B114="","",(VLOOKUP(B114,'Membership #'!$A$1:$C$1005,3,FALSE))) -> 
C115: =IF(B115="","",(VLOOKUP(B115,'Membership #'!$A$1:$C$377,2,FALSE))) ->  | D115: =IF(B115="","",(VLOOKUP(B115,'Membership #'!$A$1:$C$377,3,FALSE))) -> 
C116: =IF(B116="","",(VLOOKUP(B116,'Membership #'!$A$1:$C$377,2,FALSE))) ->  | D116: =IF(B116="","",(VLOOKUP(B116,'Membership #'!$A$1:$C$377,3,FALSE))) -> 

Sheet MBRA
A1: Tom Burt & Mark McGuire Memorial JACKPOT Aug 21 & 22, 2021
B2: RING # | C2: NAME | D2: HORSE NAME | E2: Exhibition | G2: Day #1 Fee | H2: 3-D Barrels | I2: Day /2 Fee | J2: Admin Fee | K2: Drug Fee | L2: Trailer Fee | M2: Total | N2: Etransfrer
A3: 1 | B3: 549 | C3: =IF(B3="","",(VLOOKUP(B3,'Membership #'!$A$1:$C$1005,2,FALSE))) -> Chris MacLean | D3: =IF(B3="","",(VLOOKUP(B3,'Membership #'!$A$1:$C$1005,3,FALSE))) -> Lena`s Little Hayday | G3: 20 | H3: 15 | I3: 40 | J3: 50 | K3: 5 | L3: 40 | M3: =SUM(G3:L3) -> 170 | Q3: =SUM(M3:P3) -> 170
A4: 2 | B4: 591 | C4: =IF(B4="","",(VLOOKUP(B4,'Membership #'!$A$1:$C$1005,2,FALSE))) -> Wendy MacLean | D4: =IF(B4="","",(VLOOKUP(B4,'Membership #'!$A$1:$C$1005,3,FALSE))) -> White Sox N Flyin | G4: 10 | H4: 15 | I4: 10 | J4: 50 | K4: 5 | M4: =SUM(G4:K4) -> 90 | Q4: =SUM(M4:P4) -> 90
A5: 3 | B5: 532 | C5: =IF(B5="","",(VLOOKUP(B5,'Membership #'!$A$1:$C$1005,2,FALSE))) -> Gracie MacLean | D5: =IF(B5="","",(VLOOKUP(B5,'Membership #'!$A$1:$C$1005,3,FALSE))) -> Secret | G5: 5 | I5: 15 | J5: 50 | K5: 5 | M5: 75 | Q5: 75
A6: 4 | B6: 563 | C6: =IF(B6="","",(VLOOKUP(B6,'Membership #'!$A$1:$C$1005,2,FALSE))) -> Kevin Bateman | D6: =IF(B6="","",(VLOOKUP(B6,'Membership #'!$A$1:$C$1005,3,FALSE))) -> Jess Chasin A Hobby | G6: 10 | H6: 15 | I6: 10 | J6: 50 | K6: 5 | M6: 90 | Q6: 90
A7: 5 | B7: 616 | C7: =IF(B7="","",(VLOOKUP(B7,'Membership #'!$A$1:$C$1005,2,FALSE))) -> Judy Bateman | D7: =IF(B7="","",(VLOOKUP(B7,'Membership #'!$A$1:$C$1005,3,FALSE))) -> HM HollywoodRockstar | G7: 40 | H7: 15 | I7: 40 | J7: 50 | K7: 5 | L7: 40 | M7: =SUM(G7:L7) -> 190 | Q7: 190
A8: 6 | B8: 530 | C8: =IF(B8="","",(VLOOKUP(B8,'Membership #'!$A$1:$C$1005,2,FALSE))) -> Joan Grant | D8: =IF(B8="","",(VLOOKUP(B8,'Membership #'!$A$1:$C$1005,3,FALSE))) -> SLS Dash to Holland | G8: 20 | H8: 15 | I8: 20 | J8: 50 | K8: 5 | L8: 40 | M8: =SUM(G8:L8) -> 150 | Q8: 150
A9: 7 | B9: 515 | C9: =IF(B9="","",(VLOOKUP(B9,'Membership #'!$A$1:$C$1005,2,FALSE))) -> Ed Grant | D9: =IF(B9="","",(VLOOKUP(B9,'Membership #'!$A$1:$C$1005,3,FALSE))) -> I Own A Corona | G9: 10 | I9: 10 | J9: 50 | K9: 5 | M9: 75 | Q9: 75
A10: 8 | B10: 968 | C10: =IF(B10="","",(VLOOKUP(B10,'Membership #'!$A$1:$C$1005,2,FALSE))) -> Madison Pelly | D10: =IF(B10="","",(VLOOKUP(B10,'Membership #'!$A$1:$C$1005,3,FALSE))) -> Westin | G10: 10 | H10: 15 | I10: 10 | J10: 50 | K10: 5 | M10: 90 | Q10: 90
A11: 9 | B11: 768 | C11: =IF(B11="","",(VLOOKUP(B11,'Membership #'!$A$1:$C$1005,2,FALSE))) -> Tracey Higgins | D11: =IF(B11="","",(VLOOKUP(B11,'Membership #'!$A$1:$C$1005,3,FALSE))) -> Iza Wicked Wind | G11: 10 | H11: 15 | I11: 10 | J11: 50 | K11: 5 | L11: 40 | M11: =SUM(G11:L11) -> 130 | Q11: 130
A12: 10 | B12: 608 | C12: =IF(B12="","",(VLOOKUP(B12,'Membership #'!$A$1:$C$1005,2,FALSE))) -> Kate Madsen | D12: =IF(B12="","",(VLOOKUP(B12,'Membership #'!$A$1:$C$1005,3,FALSE))) -> Slide on Bye | J12: 50 | K12: 5 | M12: 55 | Q12: 55
A13: 11 | B13: 815 | C13: =IF(B13="","",(VLOOKUP(B13,'Membership #'!$A$1:$C$1005,2,FALSE))) -> Brooke Kennedy | D13: =IF(B13="","",(VLOOKUP(B13,'Membership #'!$A$1:$C$1005,3,FALSE))) -> Tic Toc Teazer | G13: 10 | H13: 15 | I13: 10 | J13: 50 | K13: 5 | M13: 90 | Q13: 90
A14: 12 | B14: 750 | C14: =IF(B14="","",(VLOOKUP(B14,'Membership #'!$A$1:$C$1005,2,FALSE))) -> Tanya Kennedy | D14: =IF(B14="","",(VLOOKUP(B14,'Membership #'!$A$1:$C$1005,3,FALSE))) -> Old Stations Pride | G14: 30 | H14: 15 | I14: 30 | J14: 50 | K14: 5 | L14: 40 | M14: =SUM(G14:L14) -> 170 | Q14: 170
A15: 13 | B15: 684 | C15: =IF(B15="","",(VLOOKUP(B15,'Membership #'!$A$1:$C$1005,2,FALSE))) -> Shann Cox | D15: =IF(B15="","",(VLOOKUP(B15,'Membership #'!$A$1:$C$1005,3,FALSE))) -> Jags Cash Flow | G15: 40 | H15: 15 | I15: 40 | J15: 50 | K15: 5 | M15: 150 | Q15: 150
A16: 14 | B16: 688 | C16: =IF(B16="","",(VLOOKUP(B16,'Membership #'!$A$1:$C$1005,2,FALSE))) -> Lenee Sampson | D16: =IF(B16="","",(VLOOKUP(B16,'Membership #'!$A$1:$C$1005,3,FALSE))) -> Six Dash Run | G16: 40 | H16: 15 | I16: 25 | J16: 50 | K16: 5 | M16: 135 | Q16: 135
A17: 15 | B17: 80 | C17: =IF(B17="","",(VLOOKUP(B17,'Membership #'!$A$1:$C$1005,2,FALSE))) ->  | D17: =IF(B17="","",(VLOOKUP(B17,'Membership #'!$A$1:$C$1005,3,FALSE))) ->  | G17: 50 | H17: 15 | I17: 70 | J17: 50 | K17: 5 | M17: 190 | Q17: 190
A18: 16 | B18: 922 | C18: =IF(B18="","",(VLOOKUP(B18,'Membership #'!$A$1:$C$1005,2,FALSE))) -> Stevi Jardine | D18: =IF(B18="","",(VLOOKUP(B18,'Membership #'!$A$1:$C$1005,3,FALSE))) -> Paytons Pretty Cool | G18: 40 | H18: 15 | I18: 40 | J18: 50 | K18: 5 | L18: 40 | M18: =SUM(G18:L18) -> 190 | Q18: 190
A19: 17 | B19: 777 | C19: =IF(B19="","",(VLOOKUP(B19,'Membership #'!$A$1:$C$1005,2,FALSE))) -> Julia Parker | D19: =IF(B19="","",(VLOOKUP(B19,'Membership #'!$A$1:$C$1005,3,FALSE))) -> Doc's Spirit Prairie | G19: 40 | H19: 15 | I19: 40 | J19: 50 | K19: 5 | L19: 40 | M19: =SUM(G19:L19) -> 190 | Q19: 190
A20: 18 | B20: 655 | C20: =IF(B20="","",(VLOOKUP(B20,'Membership #'!$A$1:$C$1005,2,FALSE))) -> Julia Parker | D20: =IF(B20="","",(VLOOKUP(B20,'Membership #'!$A$1:$C$1005,3,FALSE))) -> Boons Feature Star | G20: 30 | H20: 15 | I20: 30 | J20: 50 | K20: 5 | M20: 130 | Q20: 130
A21: 19 | B21: 647 | C21: =IF(B21="","",(VLOOKUP(B21,'Membership #'!$A$1:$C$1005,2,FALSE))) -> Courtney Parker | D21: =IF(B21="","",(VLOOKUP(B21,'Membership #'!$A$1:$C$1005,3,FALSE))) -> BW Rare Kinda Love | G21: 20 | H21: 15 | I21: 20 | J21: 50 | K21: 5 | M21: 110 | Q21: 110
A22: 20 | B22: 652 | C22: =IF(B22="","",(VLOOKUP(B22,'Membership #'!$A$1:$C$1005,2,FALSE))) -> Molly O'Grady | D22: =IF(B22="","",(VLOOKUP(B22,'Membership #'!$A$1:$C$1005,3,FALSE))) -> Teelano's Twister | G22: 30 | I22: 30 | J22: 50 | K22: 5 | M22: 115 | Q22: 115
A23: 21 | B23: 700 | C23: =IF(B23="","",(VLOOKUP(B23,'Membership #'!$A$1:$C$1005,2,FALSE))) -> Lindsay Baker | D23: =IF(B23="","",(VLOOKUP(B23,'Membership #'!$A$1:$C$1005,3,FALSE))) -> Boons Laughing Boy | G23: 40 | H23: 15 | I23: 40 | J23: 50 | K23: 5 | M23: 150 | Q23: 150
A24: 22 | B24: 703 | C24: =IF(B24="","",(VLOOKUP(B24,'Membership #'!$A$1:$C$1005,2,FALSE))) -> Chris Baker | D24: =IF(B24="","",(VLOOKUP(B24,'Membership #'!$A$1:$C$1005,3,FALSE))) -> Jamer All Fired Up | G24: 40 | H24: 15 | I24: 40 | J24: 50 | K24: 5 | L24: 40 | M24: =SUM(G24:L24) -> 190 | Q24: 190
A25: 23 | B25: 710 | C25: =IF(B25="","",(VLOOKUP(B25,'Membership #'!$A$1:$C$1005,2,FALSE))) -> Owen Baker | D25: =IF(B25="","",(VLOOKUP(B25,'Membership #'!$A$1:$C$1005,3,FALSE))) -> Tip It Back | J25: 50 | K25: 5 | M25: 55 | Q25: 55
A26: 24 | B26: 753 | C26: =IF(B26="","",(VLOOKUP(B26,'Membership #'!$A$1:$C$1005,2,FALSE))) -> Kayla Boudreau | D26: =IF(B26="","",(VLOOKUP(B26,'Membership #'!$A$1:$C$1005,3,FALSE))) -> Lady Jane | G26: 20 | H26: 15 | I26: 20 | J26: 50 | K26: 5 | M26: 110 | Q26: 110
A27: 25 | B27: 702 | C27: =IF(B27="","",(VLOOKUP(B27,'Membership #'!$A$1:$C$1005,2,FALSE))) -> Jenna Proctor | D27: =IF(B27="","",(VLOOKUP(B27,'Membership #'!$A$1:$C$1005,3,FALSE))) -> Painted to Perfection | H27: 15 | J27: 50 | K27: 5 | M27: 70 | Q27: 70
A28: 26 | B28: 786 | C28: =IF(B28="","",(VLOOKUP(B28,'Membership #'!$A$1:$C$1005,2,FALSE))) -> Rileigh Conrod | D28: =IF(B28="","",(VLOOKUP(B28,'Membership #'!$A$1:$C$1005,3,FALSE))) -> Scotches Harley | G28: 10 | H28: 15 | I28: 10 | J28: 50 | K28: 5 | M28: 90 | Q28: 90
A29: 27 | B29: 91 | C29: =IF(B29="","",(VLOOKUP(B29,'Membership #'!$A$1:$C$1005,2,FALSE))) ->  | D29: =IF(B29="","",(VLOOKUP(B29,'Membership #'!$A$1:$C$1005,3,FALSE))) ->  | J29: 50 | K29: 5 | L29: 40 | M29: =SUM(J29:L29) -> 95 | Q29: 95
A30: 28 | B30: 638 | C30: =IF(B30="","",(VLOOKUP(B30,'Membership #'!$A$1:$C$1005,2,FALSE))) -> Bella Peters | D30: =IF(B30="","",(VLOOKUP(B30,'Membership #'!$A$1:$C$1005,3,FALSE))) -> Super Star | G30: 10 | H30: 15 | I30: 10 | J30: 50 | K30: 5 | M30: 90 | Q30: 90
A31: 29 | B31: 516 | C31: =IF(B31="","",(VLOOKUP(B31,'Membership #'!$A$1:$C$1005,2,FALSE))) -> Laurie Don Reginato | D31: =IF(B31="","",(VLOOKUP(B31,'Membership #'!$A$1:$C$1005,3,FALSE))) -> TCR Gold Runny | G31: 40 | H31: 15 | I31: 40 | J31: 50 | K31: 5 | M31: 150 | Q31: 150
A32: 30 | B32: 531 | C32: =IF(B32="","",(VLOOKUP(B32,'Membership #'!$A$1:$C$1005,2,FALSE))) -> Addison Peters | D32: =IF(B32="","",(VLOOKUP(B32,'Membership #'!$A$1:$C$1005,3,FALSE))) -> He's A Little Wonder | J32: 50 | K32: 5 | M32: 55 | Q32: 55
A33: 31 | B33: 746 | C33: =IF(B33="","",(VLOOKUP(B33,'Membership #'!$A$1:$C$1005,2,FALSE))) -> Cassie MacDonald | D33: =IF(B33="","",(VLOOKUP(B33,'Membership #'!$A$1:$C$1005,3,FALSE))) -> Sandy Dew | G33: 20 | I33: 20 | J33: 50 | K33: 5 | M33: 95 | Q33: 95
A34: 32 | B34: 914 | C34: =IF(B34="","",(VLOOKUP(B34,'Membership #'!$A$1:$C$1005,2,FALSE))) -> Shelby MacPherson | D34: =IF(B34="","",(VLOOKUP(B34,'Membership #'!$A$1:$C$1005,3,FALSE))) -> Shelbys Badger Bar | G34: 50 | H34: 15 | I34: 50 | J34: 50 | K34: 5 | M34: 170 | Q34: 170
A35: 33 | B35: 600 | C35: =IF(B35="","",(VLOOKUP(B35,'Membership #'!$A$1:$C$1005,2,FALSE))) -> Stan Brown | D35: =IF(B35="","",(VLOOKUP(B35,'Membership #'!$A$1:$C$1005,3,FALSE))) -> A Perty Sure Thing | G35: 20 | H35: 15 | I35: 20 | J35: 50 | K35: 5 | M35: 110 | Q35: 110
A36: 34 | B36: 698 | C36: =IF(B36="","",(VLOOKUP(B36,'Membership #'!$A$1:$C$1005,2,FALSE))) -> Kaleigh Denton | D36: =IF(B36="","",(VLOOKUP(B36,'Membership #'!$A$1:$C$1005,3,FALSE))) -> Coleasaki | G36: 40 | H36: 15 | I36: 40 | J36: 50 | K36: 5 | M36: =SUM(G36:K36) -> 150 | Q36: 150
A37: 35 | B37: 534 | C37: =IF(B37="","",(VLOOKUP(B37,'Membership #'!$A$1:$C$1005,2,FALSE))) -> Mary Lou Rankin Dentin | D37: =IF(B37="","",(VLOOKUP(B37,'Membership #'!$A$1:$C$1005,3,FALSE))) -> Brandy's Chocolena | G37: 20 | H37: 15 | I37: 20 | J37: 50 | K37: 5 | M37: 110 | Q37: 110
A38: 36 | B38: 918 | C38: =IF(B38="","",(VLOOKUP(B38,'Membership #'!$A$1:$C$1005,2,FALSE))) -> Keira Rose | D38: =IF(B38="","",(VLOOKUP(B38,'Membership #'!$A$1:$C$1005,3,FALSE))) -> LL Its All About Red | G38: 40 | H38: 15 | I38: 40 | J38: 50 | K38: 5 | M38: 150 | Q38: 150
A39: 37 | B39: 967 | C39: =IF(B39="","",(VLOOKUP(B39,'Membership #'!$A$1:$C$1005,2,FALSE))) -> Marissa Hillier | D39: =IF(B39="","",(VLOOKUP(B39,'Membership #'!$A$1:$C$1005,3,FALSE))) -> Notice Betty Boop | G39: 10 | H39: 15 | I39: 10 | J39: 50 | K39: 5 | M39: 90 | Q39: 90
A40: 38 | B40: 954 | C40: =IF(B40="","",(VLOOKUP(B40,'Membership #'!$A$1:$C$1005,2,FALSE))) -> Scotia MacEachern | D40: =IF(B40="","",(VLOOKUP(B40,'Membership #'!$A$1:$C$1005,3,FALSE))) -> Hick-a-Licious | G40: 30 | H40: 15 | I40: 30 | J40: 50 | K40: 5 | M40: 130 | Q40: 130
A41: 39 | B41: 855 | C41: =IF(B41="","",(VLOOKUP(B41,'Membership #'!$A$1:$C$1005,2,FALSE))) -> Jenelle Collier | D41: =IF(B41="","",(VLOOKUP(B41,'Membership #'!$A$1:$C$1005,3,FALSE))) -> Peppy Sans Surprise | G41: 40 | H41: 15 | I41: 40 | J41: 50 | K41: 5 | M41: 150 | Q41: 150
A42: 40 | B42: 518 | C42: =IF(B42="","",(VLOOKUP(B42,'Membership #'!$A$1:$C$1005,2,FALSE))) -> Sylvester Weatherbie | D42: =IF(B42="","",(VLOOKUP(B42,'Membership #'!$A$1:$C$1005,3,FALSE))) -> J.R. | G42: 20 | H42: 15 | I42: 20 | J42: 50 | K42: 5 | L42: 40 | M42: =SUM(G42:L42) -> 150 | Q42: 150
A43: 41 | B43: 657 | C43: =IF(B43="","",(VLOOKUP(B43,'Membership #'!$A$1:$C$1005,2,FALSE))) -> Laura Morrison | D43: =IF(B43="","",(VLOOKUP(B43,'Membership #'!$A$1:$C$1005,3,FALSE))) -> Steal Ta Fame | G43: 20 | H43: 15 | I43: 20 | J43: 50 | K43: 5 | M43: 110 | Q43: 110
A44: 42 | B44: 699 | C44: =IF(B44="","",(VLOOKUP(B44,'Membership #'!$A$1:$C$1005,2,FALSE))) -> Laura Morrison | D44: =IF(B44="","",(VLOOKUP(B44,'Membership #'!$A$1:$C$1005,3,FALSE))) -> MDC Dark Revelation | G44: 10 | H44: 15 | I44: 10 | J44: 50 | K44: 5 | M44: 90 | Q44: 90
A45: 43 | B45: 636 | C45: =IF(B45="","",(VLOOKUP(B45,'Membership #'!$A$1:$C$1005,2,FALSE))) -> Ceilidh Gosse | D45: =IF(B45="","",(VLOOKUP(B45,'Membership #'!$A$1:$C$1005,3,FALSE))) -> ELM Silver Crime | G45: 10 | H45: 15 | I45: 10 | J45: 50 | K45: 5 | M45: 90 | Q45: 90
A46: 44 | B46: 695 | C46: =IF(B46="","",(VLOOKUP(B46,'Membership #'!$A$1:$C$1005,2,FALSE))) -> Tessa Dicks | D46: =IF(B46="","",(VLOOKUP(B46,'Membership #'!$A$1:$C$1005,3,FALSE))) -> Charge's Dusty Luck | G46: 40 | H46: 15 | I46: 40 | J46: 50 | K46: 5 | M46: 150 | Q46: 150
A47: 45 | B47: 928 | C47: =IF(B47="","",(VLOOKUP(B47,'Membership #'!$A$1:$C$1005,2,FALSE))) -> Tessa Dicks | D47: =IF(B47="","",(VLOOKUP(B47,'Membership #'!$A$1:$C$1005,3,FALSE))) -> ELM Dash of Crime | G47: 40 | H47: 15 | I47: 40 | J47: 50 | K47: 5 | M47: 150 | Q47: 150
A48: 46 | B48: 971 | C48: =IF(B48="","",(VLOOKUP(B48,'Membership #'!$A$1:$C$1005,2,FALSE))) -> Arielle Burke | D48: =IF(B48="","",(VLOOKUP(B48,'Membership #'!$A$1:$C$1005,3,FALSE))) -> Elm Sally | G48: 60 | H48: 15 | I48: 60 | J48: 50 | K48: 5 | M48: 190 | Q48: 190
A49: 47 | B49: 867 | C49: =IF(B49="","",(VLOOKUP(B49,'Membership #'!$A$1:$C$1005,2,FALSE))) -> Layla MacEachem | D49: =IF(B49="","",(VLOOKUP(B49,'Membership #'!$A$1:$C$1005,3,FALSE))) -> Shes a gem | G49: 10 | H49: 15 | I49: 10 | J49: 50 | K49: 5 | L49: 40 | M49: =SUM(G49:L49) -> 130 | Q49: 130
A50: 48 | B50: 539 | C50: =IF(B50="","",(VLOOKUP(B50,'Membership #'!$A$1:$C$1005,2,FALSE))) -> Alex Singer | D50: =IF(B50="","",(VLOOKUP(B50,'Membership #'!$A$1:$C$1005,3,FALSE))) -> Plain White Trash | G50: 40 | H50: 15 | I50: 40 | J50: 50 | K50: 5 | M50: 150 | Q50: 150
A51: 49 | B51: 892 | C51: =IF(B51="","",(VLOOKUP(B51,'Membership #'!$A$1:$C$1005,2,FALSE))) -> Donnie MacNeil | D51: =IF(B51="","",(VLOOKUP(B51,'Membership #'!$A$1:$C$1005,3,FALSE))) -> Gifted Go Gold | G51: 50 | H51: 15 | I51: 50 | J51: 50 | K51: 5 | L51: 40 | M51: =SUM(G51:L51) -> 210 | Q51: 210
A52: 50 | B52: 556 | C52: =IF(B52="","",(VLOOKUP(B52,'Membership #'!$A$1:$C$1005,2,FALSE))) -> Stephaine Clark | D52: =IF(B52="","",(VLOOKUP(B52,'Membership #'!$A$1:$C$1005,3,FALSE))) -> Perks A Flyin | G52: 30 | H52: 15 | I52: 30 | J52: 50 | K52: 5 | L52: 40 | M52: =SUM(G52:L52) -> 170 | Q52: 170
A53: 51 | B53: 666 | C53: =IF(B53="","",(VLOOKUP(B53,'Membership #'!$A$1:$C$1005,2,FALSE))) -> Summer Fraser | D53: =IF(B53="","",(VLOOKUP(B53,'Membership #'!$A$1:$C$1005,3,FALSE))) -> Sheza Smokin' Girl | G53: 10 | I53: 10 | J53: 50 | K53: 5 | M53: 75 | Q53: 75
A54: 52 | B54: 732 | C54: =IF(B54="","",(VLOOKUP(B54,'Membership #'!$A$1:$C$1005,2,FALSE))) -> Brenna Carrigan | D54: =IF(B54="","",(VLOOKUP(B54,'Membership #'!$A$1:$C$1005,3,FALSE))) -> Carlos | G54: 60 | H54: 15 | I54: 60 | J54: 50 | K54: 5 | M54: 190 | Q54: 190
A55: 53 | B55: 514 | C55: =IF(B55="","",(VLOOKUP(B55,'Membership #'!$A$1:$C$1005,2,FALSE))) -> Heather Morrison | D55: =IF(B55="","",(VLOOKUP(B55,'Membership #'!$A$1:$C$1005,3,FALSE))) -> Black Fire Dash | G55: 10 | H55: 15 | I55: 10 | J55: 50 | K55: 5 | L55: 40 | M55: =SUM(G55:L55) -> 130 | Q55: 130
A56: 54 | B56: 961 | C56: =IF(B56="","",(VLOOKUP(B56,'Membership #'!$A$1:$C$1005,2,FALSE))) -> Jacie Burke | D56: =IF(B56="","",(VLOOKUP(B56,'Membership #'!$A$1:$C$1005,3,FALSE))) -> She's Just That Sassy | G56: 10 | I56: 10 | J56: 50 | K56: 5 | M56: 75 | Q56: 75
A57: 55 | B57: 962 | C57: =IF(B57="","",(VLOOKUP(B57,'Membership #'!$A$1:$C$1005,2,FALSE))) -> Hariin Burke | D57: =IF(B57="","",(VLOOKUP(B57,'Membership #'!$A$1:$C$1005,3,FALSE))) -> Olds Bold Impulse | J57: 50 | K57: 5 | L57: 40 | M57: 55 | Q57: =SUM(L57:P57) -> 95
A58: 56 | B58: 963 | C58: =IF(B58="","",(VLOOKUP(B58,'Membership #'!$A$1:$C$1005,2,FALSE))) -> Leighton Burke | D58: =IF(B58="","",(VLOOKUP(B58,'Membership #'!$A$1:$C$1005,3,FALSE))) -> Boot Scootin Boogie | J58: 50 | K58: 5 | M58: 55 | Q58: 55
A59: 57 | B59: 909 | C59: =IF(B59="","",(VLOOKUP(B59,'Membership #'!$A$1:$C$1005,2,FALSE))) -> Rebecca Gillis | D59: =IF(B59="","",(VLOOKUP(B59,'Membership #'!$A$1:$C$1005,3,FALSE))) -> Martha's Tivio Moon | G59: 40 | H59: 15 | I59: 40 | J59: 50 | K59: 5 | M59: 150 | Q59: 150
A60: 58 | B60: 583 | C60: =IF(B60="","",(VLOOKUP(B60,'Membership #'!$A$1:$C$1005,2,FALSE))) -> Travis Patterson | D60: =IF(B60="","",(VLOOKUP(B60,'Membership #'!$A$1:$C$1005,3,FALSE))) -> JT Rosie | G60: 10 | H60: 15 | I60: 10 | J60: 50 | K60: 5 | M60: 90 | Q60: 90
A61: 59 | B61: 523 | C61: =IF(B61="","",(VLOOKUP(B61,'Membership #'!$A$1:$C$1005,2,FALSE))) -> Nicole Dobson | D61: =IF(B61="","",(VLOOKUP(B61,'Membership #'!$A$1:$C$1005,3,FALSE))) -> Barbeesimpossibleinprint | G61: 20 | H61: 15 | I61: 20 | J61: 50 | K61: 5 | L61: 20 | M61: =SUM(G61:L61) -> 130 | Q61: 130
A62: 60 | C62: =IF(B62="","",(VLOOKUP(B62,'Membership #'!$A$1:$C$1005,2,FALSE))) ->  | D62: =IF(B62="","",(VLOOKUP(B62,'Membership #'!$A$1:$C$1005,3,FALSE))) ->  | J62: 50 | K62: 5 | M62: 55 | Q62: 55
A63: 61 | C63: =IF(B63="","",(VLOOKUP(B63,'Membership #'!$A$1:$C$1005,2,FALSE))) ->  | D63: =IF(B63="","",(VLOOKUP(B63,'Membership #'!$A$1:$C$1005,3,FALSE))) ->  | J63: 50 | K63: 5 | M63: 55 | Q63: 55
A64: 62 | C64: =IF(B64="","",(VLOOKUP(B64,'Membership #'!$A$1:$C$1005,2,FALSE))) ->  | D64: =IF(B64="","",(VLOOKUP(B64,'Membership #'!$A$1:$C$1005,3,FALSE))) ->  | J64: 50 | K64: 5 | M64: 55 | Q64: 55
A65: 63 | C65: =IF(B65="","",(VLOOKUP(B65,'Membership #'!$A$1:$C$1005,2,FALSE))) ->  | D65: =IF(B65="","",(VLOOKUP(B65,'Membership #'!$A$1:$C$1005,3,FALSE))) ->  | J65: 50 | K65: 5 | M65: 55 | Q65: 55
A66: 64 | C66: =IF(B66="","",(VLOOKUP(B66,'Membership #'!$A$1:$C$1005,2,FALSE))) ->  | D66: =IF(B66="","",(VLOOKUP(B66,'Membership #'!$A$1:$C$1005,3,FALSE))) ->  | J66: 50 | K66: 5 | M66: 55 | Q66: 55
A67: 65 | C67: =IF(B67="","",(VLOOKUP(B67,'Membership #'!$A$1:$C$1005,2,FALSE))) ->  | D67: =IF(B67="","",(VLOOKUP(B67,'Membership #'!$A$1:$C$1005,3,FALSE))) ->  | J67: 50 | K67: 5 | M67: =SUM(G67:K67) -> 55 | Q67: 55
A68: 66 | C68: =IF(B68="","",(VLOOKUP(B68,'Membership #'!$A$1:$C$1005,2,FALSE))) ->  | D68: =IF(B68="","",(VLOOKUP(B68,'Membership #'!$A$1:$C$1005,3,FALSE))) ->  | J68: 50 | K68: 5 | M68: 55 | Q68: 55
A69: 67 | J69: 50 | K69: 5 | M69: 55 | Q69: 55
A70: 68 | C70: =IF(B70="","",(VLOOKUP(B70,'Membership #'!$A$1:$C$1005,2,FALSE))) ->  | D70: =IF(B70="","",(VLOOKUP(B70,'Membership #'!$A$1:$C$1005,3,FALSE))) ->  | J70: 50 | K70: 5 | M70: =SUM(G70:K70) -> 55 | Q70: =SUM(M70:P70) -> 55
A71: 69 | C71: =IF(B71="","",(VLOOKUP(B71,'Membership #'!$A$1:$C$1005,2,FALSE))) ->  | D71: =IF(B71="","",(VLOOKUP(B71,'Membership #'!$A$1:$C$1005,3,FALSE))) ->  | J71: 50 | K71: 5 | M71: 55 | Q71: 55
A72: 70 | C72: =IF(B72="","",(VLOOKUP(B72,'Membership #'!$A$1:$C$1005,2,FALSE))) ->  | D72: =IF(B72="","",(VLOOKUP(B72,'Membership #'!$A$1:$C$1005,3,FALSE))) ->  | J72: 50 | K72: 5 | M72: 55 | Q72: 55
C73: =IF(B73="","",(VLOOKUP(B73,'Membership #'!$A$1:$C$1005,2,FALSE))) ->  | D73: =IF(B73="","",(VLOOKUP(B73,'Membership #'!$A$1:$C$1005,3,FALSE))) ->  | J73: 50 | K73: 5 | M73: 55 | Q73: 55
C74: =IF(B74="","",(VLOOKUP(B74,'Membership #'!$A$1:$C$1005,2,FALSE))) ->  | D74: =IF(B74="","",(VLOOKUP(B74,'Membership #'!$A$1:$C$1005,3,FALSE))) -> 
C75: =IF(B75="","",(VLOOKUP(B75,'Membership #'!$A$1:$C$1005,2,FALSE))) ->  | D75: =IF(B75="","",(VLOOKUP(B75,'Membership #'!$A$1:$C$1005,3,FALSE))) ->  | G75: =SUM(G3:G74) -> 1385 | H75: 705 | I75: 1420 | J75: 3550 | K75: 355 | M75: 7995 | S75: =SUM(S3:S62) -> 0 | T75: 0 | U75: 0 | V75: 0 | W75: 0 | X75: 0
C76: =IF(B76="","",(VLOOKUP(B76,'Membership #'!$A$1:$C$1005,2,FALSE))) ->  | D76: =IF(B76="","",(VLOOKUP(B76,'Membership #'!$A$1:$C$1005,3,FALSE))) -> 
C77: =IF(B77="","",(VLOOKUP(B77,'Membership #'!$A$1:$C$1005,2,FALSE))) ->  | D77: =IF(B77="","",(VLOOKUP(B77,'Membership #'!$A$1:$C$1005,3,FALSE))) -> 
C78: =IF(B78="","",(VLOOKUP(B78,'Membership #'!$A$1:$C$1005,2,FALSE))) ->  | D78: =IF(B78="","",(VLOOKUP(B78,'Membership #'!$A$1:$C$1005,3,FALSE))) -> 
C79: =IF(B79="","",(VLOOKUP(B79,'Membership #'!$A$1:$C$1005,2,FALSE))) ->  | D79: =IF(B79="","",(VLOOKUP(B79,'Membership #'!$A$1:$C$1005,3,FALSE))) -> 
C80: =IF(B80="","",(VLOOKUP(B80,'Membership #'!$A$1:$C$1005,2,FALSE))) ->  | D80: =IF(B80="","",(VLOOKUP(B80,'Membership #'!$A$1:$C$1005,3,FALSE))) -> 
C81: =IF(B81="","",(VLOOKUP(B81,'Membership #'!$A$1:$C$1005,2,FALSE))) ->  | D81: =IF(B81="","",(VLOOKUP(B81,'Membership #'!$A$1:$C$1005,3,FALSE))) -> 
C82: =IF(B82="","",(VLOOKUP(B82,'Membership #'!$A$1:$C$1005,2,FALSE))) ->  | D82: =IF(B82="","",(VLOOKUP(B82,'Membership #'!$A$1:$C$1005,3,FALSE))) -> 
C83: =IF(B83="","",(VLOOKUP(B83,'Membership #'!$A$1:$C$1005,2,FALSE))) ->  | D83: =IF(B83="","",(VLOOKUP(B83,'Membership #'!$A$1:$C$1005,3,FALSE))) -> 
C84: =IF(B84="","",(VLOOKUP(B84,'Membership #'!$A$1:$C$1005,2,FALSE))) ->  | D84: =IF(B84="","",(VLOOKUP(B84,'Membership #'!$A$1:$C$1005,3,FALSE))) -> 
C85: =IF(B85="","",(VLOOKUP(B85,'Membership #'!$A$1:$C$1005,2,FALSE))) ->  | D85: =IF(B85="","",(VLOOKUP(B85,'Membership #'!$A$1:$C$1005,3,FALSE))) -> 
C86: =IF(B86="","",(VLOOKUP(B86,'Membership #'!$A$1:$C$1005,2,FALSE))) ->  | D86: =IF(B86="","",(VLOOKUP(B86,'Membership #'!$A$1:$C$1005,3,FALSE))) -> 
C87: =IF(B87="","",(VLOOKUP(B87,'Membership #'!$A$1:$C$1005,2,FALSE))) ->  | D87: =IF(B87="","",(VLOOKUP(B87,'Membership #'!$A$1:$C$1005,3,FALSE))) -> 
C88: =IF(B88="","",(VLOOKUP(B88,'Membership #'!$A$1:$C$1005,2,FALSE))) ->  | D88: =IF(B88="","",(VLOOKUP(B88,'Membership #'!$A$1:$C$1005,3,FALSE))) -> 
C89: =IF(B89="","",(VLOOKUP(B89,'Membership #'!$A$1:$C$1005,2,FALSE))) ->  | D89: =IF(B89="","",(VLOOKUP(B89,'Membership #'!$A$1:$C$1005,3,FALSE))) -> 
C90: =IF(B90="","",(VLOOKUP(B90,'Membership #'!$A$1:$C$1005,2,FALSE))) ->  | D90: =IF(B90="","",(VLOOKUP(B90,'Membership #'!$A$1:$C$1005,3,FALSE))) -> 
C91: =IF(B91="","",(VLOOKUP(B91,'Membership #'!$A$1:$C$1005,2,FALSE))) ->  | D91: =IF(B91="","",(VLOOKUP(B91,'Membership #'!$A$1:$C$1005,3,FALSE))) -> 
C92: =IF(B92="","",(VLOOKUP(B92,'Membership #'!$A$1:$C$1005,2,FALSE))) ->  | D92: =IF(B92="","",(VLOOKUP(B92,'Membership #'!$A$1:$C$1005,3,FALSE))) -> 
C93: =IF(B93="","",(VLOOKUP(B93,'Membership #'!$A$1:$C$1005,2,FALSE))) ->  | D93: =IF(B93="","",(VLOOKUP(B93,'Membership #'!$A$1:$C$1005,3,FALSE))) -> 
C94: =IF(B94="","",(VLOOKUP(B94,'Membership #'!$A$1:$C$1005,2,FALSE))) ->  | D94: =IF(B94="","",(VLOOKUP(B94,'Membership #'!$A$1:$C$1005,3,FALSE))) -> 
C95: =IF(B95="","",(VLOOKUP(B95,'Membership #'!$A$1:$C$1005,2,FALSE))) ->  | D95: =IF(B95="","",(VLOOKUP(B95,'Membership #'!$A$1:$C$1005,3,FALSE))) -> 
C96: =IF(B96="","",(VLOOKUP(B96,'Membership #'!$A$1:$C$1005,2,FALSE))) ->  | D96: =IF(B96="","",(VLOOKUP(B96,'Membership #'!$A$1:$C$1005,3,FALSE))) -> 
C97: =IF(B97="","",(VLOOKUP(B97,'Membership #'!$A$1:$C$1005,2,FALSE))) ->  | D97: =IF(B97="","",(VLOOKUP(B97,'Membership #'!$A$1:$C$1005,3,FALSE))) -> 
C98: =IF(B98="","",(VLOOKUP(B98,'Membership #'!$A$1:$C$1005,2,FALSE))) ->  | D98: =IF(B98="","",(VLOOKUP(B98,'Membership #'!$A$1:$C$1005,3,FALSE))) -> 
C99: =IF(B99="","",(VLOOKUP(B99,'Membership #'!$A$1:$C$1005,2,FALSE))) ->  | D99: =IF(B99="","",(VLOOKUP(B99,'Membership #'!$A$1:$C$1005,3,FALSE))) -> 
C100: =IF(B100="","",(VLOOKUP(B100,'Membership #'!$A$1:$C$1005,2,FALSE))) ->  | D100: =IF(B100="","",(VLOOKUP(B100,'Membership #'!$A$1:$C$1005,3,FALSE))) -> 
C101: =IF(B101="","",(VLOOKUP(B101,'Membership #'!$A$1:$C$1005,2,FALSE))) ->  | D101: =IF(B101="","",(VLOOKUP(B101,'Membership #'!$A$1:$C$1005,3,FALSE))) -> 
C102: =IF(B102="","",(VLOOKUP(B102,'Membership #'!$A$1:$C$1005,2,FALSE))) ->  | D102: =IF(B102="","",(VLOOKUP(B102,'Membership #'!$A$1:$C$1005,3,FALSE))) -> 
C103: =IF(B103="","",(VLOOKUP(B103,'Membership #'!$A$1:$C$1005,2,FALSE))) ->  | D103: =IF(B103="","",(VLOOKUP(B103,'Membership #'!$A$1:$C$1005,3,FALSE))) -> 
C104: =IF(B104="","",(VLOOKUP(B104,'Membership #'!$A$1:$C$1005,2,FALSE))) ->  | D104: =IF(B104="","",(VLOOKUP(B104,'Membership #'!$A$1:$C$1005,3,FALSE))) -> 
C105: =IF(B105="","",(VLOOKUP(B105,'Membership #'!$A$1:$C$1005,2,FALSE))) ->  | D105: =IF(B105="","",(VLOOKUP(B105,'Membership #'!$A$1:$C$1005,3,FALSE))) -> 
C106: =IF(B106="","",(VLOOKUP(B106,'Membership #'!$A$1:$C$1005,2,FALSE))) ->  | D106: =IF(B106="","",(VLOOKUP(B106,'Membership #'!$A$1:$C$1005,3,FALSE))) -> 
C107: =IF(B107="","",(VLOOKUP(B107,'Membership #'!$A$1:$C$1005,2,FALSE))) ->  | D107: =IF(B107="","",(VLOOKUP(B107,'Membership #'!$A$1:$C$1005,3,FALSE))) -> 
C108: =IF(B108="","",(VLOOKUP(B108,'Membership #'!$A$1:$C$1005,2,FALSE))) ->  | D108: =IF(B108="","",(VLOOKUP(B108,'Membership #'!$A$1:$C$1005,3,FALSE))) -> 
C109: =IF(B109="","",(VLOOKUP(B109,'Membership #'!$A$1:$C$1005,2,FALSE))) ->  | D109: =IF(B109="","",(VLOOKUP(B109,'Membership #'!$A$1:$C$1005,3,FALSE))) -> 
C110: =IF(B110="","",(VLOOKUP(B110,'Membership #'!$A$1:$C$1005,2,FALSE))) ->  | D110: =IF(B110="","",(VLOOKUP(B110,'Membership #'!$A$1:$C$1005,3,FALSE))) -> 
C111: =IF(B111="","",(VLOOKUP(B111,'Membership #'!$A$1:$C$1005,2,FALSE))) ->  | D111: =IF(B111="","",(VLOOKUP(B111,'Membership #'!$A$1:$C$1005,3,FALSE))) -> 
C112: =IF(B112="","",(VLOOKUP(B112,'Membership #'!$A$1:$C$1005,2,FALSE))) ->  | D112: =IF(B112="","",(VLOOKUP(B112,'Membership #'!$A$1:$C$1005,3,FALSE))) -> 
C113: =IF(B113="","",(VLOOKUP(B113,'Membership #'!$A$1:$C$1005,2,FALSE))) ->  | D113: =IF(B113="","",(VLOOKUP(B113,'Membership #'!$A$1:$C$1005,3,FALSE))) -> 
C114: =IF(B114="","",(VLOOKUP(B114,'Membership #'!$A$1:$C$1005,2,FALSE))) ->  | D114: =IF(B114="","",(VLOOKUP(B114,'Membership #'!$A$1:$C$1005,3,FALSE))) -> 

Sheet Sheet1

Sheet SMALLFRY
B1: Tom Burt & Mark McGuire Memorial Jackpot Aug 22, 2021 | L1: High Point Smallfry
B2: SMALLFRY BARRELS | L2: RING # | M2: NAME | N2: HORSE NAME | O2: Barrels | P2: Poles | Q2: Dash | R2: Barrels | S2: Poles | T2: Dash | U2: Total
A3: Rand Draw | B3: Running Order | C3: RING # | D3: NAME | E3: HORSE NAME | F3: TIME | G3: PENALTY | H3: TOTAL | I3: PLACINGS | J3: POINTS
L6: 908 | M6: =IF(L6="",0,(VLOOKUP(L6,'Membership #'!$A$1:$C$1005,2,0))) -> Josie Higgins | N6: =IF(L6="",0,(VLOOKUP(L6,'Membership #'!$A$1:$C$1005,3,0))) -> Rocket Man | O6: 10 | P6: 10 | Q6: 10 | U6: =SUM(O6:T6) -> 30
A7: =RAND() -> 0.315516498 | B7: 1 | C7: 908 | D7: =IF(C7="",0,(VLOOKUP(C7,'Membership #'!$A$1:$C$1005,2,0))) -> Josie Higgins | E7: =IF(C7="",0,(VLOOKUP(C7,'Membership #'!$A$1:$C$1005,3,0))) -> Rocket Man | F7: 19.729 | H7: =SUM(F7+G7) -> 19.729 | I7: 1 | J7: 10 | L7: 531 | M7: =IF(L7="",0,(VLOOKUP(L7,'Membership #'!$A$1:$C$1005,2,0))) -> Addison Peters | N7: =IF(L7="",0,(VLOOKUP(L7,'Membership #'!$A$1:$C$1005,3,0))) -> He's A Little Wonder | O7: 9 | P7: 9 | Q7: 8 | U7: 26
A8: 0.5152569943 | B8: 2 | C8: 531 | D8: =IF(C8="",0,(VLOOKUP(C8,'Membership #'!$A$1:$C$1005,2,0))) -> Addison Peters | E8: =IF(C8="",0,(VLOOKUP(C8,'Membership #'!$A$1:$C$1005,3,0))) -> He's A Little Wonder | F8: 21.452 | H8: 21.452 | I8: 2 | J8: 9 | L8: 627 | M8: =IF(L8="",0,(VLOOKUP(L8,'Membership #'!$A$1:$C$1005,2,0))) -> Kaelyn Keddy | N8: =IF(L8="",0,(VLOOKUP(L8,'Membership #'!$A$1:$C$1005,3,0))) -> Sight to Behold | O8: 8 | P8: 7 | Q8: 7 | U8: 22
A9: 0.4780719318 | B9: 3 | C9: 627 | D9: =IF(C9="",0,(VLOOKUP(C9,'Membership #'!$A$1:$C$1005,2,0))) -> Kaelyn Keddy | E9: =IF(C9="",0,(VLOOKUP(C9,'Membership #'!$A$1:$C$1005,3,0))) -> Sight to Behold | F9: 22.551 | H9: 22.551 | I9: 3 | J9: 8 | L9: 802 | M9: =IF(L9="",0,(VLOOKUP(L9,'Membership #'!$A$1:$C$1005,2,0))) -> Ava Reginato | N9: =IF(L9="",0,(VLOOKUP(L9,'Membership #'!$A$1:$C$1005,3,0))) -> Jacs Last Flash | O9: 7 | P9: 6 | Q9: 5 | U9: 18
A10: 0.6001151331 | B10: 4 | C10: 802 | D10: =IF(C10="",0,(VLOOKUP(C10,'Membership #'!$A$1:$C$1005,2,0))) -> Ava Reginato | E10: =IF(C10="",0,(VLOOKUP(C10,'Membership #'!$A$1:$C$1005,3,0))) -> Jacs Last Flash | F10: 25.434 | H10: 25.434 | I10: 4 | J10: 7 | L10: 974 | M10: =IF(L10="",0,(VLOOKUP(L10,'Membership #'!$A$1:$C$1005,2,0))) -> Kerissa Martin | N10: =IF(L10="",0,(VLOOKUP(L10,'Membership #'!$A$1:$C$1005,3,0))) -> Wild Steppin Phoenix | O10: 6 | P10: 8 | Q10: 9 | U10: 23
A11: 0.88076668 | B11: 5 | C11: 974 | D11: =IF(C11="",0,(VLOOKUP(C11,'Membership #'!$A$1:$C$1005,2,0))) -> Kerissa Martin | E11: =IF(C11="",0,(VLOOKUP(C11,'Membership #'!$A$1:$C$1005,3,0))) -> Wild Steppin Phoenix | F11: 22.115 | G11: 5 | H11: 27.115 | I11: 5 | J11: 6 | L11: 963 | M11: =IF(L11="",0,(VLOOKUP(L11,'Membership #'!$A$1:$C$1005,2,0))) -> Leighton Burke | N11: =IF(L11="",0,(VLOOKUP(L11,'Membership #'!$A$1:$C$1005,3,0))) -> Boot Scootin Boogie | O11: 5 | P11: 3 | U11: 8
A12: 0.2998240712 | B12: 6 | C12: 963 | D12: =IF(C12="",0,(VLOOKUP(C12,'Membership #'!$A$1:$C$1005,2,0))) -> Leighton Burke | E12: =IF(C12="",0,(VLOOKUP(C12,'Membership #'!$A$1:$C$1005,3,0))) -> Boot Scootin Boogie | F12: 27.999 | H12: 27.999 | I12: 6 | J12: 5 | L12: 710 | M12: =IF(L12="",0,(VLOOKUP(L12,'Membership #'!$A$1:$C$1005,2,0))) -> Owen Baker | N12: =IF(L12="",0,(VLOOKUP(L12,'Membership #'!$A$1:$C$1005,3,0))) -> Tip It Back | O12: 4 | P12: 5 | U12: 9
A13: =RAND() -> 0.787510584 | B13: 7 | C13: 710 | D13: =IF(C13="",0,(VLOOKUP(C13,'Membership #'!$A$1:$C$1005,2,0))) -> Owen Baker | E13: =IF(C13="",0,(VLOOKUP(C13,'Membership #'!$A$1:$C$1005,3,0))) -> Tip It Back | F13: 29.93 | H13: 29.93 | I13: 7 | J13: 4 | L13: 710b | M13: =IF(L13="",0,(VLOOKUP(L13,'Membership #'!$A$1:$C$1005,2,0))) -> Isla Baker | N13: =IF(L13="",0,(VLOOKUP(L13,'Membership #'!$A$1:$C$1005,3,0))) -> Tip It Back | O13: 3 | P13: 4 | U13: 7
A14: 0.1561157034 | B14: 8 | C14: 710b | D14: =IF(C14="",0,(VLOOKUP(C14,'Membership #'!$A$1:$C$1005,2,0))) -> Isla Baker | E14: =IF(C14="",0,(VLOOKUP(C14,'Membership #'!$A$1:$C$1005,3,0))) -> Tip It Back | F14: 35.271 | H14: 35.271 | I14: 8 | J14: 3 | L14: 31 | M14: Nora Lewis | N14: Oreo Blizzard | O14: 2 | P14: 2 | U14: 4
A15: 0.428082097 | B15: 9 | C15: 31 | D15: Nora Lewis | E15: Oreo Blizzard | F15: 35.563 | H15: 35.563 | I15: 9 | J15: 2 | L15: 962 | M15: =IF(L15="",0,(VLOOKUP(L15,'Membership #'!$A$1:$C$1005,2,0))) -> Hariin Burke | N15: =IF(L15="",0,(VLOOKUP(L15,'Membership #'!$A$1:$C$1005,3,0))) -> Olds Bold Impulse | O15: 1 | P15: 1 | U15: 2
A16: 0.911996279 | B16: 10 | C16: 962 | D16: =IF(C16="",0,(VLOOKUP(C16,'Membership #'!$A$1:$C$1005,2,0))) -> Hariin Burke | E16: =IF(C16="",0,(VLOOKUP(C16,'Membership #'!$A$1:$C$1005,3,0))) -> Olds Bold Impulse | F16: n
A17: 0.5639936216 | B17: 11 | D17: =IF(C17="",0,(VLOOKUP(C17,'Membership #'!$A$1:$C$1005,2,0))) -> 0 | E17: =IF(C17="",0,(VLOOKUP(C17,'Membership #'!$A$1:$C$1005,3,0))) -> 0 | H17: =SUM(F17+G17) -> 0
A18: 0.5696580804 | B18: 12 | D18: =IF(C18="",0,(VLOOKUP(C18,'Membership #'!$A$1:$C$1005,2,0))) -> 0 | E18: =IF(C18="",0,(VLOOKUP(C18,'Membership #'!$A$1:$C$1005,3,0))) -> 0 | H18: 0 | M18: =IF(L18="",0,(VLOOKUP(L18,'Membership #'!$A$1:$C$1005,2,0))) -> 0 | N18: =IF(L18="",0,(VLOOKUP(L18,'Membership #'!$A$1:$C$1005,3,0))) -> 0 | U18: =SUM(O18:T18) -> 0
A19: 0.01344213636 | B19: 13 | D19: =IF(C19="",0,(VLOOKUP(C19,'Membership #'!$A$1:$C$1005,2,0))) -> 0 | E19: =IF(C19="",0,(VLOOKUP(C19,'Membership #'!$A$1:$C$1005,3,0))) -> 0 | H19: 0 | U19: 0
B20: Tom Burt & Mark McGuire Memorial Jackpot Aug 22, 2021 | M20: =IF(L20="",0,(VLOOKUP(L20,'Membership #'!$A$1:$C$1005,2,0))) -> 0 | N20: =IF(L20="",0,(VLOOKUP(L20,'Membership #'!$A$1:$C$1005,3,0))) -> 0 | U20: 0
B21: SMALLFRY POLES | U21: 0
A22: Rand Draw | B22: Running Order | C22: RING # | D22: NAME | E22: HORSE NAME | F22: TIME | G22: PENALTY | I22: PLACINGS | J22: POINTS | M22: =IF(L22="",0,(VLOOKUP(L22,'Membership #'!$A$1:$C$1005,2,0))) -> 0 | N22: =IF(L22="",0,(VLOOKUP(L22,'Membership #'!$A$1:$C$1005,3,0))) -> 0 | U22: 0
M23: =IF(L23="",0,(VLOOKUP(L23,'Membership #'!$A$1:$C$1005,2,0))) -> 0 | N23: =IF(L23="",0,(VLOOKUP(L23,'Membership #'!$A$1:$C$1005,3,0))) -> 0 | U23: 0
A26: =RAND() -> 0.821730584 | B26: 1 | C26: 908 | D26: =IF(C26="",0,(VLOOKUP(C26,'Membership #'!$A$1:$C$1005,2,0))) -> Josie Higgins | E26: =IF(C26="",0,(VLOOKUP(C26,'Membership #'!$A$1:$C$1005,3,0))) -> Rocket Man | F26: 29.865 | H26: =SUM(F26+G26) -> 29.865 | I26: 1 | J26: 10
A27: 0.9712868196 | B27: 2 | C27: 531 | D27: =IF(C27="",0,(VLOOKUP(C27,'Membership #'!$A$1:$C$1005,2,0))) -> Addison Peters | E27: =IF(C27="",0,(VLOOKUP(C27,'Membership #'!$A$1:$C$1005,3,0))) -> He's A Little Wonder | F27: 30.223 | H27: 30.223 | I27: 2 | J27: 9
A28: 0.5331859716 | B28: 3 | C28: 974 | D28: =IF(C28="",0,(VLOOKUP(C28,'Membership #'!$A$1:$C$1005,2,0))) -> Kerissa Martin | E28: =IF(C28="",0,(VLOOKUP(C28,'Membership #'!$A$1:$C$1005,3,0))) -> Wild Steppin Phoenix | F28: 31.787 | H28: 31.787 | I28: 3 | J28: 8
A29: 0.2961303008 | B29: 4 | C29: 627 | D29: =IF(C29="",0,(VLOOKUP(C29,'Membership #'!$A$1:$C$1005,2,0))) -> Kaelyn Keddy | E29: =IF(C29="",0,(VLOOKUP(C29,'Membership #'!$A$1:$C$1005,3,0))) -> Sight to Behold | F29: 32.714 | H29: 32.714 | I29: 4 | J29: 7
A30: 0.502708683 | B30: 5 | C30: 802 | D30: =IF(C30="",0,(VLOOKUP(C30,'Membership #'!$A$1:$C$1005,2,0))) -> Ava Reginato | E30: =IF(C30="",0,(VLOOKUP(C30,'Membership #'!$A$1:$C$1005,3,0))) -> Jacs Last Flash | F30: 39.398 | H30: 39.398 | I30: 5 | J30: 6
A31: 0.1728798782 | B31: 6 | C31: 710 | D31: =IF(C31="",0,(VLOOKUP(C31,'Membership #'!$A$1:$C$1005,2,0))) -> Owen Baker | E31: =IF(C31="",0,(VLOOKUP(C31,'Membership #'!$A$1:$C$1005,3,0))) -> Tip It Back | F31: 40.576 | H31: 40.576 | I31: 6 | J31: 5
A32: =RAND() -> 0.03018856843 | B32: 7 | C32: 710b | D32: =IF(C32="",0,(VLOOKUP(C32,'Membership #'!$A$1:$C$1005,2,0))) -> Isla Baker | E32: =IF(C32="",0,(VLOOKUP(C32,'Membership #'!$A$1:$C$1005,3,0))) -> Tip It Back | F32: 49.57 | H32: 49.57 | I32: 7 | J32: 4
A33: 0.4167140472 | B33: 8 | C33: 963 | D33: =IF(C33="",0,(VLOOKUP(C33,'Membership #'!$A$1:$C$1005,2,0))) -> Leighton Burke | E33: =IF(C33="",0,(VLOOKUP(C33,'Membership #'!$A$1:$C$1005,3,0))) -> Boot Scootin Boogie | F33: 44.644 | G33: 5 | H33: 49.644 | I33: 8 | J33: 3
A34: 0.04561603903 | B34: 9 | C34: 31 | D34: Nora Lewis | E34: Oreo Blizzard | F34: 50.289 | H34: 50.289 | I34: 9 | J34: 2
B35: 10 | C35: 962 | D35: =IF(C35="",0,(VLOOKUP(C35,'Membership #'!$A$1:$C$1005,2,0))) -> Hariin Burke | E35: =IF(C35="",0,(VLOOKUP(C35,'Membership #'!$A$1:$C$1005,3,0))) -> Olds Bold Impulse | F35: n | H35: =SUM(F35+G35) ->  | I35: 10 | J35: 1
B36: Tom Burt & Mark McGuire Memorial Jackpot Aug 22, 2021
B37: SMALLFRY Dash
A38: Rand Draw | B38: Running Order | C38: RING # | D38: NAME | E38: HORSE NAME | F38: TIME | G38: PENALTY | H38: TOTAL | I38: PLACINGS | J38: POINTS
A42: =RAND() -> 0.02070573143 | B42: 4 | C42: 908 | D42: =IF(C42="",0,(VLOOKUP(C42,'Membership #'!$A$1:$C$1005,2,0))) -> Josie Higgins | E42: =IF(C42="",0,(VLOOKUP(C42,'Membership #'!$A$1:$C$1005,3,0))) -> Rocket Man | F42: 9.732 | H42: =SUM(F42+G42) -> 9.732 | I42: 1 | J42: 10
A43: =RAND() -> 0.9470251056 | B43: 1 | C43: 974 | D43: =IF(C43="",0,(VLOOKUP(C43,'Membership #'!$A$1:$C$1005,2,0))) -> Kerissa Martin | E43: =IF(C43="",0,(VLOOKUP(C43,'Membership #'!$A$1:$C$1005,3,0))) -> Wild Steppin Phoenix | F43: 10.986 | H43: =SUM(F43+G43) -> 10.986 | I43: 2 | J43: 9
A44: =RAND() -> 0.5847910961 | B44: 7 | C44: 531 | D44: =IF(C44="",0,(VLOOKUP(C44,'Membership #'!$A$1:$C$1005,2,0))) -> Addison Peters | E44: =IF(C44="",0,(VLOOKUP(C44,'Membership #'!$A$1:$C$1005,3,0))) -> He's A Little Wonder | F44: 11.015 | H44: =SUM(F44+G44) -> 11.015 | I44: 3 | J44: 8
A45: =RAND() -> 0.598522999 | B45: 6 | C45: 627 | D45: =IF(C45="",0,(VLOOKUP(C45,'Membership #'!$A$1:$C$1005,2,0))) -> Kaelyn Keddy | E45: =IF(C45="",0,(VLOOKUP(C45,'Membership #'!$A$1:$C$1005,3,0))) -> Sight to Behold | F45: 11.609 | H45: =SUM(F45+G45) -> 11.609 | I45: 4 | J45: 7
A46: =RAND() -> 0.3867552647 | B46: 5 | C46: 962 | D46: =IF(C46="",0,(VLOOKUP(C46,'Membership #'!$A$1:$C$1005,2,0))) -> Hariin Burke | E46: =IF(C46="",0,(VLOOKUP(C46,'Membership #'!$A$1:$C$1005,3,0))) -> Olds Bold Impulse | F46: 12.392 | H46: =SUM(F46+G46) -> 12.392 | I46: 5 | J46: 6
A47: =RAND() -> 0.2691681735 | B47: 9 | C47: 802 | D47: Ava Reginato | E47: Jacs Last Flash | F47: 12.959 | H47: 12.959 | I47: 6 | J47: 5
A48: =RAND() -> 0.2544547439 | B48: 3 | C48: 963 | D48: =IF(C48="",0,(VLOOKUP(C48,'Membership #'!$A$1:$C$1005,2,0))) -> Leighton Burke | E48: =IF(C48="",0,(VLOOKUP(C48,'Membership #'!$A$1:$C$1005,3,0))) -> Boot Scootin Boogie | F48: 15.066 | H48: =SUM(F48+G48) -> 15.066
A49: =RAND() -> 0.5102330247 | B49: 2 | C49: 710 | D49: =IF(C49="",0,(VLOOKUP(C49,'Membership #'!$A$1:$C$1005,2,0))) -> Owen Baker | E49: =IF(C49="",0,(VLOOKUP(C49,'Membership #'!$A$1:$C$1005,3,0))) -> Tip It Back | F49: 15.103 | H49: =SUM(F49+G49) -> 15.103
B50: 10 | C50: 31 | D50: Nora Lewis | E50: Oero Blizzard | F50: 20.192 | H50: =SUM(F50+G50) -> 20.192
A51: 0.8830316873 | B51: 8 | C51: 710b | D51: =IF(C51="",0,(VLOOKUP(C51,'Membership #'!$A$1:$C$1005,2,0))) -> Isla Baker | E51: =IF(C51="",0,(VLOOKUP(C51,'Membership #'!$A$1:$C$1005,3,0))) -> Tip It Back | F51: 23.518 | H51: =SUM(F51+G51) -> 23.518

Sheet PONY
B1: Tom Burt & Mark McGuire Memorial Jackpot Aug 22, 2021 | L1: High Point Pony
B2: PONY BARRELS | L2: RING # | M2: NAME | N2: HORSE NAME | O2: Barrels | P2: Poles | Q2: Dash | R2: Barrels | S2: Poles | T2: Dash | U2: Total
A3: Rand Draw | B3: Running Order | C3: RING # | D3: NAME | E3: HORSE NAME | F3: TIME | G3: PENALTY | H3: TOTAL | I3: PLACINGS | J3: POINTS
L6: 815 | M6: =IF(L6="",0,(VLOOKUP(L6,'Membership #'!$A$1:$C$1005,2,0))) -> Brooke Kennedy | N6: =IF(L6="",0,(VLOOKUP(L6,'Membership #'!$A$1:$C$1005,3,0))) -> Tic Toc Teazer | O6: 10 | P6: 8 | Q6: 5 | U6: =SUM(O6:T6) -> 23
A7: =RAND() -> 0.2976394537 | B7: 1 | C7: 815 | D7: =IF(C7="",0,(VLOOKUP(C7,'Membership #'!$A$1:$C$1005,2,0))) -> Brooke Kennedy | E7: =IF(C7="",0,(VLOOKUP(C7,'Membership #'!$A$1:$C$1005,3,0))) -> Tic Toc Teazer | F7: 15.878 | H7: =SUM(F7+G7) -> 15.878 | I7: 1 | L7: 961 | M7: =IF(L7="",0,(VLOOKUP(L7,'Membership #'!$A$1:$C$1005,2,0))) -> Jacie Burke | N7: =IF(L7="",0,(VLOOKUP(L7,'Membership #'!$A$1:$C$1005,3,0))) -> She's Just That Sassy | O7: 9 | P7: 10 | U7: =SUM(O7:T7) -> 19
A8: 0.1999365994 | B8: 2 | C8: 961 | D8: =IF(C8="",0,(VLOOKUP(C8,'Membership #'!$A$1:$C$1005,2,0))) -> Jacie Burke | E8: =IF(C8="",0,(VLOOKUP(C8,'Membership #'!$A$1:$C$1005,3,0))) -> She's Just That Sassy | F8: 16.441 | H8: 16.441 | I8: 2 | L8: 941 | M8: =IF(L8="",0,(VLOOKUP(L8,'Membership #'!$A$1:$C$1005,2,0))) -> Taylor Hurley | N8: =IF(L8="",0,(VLOOKUP(L8,'Membership #'!$A$1:$C$1005,3,0))) -> Nacho Business | O8: 8 | Q8: 9 | U8: =SUM(O8:T8) -> 17
A9: 0.77137465 | B9: 3 | C9: 941 | D9: =IF(C9="",0,(VLOOKUP(C9,'Membership #'!$A$1:$C$1005,2,0))) -> Taylor Hurley | E9: =IF(C9="",0,(VLOOKUP(C9,'Membership #'!$A$1:$C$1005,3,0))) -> Nacho Business | F9: 17.593 | H9: 17.593 | I9: 3 | L9: 636 | M9: =IF(L9="",0,(VLOOKUP(L9,'Membership #'!$A$1:$C$1005,2,0))) -> Ceilidh Gosse | N9: =IF(L9="",0,(VLOOKUP(L9,'Membership #'!$A$1:$C$1005,3,0))) -> ELM Silver Crime | O9: 7 | P9: 7 | U9: =SUM(O9:T9) -> 14
A10: 0.8351626693 | B10: 4 | C10: 636 | D10: =IF(C10="",0,(VLOOKUP(C10,'Membership #'!$A$1:$C$1005,2,0))) -> Ceilidh Gosse | E10: =IF(C10="",0,(VLOOKUP(C10,'Membership #'!$A$1:$C$1005,3,0))) -> ELM Silver Crime | F10: 17.851 | H10: 17.851 | I10: 4 | L10: 867 | M10: =IF(L10="",0,(VLOOKUP(L10,'Membership #'!$A$1:$C$1005,2,0))) -> Layla MacEachem | N10: =IF(L10="",0,(VLOOKUP(L10,'Membership #'!$A$1:$C$1005,3,0))) -> Shes a gem | O10: 6 | P10: 9 | Q10: 8 | U10: 23
A11: 0.4552574193 | B11: 5 | C11: 867 | D11: =IF(C11="",0,(VLOOKUP(C11,'Membership #'!$A$1:$C$1005,2,0))) -> Layla MacEachem | E11: =IF(C11="",0,(VLOOKUP(C11,'Membership #'!$A$1:$C$1005,3,0))) -> Shes a gem | F11: 18.034 | H11: 18.034 | I11: 5 | L11: 702 | M11: =IF(L11="",0,(VLOOKUP(L11,'Membership #'!$A$1:$C$1005,2,0))) -> Jenna Proctor | N11: =IF(L11="",0,(VLOOKUP(L11,'Membership #'!$A$1:$C$1005,3,0))) -> Painted to Perfection | O11: 5 | P11: 6 | Q11: 7 | U11: 18
A12: 0.3698529278 | B12: 6 | C12: 702 | D12: =IF(C12="",0,(VLOOKUP(C12,'Membership #'!$A$1:$C$1005,2,0))) -> Jenna Proctor | E12: =IF(C12="",0,(VLOOKUP(C12,'Membership #'!$A$1:$C$1005,3,0))) -> Painted to Perfection | F12: 20.187 | H12: 20.187 | I12: 6 | L12: 967 | M12: =IF(L12="",0,(VLOOKUP(L12,'Membership #'!$A$1:$C$1005,2,0))) -> Marissa Hillier | N12: =IF(L12="",0,(VLOOKUP(L12,'Membership #'!$A$1:$C$1005,3,0))) -> Notice Betty Boop | O12: 4 | P12: 5 | Q12: 6 | U12: =SUM(O12:T12) -> 15
A13: 0.1193833587 | B13: 7 | C13: 967 | D13: =IF(C13="",0,(VLOOKUP(C13,'Membership #'!$A$1:$C$1005,2,0))) -> Marissa Hillier | E13: =IF(C13="",0,(VLOOKUP(C13,'Membership #'!$A$1:$C$1005,3,0))) -> Notice Betty Boop | F13: 20.48 | H13: 20.48 | I13: 7 | L13: 532 | M13: =IF(L13="",0,(VLOOKUP(L13,'Membership #'!$A$1:$C$1005,2,0))) -> Gracie MacLean | N13: =IF(L13="",0,(VLOOKUP(L13,'Membership #'!$A$1:$C$1005,3,0))) -> Secret | O13: 3 | U13: 3
A14: 0.1974261689 | B14: 8 | C14: 532 | D14: =IF(C14="",0,(VLOOKUP(C14,'Membership #'!$A$1:$C$1005,2,0))) -> Gracie MacLean | E14: =IF(C14="",0,(VLOOKUP(C14,'Membership #'!$A$1:$C$1005,3,0))) -> Secret | F14: x
A15: 0.04474089584 | B15: 9 | C15: 666 | D15: =IF(C15="",0,(VLOOKUP(C15,'Membership #'!$A$1:$C$1005,2,0))) -> Summer Fraser | E15: =IF(C15="",0,(VLOOKUP(C15,'Membership #'!$A$1:$C$1005,3,0))) -> Sheza Smokin' Girl | F15: x
A16: 0.6906162312 | B16: 10 | C16: 889 | D16: =IF(C16="",0,(VLOOKUP(C16,'Membership #'!$A$1:$C$1005,2,0))) -> Adelaine Cowley | E16: =IF(C16="",0,(VLOOKUP(C16,'Membership #'!$A$1:$C$1005,3,0))) -> Frenchman's Promise | F16: x
A17: =RAND() -> 0.3261932402 | D17: =IF(C17="",0,(VLOOKUP(C17,'Membership #'!$A$1:$C$1005,2,0))) -> 0 | E17: =IF(C17="",0,(VLOOKUP(C17,'Membership #'!$A$1:$C$1005,3,0))) -> 0 | H17: =SUM(F17+G17) -> 0
B19: Tom Burt & Mark McGuire Memorial Jackpot Aug 22, 2021 | M19: =IF(L19="",0,(VLOOKUP(L19,'Membership #'!$A$1:$C$1005,2,0))) -> 0 | N19: =IF(L19="",0,(VLOOKUP(L19,'Membership #'!$A$1:$C$1005,3,0))) -> 0 | U19: =SUM(O19:T19) -> 0
B20: PONY POLES | M20: =IF(L20="",0,(VLOOKUP(L20,'Membership #'!$A$1:$C$1005,2,0))) -> 0 | N20: =IF(L20="",0,(VLOOKUP(L20,'Membership #'!$A$1:$C$1005,3,0))) -> 0 | U20: =SUM(O20:T20) -> 0
A21: Rand Draw | B21: Running Order | C21: RING # | D21: NAME | E21: HORSE NAME | F21: TIME | G21: PENALTY | H21: TOTAL | I21: PLACINGS | J21: POINTS | M21: =IF(L21="",0,(VLOOKUP(L21,'Membership #'!$A$1:$C$1005,2,0))) -> 0 | N21: =IF(L21="",0,(VLOOKUP(L21,'Membership #'!$A$1:$C$1005,3,0))) -> 0 | U21: =SUM(O21:T21) -> 0
M22: =IF(L22="",0,(VLOOKUP(L22,'Membership #'!$A$1:$C$1005,2,0))) -> 0 | N22: =IF(L22="",0,(VLOOKUP(L22,'Membership #'!$A$1:$C$1005,3,0))) -> 0 | U22: =SUM(O22:T22) -> 0
U23: =SUM(O23:T23) -> 0
A25: =RAND() -> 0.939537094 | B25: 1 | C25: 961 | D25: =IF(C25="","",(VLOOKUP(C25,'Membership #'!$A$1:$C$1005,2,FALSE))) -> Jacie Burke | E25: =IF(C25="","",(VLOOKUP(C25,'Membership #'!$A$1:$C$1005,3,FALSE))) -> She's Just That Sassy | F25: 25.566 | H25: =SUM(F25+G25) -> 25.566 | I25: 1 | J25: 10
A26: 0.5338206189 | B26: 2 | C26: 867 | D26: =IF(C26="","",(VLOOKUP(C26,'Membership #'!$A$1:$C$1005,2,FALSE))) -> Layla MacEachem | E26: =IF(C26="","",(VLOOKUP(C26,'Membership #'!$A$1:$C$1005,3,FALSE))) -> Shes a gem | F26: 27.939 | H26: 27.939 | I26: 2 | J26: 9
A27: 0.9687420328 | B27: 3 | C27: 815 | D27: =IF(C27="","",(VLOOKUP(C27,'Membership #'!$A$1:$C$1005,2,FALSE))) -> Brooke Kennedy | E27: =IF(C27="","",(VLOOKUP(C27,'Membership #'!$A$1:$C$1005,3,FALSE))) -> Tic Toc Teazer | F27: 23.312 | G27: 5 | H27: 28.312 | I27: 3 | J27: 8
A28: 0.4215609052 | B28: 4 | C28: 636 | D28: =IF(C28="","",(VLOOKUP(C28,'Membership #'!$A$1:$C$1005,2,FALSE))) -> Ceilidh Gosse | E28: =IF(C28="","",(VLOOKUP(C28,'Membership #'!$A$1:$C$1005,3,FALSE))) -> ELM Silver Crime | F28: 29.487 | H28: 29.487 | I28: 4 | J28: 7
A29: 0.6202591538 | B29: 5 | C29: 702 | D29: =IF(C29="","",(VLOOKUP(C29,'Membership #'!$A$1:$C$1005,2,FALSE))) -> Jenna Proctor | E29: =IF(C29="","",(VLOOKUP(C29,'Membership #'!$A$1:$C$1005,3,FALSE))) -> Painted to Perfection | F29: 29.9 | H29: 29.9 | I29: 5 | J29: 6
A30: 0.1471755198 | B30: 6 | C30: 967 | D30: =IF(C30="","",(VLOOKUP(C30,'Membership #'!$A$1:$C$1005,2,FALSE))) -> Marissa Hillier | E30: =IF(C30="","",(VLOOKUP(C30,'Membership #'!$A$1:$C$1005,3,FALSE))) -> Notice Betty Boop | F30: 30.529 | G30: 5 | H30: 35.529 | I30: 6 | J30: 5
A31: 0.9940970424 | B31: 7 | C31: 941 | D31: =IF(C31="","",(VLOOKUP(C31,'Membership #'!$A$1:$C$1005,2,FALSE))) -> Taylor Hurley | E31: =IF(C31="","",(VLOOKUP(C31,'Membership #'!$A$1:$C$1005,3,FALSE))) -> Nacho Business | F31: n
A32: 0.1572704932 | B32: 8 | C32: 889 | D32: =IF(C32="","",(VLOOKUP(C32,'Membership #'!$A$1:$C$1005,2,FALSE))) -> Adelaine Cowley | E32: =IF(C32="","",(VLOOKUP(C32,'Membership #'!$A$1:$C$1005,3,FALSE))) -> Frenchman's Promise | F32: x
A33: 0.705218145 | B33: 9 | C33: 532 | D33: =IF(C33="","",(VLOOKUP(C33,'Membership #'!$A$1:$C$1005,2,FALSE))) -> Gracie MacLean | E33: =IF(C33="","",(VLOOKUP(C33,'Membership #'!$A$1:$C$1005,3,FALSE))) -> Secret | F33: x
A34: 0.08212983496 | B34: 10 | C34: 666 | D34: =IF(C34="","",(VLOOKUP(C34,'Membership #'!$A$1:$C$1005,2,FALSE))) -> Summer Fraser | E34: =IF(C34="","",(VLOOKUP(C34,'Membership #'!$A$1:$C$1005,3,FALSE))) -> Sheza Smokin' Girl | F34: x
A35: =RAND() -> 0.7028734768 | D35: =IF(C35="","",(VLOOKUP(C35,'Membership #'!$A$1:$C$1005,2,FALSE))) ->  | E35: =IF(C35="","",(VLOOKUP(C35,'Membership #'!$A$1:$C$1005,3,FALSE))) ->  | H35: =SUM(F35+G35) -> 0
B36: Tom Burt & Mark McGuire Memorial Jackpot Aug 22, 2021
B37: PONY DASH
A38: Rand Draw | B38: Running Order | C38: RING # | D38: NAME | E38: HORSE NAME | F38: TIME | G38: PENALTY | I38: PLACINGS | J38: POINTS
A42: =RAND() -> 0.7732582351 | B42: 1 | C42: 638 | D42: =IF(C42="",0,(VLOOKUP(C42,'Membership #'!$A$1:$C$1005,2,0))) -> Bella Peters | E42: =IF(C42="",0,(VLOOKUP(C42,'Membership #'!$A$1:$C$1005,3,0))) -> Super Star | F42: 8.094 | H42: =SUM(F42+G42) -> 8.094 | I42: 1 | J42: 10
A43: 0.9804418155 | B43: 2 | C43: 941 | D43: =IF(C43="",0,(VLOOKUP(C43,'Membership #'!$A$1:$C$1005,2,0))) -> Taylor Hurley | E43: =IF(C43="",0,(VLOOKUP(C43,'Membership #'!$A$1:$C$1005,3,0))) -> Nacho Business | F43: 9.003 | H43: 9.003 | I43: 2 | J43: 9
A44: 0.4967355941 | B44: 3 | C44: 867 | D44: =IF(C44="",0,(VLOOKUP(C44,'Membership #'!$A$1:$C$1005,2,0))) -> Layla MacEachem | E44: =IF(C44="",0,(VLOOKUP(C44,'Membership #'!$A$1:$C$1005,3,0))) -> Shes a gem | F44: 9.221 | H44: 9.221 | I44: 3 | J44: 8
A45: 0.693541874 | B45: 4 | C45: 702 | D45: =IF(C45="",0,(VLOOKUP(C45,'Membership #'!$A$1:$C$1005,2,0))) -> Jenna Proctor | E45: =IF(C45="",0,(VLOOKUP(C45,'Membership #'!$A$1:$C$1005,3,0))) -> Painted to Perfection | F45: 10.212 | H45: 10.212 | I45: 4 | J45: 7
A46: 0.723559204 | B46: 5 | C46: 967 | D46: =IF(C46="",0,(VLOOKUP(C46,'Membership #'!$A$1:$C$1005,2,0))) -> Marissa Hillier | E46: =IF(C46="",0,(VLOOKUP(C46,'Membership #'!$A$1:$C$1005,3,0))) -> Notice Betty Boop | F46: 12.976 | H46: 12.976 | I46: 5 | J46: 6
A47: 0.5156299906 | B47: 6 | C47: 815 | D47: =IF(C47="",0,(VLOOKUP(C47,'Membership #'!$A$1:$C$1005,2,0))) -> Brooke Kennedy | E47: =IF(C47="",0,(VLOOKUP(C47,'Membership #'!$A$1:$C$1005,3,0))) -> Tic Toc Teazer | F47: 8.694 | G47: 5 | H47: 13.694 | I47: 6 | J47: 5
A48: 0.1701975617 | B48: 7 | C48: 532 | D48: =IF(C48="",0,(VLOOKUP(C48,'Membership #'!$A$1:$C$1005,2,0))) -> Gracie MacLean | E48: =IF(C48="",0,(VLOOKUP(C48,'Membership #'!$A$1:$C$1005,3,0))) -> Secret | F48: x
A49: 0.1100198048 | B49: 8 | C49: 666 | D49: =IF(C49="",0,(VLOOKUP(C49,'Membership #'!$A$1:$C$1005,2,0))) -> Summer Fraser | E49: =IF(C49="",0,(VLOOKUP(C49,'Membership #'!$A$1:$C$1005,3,0))) -> Sheza Smokin' Girl | F49: x
A50: 0.5395933488 | B50: 9 | C50: 889 | D50: =IF(C50="",0,(VLOOKUP(C50,'Membership #'!$A$1:$C$1005,2,0))) -> Adelaine Cowley | E50: =IF(C50="",0,(VLOOKUP(C50,'Membership #'!$A$1:$C$1005,3,0))) -> Frenchman's Promise | F50: x
D51: =IF(C51="",0,(VLOOKUP(C51,'Membership #'!$A$1:$C$1005,2,0))) -> 0 | E51: =IF(C51="",0,(VLOOKUP(C51,'Membership #'!$A$1:$C$1005,3,0))) -> 0 | H51: =SUM(F51+G51) -> 0
D52: =IF(C52="",0,(VLOOKUP(C52,'Membership #'!$A$1:$C$1005,2,0))) -> 0 | E52: =IF(C52="",0,(VLOOKUP(C52,'Membership #'!$A$1:$C$1005,3,0))) -> 0 | H52: 0

Sheet EXHIBITION Barrels
A1: 2021 | M1: x=Scratch
A2: EXHIBITION BARREL RACE | M2: n=No Time
A3: # Entries: | E3: =COUNTIF($D$8:$D$72,">0") -> 0
A4: Rand Draw | B4: Seed | D4: RING # | E4: NAME | F4: HORSE NAME | G4: TIME | H4: PENALTY | I4: TOTAL | J4: PLACINGS | K4: POINTS
A8: =IF(D8<>"",RAND(),"") ->  | B8: =IF(D8<>"",RANK(A8,A$8:A$73),"") ->  | I8: =SUM(G8+H8) -> 0
I9: 0
I10: 0
I11: 0
E12: =IF(D12="","",(VLOOKUP(D12,'Membership #'!$A$1:$C$1005,2,0))) ->  | F12: =IF(D12="","",(VLOOKUP(D12,'Membership #'!$A$1:$C$1005,3,0))) ->  | I12: 0
E13: =IF(D13="","",(VLOOKUP(D13,'Membership #'!$A$1:$C$1005,2,0))) ->  | F13: =IF(D13="","",(VLOOKUP(D13,'Membership #'!$A$1:$C$1005,3,0))) ->  | I13: 0
E14: =IF(D14="","",(VLOOKUP(D14,'Membership #'!$A$1:$C$1005,2,0))) ->  | F14: =IF(D14="","",(VLOOKUP(D14,'Membership #'!$A$1:$C$1005,3,0))) ->  | I14: 0
E15: =IF(D15="","",(VLOOKUP(D15,'Membership #'!$A$1:$C$1005,2,0))) ->  | F15: =IF(D15="","",(VLOOKUP(D15,'Membership #'!$A$1:$C$1005,3,0))) ->  | I15: 0
E16: =IF(D16="","",(VLOOKUP(D16,'Membership #'!$A$1:$C$1005,2,0))) ->  | F16: =IF(D16="","",(VLOOKUP(D16,'Membership #'!$A$1:$C$1005,3,0))) ->  | I16: 0
E17: =IF(D17="","",(VLOOKUP(D17,'Membership #'!$A$1:$C$1005,2,0))) ->  | F17: =IF(D17="","",(VLOOKUP(D17,'Membership #'!$A$1:$C$1005,3,0))) ->  | I17: 0
E18: =IF(D18="","",(VLOOKUP(D18,'Membership #'!$A$1:$C$1005,2,0))) ->  | F18: =IF(D18="","",(VLOOKUP(D18,'Membership #'!$A$1:$C$1005,3,0))) ->  | I18: 0
E19: =IF(D19="","",(VLOOKUP(D19,'Membership #'!$A$1:$C$1005,2,0))) ->  | F19: =IF(D19="","",(VLOOKUP(D19,'Membership #'!$A$1:$C$1005,3,0))) ->  | I19: 0
E20: =IF(D20="","",(VLOOKUP(D20,'Membership #'!$A$1:$C$1005,2,0))) ->  | F20: =IF(D20="","",(VLOOKUP(D20,'Membership #'!$A$1:$C$1005,3,0))) ->  | I20: 0
E21: =IF(D21="","",(VLOOKUP(D21,'Membership #'!$A$1:$C$1005,2,0))) ->  | F21: =IF(D21="","",(VLOOKUP(D21,'Membership #'!$A$1:$C$1005,3,0))) ->  | I21: 0
E22: =IF(D22="","",(VLOOKUP(D22,'Membership #'!$A$1:$C$1005,2,0))) ->  | F22: =IF(D22="","",(VLOOKUP(D22,'Membership #'!$A$1:$C$1005,3,0))) ->  | I22: 0
E23: =IF(D23="","",(VLOOKUP(D23,'Membership #'!$A$1:$C$1005,2,0))) ->  | F23: =IF(D23="","",(VLOOKUP(D23,'Membership #'!$A$1:$C$1005,3,0))) ->  | I23: 0
E24: =IF(D24="","",(VLOOKUP(D24,'Membership #'!$A$1:$C$1005,2,0))) ->  | F24: =IF(D24="","",(VLOOKUP(D24,'Membership #'!$A$1:$C$1005,3,0))) ->  | I24: 0
E25: =IF(D25="","",(VLOOKUP(D25,'Membership #'!$A$1:$C$1005,2,0))) ->  | F25: =IF(D25="","",(VLOOKUP(D25,'Membership #'!$A$1:$C$1005,3,0))) ->  | I25: 0
E26: =IF(D26="","",(VLOOKUP(D26,'Membership #'!$A$1:$C$1005,2,0))) ->  | F26: =IF(D26="","",(VLOOKUP(D26,'Membership #'!$A$1:$C$1005,3,0))) ->  | I26: 0
E27: =IF(D27="","",(VLOOKUP(D27,'Membership #'!$A$1:$C$1005,2,0))) ->  | F27: =IF(D27="","",(VLOOKUP(D27,'Membership #'!$A$1:$C$1005,3,0))) ->  | I27: 0
E28: =IF(D28="","",(VLOOKUP(D28,'Membership #'!$A$1:$C$1005,2,0))) ->  | F28: =IF(D28="","",(VLOOKUP(D28,'Membership #'!$A$1:$C$1005,3,0))) ->  | I28: 0
E29: =IF(D29="","",(VLOOKUP(D29,'Membership #'!$A$1:$C$1005,2,0))) ->  | F29: =IF(D29="","",(VLOOKUP(D29,'Membership #'!$A$1:$C$1005,3,0))) ->  | I29: 0
E30: =IF(D30="","",(VLOOKUP(D30,'Membership #'!$A$1:$C$1005,2,0))) ->  | F30: =IF(D30="","",(VLOOKUP(D30,'Membership #'!$A$1:$C$1005,3,0))) ->  | I30: 0
E31: =IF(D31="","",(VLOOKUP(D31,'Membership #'!$A$1:$C$1005,2,0))) ->  | F31: =IF(D31="","",(VLOOKUP(D31,'Membership #'!$A$1:$C$1005,3,0))) ->  | I31: 0
E32: =IF(D32="","",(VLOOKUP(D32,'Membership #'!$A$1:$C$1005,2,0))) ->  | F32: =IF(D32="","",(VLOOKUP(D32,'Membership #'!$A$1:$C$1005,3,0))) ->  | I32: 0
E33: =IF(D33="","",(VLOOKUP(D33,'Membership #'!$A$1:$C$1005,2,0))) ->  | F33: =IF(D33="","",(VLOOKUP(D33,'Membership #'!$A$1:$C$1005,3,0))) ->  | I33: 0
E34: =IF(D34="","",(VLOOKUP(D34,'Membership #'!$A$1:$C$1005,2,0))) ->  | F34: =IF(D34="","",(VLOOKUP(D34,'Membership #'!$A$1:$C$1005,3,0))) ->  | I34: 0
E35: =IF(D35="","",(VLOOKUP(D35,'Membership #'!$A$1:$C$1005,2,0))) ->  | F35: =IF(D35="","",(VLOOKUP(D35,'Membership #'!$A$1:$C$1005,3,0))) ->  | I35: =IF(G35="n","No Time",IF(G35="x","Scratch",IF(G35<>"",SUM(G35+H35),""))) -> 
E36: =IF(D36="","",(VLOOKUP(D36,'Membership #'!$A$1:$C$1005,2,0))) ->  | F36: =IF(D36="","",(VLOOKUP(D36,'Membership #'!$A$1:$C$1005,3,0))) -> 
E37: =IF(D37="","",(VLOOKUP(D37,'Membership #'!$A$1:$C$1005,2,0))) ->  | F37: =IF(D37="","",(VLOOKUP(D37,'Membership #'!$A$1:$C$1005,3,0))) -> 
E38: =IF(D38="","",(VLOOKUP(D38,'Membership #'!$A$1:$C$1005,2,0))) ->  | F38: =IF(D38="","",(VLOOKUP(D38,'Membership #'!$A$1:$C$1005,3,0))) -> 
E39: =IF(D39="","",(VLOOKUP(D39,'Membership #'!$A$1:$C$1005,2,0))) ->  | F39: =IF(D39="","",(VLOOKUP(D39,'Membership #'!$A$1:$C$1005,3,0))) -> 
B40: =IF(D40<>"",RANK(A40,A$8:A$73),"") ->  | E40: =IF(D40="","",(VLOOKUP(D40,'Membership #'!$A$1:$C$1005,2,0))) ->  | F40: =IF(D40="","",(VLOOKUP(D40,'Membership #'!$A$1:$C$1005,3,0))) -> 
E41: =IF(D41="","",(VLOOKUP(D41,'Membership #'!$A$1:$C$1005,2,0))) ->  | F41: =IF(D41="","",(VLOOKUP(D41,'Membership #'!$A$1:$C$1005,3,0))) -> 
E42: =IF(D42="","",(VLOOKUP(D42,'Membership #'!$A$1:$C$1005,2,0))) ->  | F42: =IF(D42="","",(VLOOKUP(D42,'Membership #'!$A$1:$C$1005,3,0))) -> 
E43: =IF(D43="","",(VLOOKUP(D43,'Membership #'!$A$1:$C$1005,2,0))) ->  | F43: =IF(D43="","",(VLOOKUP(D43,'Membership #'!$A$1:$C$1005,3,0))) -> 
A44: =IF(D44<>"",RAND(),"") ->  | E44: =IF(D44="","",(VLOOKUP(D44,'Membership #'!$A$1:$C$1005,2,0))) ->  | F44: =IF(D44="","",(VLOOKUP(D44,'Membership #'!$A$1:$C$1005,3,0))) -> 
E45: =IF(D45="","",(VLOOKUP(D45,'Membership #'!$A$1:$C$1005,2,0))) ->  | F45: =IF(D45="","",(VLOOKUP(D45,'Membership #'!$A$1:$C$1005,3,0))) ->  | I45: =IF(G45="n","No Time",IF(G45="x","Scratch",IF(G45<>"",SUM(G45+H45),""))) -> 
E46: =IF(D46="","",(VLOOKUP(D46,'Membership #'!$A$1:$C$1005,2,0))) ->  | F46: =IF(D46="","",(VLOOKUP(D46,'Membership #'!$A$1:$C$1005,3,0))) -> 
E47: =IF(D47="","",(VLOOKUP(D47,'Membership #'!$A$1:$C$1005,2,0))) ->  | F47: =IF(D47="","",(VLOOKUP(D47,'Membership #'!$A$1:$C$1005,3,0))) -> 
E48: =IF(D48="","",(VLOOKUP(D48,'Membership #'!$A$1:$C$1005,2,0))) ->  | F48: =IF(D48="","",(VLOOKUP(D48,'Membership #'!$A$1:$C$1005,3,0))) -> 
E49: =IF(D49="","",(VLOOKUP(D49,'Membership #'!$A$1:$C$1005,2,0))) ->  | F49: =IF(D49="","",(VLOOKUP(D49,'Membership #'!$A$1:$C$1005,3,0))) -> 
E50: =IF(D50="","",(VLOOKUP(D50,'Membership #'!$A$1:$C$1005,2,0))) ->  | F50: =IF(D50="","",(VLOOKUP(D50,'Membership #'!$A$1:$C$1005,3,0))) -> 
E51: =IF(D51="","",(VLOOKUP(D51,'Membership #'!$A$1:$C$1005,2,0))) ->  | F51: =IF(D51="","",(VLOOKUP(D51,'Membership #'!$A$1:$C$1005,3,0))) -> 
E52: =IF(D52="","",(VLOOKUP(D52,'Membership #'!$A$1:$C$1005,2,0))) ->  | F52: =IF(D52="","",(VLOOKUP(D52,'Membership #'!$A$1:$C$1005,3,0))) -> 
E53: =IF(D53="","",(VLOOKUP(D53,'Membership #'!$A$1:$C$1005,2,0))) ->  | F53: =IF(D53="","",(VLOOKUP(D53,'Membership #'!$A$1:$C$1005,3,0))) -> 
E54: =IF(D54="","",(VLOOKUP(D54,'Membership #'!$A$1:$C$1005,2,0))) ->  | F54: =IF(D54="","",(VLOOKUP(D54,'Membership #'!$A$1:$C$1005,3,0))) -> 
E55: =IF(D55="","",(VLOOKUP(D55,'Membership #'!$A$1:$C$1005,2,0))) ->  | F55: =IF(D55="","",(VLOOKUP(D55,'Membership #'!$A$1:$C$1005,3,0))) -> 
E56: =IF(D56="","",(VLOOKUP(D56,'Membership #'!$A$1:$C$1005,2,0))) ->  | F56: =IF(D56="","",(VLOOKUP(D56,'Membership #'!$A$1:$C$1005,3,0))) -> 
E57: =IF(D57="","",(VLOOKUP(D57,'Membership #'!$A$1:$C$1005,2,0))) ->  | F57: =IF(D57="","",(VLOOKUP(D57,'Membership #'!$A$1:$C$1005,3,0))) -> 
E58: =IF(D58="","",(VLOOKUP(D58,'Membership #'!$A$1:$C$1005,2,0))) ->  | F58: =IF(D58="","",(VLOOKUP(D58,'Membership #'!$A$1:$C$1005,3,0))) -> 
E59: =IF(D59="","",(VLOOKUP(D59,'Membership #'!$A$1:$C$1005,2,0))) ->  | F59: =IF(D59="","",(VLOOKUP(D59,'Membership #'!$A$1:$C$1005,3,0))) -> 
E60: =IF(D60="","",(VLOOKUP(D60,'Membership #'!$A$1:$C$1005,2,0))) ->  | F60: =IF(D60="","",(VLOOKUP(D60,'Membership #'!$A$1:$C$1005,3,0))) -> 
E61: =IF(D61="","",(VLOOKUP(D61,'Membership #'!$A$1:$C$1005,2,0))) ->  | F61: =IF(D61="","",(VLOOKUP(D61,'Membership #'!$A$1:$C$1005,3,0))) -> 
E62: =IF(D62="","",(VLOOKUP(D62,'Membership #'!$A$1:$C$1005,2,0))) ->  | F62: =IF(D62="","",(VLOOKUP(D62,'Membership #'!$A$1:$C$1005,3,0))) -> 
E63: =IF(D63="","",(VLOOKUP(D63,'Membership #'!$A$1:$C$1005,2,0))) ->  | F63: =IF(D63="","",(VLOOKUP(D63,'Membership #'!$A$1:$C$1005,3,0))) -> 
E64: =IF(D64="","",(VLOOKUP(D64,'Membership #'!$A$1:$C$1005,2,0))) ->  | F64: =IF(D64="","",(VLOOKUP(D64,'Membership #'!$A$1:$C$1005,3,0))) -> 
E65: =IF(D65="","",(VLOOKUP(D65,'Membership #'!$A$1:$C$1005,2,0))) ->  | F65: =IF(D65="","",(VLOOKUP(D65,'Membership #'!$A$1:$C$1005,3,0))) -> 
E66: =IF(D66="","",(VLOOKUP(D66,'Membership #'!$A$1:$C$1005,2,0))) ->  | F66: =IF(D66="","",(VLOOKUP(D66,'Membership #'!$A$1:$C$1005,3,0))) -> 
E67: =IF(D67="","",(VLOOKUP(D67,'Membership #'!$A$1:$C$1005,2,0))) ->  | F67: =IF(D67="","",(VLOOKUP(D67,'Membership #'!$A$1:$C$1005,3,0))) -> 
E68: =IF(D68="","",(VLOOKUP(D68,'Membership #'!$A$1:$C$1005,2,0))) ->  | F68: =IF(D68="","",(VLOOKUP(D68,'Membership #'!$A$1:$C$1005,3,0))) -> 
E69: =IF(D69="","",(VLOOKUP(D69,'Membership #'!$A$1:$C$1005,2,0))) ->  | F69: =IF(D69="","",(VLOOKUP(D69,'Membership #'!$A$1:$C$1005,3,0))) -> 
E70: =IF(D70="","",(VLOOKUP(D70,'Membership #'!$A$1:$C$1005,2,0))) ->  | F70: =IF(D70="","",(VLOOKUP(D70,'Membership #'!$A$1:$C$1005,3,0))) -> 
E71: =IF(D71="","",(VLOOKUP(D71,'Membership #'!$A$1:$C$1005,2,0))) ->  | F71: =IF(D71="","",(VLOOKUP(D71,'Membership #'!$A$1:$C$1005,3,0))) -> 
B72: =IF(D72<>"",RANK(A72,A$8:A$73),"") ->  | E72: =IF(D72="","",(VLOOKUP(D72,'Membership #'!$A$1:$C$1005,2,0))) ->  | F72: =IF(D72="","",(VLOOKUP(D72,'Membership #'!$A$1:$C$1005,3,0))) -> 
B73: =IF(D73<>"",RANK(A73,A$8:A$73),"") ->  | E73: =IF(D73="","",(VLOOKUP(D73,'Membership #'!$A$1:$C$1005,2,0))) ->  | F73: =IF(D73="","",(VLOOKUP(D73,'Membership #'!$A$1:$C$1005,3,0))) -> 

Sheet JUNIOR HORSE BARRELS
A1: Tom Burt & Mark McGuire Memorial Jackpot Aug 22, 2021 | M1: x=Scratch
A2: JUNIOR HORSE BARRELS | M2: n=No Time
A3: # Enteries: | E3: =COUNTIF($D$8:$D$100,">0") -> 3 | R3: Don't Erase these numbers below!!
A4: Rand Draw | B4: Seed | D4: RING # | E4: NAME | F4: HORSE NAME | G4: TIME | H4: PENALTY | I4: TOTAL | J4: PLACINGS | K4: POINTS | R4: =IF(N9=2,7,IF(N9=3,6,IF(N9=4,5,IF(N9=5,4,IF(AND(N9>5,N11>600),3,IF(AND(N9>5,N11<600,N11>299.99),2,IF(AND(N9>5,N11<300),1,8))))))) -> 6 | S4: 1 | T4: 2 | U4: 3 | V4: 4 | W4: 5 | X4: 6 | Y4: 7 | Z4: 8
S5: 299 | T5: $300- | U5: $600 -
M6: JUNIOR HORSE BARRELS | S6: or less | T6: 599 | U6: More | V6: 5 Entries | W6: 4 Entries | X6: 3 Entries | Y6: 2 Entries
R7: 1st | S7: 0.32 | T7: 0.27 | U7: 0.24 | V7: 0.35 | W7: 0.4 | X7: 0.46 | Y7: 0.6
A8: =IF(D8<>"",RAND(),"") -> 0.3764494465 | B8: =IF(D8<>"",RANK(A8,A$8:A$101),"") -> 3 | C8: 1 | D8: 518 | E8: =IF(D8="","",(VLOOKUP(D8,'Membership #'!$A$1:$C$1005,2,0))) -> Sylvester Weatherbie | F8: =IF(D8="","",(VLOOKUP(D8,'Membership #'!$A$1:$C$1005,3,0))) -> J.R. | G8: 16.062 | I8: =IF(G8="n","No Time",IF(G8="x","Scratch",IF(G8<>"",SUM(G8+H8),""))) -> 16.062 | M8: Added | N8: 50 | R8: 2nd | S8: 0.23 | T8: 0.22 | U8: 0.19 | V8: 0.25 | W8: 0.28 | X8: 0.34 | Y8: 0.4
A9: 0.3830264818 | B9: 2 | C9: 2 | D9: 563 | E9: =IF(D9="","",(VLOOKUP(D9,'Membership #'!$A$1:$C$1005,2,0))) -> Kevin Bateman | F9: =IF(D9="","",(VLOOKUP(D9,'Membership #'!$A$1:$C$1005,3,0))) -> Jess Chasin A Hobby | G9: 16.918 | I9: =IF(G9="n","No Time",IF(G9="x","Scratch",IF(G9<>"",SUM(G9+H9),""))) -> 16.918 | M9: Entries | N9: 3 | P9: 10 | Q9: per head | R9: 3rd | S9: 0.15 | T9: 0.18 | U9: 0.16 | V9: 0.17 | W9: 0.18 | X9: 0.2
A10: 0.4671698674 | B10: 1 | C10: 3 | D10: 786 | E10: =IF(D10="","",(VLOOKUP(D10,'Membership #'!$A$1:$C$1005,2,0))) -> Rileigh Conrod | F10: =IF(D10="","",(VLOOKUP(D10,'Membership #'!$A$1:$C$1005,3,0))) -> Scotches Harley | G10: 21.22 | I10: =IF(G10="n","No Time",IF(G10="x","Scratch",IF(G10<>"",SUM(G10+H10),""))) -> 21.22 | M10: Jackpot | N10: =P9*N9 -> 30 | P10: 0.85 | Q10: payback | R10: 4th | S10: 0.12 | T10: 0.13 | U10: 0.13 | V10: 0.13 | W10: 0.14
E11: =IF(D11="","",(VLOOKUP(D11,'Membership #'!$A$1:$C$1005,2,0))) ->  | F11: =IF(D11="","",(VLOOKUP(D11,'Membership #'!$A$1:$C$1005,3,0))) ->  | I11: =IF(G11="n","No Time",IF(G11="x","Scratch",IF(G11<>"",SUM(G11+H11),""))) ->  | M11: Total Money | N11: =N8+(N10*P10) -> 75.5 | P11: =N10*P10 -> 25.5 | Q11: Jackpot | R11: 5th | S11: 0.1 | T11: 0.09 | U11: 0.08 | V11: 0.1
E12: =IF(D12="","",(VLOOKUP(D12,'Membership #'!$A$1:$C$1005,2,0))) ->  | F12: =IF(D12="","",(VLOOKUP(D12,'Membership #'!$A$1:$C$1005,3,0))) ->  | I12: =IF(G12="n","No Time",IF(G12="x","Scratch",IF(G12<>"",SUM(G12+H12),""))) ->  | N12: Percentage | O12: Money | P12: Ring # | R12: 6th | S12: 0.08 | T12: 0.06 | U12: 0.06
E13: =IF(D13="","",(VLOOKUP(D13,'Membership #'!$A$1:$C$1005,2,0))) ->  | F13: =IF(D13="","",(VLOOKUP(D13,'Membership #'!$A$1:$C$1005,3,0))) ->  | I13: =IF(G13="n","No Time",IF(G13="x","Scratch",IF(G13<>"",SUM(G13+H13),""))) ->  | M13: 1st | N13: 0.46 | O13: =IF(N13<>0,N$11*N13,"") -> 34.73 | Q13: =IF(P13="","",(VLOOKUP(P13,'Membership #'!$A$1:$C$1005,2,0))) ->  | R13: 7th | T13: 0.03 | U13: 0.05
E14: =IF(D14="","",(VLOOKUP(D14,'Membership #'!$A$1:$C$1005,2,0))) ->  | F14: =IF(D14="","",(VLOOKUP(D14,'Membership #'!$A$1:$C$1005,3,0))) ->  | I14: =IF(G14="n","No Time",IF(G14="x","Scratch",IF(G14<>"",SUM(G14+H14),""))) ->  | M14: 2nd | N14: 0.34 | O14: 25.67 | Q14: =IF(P14="","",(VLOOKUP(P14,'Membership #'!$A$1:$C$1005,2,0))) ->  | R14: 8th | T14: 0.02 | U14: 0.04
E15: =IF(D15="","",(VLOOKUP(D15,'Membership #'!$A$1:$C$1005,2,0))) ->  | F15: =IF(D15="","",(VLOOKUP(D15,'Membership #'!$A$1:$C$1005,3,0))) ->  | M15: 3rd | N15: 0.2 | O15: 15.1 | Q15: =IF(P15="","",(VLOOKUP(P15,'Membership #'!$A$1:$C$1005,2,0))) ->  | R15: 9th | U15: 0.03
E16: =IF(D16="","",(VLOOKUP(D16,'Membership #'!$A$1:$C$1005,2,0))) ->  | F16: =IF(D16="","",(VLOOKUP(D16,'Membership #'!$A$1:$C$1005,3,0))) ->  | M16: 4th | Q16: =IF(P16="","",(VLOOKUP(P16,'Membership #'!$A$1:$C$1005,2,0))) ->  | R16: 10th | U16: 0.02
E17: =IF(D17="","",(VLOOKUP(D17,'Membership #'!$A$1:$C$1005,2,0))) ->  | F17: =IF(D17="","",(VLOOKUP(D17,'Membership #'!$A$1:$C$1005,3,0))) ->  | M17: 5th | Q17: =IF(P17="","",(VLOOKUP(P17,'Membership #'!$A$1:$C$1005,2,0))) -> 
E18: =IF(D18="","",(VLOOKUP(D18,'Membership #'!$A$1:$C$1005,2,0))) ->  | F18: =IF(D18="","",(VLOOKUP(D18,'Membership #'!$A$1:$C$1005,3,0))) ->  | M18: 6th | Q18: =IF(P18="","",(VLOOKUP(P18,'Membership #'!$A$1:$C$1005,2,0))) -> 
E19: =IF(D19="","",(VLOOKUP(D19,'Membership #'!$A$1:$C$1005,2,0))) ->  | F19: =IF(D19="","",(VLOOKUP(D19,'Membership #'!$A$1:$C$1005,3,0))) ->  | M19: 7th
E20: =IF(D20="","",(VLOOKUP(D20,'Membership #'!$A$1:$C$1005,2,0))) ->  | F20: =IF(D20="","",(VLOOKUP(D20,'Membership #'!$A$1:$C$1005,3,0))) ->  | I20: =IF(G20="n","No Time",IF(G20="x","Scratch",IF(G20<>"",SUM(G20+H20),""))) ->  | M20: 8th
E21: =IF(D21="","",(VLOOKUP(D21,'Membership #'!$A$1:$C$1005,2,0))) ->  | F21: =IF(D21="","",(VLOOKUP(D21,'Membership #'!$A$1:$C$1005,3,0))) ->  | M21: 9th
E22: =IF(D22="","",(VLOOKUP(D22,'Membership #'!$A$1:$C$1005,2,0))) ->  | F22: =IF(D22="","",(VLOOKUP(D22,'Membership #'!$A$1:$C$1005,3,0))) ->  | I22: =IF(G22="n","No Time",IF(G22="x","Scratch",IF(G22<>"",SUM(G22+H22),""))) ->  | M22: 10th
E23: =IF(D23="","",(VLOOKUP(D23,'Membership #'!$A$1:$C$1005,2,0))) ->  | F23: =IF(D23="","",(VLOOKUP(D23,'Membership #'!$A$1:$C$1005,3,0))) ->  | M23: Total Money | O23: =SUM(O13:O22) -> 75.5
E24: =IF(D24="","",(VLOOKUP(D24,'Membership #'!$A$1:$C$1005,2,0))) ->  | F24: =IF(D24="","",(VLOOKUP(D24,'Membership #'!$A$1:$C$1005,3,0))) -> 
E25: =IF(D25="","",(VLOOKUP(D25,'Membership #'!$A$1:$C$1005,2,0))) ->  | F25: =IF(D25="","",(VLOOKUP(D25,'Membership #'!$A$1:$C$1005,3,0))) -> 
E26: =IF(D26="","",(VLOOKUP(D26,'Membership #'!$A$1:$C$1005,2,0))) ->  | F26: =IF(D26="","",(VLOOKUP(D26,'Membership #'!$A$1:$C$1005,3,0))) ->  | M26: =IF(L26="","",(VLOOKUP(L26,'Membership #'!$A$1:$C$1005,2,0))) -> 
E27: =IF(D27="","",(VLOOKUP(D27,'Membership #'!$A$1:$C$1005,2,0))) ->  | F27: =IF(D27="","",(VLOOKUP(D27,'Membership #'!$A$1:$C$1005,3,0))) -> 
E28: =IF(D28="","",(VLOOKUP(D28,'Membership #'!$A$1:$C$1005,2,0))) ->  | F28: =IF(D28="","",(VLOOKUP(D28,'Membership #'!$A$1:$C$1005,3,0))) -> 
E29: =IF(D29="","",(VLOOKUP(D29,'Membership #'!$A$1:$C$1005,2,0))) ->  | F29: =IF(D29="","",(VLOOKUP(D29,'Membership #'!$A$1:$C$1005,3,0))) -> 
E30: =IF(D30="","",(VLOOKUP(D30,'Membership #'!$A$1:$C$1005,2,0))) ->  | F30: =IF(D30="","",(VLOOKUP(D30,'Membership #'!$A$1:$C$1005,3,0))) -> 
E31: =IF(D31="","",(VLOOKUP(D31,'Membership #'!$A$1:$C$1005,2,0))) ->  | F31: =IF(D31="","",(VLOOKUP(D31,'Membership #'!$A$1:$C$1005,3,0))) -> 
E32: =IF(D32="","",(VLOOKUP(D32,'Membership #'!$A$1:$C$1005,2,0))) ->  | F32: =IF(D32="","",(VLOOKUP(D32,'Membership #'!$A$1:$C$1005,3,0))) -> 
E33: =IF(D33="","",(VLOOKUP(D33,'Membership #'!$A$1:$C$1005,2,0))) ->  | F33: =IF(D33="","",(VLOOKUP(D33,'Membership #'!$A$1:$C$1005,3,0))) -> 
E34: =IF(D34="","",(VLOOKUP(D34,'Membership #'!$A$1:$C$1005,2,0))) ->  | F34: =IF(D34="","",(VLOOKUP(D34,'Membership #'!$A$1:$C$1005,3,0))) -> 
E35: =IF(D35="","",(VLOOKUP(D35,'Membership #'!$A$1:$C$1005,2,0))) ->  | F35: =IF(D35="","",(VLOOKUP(D35,'Membership #'!$A$1:$C$1005,3,0))) -> 
E36: =IF(D36="","",(VLOOKUP(D36,'Membership #'!$A$1:$C$1005,2,0))) ->  | F36: =IF(D36="","",(VLOOKUP(D36,'Membership #'!$A$1:$C$1005,3,0))) -> 
E37: =IF(D37="","",(VLOOKUP(D37,'Membership #'!$A$1:$C$1005,2,0))) ->  | F37: =IF(D37="","",(VLOOKUP(D37,'Membership #'!$A$1:$C$1005,3,0))) -> 
E38: =IF(D38="","",(VLOOKUP(D38,'Membership #'!$A$1:$C$1005,2,0))) ->  | F38: =IF(D38="","",(VLOOKUP(D38,'Membership #'!$A$1:$C$1005,3,0))) -> 
E39: =IF(D39="","",(VLOOKUP(D39,'Membership #'!$A$1:$C$1005,2,0))) ->  | F39: =IF(D39="","",(VLOOKUP(D39,'Membership #'!$A$1:$C$1005,3,0))) -> 
A40: =IF(D40<>"",RAND(),"") ->  | B40: =IF(D40<>"",RANK(A40,A$8:A$101),"") ->  | E40: =IF(D40="","",(VLOOKUP(D40,'Membership #'!$A$1:$C$1005,2,0))) ->  | F40: =IF(D40="","",(VLOOKUP(D40,'Membership #'!$A$1:$C$1005,3,0))) -> 
E41: =IF(D41="","",(VLOOKUP(D41,'Membership #'!$A$1:$C$1005,2,0))) ->  | F41: =IF(D41="","",(VLOOKUP(D41,'Membership #'!$A$1:$C$1005,3,0))) -> 
E42: =IF(D42="","",(VLOOKUP(D42,'Membership #'!$A$1:$C$1005,2,0))) ->  | F42: =IF(D42="","",(VLOOKUP(D42,'Membership #'!$A$1:$C$1005,3,0))) -> 
E43: =IF(D43="","",(VLOOKUP(D43,'Membership #'!$A$1:$C$1005,2,0))) ->  | F43: =IF(D43="","",(VLOOKUP(D43,'Membership #'!$A$1:$C$1005,3,0))) -> 
E44: =IF(D44="","",(VLOOKUP(D44,'Membership #'!$A$1:$C$1005,2,0))) ->  | F44: =IF(D44="","",(VLOOKUP(D44,'Membership #'!$A$1:$C$1005,3,0))) -> 
E45: =IF(D45="","",(VLOOKUP(D45,'Membership #'!$A$1:$C$1005,2,0))) ->  | F45: =IF(D45="","",(VLOOKUP(D45,'Membership #'!$A$1:$C$1005,3,0))) -> 
E46: =IF(D46="","",(VLOOKUP(D46,'Membership #'!$A$1:$C$1005,2,0))) ->  | F46: =IF(D46="","",(VLOOKUP(D46,'Membership #'!$A$1:$C$1005,3,0))) -> 
E47: =IF(D47="","",(VLOOKUP(D47,'Membership #'!$A$1:$C$1005,2,0))) ->  | F47: =IF(D47="","",(VLOOKUP(D47,'Membership #'!$A$1:$C$1005,3,0))) -> 
E48: =IF(D48="","",(VLOOKUP(D48,'Membership #'!$A$1:$C$1005,2,0))) ->  | F48: =IF(D48="","",(VLOOKUP(D48,'Membership #'!$A$1:$C$1005,3,0))) -> 
E49: =IF(D49="","",(VLOOKUP(D49,'Membership #'!$A$1:$C$1005,2,0))) ->  | F49: =IF(D49="","",(VLOOKUP(D49,'Membership #'!$A$1:$C$1005,3,0))) -> 
E50: =IF(D50="","",(VLOOKUP(D50,'Membership #'!$A$1:$C$1005,2,0))) ->  | F50: =IF(D50="","",(VLOOKUP(D50,'Membership #'!$A$1:$C$1005,3,0))) -> 
E51: =IF(D51="","",(VLOOKUP(D51,'Membership #'!$A$1:$C$1005,2,0))) ->  | F51: =IF(D51="","",(VLOOKUP(D51,'Membership #'!$A$1:$C$1005,3,0))) -> 
E52: =IF(D52="","",(VLOOKUP(D52,'Membership #'!$A$1:$C$1005,2,0))) ->  | F52: =IF(D52="","",(VLOOKUP(D52,'Membership #'!$A$1:$C$1005,3,0))) -> 
E53: =IF(D53="","",(VLOOKUP(D53,'Membership #'!$A$1:$C$1005,2,0))) ->  | F53: =IF(D53="","",(VLOOKUP(D53,'Membership #'!$A$1:$C$1005,3,0))) -> 
E54: =IF(D54="","",(VLOOKUP(D54,'Membership #'!$A$1:$C$1005,2,0))) ->  | F54: =IF(D54="","",(VLOOKUP(D54,'Membership #'!$A$1:$C$1005,3,0))) -> 
E55: =IF(D55="","",(VLOOKUP(D55,'Membership #'!$A$1:$C$1005,2,0))) ->  | F55: =IF(D55="","",(VLOOKUP(D55,'Membership #'!$A$1:$C$1005,3,0))) -> 
E56: =IF(D56="","",(VLOOKUP(D56,'Membership #'!$A$1:$C$1005,2,0))) ->  | F56: =IF(D56="","",(VLOOKUP(D56,'Membership #'!$A$1:$C$1005,3,0))) -> 
E57: =IF(D57="","",(VLOOKUP(D57,'Membership #'!$A$1:$C$1005,2,0))) ->  | F57: =IF(D57="","",(VLOOKUP(D57,'Membership #'!$A$1:$C$1005,3,0))) -> 
E58: =IF(D58="","",(VLOOKUP(D58,'Membership #'!$A$1:$C$1005,2,0))) ->  | F58: =IF(D58="","",(VLOOKUP(D58,'Membership #'!$A$1:$C$1005,3,0))) -> 
E59: =IF(D59="","",(VLOOKUP(D59,'Membership #'!$A$1:$C$1005,2,0))) ->  | F59: =IF(D59="","",(VLOOKUP(D59,'Membership #'!$A$1:$C$1005,3,0))) -> 
E60: =IF(D60="","",(VLOOKUP(D60,'Membership #'!$A$1:$C$1005,2,0))) ->  | F60: =IF(D60="","",(VLOOKUP(D60,'Membership #'!$A$1:$C$1005,3,0))) -> 
E61: =IF(D61="","",(VLOOKUP(D61,'Membership #'!$A$1:$C$1005,2,0))) ->  | F61: =IF(D61="","",(VLOOKUP(D61,'Membership #'!$A$1:$C$1005,3,0))) -> 
E62: =IF(D62="","",(VLOOKUP(D62,'Membership #'!$A$1:$C$1005,2,0))) ->  | F62: =IF(D62="","",(VLOOKUP(D62,'Membership #'!$A$1:$C$1005,3,0))) -> 
E63: =IF(D63="","",(VLOOKUP(D63,'Membership #'!$A$1:$C$1005,2,0))) ->  | F63: =IF(D63="","",(VLOOKUP(D63,'Membership #'!$A$1:$C$1005,3,0))) -> 
E64: =IF(D64="","",(VLOOKUP(D64,'Membership #'!$A$1:$C$1005,2,0))) ->  | F64: =IF(D64="","",(VLOOKUP(D64,'Membership #'!$A$1:$C$1005,3,0))) -> 
E65: =IF(D65="","",(VLOOKUP(D65,'Membership #'!$A$1:$C$1005,2,0))) ->  | F65: =IF(D65="","",(VLOOKUP(D65,'Membership #'!$A$1:$C$1005,3,0))) -> 
E66: =IF(D66="","",(VLOOKUP(D66,'Membership #'!$A$1:$C$1005,2,0))) ->  | F66: =IF(D66="","",(VLOOKUP(D66,'Membership #'!$A$1:$C$1005,3,0))) -> 
E67: =IF(D67="","",(VLOOKUP(D67,'Membership #'!$A$1:$C$1005,2,0))) ->  | F67: =IF(D67="","",(VLOOKUP(D67,'Membership #'!$A$1:$C$1005,3,0))) -> 
E68: =IF(D68="","",(VLOOKUP(D68,'Membership #'!$A$1:$C$1005,2,0))) ->  | F68: =IF(D68="","",(VLOOKUP(D68,'Membership #'!$A$1:$C$1005,3,0))) -> 
E69: =IF(D69="","",(VLOOKUP(D69,'Membership #'!$A$1:$C$1005,2,0))) ->  | F69: =IF(D69="","",(VLOOKUP(D69,'Membership #'!$A$1:$C$1005,3,0))) -> 
E70: =IF(D70="","",(VLOOKUP(D70,'Membership #'!$A$1:$C$1005,2,0))) ->  | F70: =IF(D70="","",(VLOOKUP(D70,'Membership #'!$A$1:$C$1005,3,0))) -> 
E71: =IF(D71="","",(VLOOKUP(D71,'Membership #'!$A$1:$C$1005,2,0))) ->  | F71: =IF(D71="","",(VLOOKUP(D71,'Membership #'!$A$1:$C$1005,3,0))) -> 
A72: =IF(D72<>"",RAND(),"") ->  | B72: =IF(D72<>"",RANK(A72,A$8:A$101),"") ->  | E72: =IF(D72="","",(VLOOKUP(D72,'Membership #'!$A$1:$C$1005,2,0))) ->  | F72: =IF(D72="","",(VLOOKUP(D72,'Membership #'!$A$1:$C$1005,3,0))) -> 
E73: =IF(D73="","",(VLOOKUP(D73,'Membership #'!$A$1:$C$1005,2,0))) ->  | F73: =IF(D73="","",(VLOOKUP(D73,'Membership #'!$A$1:$C$1005,3,0))) ->  | I73: =IF(G73="n","No Time",IF(G73="x","Scratch",IF(G73<>"",SUM(G73+H73),""))) -> 
E74: =IF(D74="","",(VLOOKUP(D74,'Membership #'!$A$1:$C$1005,2,0))) ->  | F74: =IF(D74="","",(VLOOKUP(D74,'Membership #'!$A$1:$C$1005,3,0))) -> 
E75: =IF(D75="","",(VLOOKUP(D75,'Membership #'!$A$1:$C$1005,2,0))) ->  | F75: =IF(D75="","",(VLOOKUP(D75,'Membership #'!$A$1:$C$1005,3,0))) -> 
E76: =IF(D76="","",(VLOOKUP(D76,'Membership #'!$A$1:$C$1005,2,0))) ->  | F76: =IF(D76="","",(VLOOKUP(D76,'Membership #'!$A$1:$C$1005,3,0))) -> 
E77: =IF(D77="","",(VLOOKUP(D77,'Membership #'!$A$1:$C$1005,2,0))) ->  | F77: =IF(D77="","",(VLOOKUP(D77,'Membership #'!$A$1:$C$1005,3,0))) -> 
E78: =IF(D78="","",(VLOOKUP(D78,'Membership #'!$A$1:$C$1005,2,0))) ->  | F78: =IF(D78="","",(VLOOKUP(D78,'Membership #'!$A$1:$C$1005,3,0))) -> 
E79: =IF(D79="","",(VLOOKUP(D79,'Membership #'!$A$1:$C$1005,2,0))) ->  | F79: =IF(D79="","",(VLOOKUP(D79,'Membership #'!$A$1:$C$1005,3,0))) -> 
E80: =IF(D80="","",(VLOOKUP(D80,'Membership #'!$A$1:$C$1005,2,0))) ->  | F80: =IF(D80="","",(VLOOKUP(D80,'Membership #'!$A$1:$C$1005,3,0))) -> 
E81: =IF(D81="","",(VLOOKUP(D81,'Membership #'!$A$1:$C$1005,2,0))) ->  | F81: =IF(D81="","",(VLOOKUP(D81,'Membership #'!$A$1:$C$1005,3,0))) -> 
E82: =IF(D82="","",(VLOOKUP(D82,'Membership #'!$A$1:$C$1005,2,0))) ->  | F82: =IF(D82="","",(VLOOKUP(D82,'Membership #'!$A$1:$C$1005,3,0))) -> 
E83: =IF(D83="","",(VLOOKUP(D83,'Membership #'!$A$1:$C$1005,2,0))) ->  | F83: =IF(D83="","",(VLOOKUP(D83,'Membership #'!$A$1:$C$1005,3,0))) -> 
E84: =IF(D84="","",(VLOOKUP(D84,'Membership #'!$A$1:$C$1005,2,0))) ->  | F84: =IF(D84="","",(VLOOKUP(D84,'Membership #'!$A$1:$C$1005,3,0))) -> 
E85: =IF(D85="","",(VLOOKUP(D85,'Membership #'!$A$1:$C$1005,2,0))) ->  | F85: =IF(D85="","",(VLOOKUP(D85,'Membership #'!$A$1:$C$1005,3,0))) -> 
E86: =IF(D86="","",(VLOOKUP(D86,'Membership #'!$A$1:$C$1005,2,0))) ->  | F86: =IF(D86="","",(VLOOKUP(D86,'Membership #'!$A$1:$C$1005,3,0))) -> 
E87: =IF(D87="","",(VLOOKUP(D87,'Membership #'!$A$1:$C$1005,2,0))) ->  | F87: =IF(D87="","",(VLOOKUP(D87,'Membership #'!$A$1:$C$1005,3,0))) -> 
E88: =IF(D88="","",(VLOOKUP(D88,'Membership #'!$A$1:$C$1005,2,0))) ->  | F88: =IF(D88="","",(VLOOKUP(D88,'Membership #'!$A$1:$C$1005,3,0))) -> 
E89: =IF(D89="","",(VLOOKUP(D89,'Membership #'!$A$1:$C$1005,2,0))) ->  | F89: =IF(D89="","",(VLOOKUP(D89,'Membership #'!$A$1:$C$1005,3,0))) -> 
E90: =IF(D90="","",(VLOOKUP(D90,'Membership #'!$A$1:$C$1005,2,0))) ->  | F90: =IF(D90="","",(VLOOKUP(D90,'Membership #'!$A$1:$C$1005,3,0))) -> 
E91: =IF(D91="","",(VLOOKUP(D91,'Membership #'!$A$1:$C$1005,2,0))) ->  | F91: =IF(D91="","",(VLOOKUP(D91,'Membership #'!$A$1:$C$1005,3,0))) -> 
E92: =IF(D92="","",(VLOOKUP(D92,'Membership #'!$A$1:$C$1005,2,0))) ->  | F92: =IF(D92="","",(VLOOKUP(D92,'Membership #'!$A$1:$C$1005,3,0))) -> 
E93: =IF(D93="","",(VLOOKUP(D93,'Membership #'!$A$1:$C$1005,2,0))) ->  | F93: =IF(D93="","",(VLOOKUP(D93,'Membership #'!$A$1:$C$1005,3,0))) -> 
E94: =IF(D94="","",(VLOOKUP(D94,'Membership #'!$A$1:$C$1005,2,0))) ->  | F94: =IF(D94="","",(VLOOKUP(D94,'Membership #'!$A$1:$C$1005,3,0))) -> 
E95: =IF(D95="","",(VLOOKUP(D95,'Membership #'!$A$1:$C$1005,2,0))) ->  | F95: =IF(D95="","",(VLOOKUP(D95,'Membership #'!$A$1:$C$1005,3,0))) -> 
E96: =IF(D96="","",(VLOOKUP(D96,'Membership #'!$A$1:$C$1005,2,0))) ->  | F96: =IF(D96="","",(VLOOKUP(D96,'Membership #'!$A$1:$C$1005,3,0))) -> 
E97: =IF(D97="","",(VLOOKUP(D97,'Membership #'!$A$1:$C$1005,2,0))) ->  | F97: =IF(D97="","",(VLOOKUP(D97,'Membership #'!$A$1:$C$1005,3,0))) -> 
E98: =IF(D98="","",(VLOOKUP(D98,'Membership #'!$A$1:$C$1005,2,0))) ->  | F98: =IF(D98="","",(VLOOKUP(D98,'Membership #'!$A$1:$C$1005,3,0))) -> 
E99: =IF(D99="","",(VLOOKUP(D99,'Membership #'!$A$1:$C$1005,2,0))) ->  | F99: =IF(D99="","",(VLOOKUP(D99,'Membership #'!$A$1:$C$1005,3,0))) -> 
E100: =IF(D100="","",(VLOOKUP(D100,'Membership #'!$A$1:$C$1005,2,0))) ->  | F100: =IF(D100="","",(VLOOKUP(D100,'Membership #'!$A$1:$C$1005,3,0))) -> 
E101: =IF(D101="","",(VLOOKUP(D101,'Membership #'!$A$1:$C$1005,2,0))) ->  | F101: =IF(D101="","",(VLOOKUP(D101,'Membership #'!$A$1:$C$1005,3,0))) -> 

Sheet Adult Green Barrels
A1: Tom Burt & Mark McGuire Memorial Jackpot Aug 22, 2021 | M1: x=Scratch
A2: Adult Green Barrels | M2: n=No Time
A3: # Enteries: | E3: =COUNTIF($D$8:$D$100,">0") -> 1 | R3: Don't Erase these numbers below!!
A4: Rand Draw | B4: Seed | D4: RING # | E4: NAME | F4: HORSE NAME | G4: TIME | H4: PENALTY | I4: TOTAL | J4: PLACINGS | K4: POINTS | R4: =IF(N9=2,7,IF(N9=3,6,IF(N9=4,5,IF(N9=5,4,IF(AND(N9>5,N11>600),3,IF(AND(N9>5,N11<600,N11>299.99),2,IF(AND(N9>5,N11<300),1,8))))))) -> 7 | S4: 1 | T4: 2 | U4: 3 | V4: 4 | W4: 5 | X4: 6 | Y4: 7 | Z4: 8
S5: 299 | T5: $300- | U5: $600 -
M6: Adult Green Barrels | S6: or less | T6: 599 | U6: More | V6: 5 Entries | W6: 4 Entries | X6: 3 Entries | Y6: 2 Entries
R7: 1st | S7: 0.32 | T7: 0.27 | U7: 0.24 | V7: 0.35 | W7: 0.4 | X7: 0.46 | Y7: 0.6
A8: =IF(D8<>"",RAND(),"") -> 0.9236703196 | B8: =IF(D8<>"",RANK(A8,A$8:A$101),"") -> 1 | C8: 1 | D8: 969 | E8: =IF(D8="","",(VLOOKUP(D8,'Membership #'!$A$1:$C$1005,2,0))) -> Kenzie Cook | F8: =IF(D8="","",(VLOOKUP(D8,'Membership #'!$A$1:$C$1005,3,0))) -> Pocos Lady Emerald | G8: 33.023 | I8: =IF(G8="n","No Time",IF(G8="x","Scratch",IF(G8<>"",SUM(G8+H8),""))) -> 33.023 | M8: Added | N8: 25 | R8: 2nd | S8: 0.23 | T8: 0.22 | U8: 0.19 | V8: 0.25 | W8: 0.28 | X8: 0.34 | Y8: 0.4
A9: =IF(M26<>"",RAND(),"") ->  | B9: =IF(M26<>"",RANK(A9,A$8:A$101),"") ->  | C9: 2 | D9: 909b | E9: =IF(D9="","",(VLOOKUP(D9,'Membership #'!$A$1:$C$1005,2,0))) -> Bryden MacNeil | F9: =IF(D9="","",(VLOOKUP(D9,'Membership #'!$A$1:$C$1005,3,0))) -> Martha's Tivio Moon | G9: x | I9: =IF(G9="n","No Time",IF(G9="x","Scratch",IF(G9<>"",SUM(G9+H9),""))) -> Scratch | M9: Entries | N9: 2 | P9: 10 | Q9: per head | R9: 3rd | S9: 0.15 | T9: 0.18 | U9: 0.16 | V9: 0.17 | W9: 0.18 | X9: 0.2
A10: =IF(M27<>"",RAND(),"") ->  | B10: =IF(M27<>"",RANK(A10,A$8:A$101),"") ->  | E10: =IF(D10="","",(VLOOKUP(D10,'Membership #'!$A$1:$C$1005,2,0))) ->  | F10: =IF(D10="","",(VLOOKUP(D10,'Membership #'!$A$1:$C$1005,3,0))) ->  | I10: =IF(G10="n","No Time",IF(G10="x","Scratch",IF(G10<>"",SUM(G10+H10),""))) ->  | M10: Jackpot | N10: =P9*N9 -> 20 | P10: 0.85 | Q10: payback | R10: 4th | S10: 0.12 | T10: 0.13 | U10: 0.13 | V10: 0.13 | W10: 0.14
E11: =IF(D11="","",(VLOOKUP(D11,'Membership #'!$A$1:$C$1005,2,0))) ->  | F11: =IF(D11="","",(VLOOKUP(D11,'Membership #'!$A$1:$C$1005,3,0))) ->  | I11: =IF(G11="n","No Time",IF(G11="x","Scratch",IF(G11<>"",SUM(G11+H11),""))) ->  | M11: Total Money | N11: =N8+(N10*P10) -> 42 | P11: =N10*P10 -> 17 | Q11: Jackpot | R11: 5th | S11: 0.1 | T11: 0.09 | U11: 0.08 | V11: 0.1
E12: =IF(D12="","",(VLOOKUP(D12,'Membership #'!$A$1:$C$1005,2,0))) ->  | F12: =IF(D12="","",(VLOOKUP(D12,'Membership #'!$A$1:$C$1005,3,0))) ->  | I12: =IF(G12="n","No Time",IF(G12="x","Scratch",IF(G12<>"",SUM(G12+H12),""))) ->  | N12: Percentage | O12: Money | P12: Ring # | R12: 6th | S12: 0.08 | T12: 0.06 | U12: 0.06
E13: =IF(D13="","",(VLOOKUP(D13,'Membership #'!$A$1:$C$1005,2,0))) ->  | F13: =IF(D13="","",(VLOOKUP(D13,'Membership #'!$A$1:$C$1005,3,0))) ->  | I13: =IF(G13="n","No Time",IF(G13="x","Scratch",IF(G13<>"",SUM(G13+H13),""))) ->  | M13: 1st | N13: 0.6 | O13: =IF(N13<>0,N$11*N13,"") -> 25.2 | Q13: =IF(P13="","",(VLOOKUP(P13,'Membership #'!$A$1:$C$1005,2,0))) ->  | R13: 7th | T13: 0.03 | U13: 0.05
E14: =IF(D14="","",(VLOOKUP(D14,'Membership #'!$A$1:$C$1005,2,0))) ->  | F14: =IF(D14="","",(VLOOKUP(D14,'Membership #'!$A$1:$C$1005,3,0))) ->  | M14: 2nd | N14: 0.4 | O14: 16.8 | Q14: =IF(P14="","",(VLOOKUP(P14,'Membership #'!$A$1:$C$1005,2,0))) ->  | R14: 8th | T14: 0.02 | U14: 0.04
E15: =IF(D15="","",(VLOOKUP(D15,'Membership #'!$A$1:$C$1005,2,0))) ->  | F15: =IF(D15="","",(VLOOKUP(D15,'Membership #'!$A$1:$C$1005,3,0))) ->  | I15: =IF(G15="n","No Time",IF(G15="x","Scratch",IF(G15<>"",SUM(G15+H15),""))) ->  | M15: 3rd | Q15: =IF(P15="","",(VLOOKUP(P15,'Membership #'!$A$1:$C$1005,2,0))) ->  | R15: 9th | U15: 0.03
E16: =IF(D16="","",(VLOOKUP(D16,'Membership #'!$A$1:$C$1005,2,0))) ->  | F16: =IF(D16="","",(VLOOKUP(D16,'Membership #'!$A$1:$C$1005,3,0))) ->  | I16: =IF(G16="n","No Time",IF(G16="x","Scratch",IF(G16<>"",SUM(G16+H16),""))) ->  | M16: 4th | Q16: =IF(P16="","",(VLOOKUP(P16,'Membership #'!$A$1:$C$1005,2,0))) ->  | R16: 10th | U16: 0.02
E17: =IF(D17="","",(VLOOKUP(D17,'Membership #'!$A$1:$C$1005,2,0))) ->  | F17: =IF(D17="","",(VLOOKUP(D17,'Membership #'!$A$1:$C$1005,3,0))) ->  | I17: =IF(G17="n","No Time",IF(G17="x","Scratch",IF(G17<>"",SUM(G17+H17),""))) ->  | M17: 5th | Q17: =IF(P17="","",(VLOOKUP(P17,'Membership #'!$A$1:$C$1005,2,0))) -> 
E18: =IF(D18="","",(VLOOKUP(D18,'Membership #'!$A$1:$C$1005,2,0))) ->  | F18: =IF(D18="","",(VLOOKUP(D18,'Membership #'!$A$1:$C$1005,3,0))) ->  | I18: =IF(G18="n","No Time",IF(G18="x","Scratch",IF(G18<>"",SUM(G18+H18),""))) ->  | M18: 6th | Q18: =IF(P18="","",(VLOOKUP(P18,'Membership #'!$A$1:$C$1005,2,0))) -> 
E19: =IF(D19="","",(VLOOKUP(D19,'Membership #'!$A$1:$C$1005,2,0))) ->  | F19: =IF(D19="","",(VLOOKUP(D19,'Membership #'!$A$1:$C$1005,3,0))) ->  | M19: 7th | Q19: =IF(P19="",0,(VLOOKUP(P19,'Membership #'!$A$1:$C$1005,2,0))) -> 0
E20: =IF(D20="","",(VLOOKUP(D20,'Membership #'!$A$1:$C$1005,2,0))) ->  | F20: =IF(D20="","",(VLOOKUP(D20,'Membership #'!$A$1:$C$1005,3,0))) ->  | M20: 8th | Q20: =IF(P20="",0,(VLOOKUP(P20,'Membership #'!$A$1:$C$1005,2,0))) -> 0
E21: =IF(D21="","",(VLOOKUP(D21,'Membership #'!$A$1:$C$1005,2,0))) ->  | F21: =IF(D21="","",(VLOOKUP(D21,'Membership #'!$A$1:$C$1005,3,0))) ->  | M21: 9th
E22: =IF(D22="","",(VLOOKUP(D22,'Membership #'!$A$1:$C$1005,2,0))) ->  | F22: =IF(D22="","",(VLOOKUP(D22,'Membership #'!$A$1:$C$1005,3,0))) ->  | M22: 10th | N22: =HLOOKUP($R$4,$S$4:$Z$17,13,0) -> 0
E23: =IF(D23="","",(VLOOKUP(D23,'Membership #'!$A$1:$C$1005,2,0))) ->  | F23: =IF(D23="","",(VLOOKUP(D23,'Membership #'!$A$1:$C$1005,3,0))) ->  | M23: Total Money | O23: =SUM(O13:O22) -> 42
E24: =IF(D24="","",(VLOOKUP(D24,'Membership #'!$A$1:$C$1005,2,0))) ->  | F24: =IF(D24="","",(VLOOKUP(D24,'Membership #'!$A$1:$C$1005,3,0))) -> 
E25: =IF(D25="","",(VLOOKUP(D25,'Membership #'!$A$1:$C$1005,2,0))) ->  | F25: =IF(D25="","",(VLOOKUP(D25,'Membership #'!$A$1:$C$1005,3,0))) -> 
E26: =IF(D26="","",(VLOOKUP(D26,'Membership #'!$A$1:$C$1005,2,0))) ->  | F26: =IF(D26="","",(VLOOKUP(D26,'Membership #'!$A$1:$C$1005,3,0))) ->  | N26: Terry Cole
E27: =IF(D27="","",(VLOOKUP(D27,'Membership #'!$A$1:$C$1005,2,0))) ->  | F27: =IF(D27="","",(VLOOKUP(D27,'Membership #'!$A$1:$C$1005,3,0))) -> 
E28: =IF(D28="","",(VLOOKUP(D28,'Membership #'!$A$1:$C$1005,2,0))) ->  | F28: =IF(D28="","",(VLOOKUP(D28,'Membership #'!$A$1:$C$1005,3,0))) -> 
E29: =IF(D29="","",(VLOOKUP(D29,'Membership #'!$A$1:$C$1005,2,0))) ->  | F29: =IF(D29="","",(VLOOKUP(D29,'Membership #'!$A$1:$C$1005,3,0))) -> 
E30: =IF(D30="","",(VLOOKUP(D30,'Membership #'!$A$1:$C$1005,2,0))) ->  | F30: =IF(D30="","",(VLOOKUP(D30,'Membership #'!$A$1:$C$1005,3,0))) -> 
E31: =IF(D31="","",(VLOOKUP(D31,'Membership #'!$A$1:$C$1005,2,0))) ->  | F31: =IF(D31="","",(VLOOKUP(D31,'Membership #'!$A$1:$C$1005,3,0))) -> 
E32: =IF(D32="","",(VLOOKUP(D32,'Membership #'!$A$1:$C$1005,2,0))) ->  | F32: =IF(D32="","",(VLOOKUP(D32,'Membership #'!$A$1:$C$1005,3,0))) -> 
E33: =IF(D33="","",(VLOOKUP(D33,'Membership #'!$A$1:$C$1005,2,0))) ->  | F33: =IF(D33="","",(VLOOKUP(D33,'Membership #'!$A$1:$C$1005,3,0))) -> 
E34: =IF(D34="","",(VLOOKUP(D34,'Membership #'!$A$1:$C$1005,2,0))) ->  | F34: =IF(D34="","",(VLOOKUP(D34,'Membership #'!$A$1:$C$1005,3,0))) -> 
E35: =IF(D35="","",(VLOOKUP(D35,'Membership #'!$A$1:$C$1005,2,0))) ->  | F35: =IF(D35="","",(VLOOKUP(D35,'Membership #'!$A$1:$C$1005,3,0))) -> 
E36: =IF(D36="","",(VLOOKUP(D36,'Membership #'!$A$1:$C$1005,2,0))) ->  | F36: =IF(D36="","",(VLOOKUP(D36,'Membership #'!$A$1:$C$1005,3,0))) -> 
E37: =IF(D37="","",(VLOOKUP(D37,'Membership #'!$A$1:$C$1005,2,0))) ->  | F37: =IF(D37="","",(VLOOKUP(D37,'Membership #'!$A$1:$C$1005,3,0))) -> 
E38: =IF(D38="","",(VLOOKUP(D38,'Membership #'!$A$1:$C$1005,2,0))) ->  | F38: =IF(D38="","",(VLOOKUP(D38,'Membership #'!$A$1:$C$1005,3,0))) -> 
E39: =IF(D39="","",(VLOOKUP(D39,'Membership #'!$A$1:$C$1005,2,0))) ->  | F39: =IF(D39="","",(VLOOKUP(D39,'Membership #'!$A$1:$C$1005,3,0))) -> 
E40: =IF(D40="","",(VLOOKUP(D40,'Membership #'!$A$1:$C$1005,2,0))) ->  | F40: =IF(D40="","",(VLOOKUP(D40,'Membership #'!$A$1:$C$1005,3,0))) -> 
E41: =IF(D41="","",(VLOOKUP(D41,'Membership #'!$A$1:$C$1005,2,0))) ->  | F41: =IF(D41="","",(VLOOKUP(D41,'Membership #'!$A$1:$C$1005,3,0))) -> 
E42: =IF(D42="","",(VLOOKUP(D42,'Membership #'!$A$1:$C$1005,2,0))) ->  | F42: =IF(D42="","",(VLOOKUP(D42,'Membership #'!$A$1:$C$1005,3,0))) -> 
E43: =IF(D43="","",(VLOOKUP(D43,'Membership #'!$A$1:$C$1005,2,0))) ->  | F43: =IF(D43="","",(VLOOKUP(D43,'Membership #'!$A$1:$C$1005,3,0))) -> 
E44: =IF(D44="","",(VLOOKUP(D44,'Membership #'!$A$1:$C$1005,2,0))) ->  | F44: =IF(D44="","",(VLOOKUP(D44,'Membership #'!$A$1:$C$1005,3,0))) -> 
E45: =IF(D45="","",(VLOOKUP(D45,'Membership #'!$A$1:$C$1005,2,0))) ->  | F45: =IF(D45="","",(VLOOKUP(D45,'Membership #'!$A$1:$C$1005,3,0))) -> 
E46: =IF(D46="","",(VLOOKUP(D46,'Membership #'!$A$1:$C$1005,2,0))) ->  | F46: =IF(D46="","",(VLOOKUP(D46,'Membership #'!$A$1:$C$1005,3,0))) -> 
E47: =IF(D47="","",(VLOOKUP(D47,'Membership #'!$A$1:$C$1005,2,0))) ->  | F47: =IF(D47="","",(VLOOKUP(D47,'Membership #'!$A$1:$C$1005,3,0))) -> 
E48: =IF(D48="","",(VLOOKUP(D48,'Membership #'!$A$1:$C$1005,2,0))) ->  | F48: =IF(D48="","",(VLOOKUP(D48,'Membership #'!$A$1:$C$1005,3,0))) -> 
E49: =IF(D49="","",(VLOOKUP(D49,'Membership #'!$A$1:$C$1005,2,0))) ->  | F49: =IF(D49="","",(VLOOKUP(D49,'Membership #'!$A$1:$C$1005,3,0))) -> 
E50: =IF(D50="","",(VLOOKUP(D50,'Membership #'!$A$1:$C$1005,2,0))) ->  | F50: =IF(D50="","",(VLOOKUP(D50,'Membership #'!$A$1:$C$1005,3,0))) -> 
E51: =IF(D51="","",(VLOOKUP(D51,'Membership #'!$A$1:$C$1005,2,0))) ->  | F51: =IF(D51="","",(VLOOKUP(D51,'Membership #'!$A$1:$C$1005,3,0))) -> 
E52: =IF(D52="","",(VLOOKUP(D52,'Membership #'!$A$1:$C$1005,2,0))) ->  | F52: =IF(D52="","",(VLOOKUP(D52,'Membership #'!$A$1:$C$1005,3,0))) -> 
E53: =IF(D53="","",(VLOOKUP(D53,'Membership #'!$A$1:$C$1005,2,0))) ->  | F53: =IF(D53="","",(VLOOKUP(D53,'Membership #'!$A$1:$C$1005,3,0))) -> 
E54: =IF(D54="","",(VLOOKUP(D54,'Membership #'!$A$1:$C$1005,2,0))) ->  | F54: =IF(D54="","",(VLOOKUP(D54,'Membership #'!$A$1:$C$1005,3,0))) -> 
E55: =IF(D55="","",(VLOOKUP(D55,'Membership #'!$A$1:$C$1005,2,0))) ->  | F55: =IF(D55="","",(VLOOKUP(D55,'Membership #'!$A$1:$C$1005,3,0))) -> 
E56: =IF(D56="","",(VLOOKUP(D56,'Membership #'!$A$1:$C$1005,2,0))) ->  | F56: =IF(D56="","",(VLOOKUP(D56,'Membership #'!$A$1:$C$1005,3,0))) -> 
E57: =IF(D57="","",(VLOOKUP(D57,'Membership #'!$A$1:$C$1005,2,0))) ->  | F57: =IF(D57="","",(VLOOKUP(D57,'Membership #'!$A$1:$C$1005,3,0))) -> 
E58: =IF(D58="","",(VLOOKUP(D58,'Membership #'!$A$1:$C$1005,2,0))) ->  | F58: =IF(D58="","",(VLOOKUP(D58,'Membership #'!$A$1:$C$1005,3,0))) -> 
E59: =IF(D59="","",(VLOOKUP(D59,'Membership #'!$A$1:$C$1005,2,0))) ->  | F59: =IF(D59="","",(VLOOKUP(D59,'Membership #'!$A$1:$C$1005,3,0))) -> 
E60: =IF(D60="","",(VLOOKUP(D60,'Membership #'!$A$1:$C$1005,2,0))) ->  | F60: =IF(D60="","",(VLOOKUP(D60,'Membership #'!$A$1:$C$1005,3,0))) -> 
E61: =IF(D61="","",(VLOOKUP(D61,'Membership #'!$A$1:$C$1005,2,0))) ->  | F61: =IF(D61="","",(VLOOKUP(D61,'Membership #'!$A$1:$C$1005,3,0))) -> 
E62: =IF(D62="","",(VLOOKUP(D62,'Membership #'!$A$1:$C$1005,2,0))) ->  | F62: =IF(D62="","",(VLOOKUP(D62,'Membership #'!$A$1:$C$1005,3,0))) -> 
E63: =IF(D63="","",(VLOOKUP(D63,'Membership #'!$A$1:$C$1005,2,0))) ->  | F63: =IF(D63="","",(VLOOKUP(D63,'Membership #'!$A$1:$C$1005,3,0))) -> 
E64: =IF(D64="","",(VLOOKUP(D64,'Membership #'!$A$1:$C$1005,2,0))) ->  | F64: =IF(D64="","",(VLOOKUP(D64,'Membership #'!$A$1:$C$1005,3,0))) -> 
E65: =IF(D65="","",(VLOOKUP(D65,'Membership #'!$A$1:$C$1005,2,0))) ->  | F65: =IF(D65="","",(VLOOKUP(D65,'Membership #'!$A$1:$C$1005,3,0))) -> 
E66: =IF(D66="","",(VLOOKUP(D66,'Membership #'!$A$1:$C$1005,2,0))) ->  | F66: =IF(D66="","",(VLOOKUP(D66,'Membership #'!$A$1:$C$1005,3,0))) -> 
E67: =IF(D67="","",(VLOOKUP(D67,'Membership #'!$A$1:$C$1005,2,0))) ->  | F67: =IF(D67="","",(VLOOKUP(D67,'Membership #'!$A$1:$C$1005,3,0))) -> 
E68: =IF(D68="","",(VLOOKUP(D68,'Membership #'!$A$1:$C$1005,2,0))) ->  | F68: =IF(D68="","",(VLOOKUP(D68,'Membership #'!$A$1:$C$1005,3,0))) -> 
E69: =IF(D69="","",(VLOOKUP(D69,'Membership #'!$A$1:$C$1005,2,0))) ->  | F69: =IF(D69="","",(VLOOKUP(D69,'Membership #'!$A$1:$C$1005,3,0))) -> 
E70: =IF(D70="","",(VLOOKUP(D70,'Membership #'!$A$1:$C$1005,2,0))) ->  | F70: =IF(D70="","",(VLOOKUP(D70,'Membership #'!$A$1:$C$1005,3,0))) -> 
E71: =IF(D71="","",(VLOOKUP(D71,'Membership #'!$A$1:$C$1005,2,0))) ->  | F71: =IF(D71="","",(VLOOKUP(D71,'Membership #'!$A$1:$C$1005,3,0))) -> 
A72: =IF(D72<>"",RAND(),"") ->  | B72: =IF(D72<>"",RANK(A72,A$8:A$101),"") ->  | E72: =IF(D72="","",(VLOOKUP(D72,'Membership #'!$A$1:$C$1005,2,0))) ->  | F72: =IF(D72="","",(VLOOKUP(D72,'Membership #'!$A$1:$C$1005,3,0))) -> 
E73: =IF(D73="","",(VLOOKUP(D73,'Membership #'!$A$1:$C$1005,2,0))) ->  | F73: =IF(D73="","",(VLOOKUP(D73,'Membership #'!$A$1:$C$1005,3,0))) ->  | I73: =IF(G73="n","No Time",IF(G73="x","Scratch",IF(G73<>"",SUM(G73+H73),""))) -> 
E74: =IF(D74="","",(VLOOKUP(D74,'Membership #'!$A$1:$C$1005,2,0))) ->  | F74: =IF(D74="","",(VLOOKUP(D74,'Membership #'!$A$1:$C$1005,3,0))) -> 
E75: =IF(D75="","",(VLOOKUP(D75,'Membership #'!$A$1:$C$1005,2,0))) ->  | F75: =IF(D75="","",(VLOOKUP(D75,'Membership #'!$A$1:$C$1005,3,0))) -> 
E76: =IF(D76="","",(VLOOKUP(D76,'Membership #'!$A$1:$C$1005,2,0))) ->  | F76: =IF(D76="","",(VLOOKUP(D76,'Membership #'!$A$1:$C$1005,3,0))) -> 
E77: =IF(D77="","",(VLOOKUP(D77,'Membership #'!$A$1:$C$1005,2,0))) ->  | F77: =IF(D77="","",(VLOOKUP(D77,'Membership #'!$A$1:$C$1005,3,0))) -> 
E78: =IF(D78="","",(VLOOKUP(D78,'Membership #'!$A$1:$C$1005,2,0))) ->  | F78: =IF(D78="","",(VLOOKUP(D78,'Membership #'!$A$1:$C$1005,3,0))) -> 
E79: =IF(D79="","",(VLOOKUP(D79,'Membership #'!$A$1:$C$1005,2,0))) ->  | F79: =IF(D79="","",(VLOOKUP(D79,'Membership #'!$A$1:$C$1005,3,0))) -> 
E80: =IF(D80="","",(VLOOKUP(D80,'Membership #'!$A$1:$C$1005,2,0))) ->  | F80: =IF(D80="","",(VLOOKUP(D80,'Membership #'!$A$1:$C$1005,3,0))) -> 
E81: =IF(D81="","",(VLOOKUP(D81,'Membership #'!$A$1:$C$1005,2,0))) ->  | F81: =IF(D81="","",(VLOOKUP(D81,'Membership #'!$A$1:$C$1005,3,0))) -> 
E82: =IF(D82="","",(VLOOKUP(D82,'Membership #'!$A$1:$C$1005,2,0))) ->  | F82: =IF(D82="","",(VLOOKUP(D82,'Membership #'!$A$1:$C$1005,3,0))) -> 
E83: =IF(D83="","",(VLOOKUP(D83,'Membership #'!$A$1:$C$1005,2,0))) ->  | F83: =IF(D83="","",(VLOOKUP(D83,'Membership #'!$A$1:$C$1005,3,0))) -> 
E84: =IF(D84="","",(VLOOKUP(D84,'Membership #'!$A$1:$C$1005,2,0))) ->  | F84: =IF(D84="","",(VLOOKUP(D84,'Membership #'!$A$1:$C$1005,3,0))) -> 
E85: =IF(D85="","",(VLOOKUP(D85,'Membership #'!$A$1:$C$1005,2,0))) ->  | F85: =IF(D85="","",(VLOOKUP(D85,'Membership #'!$A$1:$C$1005,3,0))) -> 
E86: =IF(D86="","",(VLOOKUP(D86,'Membership #'!$A$1:$C$1005,2,0))) ->  | F86: =IF(D86="","",(VLOOKUP(D86,'Membership #'!$A$1:$C$1005,3,0))) -> 
E87: =IF(D87="","",(VLOOKUP(D87,'Membership #'!$A$1:$C$1005,2,0))) ->  | F87: =IF(D87="","",(VLOOKUP(D87,'Membership #'!$A$1:$C$1005,3,0))) -> 
E88: =IF(D88="","",(VLOOKUP(D88,'Membership #'!$A$1:$C$1005,2,0))) ->  | F88: =IF(D88="","",(VLOOKUP(D88,'Membership #'!$A$1:$C$1005,3,0))) -> 
E89: =IF(D89="","",(VLOOKUP(D89,'Membership #'!$A$1:$C$1005,2,0))) ->  | F89: =IF(D89="","",(VLOOKUP(D89,'Membership #'!$A$1:$C$1005,3,0))) -> 
E90: =IF(D90="","",(VLOOKUP(D90,'Membership #'!$A$1:$C$1005,2,0))) ->  | F90: =IF(D90="","",(VLOOKUP(D90,'Membership #'!$A$1:$C$1005,3,0))) -> 
E91: =IF(D91="","",(VLOOKUP(D91,'Membership #'!$A$1:$C$1005,2,0))) ->  | F91: =IF(D91="","",(VLOOKUP(D91,'Membership #'!$A$1:$C$1005,3,0))) -> 
E92: =IF(D92="","",(VLOOKUP(D92,'Membership #'!$A$1:$C$1005,2,0))) ->  | F92: =IF(D92="","",(VLOOKUP(D92,'Membership #'!$A$1:$C$1005,3,0))) -> 
E93: =IF(D93="","",(VLOOKUP(D93,'Membership #'!$A$1:$C$1005,2,0))) ->  | F93: =IF(D93="","",(VLOOKUP(D93,'Membership #'!$A$1:$C$1005,3,0))) -> 
E94: =IF(D94="","",(VLOOKUP(D94,'Membership #'!$A$1:$C$1005,2,0))) ->  | F94: =IF(D94="","",(VLOOKUP(D94,'Membership #'!$A$1:$C$1005,3,0))) -> 
E95: =IF(D95="","",(VLOOKUP(D95,'Membership #'!$A$1:$C$1005,2,0))) ->  | F95: =IF(D95="","",(VLOOKUP(D95,'Membership #'!$A$1:$C$1005,3,0))) -> 
E96: =IF(D96="","",(VLOOKUP(D96,'Membership #'!$A$1:$C$1005,2,0))) ->  | F96: =IF(D96="","",(VLOOKUP(D96,'Membership #'!$A$1:$C$1005,3,0))) -> 
E97: =IF(D97="","",(VLOOKUP(D97,'Membership #'!$A$1:$C$1005,2,0))) ->  | F97: =IF(D97="","",(VLOOKUP(D97,'Membership #'!$A$1:$C$1005,3,0))) -> 
E98: =IF(D98="","",(VLOOKUP(D98,'Membership #'!$A$1:$C$1005,2,0))) ->  | F98: =IF(D98="","",(VLOOKUP(D98,'Membership #'!$A$1:$C$1005,3,0))) -> 
E99: =IF(D99="","",(VLOOKUP(D99,'Membership #'!$A$1:$C$1005,2,0))) ->  | F99: =IF(D99="","",(VLOOKUP(D99,'Membership #'!$A$1:$C$1005,3,0))) -> 
E100: =IF(D100="","",(VLOOKUP(D100,'Membership #'!$A$1:$C$1005,2,0))) ->  | F100: =IF(D100="","",(VLOOKUP(D100,'Membership #'!$A$1:$C$1005,3,0))) -> 
E101: =IF(D101="","",(VLOOKUP(D101,'Membership #'!$A$1:$C$1005,2,0))) ->  | F101: =IF(D101="","",(VLOOKUP(D101,'Membership #'!$A$1:$C$1005,3,0))) -> 

Sheet ADULT GREEN POLES
A1: Tom Burt & Mark McGuire Memorial Jackpot Aug 22, 2021 | M1: x=Scratch
A2: ADULT GREEN POLES | M2: n=No Time
A3: # Enteries: | E3: =COUNTIF($D$8:$D$100,">0") -> 1 | R3: Don't Erase these numbers below!!
A4: Rand Draw | B4: Seed | C4: Running Order | D4: RING # | E4: NAME | F4: HORSE NAME | G4: TIME | H4: PENALTY | I4: TOTAL | J4: PLACINGS | K4: POINTS | R4: =IF(N9=2,7,IF(N9=3,6,IF(N9=4,5,IF(N9=5,4,IF(AND(N9>5,N11>600),3,IF(AND(N9>5,N11<600,N11>299.99),2,IF(AND(N9>5,N11<300),1,8))))))) -> 7 | S4: 1 | T4: 2 | U4: 3 | V4: 4 | W4: 5 | X4: 6 | Y4: 7 | Z4: 8
S5: 299 | T5: $300- | U5: $600 -
M6: ADULT GREEN POLES | S6: or less | T6: 599 | U6: More | V6: 5 Entries | W6: 4 Entries | X6: 3 Entries | Y6: 2 Entries
R7: 1st | S7: 0.32 | T7: 0.27 | U7: 0.24 | V7: 0.35 | W7: 0.4 | X7: 0.46 | Y7: 0.6
A8: =IF(D8<>"",RAND(),"") -> 0.3395058349 | B8: =IF(D8<>"",RANK(A8,A$8:A$101),"") -> 2 | C8: 1 | D8: 909b | E8: =IF(D8="","",(VLOOKUP(D8,'Membership #'!$A$1:$C$1005,2,0))) -> Bryden MacNeil | F8: =IF(D8="","",(VLOOKUP(D8,'Membership #'!$A$1:$C$1005,3,0))) -> Martha's Tivio Moon | G8: x | I8: =IF(G8="n","No Time",IF(G8="x","Scratch",IF(G8<>"",SUM(G8+H8),""))) -> Scratch | M8: Added | N8: 25 | R8: 2nd | S8: 0.23 | T8: 0.22 | U8: 0.19 | V8: 0.25 | W8: 0.28 | X8: 0.34 | Y8: 0.4
A9: 0.549996239 | B9: 1 | C9: 2 | D9: 969 | E9: =IF(D9="","",(VLOOKUP(D9,'Membership #'!$A$1:$C$1005,2,0))) -> Kenzie Cook | F9: =IF(D9="","",(VLOOKUP(D9,'Membership #'!$A$1:$C$1005,3,0))) -> Pocos Lady Emerald | G9: x | I9: =IF(G9="n","No Time",IF(G9="x","Scratch",IF(G9<>"",SUM(G9+H9),""))) -> Scratch | M9: Entries | N9: 2 | P9: 10 | Q9: per head | R9: 3rd | S9: 0.15 | T9: 0.18 | U9: 0.16 | V9: 0.17 | W9: 0.18 | X9: 0.2
E10: =IF(D10="","",(VLOOKUP(D10,'Membership #'!$A$1:$C$1005,2,0))) ->  | F10: =IF(D10="","",(VLOOKUP(D10,'Membership #'!$A$1:$C$1005,3,0))) ->  | I10: =IF(G10="n","No Time",IF(G10="x","Scratch",IF(G10<>"",SUM(G10+H10),""))) ->  | M10: Jackpot | N10: =P9*N9 -> 20 | P10: 0.85 | Q10: payback | R10: 4th | S10: 0.12 | T10: 0.13 | U10: 0.13 | V10: 0.13 | W10: 0.14
E11: =IF(D11="","",(VLOOKUP(D11,'Membership #'!$A$1:$C$1005,2,0))) ->  | F11: =IF(D11="","",(VLOOKUP(D11,'Membership #'!$A$1:$C$1005,3,0))) ->  | I11: =IF(G11="n","No Time",IF(G11="x","Scratch",IF(G11<>"",SUM(G11+H11),""))) ->  | M11: Total Money | N11: =N8+(N10*P10) -> 42 | P11: =N10*P10 -> 17 | Q11: Jackpot | R11: 5th | S11: 0.1 | T11: 0.09 | U11: 0.08 | V11: 0.1
E12: =IF(D12="","",(VLOOKUP(D12,'Membership #'!$A$1:$C$1005,2,0))) ->  | F12: =IF(D12="","",(VLOOKUP(D12,'Membership #'!$A$1:$C$1005,3,0))) ->  | N12: Percentage | O12: Money | P12: Ring # | R12: 6th | S12: 0.08 | T12: 0.06 | U12: 0.06
E13: =IF(D13="","",(VLOOKUP(D13,'Membership #'!$A$1:$C$1005,2,0))) ->  | F13: =IF(D13="","",(VLOOKUP(D13,'Membership #'!$A$1:$C$1005,3,0))) ->  | M13: 1st | N13: 0.6 | O13: =IF(N13<>0,N$11*N13,"") -> 25.2 | Q13: =IF(P13="","",(VLOOKUP(P13,'Membership #'!$A$1:$C$1005,2,0))) ->  | R13: 7th | T13: 0.03 | U13: 0.05
E14: =IF(D14="","",(VLOOKUP(D14,'Membership #'!$A$1:$C$1005,2,0))) ->  | F14: =IF(D14="","",(VLOOKUP(D14,'Membership #'!$A$1:$C$1005,3,0))) ->  | I14: =IF(G14="n","No Time",IF(G14="x","Scratch",IF(G14<>"",SUM(G14+H14),""))) ->  | M14: 2nd | N14: 0.4 | O14: 16.8 | Q14: =IF(P14="","",(VLOOKUP(P14,'Membership #'!$A$1:$C$1005,2,0))) ->  | R14: 8th | T14: 0.02 | U14: 0.04
E15: =IF(D15="","",(VLOOKUP(D15,'Membership #'!$A$1:$C$1005,2,0))) ->  | F15: =IF(D15="","",(VLOOKUP(D15,'Membership #'!$A$1:$C$1005,3,0))) ->  | I15: =IF(G15="n","No Time",IF(G15="x","Scratch",IF(G15<>"",SUM(G15+H15),""))) ->  | M15: 3rd | Q15: =IF(P15="","",(VLOOKUP(P15,'Membership #'!$A$1:$C$1005,2,0))) ->  | R15: 9th | U15: 0.03
E16: =IF(D16="","",(VLOOKUP(D16,'Membership #'!$A$1:$C$1005,2,0))) ->  | F16: =IF(D16="","",(VLOOKUP(D16,'Membership #'!$A$1:$C$1005,3,0))) ->  | M16: 4th | Q16: =IF(P16="","",(VLOOKUP(P16,'Membership #'!$A$1:$C$1005,2,0))) ->  | R16: 10th | U16: 0.02
E17: =IF(D17="","",(VLOOKUP(D17,'Membership #'!$A$1:$C$1005,2,0))) ->  | F17: =IF(D17="","",(VLOOKUP(D17,'Membership #'!$A$1:$C$1005,3,0))) ->  | M17: 5th | Q17: =IF(P17="","",(VLOOKUP(P17,'Membership #'!$A$1:$C$1005,2,0))) -> 
E18: =IF(D18="","",(VLOOKUP(D18,'Membership #'!$A$1:$C$1005,2,0))) ->  | F18: =IF(D18="","",(VLOOKUP(D18,'Membership #'!$A$1:$C$1005,3,0))) ->  | M18: 6th | Q18: =IF(P18="","",(VLOOKUP(P18,'Membership #'!$A$1:$C$1005,2,0))) -> 
E19: =IF(D19="","",(VLOOKUP(D19,'Membership #'!$A$1:$C$1005,2,0))) ->  | F19: =IF(D19="","",(VLOOKUP(D19,'Membership #'!$A$1:$C$1005,3,0))) ->  | M19: 7th | N19: =HLOOKUP($R$4,$S$4:$Z$17,10,0) -> 0 | Q19: =IF(P19="",0,(VLOOKUP(P19,'Membership #'!$A$1:$C$1005,2,0))) -> 0
E20: =IF(D20="","",(VLOOKUP(D20,'Membership #'!$A$1:$C$1005,2,0))) ->  | F20: =IF(D20="","",(VLOOKUP(D20,'Membership #'!$A$1:$C$1005,3,0))) ->  | M20: 8th | N20: =HLOOKUP($R$4,$S$4:$Z$17,11,0) -> 0 | Q20: =IF(P20="",0,(VLOOKUP(P20,'Membership #'!$A$1:$C$1005,2,0))) -> 0
E21: =IF(D21="","",(VLOOKUP(D21,'Membership #'!$A$1:$C$1005,2,0))) ->  | F21: =IF(D21="","",(VLOOKUP(D21,'Membership #'!$A$1:$C$1005,3,0))) ->  | M21: 9th | N21: =HLOOKUP($R$4,$S$4:$Z$17,12,0) -> 0
E22: =IF(D22="","",(VLOOKUP(D22,'Membership #'!$A$1:$C$1005,2,0))) ->  | F22: =IF(D22="","",(VLOOKUP(D22,'Membership #'!$A$1:$C$1005,3,0))) ->  | M22: 10th | N22: =HLOOKUP($R$4,$S$4:$Z$17,13,0) -> 0
E23: =IF(D23="","",(VLOOKUP(D23,'Membership #'!$A$1:$C$1005,2,0))) ->  | F23: =IF(D23="","",(VLOOKUP(D23,'Membership #'!$A$1:$C$1005,3,0))) ->  | M23: Total Money | O23: =SUM(O13:O22) -> 42
E24: =IF(D24="","",(VLOOKUP(D24,'Membership #'!$A$1:$C$1005,2,0))) ->  | F24: =IF(D24="","",(VLOOKUP(D24,'Membership #'!$A$1:$C$1005,3,0))) -> 
E25: =IF(D25="","",(VLOOKUP(D25,'Membership #'!$A$1:$C$1005,2,0))) ->  | F25: =IF(D25="","",(VLOOKUP(D25,'Membership #'!$A$1:$C$1005,3,0))) -> 
E26: =IF(D26="","",(VLOOKUP(D26,'Membership #'!$A$1:$C$1005,2,0))) ->  | F26: =IF(D26="","",(VLOOKUP(D26,'Membership #'!$A$1:$C$1005,3,0))) -> 
E27: =IF(D27="","",(VLOOKUP(D27,'Membership #'!$A$1:$C$1005,2,0))) ->  | F27: =IF(D27="","",(VLOOKUP(D27,'Membership #'!$A$1:$C$1005,3,0))) -> 
E28: =IF(D28="","",(VLOOKUP(D28,'Membership #'!$A$1:$C$1005,2,0))) ->  | F28: =IF(D28="","",(VLOOKUP(D28,'Membership #'!$A$1:$C$1005,3,0))) -> 
E29: =IF(D29="","",(VLOOKUP(D29,'Membership #'!$A$1:$C$1005,2,0))) ->  | F29: =IF(D29="","",(VLOOKUP(D29,'Membership #'!$A$1:$C$1005,3,0))) -> 
E30: =IF(D30="","",(VLOOKUP(D30,'Membership #'!$A$1:$C$1005,2,0))) ->  | F30: =IF(D30="","",(VLOOKUP(D30,'Membership #'!$A$1:$C$1005,3,0))) -> 
E31: =IF(D31="","",(VLOOKUP(D31,'Membership #'!$A$1:$C$1005,2,0))) ->  | F31: =IF(D31="","",(VLOOKUP(D31,'Membership #'!$A$1:$C$1005,3,0))) -> 
E32: =IF(D32="","",(VLOOKUP(D32,'Membership #'!$A$1:$C$1005,2,0))) ->  | F32: =IF(D32="","",(VLOOKUP(D32,'Membership #'!$A$1:$C$1005,3,0))) -> 
E33: =IF(D33="","",(VLOOKUP(D33,'Membership #'!$A$1:$C$1005,2,0))) ->  | F33: =IF(D33="","",(VLOOKUP(D33,'Membership #'!$A$1:$C$1005,3,0))) -> 
E34: =IF(D34="","",(VLOOKUP(D34,'Membership #'!$A$1:$C$1005,2,0))) ->  | F34: =IF(D34="","",(VLOOKUP(D34,'Membership #'!$A$1:$C$1005,3,0))) -> 
E35: =IF(D35="","",(VLOOKUP(D35,'Membership #'!$A$1:$C$1005,2,0))) ->  | F35: =IF(D35="","",(VLOOKUP(D35,'Membership #'!$A$1:$C$1005,3,0))) -> 
E36: =IF(D36="","",(VLOOKUP(D36,'Membership #'!$A$1:$C$1005,2,0))) ->  | F36: =IF(D36="","",(VLOOKUP(D36,'Membership #'!$A$1:$C$1005,3,0))) -> 
E37: =IF(D37="","",(VLOOKUP(D37,'Membership #'!$A$1:$C$1005,2,0))) ->  | F37: =IF(D37="","",(VLOOKUP(D37,'Membership #'!$A$1:$C$1005,3,0))) -> 
E38: =IF(D38="","",(VLOOKUP(D38,'Membership #'!$A$1:$C$1005,2,0))) ->  | F38: =IF(D38="","",(VLOOKUP(D38,'Membership #'!$A$1:$C$1005,3,0))) -> 
E39: =IF(D39="","",(VLOOKUP(D39,'Membership #'!$A$1:$C$1005,2,0))) ->  | F39: =IF(D39="","",(VLOOKUP(D39,'Membership #'!$A$1:$C$1005,3,0))) -> 
E40: =IF(D40="","",(VLOOKUP(D40,'Membership #'!$A$1:$C$1005,2,0))) ->  | F40: =IF(D40="","",(VLOOKUP(D40,'Membership #'!$A$1:$C$1005,3,0))) -> 
E41: =IF(D41="","",(VLOOKUP(D41,'Membership #'!$A$1:$C$1005,2,0))) ->  | F41: =IF(D41="","",(VLOOKUP(D41,'Membership #'!$A$1:$C$1005,3,0))) -> 
E42: =IF(D42="","",(VLOOKUP(D42,'Membership #'!$A$1:$C$1005,2,0))) ->  | F42: =IF(D42="","",(VLOOKUP(D42,'Membership #'!$A$1:$C$1005,3,0))) -> 
E43: =IF(D43="","",(VLOOKUP(D43,'Membership #'!$A$1:$C$1005,2,0))) ->  | F43: =IF(D43="","",(VLOOKUP(D43,'Membership #'!$A$1:$C$1005,3,0))) -> 
E44: =IF(D44="","",(VLOOKUP(D44,'Membership #'!$A$1:$C$1005,2,0))) ->  | F44: =IF(D44="","",(VLOOKUP(D44,'Membership #'!$A$1:$C$1005,3,0))) -> 
E45: =IF(D45="","",(VLOOKUP(D45,'Membership #'!$A$1:$C$1005,2,0))) ->  | F45: =IF(D45="","",(VLOOKUP(D45,'Membership #'!$A$1:$C$1005,3,0))) -> 
E46: =IF(D46="","",(VLOOKUP(D46,'Membership #'!$A$1:$C$1005,2,0))) ->  | F46: =IF(D46="","",(VLOOKUP(D46,'Membership #'!$A$1:$C$1005,3,0))) -> 
E47: =IF(D47="","",(VLOOKUP(D47,'Membership #'!$A$1:$C$1005,2,0))) ->  | F47: =IF(D47="","",(VLOOKUP(D47,'Membership #'!$A$1:$C$1005,3,0))) -> 
E48: =IF(D48="","",(VLOOKUP(D48,'Membership #'!$A$1:$C$1005,2,0))) ->  | F48: =IF(D48="","",(VLOOKUP(D48,'Membership #'!$A$1:$C$1005,3,0))) -> 
E49: =IF(D49="","",(VLOOKUP(D49,'Membership #'!$A$1:$C$1005,2,0))) ->  | F49: =IF(D49="","",(VLOOKUP(D49,'Membership #'!$A$1:$C$1005,3,0))) -> 
E50: =IF(D50="","",(VLOOKUP(D50,'Membership #'!$A$1:$C$1005,2,0))) ->  | F50: =IF(D50="","",(VLOOKUP(D50,'Membership #'!$A$1:$C$1005,3,0))) -> 
E51: =IF(D51="","",(VLOOKUP(D51,'Membership #'!$A$1:$C$1005,2,0))) ->  | F51: =IF(D51="","",(VLOOKUP(D51,'Membership #'!$A$1:$C$1005,3,0))) -> 
E52: =IF(D52="","",(VLOOKUP(D52,'Membership #'!$A$1:$C$1005,2,0))) ->  | F52: =IF(D52="","",(VLOOKUP(D52,'Membership #'!$A$1:$C$1005,3,0))) -> 
E53: =IF(D53="","",(VLOOKUP(D53,'Membership #'!$A$1:$C$1005,2,0))) ->  | F53: =IF(D53="","",(VLOOKUP(D53,'Membership #'!$A$1:$C$1005,3,0))) -> 
E54: =IF(D54="","",(VLOOKUP(D54,'Membership #'!$A$1:$C$1005,2,0))) ->  | F54: =IF(D54="","",(VLOOKUP(D54,'Membership #'!$A$1:$C$1005,3,0))) -> 
E55: =IF(D55="","",(VLOOKUP(D55,'Membership #'!$A$1:$C$1005,2,0))) ->  | F55: =IF(D55="","",(VLOOKUP(D55,'Membership #'!$A$1:$C$1005,3,0))) -> 
E56: =IF(D56="","",(VLOOKUP(D56,'Membership #'!$A$1:$C$1005,2,0))) ->  | F56: =IF(D56="","",(VLOOKUP(D56,'Membership #'!$A$1:$C$1005,3,0))) -> 
E57: =IF(D57="","",(VLOOKUP(D57,'Membership #'!$A$1:$C$1005,2,0))) ->  | F57: =IF(D57="","",(VLOOKUP(D57,'Membership #'!$A$1:$C$1005,3,0))) -> 
E58: =IF(D58="","",(VLOOKUP(D58,'Membership #'!$A$1:$C$1005,2,0))) ->  | F58: =IF(D58="","",(VLOOKUP(D58,'Membership #'!$A$1:$C$1005,3,0))) -> 
E59: =IF(D59="","",(VLOOKUP(D59,'Membership #'!$A$1:$C$1005,2,0))) ->  | F59: =IF(D59="","",(VLOOKUP(D59,'Membership #'!$A$1:$C$1005,3,0))) -> 
E60: =IF(D60="","",(VLOOKUP(D60,'Membership #'!$A$1:$C$1005,2,0))) ->  | F60: =IF(D60="","",(VLOOKUP(D60,'Membership #'!$A$1:$C$1005,3,0))) -> 
E61: =IF(D61="","",(VLOOKUP(D61,'Membership #'!$A$1:$C$1005,2,0))) ->  | F61: =IF(D61="","",(VLOOKUP(D61,'Membership #'!$A$1:$C$1005,3,0))) -> 
E62: =IF(D62="","",(VLOOKUP(D62,'Membership #'!$A$1:$C$1005,2,0))) ->  | F62: =IF(D62="","",(VLOOKUP(D62,'Membership #'!$A$1:$C$1005,3,0))) -> 
E63: =IF(D63="","",(VLOOKUP(D63,'Membership #'!$A$1:$C$1005,2,0))) ->  | F63: =IF(D63="","",(VLOOKUP(D63,'Membership #'!$A$1:$C$1005,3,0))) -> 
E64: =IF(D64="","",(VLOOKUP(D64,'Membership #'!$A$1:$C$1005,2,0))) ->  | F64: =IF(D64="","",(VLOOKUP(D64,'Membership #'!$A$1:$C$1005,3,0))) -> 
E65: =IF(D65="","",(VLOOKUP(D65,'Membership #'!$A$1:$C$1005,2,0))) ->  | F65: =IF(D65="","",(VLOOKUP(D65,'Membership #'!$A$1:$C$1005,3,0))) -> 
E66: =IF(D66="","",(VLOOKUP(D66,'Membership #'!$A$1:$C$1005,2,0))) ->  | F66: =IF(D66="","",(VLOOKUP(D66,'Membership #'!$A$1:$C$1005,3,0))) -> 
E67: =IF(D67="","",(VLOOKUP(D67,'Membership #'!$A$1:$C$1005,2,0))) ->  | F67: =IF(D67="","",(VLOOKUP(D67,'Membership #'!$A$1:$C$1005,3,0))) -> 
E68: =IF(D68="","",(VLOOKUP(D68,'Membership #'!$A$1:$C$1005,2,0))) ->  | F68: =IF(D68="","",(VLOOKUP(D68,'Membership #'!$A$1:$C$1005,3,0))) -> 
E69: =IF(D69="","",(VLOOKUP(D69,'Membership #'!$A$1:$C$1005,2,0))) ->  | F69: =IF(D69="","",(VLOOKUP(D69,'Membership #'!$A$1:$C$1005,3,0))) -> 
E70: =IF(D70="","",(VLOOKUP(D70,'Membership #'!$A$1:$C$1005,2,0))) ->  | F70: =IF(D70="","",(VLOOKUP(D70,'Membership #'!$A$1:$C$1005,3,0))) -> 
E71: =IF(D71="","",(VLOOKUP(D71,'Membership #'!$A$1:$C$1005,2,0))) ->  | F71: =IF(D71="","",(VLOOKUP(D71,'Membership #'!$A$1:$C$1005,3,0))) -> 
A72: =IF(D72<>"",RAND(),"") ->  | B72: =IF(D72<>"",RANK(A72,A$8:A$101),"") ->  | E72: =IF(D72="","",(VLOOKUP(D72,'Membership #'!$A$1:$C$1005,2,0))) ->  | F72: =IF(D72="","",(VLOOKUP(D72,'Membership #'!$A$1:$C$1005,3,0))) -> 
E73: =IF(D73="","",(VLOOKUP(D73,'Membership #'!$A$1:$C$1005,2,0))) ->  | F73: =IF(D73="","",(VLOOKUP(D73,'Membership #'!$A$1:$C$1005,3,0))) ->  | I73: =IF(G73="n","No Time",IF(G73="x","Scratch",IF(G73<>"",SUM(G73+H73),""))) -> 
E74: =IF(D74="","",(VLOOKUP(D74,'Membership #'!$A$1:$C$1005,2,0))) ->  | F74: =IF(D74="","",(VLOOKUP(D74,'Membership #'!$A$1:$C$1005,3,0))) -> 
E75: =IF(D75="","",(VLOOKUP(D75,'Membership #'!$A$1:$C$1005,2,0))) ->  | F75: =IF(D75="","",(VLOOKUP(D75,'Membership #'!$A$1:$C$1005,3,0))) -> 
E76: =IF(D76="","",(VLOOKUP(D76,'Membership #'!$A$1:$C$1005,2,0))) ->  | F76: =IF(D76="","",(VLOOKUP(D76,'Membership #'!$A$1:$C$1005,3,0))) -> 
E77: =IF(D77="","",(VLOOKUP(D77,'Membership #'!$A$1:$C$1005,2,0))) ->  | F77: =IF(D77="","",(VLOOKUP(D77,'Membership #'!$A$1:$C$1005,3,0))) -> 
E78: =IF(D78="","",(VLOOKUP(D78,'Membership #'!$A$1:$C$1005,2,0))) ->  | F78: =IF(D78="","",(VLOOKUP(D78,'Membership #'!$A$1:$C$1005,3,0))) -> 
E79: =IF(D79="","",(VLOOKUP(D79,'Membership #'!$A$1:$C$1005,2,0))) ->  | F79: =IF(D79="","",(VLOOKUP(D79,'Membership #'!$A$1:$C$1005,3,0))) -> 
E80: =IF(D80="","",(VLOOKUP(D80,'Membership #'!$A$1:$C$1005,2,0))) ->  | F80: =IF(D80="","",(VLOOKUP(D80,'Membership #'!$A$1:$C$1005,3,0))) -> 
E81: =IF(D81="","",(VLOOKUP(D81,'Membership #'!$A$1:$C$1005,2,0))) ->  | F81: =IF(D81="","",(VLOOKUP(D81,'Membership #'!$A$1:$C$1005,3,0))) -> 
E82: =IF(D82="","",(VLOOKUP(D82,'Membership #'!$A$1:$C$1005,2,0))) ->  | F82: =IF(D82="","",(VLOOKUP(D82,'Membership #'!$A$1:$C$1005,3,0))) -> 
E83: =IF(D83="","",(VLOOKUP(D83,'Membership #'!$A$1:$C$1005,2,0))) ->  | F83: =IF(D83="","",(VLOOKUP(D83,'Membership #'!$A$1:$C$1005,3,0))) -> 
E84: =IF(D84="","",(VLOOKUP(D84,'Membership #'!$A$1:$C$1005,2,0))) ->  | F84: =IF(D84="","",(VLOOKUP(D84,'Membership #'!$A$1:$C$1005,3,0))) -> 
E85: =IF(D85="","",(VLOOKUP(D85,'Membership #'!$A$1:$C$1005,2,0))) ->  | F85: =IF(D85="","",(VLOOKUP(D85,'Membership #'!$A$1:$C$1005,3,0))) -> 
E86: =IF(D86="","",(VLOOKUP(D86,'Membership #'!$A$1:$C$1005,2,0))) ->  | F86: =IF(D86="","",(VLOOKUP(D86,'Membership #'!$A$1:$C$1005,3,0))) -> 
E87: =IF(D87="","",(VLOOKUP(D87,'Membership #'!$A$1:$C$1005,2,0))) ->  | F87: =IF(D87="","",(VLOOKUP(D87,'Membership #'!$A$1:$C$1005,3,0))) -> 
E88: =IF(D88="","",(VLOOKUP(D88,'Membership #'!$A$1:$C$1005,2,0))) ->  | F88: =IF(D88="","",(VLOOKUP(D88,'Membership #'!$A$1:$C$1005,3,0))) -> 
E89: =IF(D89="","",(VLOOKUP(D89,'Membership #'!$A$1:$C$1005,2,0))) ->  | F89: =IF(D89="","",(VLOOKUP(D89,'Membership #'!$A$1:$C$1005,3,0))) -> 
E90: =IF(D90="","",(VLOOKUP(D90,'Membership #'!$A$1:$C$1005,2,0))) ->  | F90: =IF(D90="","",(VLOOKUP(D90,'Membership #'!$A$1:$C$1005,3,0))) -> 
E91: =IF(D91="","",(VLOOKUP(D91,'Membership #'!$A$1:$C$1005,2,0))) ->  | F91: =IF(D91="","",(VLOOKUP(D91,'Membership #'!$A$1:$C$1005,3,0))) -> 
E92: =IF(D92="","",(VLOOKUP(D92,'Membership #'!$A$1:$C$1005,2,0))) ->  | F92: =IF(D92="","",(VLOOKUP(D92,'Membership #'!$A$1:$C$1005,3,0))) -> 
E93: =IF(D93="","",(VLOOKUP(D93,'Membership #'!$A$1:$C$1005,2,0))) ->  | F93: =IF(D93="","",(VLOOKUP(D93,'Membership #'!$A$1:$C$1005,3,0))) -> 
E94: =IF(D94="","",(VLOOKUP(D94,'Membership #'!$A$1:$C$1005,2,0))) ->  | F94: =IF(D94="","",(VLOOKUP(D94,'Membership #'!$A$1:$C$1005,3,0))) -> 
E95: =IF(D95="","",(VLOOKUP(D95,'Membership #'!$A$1:$C$1005,2,0))) ->  | F95: =IF(D95="","",(VLOOKUP(D95,'Membership #'!$A$1:$C$1005,3,0))) -> 
E96: =IF(D96="","",(VLOOKUP(D96,'Membership #'!$A$1:$C$1005,2,0))) ->  | F96: =IF(D96="","",(VLOOKUP(D96,'Membership #'!$A$1:$C$1005,3,0))) -> 
E97: =IF(D97="","",(VLOOKUP(D97,'Membership #'!$A$1:$C$1005,2,0))) ->  | F97: =IF(D97="","",(VLOOKUP(D97,'Membership #'!$A$1:$C$1005,3,0))) -> 
E98: =IF(D98="","",(VLOOKUP(D98,'Membership #'!$A$1:$C$1005,2,0))) ->  | F98: =IF(D98="","",(VLOOKUP(D98,'Membership #'!$A$1:$C$1005,3,0))) -> 
E99: =IF(D99="","",(VLOOKUP(D99,'Membership #'!$A$1:$C$1005,2,0))) ->  | F99: =IF(D99="","",(VLOOKUP(D99,'Membership #'!$A$1:$C$1005,3,0))) -> 
E100: =IF(D100="","",(VLOOKUP(D100,'Membership #'!$A$1:$C$1005,2,0))) ->  | F100: =IF(D100="","",(VLOOKUP(D100,'Membership #'!$A$1:$C$1005,3,0))) -> 
E101: =IF(D101="","",(VLOOKUP(D101,'Membership #'!$A$1:$C$1005,2,0))) ->  | F101: =IF(D101="","",(VLOOKUP(D101,'Membership #'!$A$1:$C$1005,3,0))) -> 

Sheet YOUTH BARRELS
A1: Tom Burt & Mark McGuire Memorial Jackpot Aug 22, 2021 | M1: x=Scratch
A2: YOUTH BARRELS | M2: n=No Time
A3: # Enteries: | E3: =COUNTIF($D$8:$D$41,">0") -> 16 | R3: Don't Erase these numbers below!!
A4: Rand Draw | B4: Seed | C4: Running Order | D4: RING # | E4: NAME | F4: HORSE NAME | G4: TIME | H4: PENALTY | I4: TOTAL | J4: PLACINGS | K4: POINTS | R4: =IF(N9=2,7,IF(N9=3,6,IF(N9=4,5,IF(N9=5,4,IF(AND(N9>5,N11>600),3,IF(AND(N9>5,N11<600,N11>299.99),2,IF(AND(N9>5,N11<300),1,8))))))) -> 1 | S4: 1 | T4: 2 | U4: 3 | V4: 4 | W4: 5 | X4: 6 | Y4: 7 | Z4: 8
S5: 299 | T5: $300- | U5: $600 -
M6: YOUTH BARRELS | S6: or less | T6: 599 | U6: More | V6: 5 Entries | W6: 4 Entries | X6: 3 Entries | Y6: 2 Entries
R7: 1st | S7: 0.32 | T7: 0.27 | U7: 0.24 | V7: 0.35 | W7: 0.4 | X7: 0.46 | Y7: 0.6
A8: =IF(D8<>"",RAND(),"") -> 0.7931500075 | B8: =IF(D8<>"",RANK(A8,A$8:A$100),"") -> 4 | C8: 1 | D8: 688 | E8: =IF(D8="","",(VLOOKUP(D8,'Membership #'!$A$1:$C$1005,2,0))) -> Lenee Sampson | F8: =IF(D8="","",(VLOOKUP(D8,'Membership #'!$A$1:$C$1005,3,0))) -> Six Dash Run | G8: 15.154 | I8: =IF(G8="n","No Time",IF(G8="x","Scratch",IF(G8<>"",SUM(G8+H8),""))) -> 15.154 | J8: 1 | K8: 10 | M8: Added | N8: 25 | R8: 2nd | S8: 0.23 | T8: 0.22 | U8: 0.19 | V8: 0.25 | W8: 0.28 | X8: 0.34 | Y8: 0.4
A9: 0.5914721725 | B9: 8 | C9: 2 | D9: 638 | E9: =IF(D9="","",(VLOOKUP(D9,'Membership #'!$A$1:$C$1005,2,0))) -> Bella Peters | F9: =IF(D9="","",(VLOOKUP(D9,'Membership #'!$A$1:$C$1005,3,0))) -> Super Star | G9: 15.509 | I9: 15.509 | J9: 2 | K9: 9 | M9: Entries | N9: 15 | P9: 5 | Q9: per head | R9: 3rd | S9: 0.15 | T9: 0.18 | U9: 0.16 | V9: 0.17 | W9: 0.18 | X9: 0.2
A10: 0.07561758903 | B10: 16 | C10: 3 | D10: 815 | E10: =IF(D10="","",(VLOOKUP(D10,'Membership #'!$A$1:$C$1005,2,0))) -> Brooke Kennedy | F10: =IF(D10="","",(VLOOKUP(D10,'Membership #'!$A$1:$C$1005,3,0))) -> Tic Toc Teazer | G10: 15.618 | I10: 15.618 | J10: 3 | K10: 8 | M10: Jackpot | N10: =P9*N9 -> 75 | P10: 0.85 | Q10: payback | R10: 4th | S10: 0.12 | T10: 0.13 | U10: 0.13 | V10: 0.13 | W10: 0.14
A11: 0.3110806223 | B11: 13 | C11: 4 | D11: 652 | E11: =IF(D11="","",(VLOOKUP(D11,'Membership #'!$A$1:$C$1005,2,0))) -> Molly O'Grady | F11: =IF(D11="","",(VLOOKUP(D11,'Membership #'!$A$1:$C$1005,3,0))) -> Teelano's Twister | G11: 16.011 | I11: 16.011 | J11: 4 | K11: 7 | M11: Total Money | N11: =N8+(N10*P10) -> 88.75 | P11: =N10*P10 -> 63.75 | Q11: Jackpot | R11: 5th | S11: 0.1 | T11: 0.09 | U11: 0.08 | V11: 0.1
A12: 0.6878632426 | B12: 7 | C12: 5 | D12: 966 | E12: =IF(D12="","",(VLOOKUP(D12,'Membership #'!$A$1:$C$1005,2,0))) -> Ava Anderson | F12: =IF(D12="","",(VLOOKUP(D12,'Membership #'!$A$1:$C$1005,3,0))) -> Black Sass | G12: 16.316 | I12: 16.316 | J12: 5 | K12: 6 | N12: Percentage | O12: Money | P12: Ring # | R12: 6th | S12: 0.08 | T12: 0.06 | U12: 0.06
A13: 0.5437496145 | B13: 9 | C13: 6 | D13: 867 | E13: =IF(D13="","",(VLOOKUP(D13,'Membership #'!$A$1:$C$1005,2,0))) -> Layla MacEachem | F13: =IF(D13="","",(VLOOKUP(D13,'Membership #'!$A$1:$C$1005,3,0))) -> Shes a gem | G13: 17.521 | I13: 17.521 | J13: 6 | K13: 5 | M13: 1st | N13: 0.32 | O13: =IF(N13<>0,N$11*N13,"") -> 28.4 | Q13: =IF(P13="","",(VLOOKUP(P13,'Membership #'!$A$1:$C$1005,2,0))) ->  | R13: 7th | T13: 0.03 | U13: 0.05
A14: 0.9329009832 | B14: 2 | C14: 7 | D14: 973 | E14: =IF(D14="","",(VLOOKUP(D14,'Membership #'!$A$1:$C$1005,2,0))) -> Sara Ivey | F14: =IF(D14="","",(VLOOKUP(D14,'Membership #'!$A$1:$C$1005,3,0))) -> Ms Heavenly Gator | G14: 18.322 | I14: 18.322 | M14: 2nd | N14: 0.23 | O14: 20.4125 | Q14: =IF(P14="","",(VLOOKUP(P14,'Membership #'!$A$1:$C$1005,2,0))) ->  | R14: 8th | T14: 0.02 | U14: 0.04
A15: 0.7464662404 | B15: 5 | C15: 8 | D15: 636 | E15: =IF(D15="","",(VLOOKUP(D15,'Membership #'!$A$1:$C$1005,2,0))) -> Ceilidh Gosse | F15: =IF(D15="","",(VLOOKUP(D15,'Membership #'!$A$1:$C$1005,3,0))) -> ELM Silver Crime | G15: 18.604 | I15: 18.604 | M15: 3rd | N15: 0.15 | O15: 13.3125 | Q15: =IF(P15="","",(VLOOKUP(P15,'Membership #'!$A$1:$C$1005,2,0))) ->  | R15: 9th | U15: 0.03
A16: 0.7453383256 | B16: 6 | C16: 9 | D16: 918 | E16: =IF(D16="","",(VLOOKUP(D16,'Membership #'!$A$1:$C$1005,2,0))) -> Keira Rose | F16: =IF(D16="","",(VLOOKUP(D16,'Membership #'!$A$1:$C$1005,3,0))) -> LL Its All About Red | G16: 15.442 | H16: 5 | I16: 20.442 | M16: 4th | N16: 0.12 | O16: 10.65 | Q16: =IF(P16="","",(VLOOKUP(P16,'Membership #'!$A$1:$C$1005,2,0))) ->  | R16: 10th | U16: 0.02
A17: 0.3245815509 | B17: 12 | C17: 10 | D17: 961 | E17: =IF(D17="","",(VLOOKUP(D17,'Membership #'!$A$1:$C$1005,2,0))) -> Jacie Burke | F17: =IF(D17="","",(VLOOKUP(D17,'Membership #'!$A$1:$C$1005,3,0))) -> She's Just That Sassy | G17: 16.265 | H17: 5 | I17: 21.265 | M17: 5th | N17: 0.1 | O17: 8.875 | Q17: =IF(P17="","",(VLOOKUP(P17,'Membership #'!$A$1:$C$1005,2,0))) -> 
A18: 0.8821230133 | B18: 3 | C18: 11 | D18: 967 | E18: =IF(D18="","",(VLOOKUP(D18,'Membership #'!$A$1:$C$1005,2,0))) -> Marissa Hillier | F18: =IF(D18="","",(VLOOKUP(D18,'Membership #'!$A$1:$C$1005,3,0))) -> Notice Betty Boop | G18: 21.572 | I18: 21.572 | M18: 6th | N18: 0.08 | O18: 7.1 | Q18: =IF(P18="","",(VLOOKUP(P18,'Membership #'!$A$1:$C$1005,2,0))) -> 
A19: 0.2351602011 | B19: 14 | C19: 12 | D19: 904 | E19: =IF(D19="","",(VLOOKUP(D19,'Membership #'!$A$1:$C$1005,2,0))) -> Ella Cowley | F19: =IF(D19="","",(VLOOKUP(D19,'Membership #'!$A$1:$C$1005,3,0))) -> Blazin Boots | G19: 16.927 | H19: 5 | I19: 21.927 | M19: 7th
A20: 0.3794315793 | B20: 11 | C20: 13 | D20: 753 | E20: =IF(D20="","",(VLOOKUP(D20,'Membership #'!$A$1:$C$1005,2,0))) -> Kayla Boudreau | F20: =IF(D20="","",(VLOOKUP(D20,'Membership #'!$A$1:$C$1005,3,0))) -> Lady Jane | G20: 22.567 | I20: 22.567 | M20: 8th
A21: 0.5393123125 | B21: 10 | C21: 14 | D21: 941 | E21: =IF(D21="","",(VLOOKUP(D21,'Membership #'!$A$1:$C$1005,2,0))) -> Taylor Hurley | F21: =IF(D21="","",(VLOOKUP(D21,'Membership #'!$A$1:$C$1005,3,0))) -> Nacho Business | G21: n | I21: No Time | M21: 9th
A22: 0.9469730546 | B22: 1 | C22: 15 | D22: 954 | E22: =IF(D22="","",(VLOOKUP(D22,'Membership #'!$A$1:$C$1005,2,0))) -> Scotia MacEachern | F22: =IF(D22="","",(VLOOKUP(D22,'Membership #'!$A$1:$C$1005,3,0))) -> Hick-a-Licious | G22: n | I22: No Time | M22: 10th
A23: 0.1803037741 | B23: 15 | D23: 666 | E23: =IF(D23="","",(VLOOKUP(D23,'Membership #'!$A$1:$C$1005,2,0))) -> Summer Fraser | F23: =IF(D23="","",(VLOOKUP(D23,'Membership #'!$A$1:$C$1005,3,0))) -> Sheza Smokin' Girl | G23: x | I23: Scratch | M23: Total Money | O23: =SUM(O13:O22) -> 88.75
E24: =IF(D24="","",(VLOOKUP(D24,'Membership #'!$A$1:$C$1005,2,0))) ->  | F24: =IF(D24="","",(VLOOKUP(D24,'Membership #'!$A$1:$C$1005,3,0))) ->  | I24: =IF(G24="n","No Time",IF(G24="x","Scratch",IF(G24<>"",SUM(G24+H24),""))) -> 
E25: =IF(D25="","",(VLOOKUP(D25,'Membership #'!$A$1:$C$1005,2,0))) ->  | F25: =IF(D25="","",(VLOOKUP(D25,'Membership #'!$A$1:$C$1005,3,0))) -> 
E26: =IF(D26="","",(VLOOKUP(D26,'Membership #'!$A$1:$C$1005,2,0))) ->  | F26: =IF(D26="","",(VLOOKUP(D26,'Membership #'!$A$1:$C$1005,3,0))) -> 
E27: =IF(D27="","",(VLOOKUP(D27,'Membership #'!$A$1:$C$1005,2,0))) ->  | F27: =IF(D27="","",(VLOOKUP(D27,'Membership #'!$A$1:$C$1005,3,0))) ->  | I27: =IF(G27="n","No Time",IF(G27="x","Scratch",IF(G27<>"",SUM(G27+H27),""))) -> 
E28: =IF(D28="","",(VLOOKUP(D28,'Membership #'!$A$1:$C$1005,2,0))) ->  | F28: =IF(D28="","",(VLOOKUP(D28,'Membership #'!$A$1:$C$1005,3,0))) -> 
E29: =IF(D29="","",(VLOOKUP(D29,'Membership #'!$A$1:$C$1005,2,0))) ->  | F29: =IF(D29="","",(VLOOKUP(D29,'Membership #'!$A$1:$C$1005,3,0))) ->  | I29: =IF(G29="n","No Time",IF(G29="x","Scratch",IF(G29<>"",SUM(G29+H29),""))) -> 
E30: =IF(D30="","",(VLOOKUP(D30,'Membership #'!$A$1:$C$1005,2,0))) ->  | F30: =IF(D30="","",(VLOOKUP(D30,'Membership #'!$A$1:$C$1005,3,0))) -> 
E31: =IF(D31="","",(VLOOKUP(D31,'Membership #'!$A$1:$C$1005,2,0))) ->  | F31: =IF(D31="","",(VLOOKUP(D31,'Membership #'!$A$1:$C$1005,3,0))) -> 
E32: =IF(D32="","",(VLOOKUP(D32,'Membership #'!$A$1:$C$1005,2,0))) ->  | F32: =IF(D32="","",(VLOOKUP(D32,'Membership #'!$A$1:$C$1005,3,0))) -> 
E33: =IF(D33="","",(VLOOKUP(D33,'Membership #'!$A$1:$C$1005,2,0))) ->  | F33: =IF(D33="","",(VLOOKUP(D33,'Membership #'!$A$1:$C$1005,3,0))) -> 
A34: =IF(D34<>"",RAND(),"") ->  | E34: =IF(D34="","",(VLOOKUP(D34,'Membership #'!$A$1:$C$1005,2,0))) ->  | F34: =IF(D34="","",(VLOOKUP(D34,'Membership #'!$A$1:$C$1005,3,0))) ->  | I34: =IF(G34="n","No Time",IF(G34="x","Scratch",IF(G34<>"",SUM(G34+H34),""))) -> 
E35: =IF(D35="","",(VLOOKUP(D35,'Membership #'!$A$1:$C$1005,2,0))) ->  | F35: =IF(D35="","",(VLOOKUP(D35,'Membership #'!$A$1:$C$1005,3,0))) -> 
E36: =IF(D36="","",(VLOOKUP(D36,'Membership #'!$A$1:$C$1005,2,0))) ->  | F36: =IF(D36="","",(VLOOKUP(D36,'Membership #'!$A$1:$C$1005,3,0))) -> 
E37: =IF(D37="","",(VLOOKUP(D37,'Membership #'!$A$1:$C$1005,2,0))) ->  | F37: =IF(D37="","",(VLOOKUP(D37,'Membership #'!$A$1:$C$1005,3,0))) -> 
E38: =IF(D38="","",(VLOOKUP(D38,'Membership #'!$A$1:$C$1005,2,0))) ->  | F38: =IF(D38="","",(VLOOKUP(D38,'Membership #'!$A$1:$C$1005,3,0))) -> 
E39: =IF(D39="","",(VLOOKUP(D39,'Membership #'!$A$1:$C$1005,2,0))) ->  | F39: =IF(D39="","",(VLOOKUP(D39,'Membership #'!$A$1:$C$1005,3,0))) -> 
E40: =IF(D40="","",(VLOOKUP(D40,'Membership #'!$A$1:$C$1005,2,0))) ->  | F40: =IF(D40="","",(VLOOKUP(D40,'Membership #'!$A$1:$C$1005,3,0))) -> 
E41: =IF(D41="","",(VLOOKUP(D41,'Membership #'!$A$1:$C$1005,2,0))) ->  | F41: =IF(D41="","",(VLOOKUP(D41,'Membership #'!$A$1:$C$1005,3,0))) -> 
E42: =IF(D42="","",(VLOOKUP(D42,'Membership #'!$A$1:$C$1005,2,0))) ->  | F42: =IF(D42="","",(VLOOKUP(D42,'Membership #'!$A$1:$C$1005,3,0))) -> 

Sheet YOUTH POLES
A1: Tom Burt & Mark McGuire Memorial Jackpot Aug 22, 2021 | M1: x=Scratch
A2: YOUTH POLES | M2: n=No Time
A3: # Enteries: | E3: =COUNTIF($D$8:$D$99,">0") -> 15 | R3: Don't Erase these numbers below!!
A4: Rand Draw | B4: Seed | C4: Running Order | D4: RING # | E4: NAME | F4: HORSE NAME | G4: TIME | H4: PENALTY | I4: TOTAL | J4: PLACINGS | K4: POINTS | R4: =IF(N9=2,7,IF(N9=3,6,IF(N9=4,5,IF(N9=5,4,IF(AND(N9>5,N11>600),3,IF(AND(N9>5,N11<600,N11>299.99),2,IF(AND(N9>5,N11<300),1,8))))))) -> 1 | S4: 1 | T4: 2 | U4: 3 | V4: 4 | W4: 5 | X4: 6 | Y4: 7 | Z4: 8
S5: 299 | T5: $300- | U5: $600 -
M6: YOUTH POLES | S6: or less | T6: 599 | U6: More | V6: 5 Entries | W6: 4 Entries | X6: 3 Entries | Y6: 2 Entries
R7: 1st | S7: 0.32 | T7: 0.27 | U7: 0.24 | V7: 0.35 | W7: 0.4 | X7: 0.46 | Y7: 0.6
A8: =IF(D8<>"",RAND(),"") -> 0.08782899329 | B8: =IF(D8<>"",RANK(A8,A$8:A$100),"") -> 12 | C8: 1 | D8: 815 | E8: =IF(D8="","",(VLOOKUP(D8,'Membership #'!$A$1:$C$1005,2,0))) -> Brooke Kennedy | F8: =IF(D8="","",(VLOOKUP(D8,'Membership #'!$A$1:$C$1005,3,0))) -> Tic Toc Teazer | G8: 23.058 | I8: =IF(G8="n","No Time",IF(G8="x","Scratch",IF(G8<>"",SUM(G8+H8),""))) -> 23.058 | M8: Added | N8: 25 | R8: 2nd | S8: 0.23 | T8: 0.22 | U8: 0.19 | V8: 0.25 | W8: 0.28 | X8: 0.34 | Y8: 0.4
A9: =IF(D9<>"",RAND(),"") -> 0.20750543 | B9: =IF(D9<>"",RANK(A9,A$8:A$100),"") -> 10 | C9: 2 | D9: 867 | E9: =IF(D9="","",(VLOOKUP(D9,'Membership #'!$A$1:$C$1005,2,0))) -> Layla MacEachem | F9: =IF(D9="","",(VLOOKUP(D9,'Membership #'!$A$1:$C$1005,3,0))) -> Shes a gem | G9: 25.587 | I9: 25.587 | M9: Entries | N9: 15 | P9: 5 | Q9: per head | R9: 3rd | S9: 0.15 | T9: 0.18 | U9: 0.16 | V9: 0.17 | W9: 0.18 | X9: 0.2
A10: 0.07974331395 | B10: 13 | C10: 3 | D10: 638 | E10: =IF(D10="","",(VLOOKUP(D10,'Membership #'!$A$1:$C$1005,2,0))) -> Bella Peters | F10: =IF(D10="","",(VLOOKUP(D10,'Membership #'!$A$1:$C$1005,3,0))) -> Super Star | G10: 21.124 | H10: 5 | I10: 26.124 | M10: Jackpot | N10: =P9*N9 -> 75 | P10: 0.85 | Q10: payback | R10: 4th | S10: 0.12 | T10: 0.13 | U10: 0.13 | V10: 0.13 | W10: 0.14
A11: 0.7419319575 | B11: 1 | C11: 4 | D11: 954 | E11: =IF(D11="","",(VLOOKUP(D11,'Membership #'!$A$1:$C$1005,2,0))) -> Scotia MacEachern | F11: =IF(D11="","",(VLOOKUP(D11,'Membership #'!$A$1:$C$1005,3,0))) -> Hick-a-Licious | G11: 26.995 | I11: 26.995 | M11: Total Money | N11: =N8+(N10*P10) -> 88.75 | P11: =N10*P10 -> 63.75 | Q11: Jackpot | R11: 5th | S11: 0.1 | T11: 0.09 | U11: 0.08 | V11: 0.1
A12: 0.7390245298 | B12: 2 | C12: 5 | D12: 636 | E12: =IF(D12="","",(VLOOKUP(D12,'Membership #'!$A$1:$C$1005,2,0))) -> Ceilidh Gosse | F12: =IF(D12="","",(VLOOKUP(D12,'Membership #'!$A$1:$C$1005,3,0))) -> ELM Silver Crime | G12: 27.051 | I12: 27.051 | N12: Percentage | O12: Money | P12: Ring # | R12: 6th | S12: 0.08 | T12: 0.06 | U12: 0.06
A13: 0.6190780656 | B13: 4 | C13: 6 | D13: 973 | E13: =IF(D13="","",(VLOOKUP(D13,'Membership #'!$A$1:$C$1005,2,0))) -> Sara Ivey | F13: =IF(D13="","",(VLOOKUP(D13,'Membership #'!$A$1:$C$1005,3,0))) -> Ms Heavenly Gator | G13: 28.682 | I13: 28.682 | M13: 1st | N13: 0.32 | O13: =IF(N13<>0,N$11*N13,"") -> 28.4 | Q13: =IF(P13="","",(VLOOKUP(P13,'Membership #'!$A$1:$C$1005,2,0))) ->  | R13: 7th | T13: 0.03 | U13: 0.05
A14: 0.07605892376 | B14: 14 | C14: 7 | D14: 967 | E14: =IF(D14="","",(VLOOKUP(D14,'Membership #'!$A$1:$C$1005,2,0))) -> Marissa Hillier | F14: =IF(D14="","",(VLOOKUP(D14,'Membership #'!$A$1:$C$1005,3,0))) -> Notice Betty Boop | G14: 33.532 | I14: 33.532 | M14: 2nd | N14: 0.23 | O14: 20.4125 | Q14: =IF(P14="","",(VLOOKUP(P14,'Membership #'!$A$1:$C$1005,2,0))) ->  | R14: 8th | T14: 0.02 | U14: 0.04
A15: 0.4206649795 | B15: 8 | C15: 8 | D15: 652 | E15: =IF(D15="","",(VLOOKUP(D15,'Membership #'!$A$1:$C$1005,2,0))) -> Molly O'Grady | F15: =IF(D15="","",(VLOOKUP(D15,'Membership #'!$A$1:$C$1005,3,0))) -> Teelano's Twister | G15: 32.345 | H15: 5 | I15: 37.345 | M15: 3rd | N15: 0.15 | O15: 13.3125 | Q15: =IF(P15="","",(VLOOKUP(P15,'Membership #'!$A$1:$C$1005,2,0))) ->  | R15: 9th | U15: 0.03
A16: 0.5063357926 | B16: 7 | C16: 9 | D16: 966 | E16: =IF(D16="","",(VLOOKUP(D16,'Membership #'!$A$1:$C$1005,2,0))) -> Ava Anderson | F16: =IF(D16="","",(VLOOKUP(D16,'Membership #'!$A$1:$C$1005,3,0))) -> Black Sass | G16: 48.274 | H16: 20 | I16: 68.274 | M16: 4th | N16: 0.12 | O16: 10.65 | Q16: =IF(P16="","",(VLOOKUP(P16,'Membership #'!$A$1:$C$1005,2,0))) ->  | R16: 10th | U16: 0.02
A17: 0.6131939485 | B17: 5 | C17: 10 | D17: 941 | E17: =IF(D17="","",(VLOOKUP(D17,'Membership #'!$A$1:$C$1005,2,0))) -> Taylor Hurley | F17: =IF(D17="","",(VLOOKUP(D17,'Membership #'!$A$1:$C$1005,3,0))) -> Nacho Business | G17: n | I17: No Time | M17: 5th | N17: 0.1 | O17: 8.875 | Q17: =IF(P17="","",(VLOOKUP(P17,'Membership #'!$A$1:$C$1005,2,0))) -> 
A18: 0.6532221364 | B18: 3 | C18: 11 | D18: 904 | E18: =IF(D18="","",(VLOOKUP(D18,'Membership #'!$A$1:$C$1005,2,0))) -> Ella Cowley | F18: =IF(D18="","",(VLOOKUP(D18,'Membership #'!$A$1:$C$1005,3,0))) -> Blazin Boots | G18: n | I18: No Time | M18: 6th | N18: 0.08 | O18: 7.1 | Q18: =IF(P18="","",(VLOOKUP(P18,'Membership #'!$A$1:$C$1005,2,0))) -> 
A19: 0.5618543144 | B19: 6 | C19: 12 | D19: 666 | E19: =IF(D19="","",(VLOOKUP(D19,'Membership #'!$A$1:$C$1005,2,0))) -> Summer Fraser | F19: =IF(D19="","",(VLOOKUP(D19,'Membership #'!$A$1:$C$1005,3,0))) -> Sheza Smokin' Girl | G19: x | I19: Scratch | M19: 7th | N19: =HLOOKUP($R$4,$S$4:$Z$17,10,0) -> 0
A20: 0.2453831765 | B20: 9 | C20: 13 | D20: 961 | E20: =IF(D20="","",(VLOOKUP(D20,'Membership #'!$A$1:$C$1005,2,0))) -> Jacie Burke | F20: =IF(D20="","",(VLOOKUP(D20,'Membership #'!$A$1:$C$1005,3,0))) -> She's Just That Sassy | G20: x | I20: Scratch | M20: 8th | N20: =HLOOKUP($R$4,$S$4:$Z$17,11,0) -> 0
A21: 0.02378180544 | B21: 15 | C21: 14 | D21: 918 | E21: =IF(D21="","",(VLOOKUP(D21,'Membership #'!$A$1:$C$1005,2,0))) -> Keira Rose | F21: =IF(D21="","",(VLOOKUP(D21,'Membership #'!$A$1:$C$1005,3,0))) -> LL Its All About Red | G21: x | I21: Scratch | M21: 9th | N21: =HLOOKUP($R$4,$S$4:$Z$17,12,0) -> 0
A22: 0.1419902592 | B22: 11 | C22: 15 | D22: 532 | E22: =IF(D22="","",(VLOOKUP(D22,'Membership #'!$A$1:$C$1005,2,0))) -> Gracie MacLean | F22: =IF(D22="","",(VLOOKUP(D22,'Membership #'!$A$1:$C$1005,3,0))) -> Secret | G22: x | I22: Scratch | M22: 10th | N22: =HLOOKUP($R$4,$S$4:$Z$17,13,0) -> 0
E23: =IF(D23="","",(VLOOKUP(D23,'Membership #'!$A$1:$C$1005,2,0))) ->  | F23: =IF(D23="","",(VLOOKUP(D23,'Membership #'!$A$1:$C$1005,3,0))) ->  | I23: =IF(G23="n","No Time",IF(G23="x","Scratch",IF(G23<>"",SUM(G23+H23),""))) ->  | M23: Total Money | O23: =SUM(O13:O22) -> 88.75
E24: =IF(D24="","",(VLOOKUP(D24,'Membership #'!$A$1:$C$1005,2,0))) ->  | F24: =IF(D24="","",(VLOOKUP(D24,'Membership #'!$A$1:$C$1005,3,0))) -> 
E25: =IF(D25="","",(VLOOKUP(D25,'Membership #'!$A$1:$C$1005,2,0))) ->  | F25: =IF(D25="","",(VLOOKUP(D25,'Membership #'!$A$1:$C$1005,3,0))) -> 
E26: =IF(D26="","",(VLOOKUP(D26,'Membership #'!$A$1:$C$1005,2,0))) ->  | F26: =IF(D26="","",(VLOOKUP(D26,'Membership #'!$A$1:$C$1005,3,0))) -> 
E27: =IF(D27="","",(VLOOKUP(D27,'Membership #'!$A$1:$C$1005,2,0))) ->  | F27: =IF(D27="","",(VLOOKUP(D27,'Membership #'!$A$1:$C$1005,3,0))) -> 
E28: =IF(D28="","",(VLOOKUP(D28,'Membership #'!$A$1:$C$1005,2,0))) ->  | F28: =IF(D28="","",(VLOOKUP(D28,'Membership #'!$A$1:$C$1005,3,0))) ->  | I28: =IF(G28="n","No Time",IF(G28="x","Scratch",IF(G28<>"",SUM(G28+H28),""))) -> 
E29: =IF(D29="","",(VLOOKUP(D29,'Membership #'!$A$1:$C$1005,2,0))) ->  | F29: =IF(D29="","",(VLOOKUP(D29,'Membership #'!$A$1:$C$1005,3,0))) -> 
E30: =IF(D30="","",(VLOOKUP(D30,'Membership #'!$A$1:$C$1005,2,0))) ->  | F30: =IF(D30="","",(VLOOKUP(D30,'Membership #'!$A$1:$C$1005,3,0))) -> 
E31: =IF(D31="","",(VLOOKUP(D31,'Membership #'!$A$1:$C$1005,2,0))) ->  | F31: =IF(D31="","",(VLOOKUP(D31,'Membership #'!$A$1:$C$1005,3,0))) ->  | I31: =IF(G31="n","No Time",IF(G31="x","Scratch",IF(G31<>"",SUM(G31+H31),""))) -> 
E32: =IF(D32="","",(VLOOKUP(D32,'Membership #'!$A$1:$C$1005,2,0))) ->  | F32: =IF(D32="","",(VLOOKUP(D32,'Membership #'!$A$1:$C$1005,3,0))) -> 
E33: =IF(D33="","",(VLOOKUP(D33,'Membership #'!$A$1:$C$1005,2,0))) ->  | F33: =IF(D33="","",(VLOOKUP(D33,'Membership #'!$A$1:$C$1005,3,0))) -> 
E34: =IF(D34="","",(VLOOKUP(D34,'Membership #'!$A$1:$C$1005,2,0))) ->  | F34: =IF(D34="","",(VLOOKUP(D34,'Membership #'!$A$1:$C$1005,3,0))) -> 
E35: =IF(D35="","",(VLOOKUP(D35,'Membership #'!$A$1:$C$1005,2,0))) ->  | F35: =IF(D35="","",(VLOOKUP(D35,'Membership #'!$A$1:$C$1005,3,0))) -> 
E36: =IF(D36="","",(VLOOKUP(D36,'Membership #'!$A$1:$C$1005,2,0))) ->  | F36: =IF(D36="","",(VLOOKUP(D36,'Membership #'!$A$1:$C$1005,3,0))) ->  | I36: =IF(G36="n","No Time",IF(G36="x","Scratch",IF(G36<>"",SUM(G36+H36),""))) -> 
E37: =IF(D37="","",(VLOOKUP(D37,'Membership #'!$A$1:$C$1005,2,0))) ->  | F37: =IF(D37="","",(VLOOKUP(D37,'Membership #'!$A$1:$C$1005,3,0))) -> 
E38: =IF(D38="","",(VLOOKUP(D38,'Membership #'!$A$1:$C$1005,2,0))) ->  | F38: =IF(D38="","",(VLOOKUP(D38,'Membership #'!$A$1:$C$1005,3,0))) -> 
E39: =IF(D39="","",(VLOOKUP(D39,'Membership #'!$A$1:$C$1005,2,0))) ->  | F39: =IF(D39="","",(VLOOKUP(D39,'Membership #'!$A$1:$C$1005,3,0))) -> 
E40: =IF(D40="","",(VLOOKUP(D40,'Membership #'!$A$1:$C$1005,2,0))) ->  | F40: =IF(D40="","",(VLOOKUP(D40,'Membership #'!$A$1:$C$1005,3,0))) -> 
E41: =IF(D41="","",(VLOOKUP(D41,'Membership #'!$A$1:$C$1005,2,0))) ->  | F41: =IF(D41="","",(VLOOKUP(D41,'Membership #'!$A$1:$C$1005,3,0))) -> 
E42: =IF(D42="","",(VLOOKUP(D42,'Membership #'!$A$1:$C$1005,2,0))) ->  | F42: =IF(D42="","",(VLOOKUP(D42,'Membership #'!$A$1:$C$1005,3,0))) -> 
E43: =IF(D43="","",(VLOOKUP(D43,'Membership #'!$A$1:$C$1005,2,0))) ->  | F43: =IF(D43="","",(VLOOKUP(D43,'Membership #'!$A$1:$C$1005,3,0))) -> 
E44: =IF(D44="","",(VLOOKUP(D44,'Membership #'!$A$1:$C$1005,2,0))) ->  | F44: =IF(D44="","",(VLOOKUP(D44,'Membership #'!$A$1:$C$1005,3,0))) -> 
E45: =IF(D45="","",(VLOOKUP(D45,'Membership #'!$A$1:$C$1005,2,0))) ->  | F45: =IF(D45="","",(VLOOKUP(D45,'Membership #'!$A$1:$C$1005,3,0))) -> 
E46: =IF(D46="","",(VLOOKUP(D46,'Membership #'!$A$1:$C$1005,2,0))) ->  | F46: =IF(D46="","",(VLOOKUP(D46,'Membership #'!$A$1:$C$1005,3,0))) -> 
E47: =IF(D47="","",(VLOOKUP(D47,'Membership #'!$A$1:$C$1005,2,0))) ->  | F47: =IF(D47="","",(VLOOKUP(D47,'Membership #'!$A$1:$C$1005,3,0))) -> 
E48: =IF(D48="","",(VLOOKUP(D48,'Membership #'!$A$1:$C$1005,2,0))) ->  | F48: =IF(D48="","",(VLOOKUP(D48,'Membership #'!$A$1:$C$1005,3,0))) -> 
E49: =IF(D49="","",(VLOOKUP(D49,'Membership #'!$A$1:$C$1005,2,0))) ->  | F49: =IF(D49="","",(VLOOKUP(D49,'Membership #'!$A$1:$C$1005,3,0))) -> 
E50: =IF(D50="","",(VLOOKUP(D50,'Membership #'!$A$1:$C$1005,2,0))) ->  | F50: =IF(D50="","",(VLOOKUP(D50,'Membership #'!$A$1:$C$1005,3,0))) -> 
E51: =IF(D51="","",(VLOOKUP(D51,'Membership #'!$A$1:$C$1005,2,0))) ->  | F51: =IF(D51="","",(VLOOKUP(D51,'Membership #'!$A$1:$C$1005,3,0))) -> 
E52: =IF(D52="","",(VLOOKUP(D52,'Membership #'!$A$1:$C$1005,2,0))) ->  | F52: =IF(D52="","",(VLOOKUP(D52,'Membership #'!$A$1:$C$1005,3,0))) -> 
E53: =IF(D53="","",(VLOOKUP(D53,'Membership #'!$A$1:$C$1005,2,0))) ->  | F53: =IF(D53="","",(VLOOKUP(D53,'Membership #'!$A$1:$C$1005,3,0))) -> 
E54: =IF(D54="","",(VLOOKUP(D54,'Membership #'!$A$1:$C$1005,2,0))) ->  | F54: =IF(D54="","",(VLOOKUP(D54,'Membership #'!$A$1:$C$1005,3,0))) -> 
E55: =IF(D55="","",(VLOOKUP(D55,'Membership #'!$A$1:$C$1005,2,0))) ->  | F55: =IF(D55="","",(VLOOKUP(D55,'Membership #'!$A$1:$C$1005,3,0))) -> 
E56: =IF(D56="","",(VLOOKUP(D56,'Membership #'!$A$1:$C$1005,2,0))) ->  | F56: =IF(D56="","",(VLOOKUP(D56,'Membership #'!$A$1:$C$1005,3,0))) -> 
E57: =IF(D57="","",(VLOOKUP(D57,'Membership #'!$A$1:$C$1005,2,0))) ->  | F57: =IF(D57="","",(VLOOKUP(D57,'Membership #'!$A$1:$C$1005,3,0))) -> 
E58: =IF(D58="","",(VLOOKUP(D58,'Membership #'!$A$1:$C$1005,2,0))) ->  | F58: =IF(D58="","",(VLOOKUP(D58,'Membership #'!$A$1:$C$1005,3,0))) -> 
E59: =IF(D59="","",(VLOOKUP(D59,'Membership #'!$A$1:$C$1005,2,0))) ->  | F59: =IF(D59="","",(VLOOKUP(D59,'Membership #'!$A$1:$C$1005,3,0))) -> 
E60: =IF(D60="","",(VLOOKUP(D60,'Membership #'!$A$1:$C$1005,2,0))) ->  | F60: =IF(D60="","",(VLOOKUP(D60,'Membership #'!$A$1:$C$1005,3,0))) -> 
E61: =IF(D61="","",(VLOOKUP(D61,'Membership #'!$A$1:$C$1005,2,0))) ->  | F61: =IF(D61="","",(VLOOKUP(D61,'Membership #'!$A$1:$C$1005,3,0))) -> 
E62: =IF(D62="","",(VLOOKUP(D62,'Membership #'!$A$1:$C$1005,2,0))) ->  | F62: =IF(D62="","",(VLOOKUP(D62,'Membership #'!$A$1:$C$1005,3,0))) -> 
E63: =IF(D63="","",(VLOOKUP(D63,'Membership #'!$A$1:$C$1005,2,0))) ->  | F63: =IF(D63="","",(VLOOKUP(D63,'Membership #'!$A$1:$C$1005,3,0))) -> 
E64: =IF(D64="","",(VLOOKUP(D64,'Membership #'!$A$1:$C$1005,2,0))) ->  | F64: =IF(D64="","",(VLOOKUP(D64,'Membership #'!$A$1:$C$1005,3,0))) -> 
E65: =IF(D65="","",(VLOOKUP(D65,'Membership #'!$A$1:$C$1005,2,0))) ->  | F65: =IF(D65="","",(VLOOKUP(D65,'Membership #'!$A$1:$C$1005,3,0))) -> 
E66: =IF(D66="","",(VLOOKUP(D66,'Membership #'!$A$1:$C$1005,2,0))) ->  | F66: =IF(D66="","",(VLOOKUP(D66,'Membership #'!$A$1:$C$1005,3,0))) -> 
E67: =IF(D67="","",(VLOOKUP(D67,'Membership #'!$A$1:$C$1005,2,0))) ->  | F67: =IF(D67="","",(VLOOKUP(D67,'Membership #'!$A$1:$C$1005,3,0))) -> 
E68: =IF(D68="","",(VLOOKUP(D68,'Membership #'!$A$1:$C$1005,2,0))) ->  | F68: =IF(D68="","",(VLOOKUP(D68,'Membership #'!$A$1:$C$1005,3,0))) -> 
E69: =IF(D69="","",(VLOOKUP(D69,'Membership #'!$A$1:$C$1005,2,0))) ->  | F69: =IF(D69="","",(VLOOKUP(D69,'Membership #'!$A$1:$C$1005,3,0))) -> 
E70: =IF(D70="","",(VLOOKUP(D70,'Membership #'!$A$1:$C$1005,2,0))) ->  | F70: =IF(D70="","",(VLOOKUP(D70,'Membership #'!$A$1:$C$1005,3,0))) -> 
E71: =IF(D71="","",(VLOOKUP(D71,'Membership #'!$A$1:$C$1005,2,0))) ->  | F71: =IF(D71="","",(VLOOKUP(D71,'Membership #'!$A$1:$C$1005,3,0))) -> 
E72: =IF(D72="","",(VLOOKUP(D72,'Membership #'!$A$1:$C$1005,2,0))) ->  | F72: =IF(D72="","",(VLOOKUP(D72,'Membership #'!$A$1:$C$1005,3,0))) ->  | I72: =IF(G72="n","No Time",IF(G72="x","Scratch",IF(G72<>"",SUM(G72+H72),""))) -> 
A73: =IF(D73<>"",RAND(),"") ->  | B73: =IF(D73<>"",RANK(A73,A$8:A$100),"") ->  | E73: =IF(D73="","",(VLOOKUP(D73,'Membership #'!$A$1:$C$1005,2,0))) ->  | F73: =IF(D73="","",(VLOOKUP(D73,'Membership #'!$A$1:$C$1005,3,0))) -> 
E74: =IF(D74="","",(VLOOKUP(D74,'Membership #'!$A$1:$C$1005,2,0))) ->  | F74: =IF(D74="","",(VLOOKUP(D74,'Membership #'!$A$1:$C$1005,3,0))) -> 
E75: =IF(D75="","",(VLOOKUP(D75,'Membership #'!$A$1:$C$1005,2,0))) ->  | F75: =IF(D75="","",(VLOOKUP(D75,'Membership #'!$A$1:$C$1005,3,0))) -> 
E76: =IF(D76="","",(VLOOKUP(D76,'Membership #'!$A$1:$C$1005,2,0))) ->  | F76: =IF(D76="","",(VLOOKUP(D76,'Membership #'!$A$1:$C$1005,3,0))) -> 
E77: =IF(D77="","",(VLOOKUP(D77,'Membership #'!$A$1:$C$1005,2,0))) ->  | F77: =IF(D77="","",(VLOOKUP(D77,'Membership #'!$A$1:$C$1005,3,0))) -> 
E78: =IF(D78="","",(VLOOKUP(D78,'Membership #'!$A$1:$C$1005,2,0))) ->  | F78: =IF(D78="","",(VLOOKUP(D78,'Membership #'!$A$1:$C$1005,3,0))) -> 
E79: =IF(D79="","",(VLOOKUP(D79,'Membership #'!$A$1:$C$1005,2,0))) ->  | F79: =IF(D79="","",(VLOOKUP(D79,'Membership #'!$A$1:$C$1005,3,0))) -> 
E80: =IF(D80="","",(VLOOKUP(D80,'Membership #'!$A$1:$C$1005,2,0))) ->  | F80: =IF(D80="","",(VLOOKUP(D80,'Membership #'!$A$1:$C$1005,3,0))) -> 
E81: =IF(D81="","",(VLOOKUP(D81,'Membership #'!$A$1:$C$1005,2,0))) ->  | F81: =IF(D81="","",(VLOOKUP(D81,'Membership #'!$A$1:$C$1005,3,0))) -> 
E82: =IF(D82="","",(VLOOKUP(D82,'Membership #'!$A$1:$C$1005,2,0))) ->  | F82: =IF(D82="","",(VLOOKUP(D82,'Membership #'!$A$1:$C$1005,3,0))) -> 
E83: =IF(D83="","",(VLOOKUP(D83,'Membership #'!$A$1:$C$1005,2,0))) ->  | F83: =IF(D83="","",(VLOOKUP(D83,'Membership #'!$A$1:$C$1005,3,0))) -> 
E84: =IF(D84="","",(VLOOKUP(D84,'Membership #'!$A$1:$C$1005,2,0))) ->  | F84: =IF(D84="","",(VLOOKUP(D84,'Membership #'!$A$1:$C$1005,3,0))) -> 
E85: =IF(D85="","",(VLOOKUP(D85,'Membership #'!$A$1:$C$1005,2,0))) ->  | F85: =IF(D85="","",(VLOOKUP(D85,'Membership #'!$A$1:$C$1005,3,0))) -> 
E86: =IF(D86="","",(VLOOKUP(D86,'Membership #'!$A$1:$C$1005,2,0))) ->  | F86: =IF(D86="","",(VLOOKUP(D86,'Membership #'!$A$1:$C$1005,3,0))) -> 
E87: =IF(D87="","",(VLOOKUP(D87,'Membership #'!$A$1:$C$1005,2,0))) ->  | F87: =IF(D87="","",(VLOOKUP(D87,'Membership #'!$A$1:$C$1005,3,0))) -> 
E88: =IF(D88="","",(VLOOKUP(D88,'Membership #'!$A$1:$C$1005,2,0))) ->  | F88: =IF(D88="","",(VLOOKUP(D88,'Membership #'!$A$1:$C$1005,3,0))) -> 
E89: =IF(D89="","",(VLOOKUP(D89,'Membership #'!$A$1:$C$1005,2,0))) ->  | F89: =IF(D89="","",(VLOOKUP(D89,'Membership #'!$A$1:$C$1005,3,0))) -> 
E90: =IF(D90="","",(VLOOKUP(D90,'Membership #'!$A$1:$C$1005,2,0))) ->  | F90: =IF(D90="","",(VLOOKUP(D90,'Membership #'!$A$1:$C$1005,3,0))) -> 
E91: =IF(D91="","",(VLOOKUP(D91,'Membership #'!$A$1:$C$1005,2,0))) ->  | F91: =IF(D91="","",(VLOOKUP(D91,'Membership #'!$A$1:$C$1005,3,0))) -> 
E92: =IF(D92="","",(VLOOKUP(D92,'Membership #'!$A$1:$C$1005,2,0))) ->  | F92: =IF(D92="","",(VLOOKUP(D92,'Membership #'!$A$1:$C$1005,3,0))) -> 
E93: =IF(D93="","",(VLOOKUP(D93,'Membership #'!$A$1:$C$1005,2,0))) ->  | F93: =IF(D93="","",(VLOOKUP(D93,'Membership #'!$A$1:$C$1005,3,0))) -> 
E94: =IF(D94="","",(VLOOKUP(D94,'Membership #'!$A$1:$C$1005,2,0))) ->  | F94: =IF(D94="","",(VLOOKUP(D94,'Membership #'!$A$1:$C$1005,3,0))) -> 
E95: =IF(D95="","",(VLOOKUP(D95,'Membership #'!$A$1:$C$1005,2,0))) ->  | F95: =IF(D95="","",(VLOOKUP(D95,'Membership #'!$A$1:$C$1005,3,0))) -> 
E96: =IF(D96="","",(VLOOKUP(D96,'Membership #'!$A$1:$C$1005,2,0))) ->  | F96: =IF(D96="","",(VLOOKUP(D96,'Membership #'!$A$1:$C$1005,3,0))) -> 
E97: =IF(D97="","",(VLOOKUP(D97,'Membership #'!$A$1:$C$1005,2,0))) ->  | F97: =IF(D97="","",(VLOOKUP(D97,'Membership #'!$A$1:$C$1005,3,0))) -> 
E98: =IF(D98="","",(VLOOKUP(D98,'Membership #'!$A$1:$C$1005,2,0))) ->  | F98: =IF(D98="","",(VLOOKUP(D98,'Membership #'!$A$1:$C$1005,3,0))) -> 
E99: =IF(D99="","",(VLOOKUP(D99,'Membership #'!$A$1:$C$1005,2,0))) ->  | F99: =IF(D99="","",(VLOOKUP(D99,'Membership #'!$A$1:$C$1005,3,0))) -> 
E100: =IF(D100="","",(VLOOKUP(D100,'Membership #'!$A$1:$C$1005,2,0))) ->  | F100: =IF(D100="","",(VLOOKUP(D100,'Membership #'!$A$1:$C$1005,3,0))) -> 

Sheet NOVICE BARRELS
A1: Tom Burt & Mark McGuire Memorial Jackpot Aug 22, 2021 | M1: x=Scratch
A2: NOVICE BARRELS | M2: n=No Time
A3: # Enteries: | E3: =COUNTIF($D$8:$D$99,">0") -> 26 | R3: Don't Erase these numbers below!!
A4: Rand Draw | B4: Seed | C4: Running Order | D4: RING # | E4: NAME | F4: HORSE NAME | G4: TIME | H4: PENALTY | I4: TOTAL | J4: PLACINGS | K4: POINTS | R4: =IF(N9=2,7,IF(N9=3,6,IF(N9=4,5,IF(N9=5,4,IF(AND(N9>5,N11>600),3,IF(AND(N9>5,N11<600,N11>299.99),2,IF(AND(N9>5,N11<300),1,8))))))) -> 1 | S4: 1 | T4: 2 | U4: 3 | V4: 4 | W4: 5 | X4: 6 | Y4: 7 | Z4: 8
S5: 299 | T5: $300- | U5: $600 -
M6: NOVICE BARRELS | S6: or less | T6: 599 | U6: More | V6: 5 Entries | W6: 4 Entries | X6: 3 Entries | Y6: 2 Entries
R7: 1st | S7: 0.32 | T7: 0.27 | U7: 0.24 | V7: 0.35 | W7: 0.4 | X7: 0.46 | Y7: 0.6
A8: =IF(D8<>"",RAND(),"") -> 0.992857524 | B8: =IF(D8<>"",RANK(A8,A$8:A$100),"") -> 1 | C8: 1 | D8: 918 | E8: =IF(D8="","",(VLOOKUP(D8,'Membership #'!$A$1:$C$1005,2,0))) -> Keira Rose | F8: =IF(D8="","",(VLOOKUP(D8,'Membership #'!$A$1:$C$1005,3,0))) -> LL Its All About Red | G8: 15.471 | I8: =IF(G8="n","No Time",IF(G8="x","Scratch",IF(G8<>"",SUM(G8+H8),""))) -> 15.471 | M8: Added | N8: 75 | R8: 2nd | S8: 0.23 | T8: 0.22 | U8: 0.19 | V8: 0.25 | W8: 0.28 | X8: 0.34 | Y8: 0.4
A9: =IF(D9<>"",RAND(),"") -> 0.9540993243 | B9: 3 | C9: 2 | D9: 652 | E9: =IF(D9="","",(VLOOKUP(D9,'Membership #'!$A$1:$C$1005,2,0))) -> Molly O'Grady | F9: =IF(D9="","",(VLOOKUP(D9,'Membership #'!$A$1:$C$1005,3,0))) -> Teelano's Twister | G9: 15.848 | I9: 15.848 | M9: Entries | N9: 25 | P9: 10 | Q9: per head | R9: 3rd | S9: 0.15 | T9: 0.18 | U9: 0.16 | V9: 0.17 | W9: 0.18 | X9: 0.2
A10: 0.8528783574 | B10: 5 | C10: 3 | D10: 914 | E10: =IF(D10="","",(VLOOKUP(D10,'Membership #'!$A$1:$C$1005,2,0))) -> Shelby MacPherson | F10: =IF(D10="","",(VLOOKUP(D10,'Membership #'!$A$1:$C$1005,3,0))) -> Shelbys Badger Bar | G10: 16.047 | I10: 16.047 | M10: Jackpot | N10: =P9*N9 -> 250 | P10: 0.85 | Q10: payback | R10: 4th | S10: 0.12 | T10: 0.13 | U10: 0.13 | V10: 0.13 | W10: 0.14
A11: 0.9914843642 | B11: 2 | C11: 4 | D11: 699 | E11: =IF(D11="","",(VLOOKUP(D11,'Membership #'!$A$1:$C$1005,2,0))) -> Laura Morrison | F11: =IF(D11="","",(VLOOKUP(D11,'Membership #'!$A$1:$C$1005,3,0))) -> MDC Dark Revelation | G11: 16.08 | I11: 16.08 | M11: Total Money | N11: =N8+(N10*P10) -> 287.5 | P11: =N10*P10 -> 212.5 | Q11: Jackpot | R11: 5th | S11: 0.1 | T11: 0.09 | U11: 0.08 | V11: 0.1
A12: 0.3501895457 | B12: 18 | C12: 5 | D12: 904 | E12: =IF(D12="","",(VLOOKUP(D12,'Membership #'!$A$1:$C$1005,2,0))) -> Ella Cowley | F12: =IF(D12="","",(VLOOKUP(D12,'Membership #'!$A$1:$C$1005,3,0))) -> Blazin Boots | G12: 16.372 | I12: 16.372 | N12: Percentage | O12: Money | P12: Ring # | R12: 6th | S12: 0.08 | T12: 0.06 | U12: 0.06
A13: 0.767027364 | B13: 9 | C13: 6 | D13: 655 | E13: =IF(D13="","",(VLOOKUP(D13,'Membership #'!$A$1:$C$1005,2,0))) -> Julia Parker | F13: =IF(D13="","",(VLOOKUP(D13,'Membership #'!$A$1:$C$1005,3,0))) -> Boons Feature Star | G13: 16.656 | I13: 16.656 | M13: 1st | N13: =HLOOKUP($R$4,$S$4:$Z$17,4,0) -> 0.32 | O13: =IF(N13<>0,N$11*N13,"") -> 92 | Q13: =IF(P13="","",(VLOOKUP(P13,'Membership #'!$A$1:$C$1005,2,0))) ->  | R13: 7th | T13: 0.03 | U13: 0.05
A14: 0.2618204496 | B14: 20 | C14: 7 | D14: 518 | E14: =IF(D14="","",(VLOOKUP(D14,'Membership #'!$A$1:$C$1005,2,0))) -> Sylvester Weatherbie | F14: =IF(D14="","",(VLOOKUP(D14,'Membership #'!$A$1:$C$1005,3,0))) -> J.R. | G14: 16.681 | I14: 16.681 | M14: 2nd | N14: =HLOOKUP($R$4,$S$4:$Z$17,5,0) -> 0.23 | O14: 66.125 | Q14: =IF(P14="","",(VLOOKUP(P14,'Membership #'!$A$1:$C$1005,2,0))) ->  | R14: 8th | T14: 0.02 | U14: 0.04
A15: 0.6512989667 | B15: 12 | C15: 8 | D15: 966 | E15: =IF(D15="","",(VLOOKUP(D15,'Membership #'!$A$1:$C$1005,2,0))) -> Ava Anderson | F15: =IF(D15="","",(VLOOKUP(D15,'Membership #'!$A$1:$C$1005,3,0))) -> Black Sass | G15: 16.753 | I15: 16.753 | M15: 3rd | N15: =HLOOKUP($R$4,$S$4:$Z$17,6,0) -> 0.15 | O15: 43.125 | Q15: =IF(P15="","",(VLOOKUP(P15,'Membership #'!$A$1:$C$1005,2,0))) ->  | R15: 9th | U15: 0.03
A16: 0.5015326969 | B16: 14 | C16: 9 | D16: 732 | E16: =IF(D16="","",(VLOOKUP(D16,'Membership #'!$A$1:$C$1005,2,0))) -> Brenna Carrigan | F16: =IF(D16="","",(VLOOKUP(D16,'Membership #'!$A$1:$C$1005,3,0))) -> Carlos | G16: 16.818 | I16: 16.818 | M16: 4th | N16: =HLOOKUP($R$4,$S$4:$Z$17,7,0) -> 0.12 | O16: 34.5 | Q16: =IF(P16="","",(VLOOKUP(P16,'Membership #'!$A$1:$C$1005,2,0))) ->  | R16: 10th | U16: 0.02
A17: 0.07913749257 | B17: 25 | C17: 10 | D17: 855 | E17: =IF(D17="","",(VLOOKUP(D17,'Membership #'!$A$1:$C$1005,2,0))) -> Jenelle Collier | F17: =IF(D17="","",(VLOOKUP(D17,'Membership #'!$A$1:$C$1005,3,0))) -> Peppy Sans Surprise | G17: 16.891 | I17: 16.891 | M17: 5th | N17: =HLOOKUP($R$4,$S$4:$Z$17,8,0) -> 0.1 | O17: 28.75 | Q17: =IF(P17="","",(VLOOKUP(P17,'Membership #'!$A$1:$C$1005,2,0))) -> 
A18: 0.7951576499 | B18: 8 | C18: 11 | D18: 591 | E18: =IF(D18="","",(VLOOKUP(D18,'Membership #'!$A$1:$C$1005,2,0))) -> Wendy MacLean | F18: =IF(D18="","",(VLOOKUP(D18,'Membership #'!$A$1:$C$1005,3,0))) -> White Sox N Flyin | G18: 17.057 | I18: 17.057 | M18: 6th | N18: =HLOOKUP($R$4,$S$4:$Z$17,9,0) -> 0.08 | O18: 23 | Q18: =IF(P18="","",(VLOOKUP(P18,'Membership #'!$A$1:$C$1005,2,0))) -> 
A19: 0.2293233687 | B19: 21 | C19: 12 | D19: 909 | E19: =IF(D19="","",(VLOOKUP(D19,'Membership #'!$A$1:$C$1005,2,0))) -> Rebecca Gillis | F19: =IF(D19="","",(VLOOKUP(D19,'Membership #'!$A$1:$C$1005,3,0))) -> Martha's Tivio Moon | G19: 17.124 | I19: 17.124 | M19: 7th | N19: =HLOOKUP($R$4,$S$4:$Z$17,10,0) -> 0 | Q19: =IF(P19="","",(VLOOKUP(P19,'Membership #'!$A$1:$C$1005,2,0))) -> 
A20: 0.7610418052 | B20: 10 | C20: 13 | D20: 600 | E20: =IF(D20="","",(VLOOKUP(D20,'Membership #'!$A$1:$C$1005,2,0))) -> Stan Brown | F20: =IF(D20="","",(VLOOKUP(D20,'Membership #'!$A$1:$C$1005,3,0))) -> A Perty Sure Thing | G20: 17.535 | I20: 17.535 | M20: 8th | N20: =HLOOKUP($R$4,$S$4:$Z$17,11,0) -> 0 | Q20: =IF(P20="","",(VLOOKUP(P20,'Membership #'!$A$1:$C$1005,2,0))) -> 
A21: 0.5444906714 | B21: 13 | C21: 14 | D21: 753 | E21: =IF(D21="","",(VLOOKUP(D21,'Membership #'!$A$1:$C$1005,2,0))) -> Kayla Boudreau | F21: =IF(D21="","",(VLOOKUP(D21,'Membership #'!$A$1:$C$1005,3,0))) -> Lady Jane | G21: 17.612 | I21: 17.612 | M21: 9th | N21: =HLOOKUP($R$4,$S$4:$Z$17,12,0) -> 0 | Q21: =IF(P21="","",(VLOOKUP(P21,'Membership #'!$A$1:$C$1005,2,0))) -> 
A22: 0.6636433602 | B22: 11 | C22: 15 | D22: 954 | E22: =IF(D22="","",(VLOOKUP(D22,'Membership #'!$A$1:$C$1005,2,0))) -> Scotia MacEachern | F22: =IF(D22="","",(VLOOKUP(D22,'Membership #'!$A$1:$C$1005,3,0))) -> Hick-a-Licious | G22: 17.739 | I22: 17.739 | M22: 10th | N22: =HLOOKUP($R$4,$S$4:$Z$17,13,0) -> 0 | Q22: =IF(P22="","",(VLOOKUP(P22,'Membership #'!$A$1:$C$1005,2,0))) -> 
A23: 0.3890049154 | B23: 16 | C23: 16 | D23: 716 | E23: =IF(D23="","",(VLOOKUP(D23,'Membership #'!$A$1:$C$1005,2,0))) -> Kayla Martin | F23: =IF(D23="","",(VLOOKUP(D23,'Membership #'!$A$1:$C$1005,3,0))) -> Dash Ta Home | G23: 18.166 | I23: 18.166 | M23: Total Money | O23: =SUM(O13:O22) -> 287.5
A24: 0.1085360623 | B24: 23 | C24: 17 | D24: 973 | E24: =IF(D24="","",(VLOOKUP(D24,'Membership #'!$A$1:$C$1005,2,0))) -> Sara Ivey | F24: =IF(D24="","",(VLOOKUP(D24,'Membership #'!$A$1:$C$1005,3,0))) -> Ms Heavenly Gator | G24: 19 | I24: 19
A25: 0.08395076849 | B25: 24 | C25: 18 | D25: 971 | E25: =IF(D25="","",(VLOOKUP(D25,'Membership #'!$A$1:$C$1005,2,0))) -> Arielle Burke | F25: =IF(D25="","",(VLOOKUP(D25,'Membership #'!$A$1:$C$1005,3,0))) -> Elm Sally | G25: 22.839 | I25: 22.839
A26: 0.1781058243 | B26: 22 | C26: 19 | D26: 768 | E26: =IF(D26="","",(VLOOKUP(D26,'Membership #'!$A$1:$C$1005,2,0))) -> Tracey Higgins | F26: =IF(D26="","",(VLOOKUP(D26,'Membership #'!$A$1:$C$1005,3,0))) -> Iza Wicked Wind | G26: 18.067 | H26: 5 | I26: 23.067
A27: 0.03155476626 | B27: 26 | C27: 20 | D27: 746 | E27: =IF(D27="","",(VLOOKUP(D27,'Membership #'!$A$1:$C$1005,2,0))) -> Cassie MacDonald | F27: =IF(D27="","",(VLOOKUP(D27,'Membership #'!$A$1:$C$1005,3,0))) -> Sandy Dew | G27: 23.546 | I27: 23.546
A28: 0.3068275952 | B28: 19 | C28: 21 | D28: 514 | E28: =IF(D28="","",(VLOOKUP(D28,'Membership #'!$A$1:$C$1005,2,0))) -> Heather Morrison | F28: =IF(D28="","",(VLOOKUP(D28,'Membership #'!$A$1:$C$1005,3,0))) -> Black Fire Dash | G28: n | I28: No Time
A29: 0.8032080474 | B29: 7 | C29: 22 | D29: 537 | E29: =IF(D29="","",(VLOOKUP(D29,'Membership #'!$A$1:$C$1005,2,0))) -> Alka Virick | F29: =IF(D29="","",(VLOOKUP(D29,'Membership #'!$A$1:$C$1005,3,0))) -> Corona Identity | G29: n | I29: No Time
A30: 0.8816233222 | B30: 4 | C30: 23 | D30: 968 | E30: =IF(D30="","",(VLOOKUP(D30,'Membership #'!$A$1:$C$1005,2,0))) -> Madison Pelly | F30: =IF(D30="","",(VLOOKUP(D30,'Membership #'!$A$1:$C$1005,3,0))) -> Westin | G30: x | I30: Scratch
A31: 0.3934674709 | B31: 15 | C31: 24 | D31: 889 | E31: =IF(D31="","",(VLOOKUP(D31,'Membership #'!$A$1:$C$1005,2,0))) -> Adelaine Cowley | F31: =IF(D31="","",(VLOOKUP(D31,'Membership #'!$A$1:$C$1005,3,0))) -> Frenchman's Promise | G31: x | I31: Scratch
A32: 0.8169079913 | B32: 6 | C32: 25 | D32: 78 | E32: =IF(D32="","",(VLOOKUP(D32,'Membership #'!$A$1:$C$1005,2,0))) -> Stephanie Rich | F32: =IF(D32="","",(VLOOKUP(D32,'Membership #'!$A$1:$C$1005,3,0))) -> Texas Mickey | G32: x | I32: Scratch
A33: 0.3529829357 | B33: 17 | D33: 928 | E33: =IF(D33="","",(VLOOKUP(D33,'Membership #'!$A$1:$C$1005,2,0))) -> Tessa Dicks | F33: =IF(D33="","",(VLOOKUP(D33,'Membership #'!$A$1:$C$1005,3,0))) -> ELM Dash of Crime | G33: Out of novice
E34: =IF(D34="","",(VLOOKUP(D34,'Membership #'!$A$1:$C$1005,2,0))) ->  | F34: =IF(D34="","",(VLOOKUP(D34,'Membership #'!$A$1:$C$1005,3,0))) ->  | I34: =IF(G34="n","No Time",IF(G34="x","Scratch",IF(G34<>"",SUM(G34+H34),""))) -> 
E35: =IF(D35="","",(VLOOKUP(D35,'Membership #'!$A$1:$C$1005,2,0))) ->  | F35: =IF(D35="","",(VLOOKUP(D35,'Membership #'!$A$1:$C$1005,3,0))) -> 
E36: =IF(D36="","",(VLOOKUP(D36,'Membership #'!$A$1:$C$1005,2,0))) ->  | F36: =IF(D36="","",(VLOOKUP(D36,'Membership #'!$A$1:$C$1005,3,0))) -> 
E37: =IF(D37="","",(VLOOKUP(D37,'Membership #'!$A$1:$C$1005,2,0))) ->  | F37: =IF(D37="","",(VLOOKUP(D37,'Membership #'!$A$1:$C$1005,3,0))) -> 
E38: =IF(D38="","",(VLOOKUP(D38,'Membership #'!$A$1:$C$1005,2,0))) ->  | F38: =IF(D38="","",(VLOOKUP(D38,'Membership #'!$A$1:$C$1005,3,0))) -> 
E39: =IF(D39="","",(VLOOKUP(D39,'Membership #'!$A$1:$C$1005,2,0))) ->  | F39: =IF(D39="","",(VLOOKUP(D39,'Membership #'!$A$1:$C$1005,3,0))) -> 
B40: =IF(D40<>"",RANK(A40,A$8:A$100),"") ->  | E40: =IF(D40="","",(VLOOKUP(D40,'Membership #'!$A$1:$C$1005,2,0))) ->  | F40: =IF(D40="","",(VLOOKUP(D40,'Membership #'!$A$1:$C$1005,3,0))) -> 
E41: =IF(D41="","",(VLOOKUP(D41,'Membership #'!$A$1:$C$1005,2,0))) ->  | F41: =IF(D41="","",(VLOOKUP(D41,'Membership #'!$A$1:$C$1005,3,0))) -> 
E42: =IF(D42="","",(VLOOKUP(D42,'Membership #'!$A$1:$C$1005,2,0))) ->  | F42: =IF(D42="","",(VLOOKUP(D42,'Membership #'!$A$1:$C$1005,3,0))) -> 
E43: =IF(D43="","",(VLOOKUP(D43,'Membership #'!$A$1:$C$1005,2,0))) ->  | F43: =IF(D43="","",(VLOOKUP(D43,'Membership #'!$A$1:$C$1005,3,0))) -> 
E44: =IF(D44="","",(VLOOKUP(D44,'Membership #'!$A$1:$C$1005,2,0))) ->  | F44: =IF(D44="","",(VLOOKUP(D44,'Membership #'!$A$1:$C$1005,3,0))) -> 
E45: =IF(D45="","",(VLOOKUP(D45,'Membership #'!$A$1:$C$1005,2,0))) ->  | F45: =IF(D45="","",(VLOOKUP(D45,'Membership #'!$A$1:$C$1005,3,0))) -> 
E46: =IF(D46="","",(VLOOKUP(D46,'Membership #'!$A$1:$C$1005,2,0))) ->  | F46: =IF(D46="","",(VLOOKUP(D46,'Membership #'!$A$1:$C$1005,3,0))) -> 
E47: =IF(D47="","",(VLOOKUP(D47,'Membership #'!$A$1:$C$1005,2,0))) ->  | F47: =IF(D47="","",(VLOOKUP(D47,'Membership #'!$A$1:$C$1005,3,0))) ->  | I47: =IF(G47="n","No Time",IF(G47="x","Scratch",IF(G47<>"",SUM(G47+H47),""))) -> 
E48: =IF(D48="","",(VLOOKUP(D48,'Membership #'!$A$1:$C$1005,2,0))) ->  | F48: =IF(D48="","",(VLOOKUP(D48,'Membership #'!$A$1:$C$1005,3,0))) -> 
E49: =IF(D49="","",(VLOOKUP(D49,'Membership #'!$A$1:$C$1005,2,0))) ->  | F49: =IF(D49="","",(VLOOKUP(D49,'Membership #'!$A$1:$C$1005,3,0))) -> 
E50: =IF(D50="","",(VLOOKUP(D50,'Membership #'!$A$1:$C$1005,2,0))) ->  | F50: =IF(D50="","",(VLOOKUP(D50,'Membership #'!$A$1:$C$1005,3,0))) -> 
E51: =IF(D51="","",(VLOOKUP(D51,'Membership #'!$A$1:$C$1005,2,0))) ->  | F51: =IF(D51="","",(VLOOKUP(D51,'Membership #'!$A$1:$C$1005,3,0))) ->  | I51: =IF(G51="n","No Time",IF(G51="x","Scratch",IF(G51<>"",SUM(G51+H51),""))) -> 
E52: =IF(D52="","",(VLOOKUP(D52,'Membership #'!$A$1:$C$1005,2,0))) ->  | F52: =IF(D52="","",(VLOOKUP(D52,'Membership #'!$A$1:$C$1005,3,0))) -> 
E53: =IF(D53="","",(VLOOKUP(D53,'Membership #'!$A$1:$C$1005,2,0))) ->  | F53: =IF(D53="","",(VLOOKUP(D53,'Membership #'!$A$1:$C$1005,3,0))) -> 
E54: =IF(D54="","",(VLOOKUP(D54,'Membership #'!$A$1:$C$1005,2,0))) ->  | F54: =IF(D54="","",(VLOOKUP(D54,'Membership #'!$A$1:$C$1005,3,0))) -> 
E55: =IF(D55="","",(VLOOKUP(D55,'Membership #'!$A$1:$C$1005,2,0))) ->  | F55: =IF(D55="","",(VLOOKUP(D55,'Membership #'!$A$1:$C$1005,3,0))) ->  | I55: =IF(G55="n","No Time",IF(G55="x","Scratch",IF(G55<>"",SUM(G55+H55),""))) -> 
E56: =IF(D56="","",(VLOOKUP(D56,'Membership #'!$A$1:$C$1005,2,0))) ->  | F56: =IF(D56="","",(VLOOKUP(D56,'Membership #'!$A$1:$C$1005,3,0))) -> 
E57: =IF(D57="","",(VLOOKUP(D57,'Membership #'!$A$1:$C$1005,2,0))) ->  | F57: =IF(D57="","",(VLOOKUP(D57,'Membership #'!$A$1:$C$1005,3,0))) -> 
E58: =IF(D58="","",(VLOOKUP(D58,'Membership #'!$A$1:$C$1005,2,0))) ->  | F58: =IF(D58="","",(VLOOKUP(D58,'Membership #'!$A$1:$C$1005,3,0))) -> 
E59: =IF(D59="","",(VLOOKUP(D59,'Membership #'!$A$1:$C$1005,2,0))) ->  | F59: =IF(D59="","",(VLOOKUP(D59,'Membership #'!$A$1:$C$1005,3,0))) -> 
E60: =IF(D60="","",(VLOOKUP(D60,'Membership #'!$A$1:$C$1005,2,0))) ->  | F60: =IF(D60="","",(VLOOKUP(D60,'Membership #'!$A$1:$C$1005,3,0))) -> 
E61: =IF(D61="","",(VLOOKUP(D61,'Membership #'!$A$1:$C$1005,2,0))) ->  | F61: =IF(D61="","",(VLOOKUP(D61,'Membership #'!$A$1:$C$1005,3,0))) -> 
E62: =IF(D62="","",(VLOOKUP(D62,'Membership #'!$A$1:$C$1005,2,0))) ->  | F62: =IF(D62="","",(VLOOKUP(D62,'Membership #'!$A$1:$C$1005,3,0))) -> 
E63: =IF(D63="","",(VLOOKUP(D63,'Membership #'!$A$1:$C$1005,2,0))) ->  | F63: =IF(D63="","",(VLOOKUP(D63,'Membership #'!$A$1:$C$1005,3,0))) -> 
E64: =IF(D64="","",(VLOOKUP(D64,'Membership #'!$A$1:$C$1005,2,0))) ->  | F64: =IF(D64="","",(VLOOKUP(D64,'Membership #'!$A$1:$C$1005,3,0))) -> 
E65: =IF(D65="","",(VLOOKUP(D65,'Membership #'!$A$1:$C$1005,2,0))) ->  | F65: =IF(D65="","",(VLOOKUP(D65,'Membership #'!$A$1:$C$1005,3,0))) -> 
E66: =IF(D66="","",(VLOOKUP(D66,'Membership #'!$A$1:$C$1005,2,0))) ->  | F66: =IF(D66="","",(VLOOKUP(D66,'Membership #'!$A$1:$C$1005,3,0))) -> 
E67: =IF(D67="","",(VLOOKUP(D67,'Membership #'!$A$1:$C$1005,2,0))) ->  | F67: =IF(D67="","",(VLOOKUP(D67,'Membership #'!$A$1:$C$1005,3,0))) -> 
E68: =IF(D68="","",(VLOOKUP(D68,'Membership #'!$A$1:$C$1005,2,0))) ->  | F68: =IF(D68="","",(VLOOKUP(D68,'Membership #'!$A$1:$C$1005,3,0))) -> 
E69: =IF(D69="","",(VLOOKUP(D69,'Membership #'!$A$1:$C$1005,2,0))) ->  | F69: =IF(D69="","",(VLOOKUP(D69,'Membership #'!$A$1:$C$1005,3,0))) -> 
E70: =IF(D70="","",(VLOOKUP(D70,'Membership #'!$A$1:$C$1005,2,0))) ->  | F70: =IF(D70="","",(VLOOKUP(D70,'Membership #'!$A$1:$C$1005,3,0))) -> 
E71: =IF(D71="","",(VLOOKUP(D71,'Membership #'!$A$1:$C$1005,2,0))) ->  | F71: =IF(D71="","",(VLOOKUP(D71,'Membership #'!$A$1:$C$1005,3,0))) -> 
B72: =IF(D72<>"",RANK(A72,A$8:A$100),"") ->  | E72: =IF(D72="","",(VLOOKUP(D72,'Membership #'!$A$1:$C$1005,2,0))) ->  | F72: =IF(D72="","",(VLOOKUP(D72,'Membership #'!$A$1:$C$1005,3,0))) ->  | I72: =IF(G72="n","No Time",IF(G72="x","Scratch",IF(G72<>"",SUM(G72+H72),""))) -> 
A73: =IF(D73<>"",RAND(),"") ->  | E73: =IF(D73="","",(VLOOKUP(D73,'Membership #'!$A$1:$C$1005,2,0))) ->  | F73: =IF(D73="","",(VLOOKUP(D73,'Membership #'!$A$1:$C$1005,3,0))) -> 
E74: =IF(D74="","",(VLOOKUP(D74,'Membership #'!$A$1:$C$1005,2,0))) ->  | F74: =IF(D74="","",(VLOOKUP(D74,'Membership #'!$A$1:$C$1005,3,0))) -> 
E75: =IF(D75="","",(VLOOKUP(D75,'Membership #'!$A$1:$C$1005,2,0))) ->  | F75: =IF(D75="","",(VLOOKUP(D75,'Membership #'!$A$1:$C$1005,3,0))) -> 
E76: =IF(D76="","",(VLOOKUP(D76,'Membership #'!$A$1:$C$1005,2,0))) ->  | F76: =IF(D76="","",(VLOOKUP(D76,'Membership #'!$A$1:$C$1005,3,0))) -> 
E77: =IF(D77="","",(VLOOKUP(D77,'Membership #'!$A$1:$C$1005,2,0))) ->  | F77: =IF(D77="","",(VLOOKUP(D77,'Membership #'!$A$1:$C$1005,3,0))) -> 
E78: =IF(D78="","",(VLOOKUP(D78,'Membership #'!$A$1:$C$1005,2,0))) ->  | F78: =IF(D78="","",(VLOOKUP(D78,'Membership #'!$A$1:$C$1005,3,0))) -> 
E79: =IF(D79="","",(VLOOKUP(D79,'Membership #'!$A$1:$C$1005,2,0))) ->  | F79: =IF(D79="","",(VLOOKUP(D79,'Membership #'!$A$1:$C$1005,3,0))) -> 
E80: =IF(D80="","",(VLOOKUP(D80,'Membership #'!$A$1:$C$1005,2,0))) ->  | F80: =IF(D80="","",(VLOOKUP(D80,'Membership #'!$A$1:$C$1005,3,0))) -> 
E81: =IF(D81="","",(VLOOKUP(D81,'Membership #'!$A$1:$C$1005,2,0))) ->  | F81: =IF(D81="","",(VLOOKUP(D81,'Membership #'!$A$1:$C$1005,3,0))) -> 
E82: =IF(D82="","",(VLOOKUP(D82,'Membership #'!$A$1:$C$1005,2,0))) ->  | F82: =IF(D82="","",(VLOOKUP(D82,'Membership #'!$A$1:$C$1005,3,0))) -> 
E83: =IF(D83="","",(VLOOKUP(D83,'Membership #'!$A$1:$C$1005,2,0))) ->  | F83: =IF(D83="","",(VLOOKUP(D83,'Membership #'!$A$1:$C$1005,3,0))) -> 
E84: =IF(D84="","",(VLOOKUP(D84,'Membership #'!$A$1:$C$1005,2,0))) ->  | F84: =IF(D84="","",(VLOOKUP(D84,'Membership #'!$A$1:$C$1005,3,0))) -> 
E85: =IF(D85="","",(VLOOKUP(D85,'Membership #'!$A$1:$C$1005,2,0))) ->  | F85: =IF(D85="","",(VLOOKUP(D85,'Membership #'!$A$1:$C$1005,3,0))) -> 
E86: =IF(D86="","",(VLOOKUP(D86,'Membership #'!$A$1:$C$1005,2,0))) ->  | F86: =IF(D86="","",(VLOOKUP(D86,'Membership #'!$A$1:$C$1005,3,0))) -> 
E87: =IF(D87="","",(VLOOKUP(D87,'Membership #'!$A$1:$C$1005,2,0))) ->  | F87: =IF(D87="","",(VLOOKUP(D87,'Membership #'!$A$1:$C$1005,3,0))) -> 
E88: =IF(D88="","",(VLOOKUP(D88,'Membership #'!$A$1:$C$1005,2,0))) ->  | F88: =IF(D88="","",(VLOOKUP(D88,'Membership #'!$A$1:$C$1005,3,0))) -> 
E89: =IF(D89="","",(VLOOKUP(D89,'Membership #'!$A$1:$C$1005,2,0))) ->  | F89: =IF(D89="","",(VLOOKUP(D89,'Membership #'!$A$1:$C$1005,3,0))) -> 
E90: =IF(D90="","",(VLOOKUP(D90,'Membership #'!$A$1:$C$1005,2,0))) ->  | F90: =IF(D90="","",(VLOOKUP(D90,'Membership #'!$A$1:$C$1005,3,0))) -> 
E91: =IF(D91="","",(VLOOKUP(D91,'Membership #'!$A$1:$C$1005,2,0))) ->  | F91: =IF(D91="","",(VLOOKUP(D91,'Membership #'!$A$1:$C$1005,3,0))) -> 
E92: =IF(D92="","",(VLOOKUP(D92,'Membership #'!$A$1:$C$1005,2,0))) ->  | F92: =IF(D92="","",(VLOOKUP(D92,'Membership #'!$A$1:$C$1005,3,0))) -> 
E93: =IF(D93="","",(VLOOKUP(D93,'Membership #'!$A$1:$C$1005,2,0))) ->  | F93: =IF(D93="","",(VLOOKUP(D93,'Membership #'!$A$1:$C$1005,3,0))) -> 
E94: =IF(D94="","",(VLOOKUP(D94,'Membership #'!$A$1:$C$1005,2,0))) ->  | F94: =IF(D94="","",(VLOOKUP(D94,'Membership #'!$A$1:$C$1005,3,0))) -> 
E95: =IF(D95="","",(VLOOKUP(D95,'Membership #'!$A$1:$C$1005,2,0))) ->  | F95: =IF(D95="","",(VLOOKUP(D95,'Membership #'!$A$1:$C$1005,3,0))) -> 
E96: =IF(D96="","",(VLOOKUP(D96,'Membership #'!$A$1:$C$1005,2,0))) ->  | F96: =IF(D96="","",(VLOOKUP(D96,'Membership #'!$A$1:$C$1005,3,0))) -> 
E97: =IF(D97="","",(VLOOKUP(D97,'Membership #'!$A$1:$C$1005,2,0))) ->  | F97: =IF(D97="","",(VLOOKUP(D97,'Membership #'!$A$1:$C$1005,3,0))) -> 
E98: =IF(D98="","",(VLOOKUP(D98,'Membership #'!$A$1:$C$1005,2,0))) ->  | F98: =IF(D98="","",(VLOOKUP(D98,'Membership #'!$A$1:$C$1005,3,0))) -> 
E99: =IF(D99="","",(VLOOKUP(D99,'Membership #'!$A$1:$C$1005,2,0))) ->  | F99: =IF(D99="","",(VLOOKUP(D99,'Membership #'!$A$1:$C$1005,3,0))) -> 
E100: =IF(D100="","",(VLOOKUP(D100,'Membership #'!$A$1:$C$1005,2,0))) ->  | F100: =IF(D100="","",(VLOOKUP(D100,'Membership #'!$A$1:$C$1005,3,0))) -> 

Sheet OPEN BARRELS
A1: Tom Burt & Mark McGuire Memorial Jackpot Aug 22, 2021 | M1: x=Scratch
A2: OPEN BARRELS | M2: n=No Time
A3: # Enteries: | E3: =COUNTIF($D$8:$D$95,">0") -> 28 | M3: Sponsored by Clarence Farm Services | R3: Don't Erase these numbers below!!
A4: Rand Draw | B4: Seed | D4: RING # | E4: NAME | F4: HORSE NAME | G4: TIME | H4: PENALTY | I4: TOTAL | J4: PLACINGS | K4: POINTS | R4: =IF(N9=2,7,IF(N9=3,6,IF(N9=4,5,IF(N9=5,4,IF(AND(N9>5,N11>600),3,IF(AND(N9>5,N11<600,N11>299.99),2,IF(AND(N9>5,N11<300),1,8))))))) -> 3 | S4: 1 | T4: 2 | U4: 3 | V4: 4 | W4: 5 | X4: 6 | Y4: 7 | Z4: 8
S5: 299 | T5: $300- | U5: $600 -
M6: OPEN BARRELS | S6: or less | T6: 599 | U6: More | V6: 5 Entries | W6: 4 Entries | X6: 3 Entries | Y6: 2 Entries
R7: 1st | S7: 0.32 | T7: 0.27 | U7: 0.24 | V7: 0.35 | W7: 0.4 | X7: 0.46 | Y7: 0.6
A8: =IF(D8<>"",RAND(),"") -> 0.8752154092 | B8: =IF(D8<>"",RANK(A8,A$8:A$96),"") -> 6 | C8: 1 | D8: 703 | E8: =IF(D8="","",(VLOOKUP(D8,'Membership #'!$A$1:$C$1005,2,0))) -> Chris Baker | F8: =IF(D8="","",(VLOOKUP(D8,'Membership #'!$A$1:$C$1005,3,0))) -> Jamer All Fired Up | G8: 14.845 | I8: =IF(G8="n","No Time",IF(G8="x","Scratch",IF(G8<>"",SUM(G8+H8),""))) -> 14.845 | M8: Added | N8: 150 | R8: 2nd | S8: 0.23 | T8: 0.22 | U8: 0.19 | V8: 0.25 | W8: 0.28 | X8: 0.34 | Y8: 0.4
A9: 0.404467604 | B9: 17 | C9: 2 | D9: 534 | E9: =IF(D9="","",(VLOOKUP(D9,'Membership #'!$A$1:$C$1005,2,0))) -> Mary Lou Rankin Dentin | F9: =IF(D9="","",(VLOOKUP(D9,'Membership #'!$A$1:$C$1005,3,0))) -> Brandy's Chocolena | G9: 15.089 | I9: 15.089 | M9: Entries | N9: 27 | P9: 20 | Q9: per head | R9: 3rd | S9: 0.15 | T9: 0.18 | U9: 0.16 | V9: 0.17 | W9: 0.18 | X9: 0.2
A10: 0.4133283015 | B10: 16 | C10: 3 | D10: 698 | E10: =IF(D10="","",(VLOOKUP(D10,'Membership #'!$A$1:$C$1005,2,0))) -> Kaleigh Denton | F10: =IF(D10="","",(VLOOKUP(D10,'Membership #'!$A$1:$C$1005,3,0))) -> Coleasaki | G10: 15.202 | I10: 15.202 | M10: Jackpot | N10: =P9*N9 -> 540 | P10: 0.85 | Q10: payback | R10: 4th | S10: 0.12 | T10: 0.13 | U10: 0.13 | V10: 0.13 | W10: 0.14
A11: 0.9576788529 | B11: 2 | C11: 4 | D11: 700 | E11: =IF(D11="","",(VLOOKUP(D11,'Membership #'!$A$1:$C$1005,2,0))) -> Lindsay Baker | F11: =IF(D11="","",(VLOOKUP(D11,'Membership #'!$A$1:$C$1005,3,0))) -> Boons Laughing Boy | G11: 15.272 | I11: 15.272 | M11: Total Money | N11: =N8+(N10*P10) -> 609 | P11: =N10*P10 -> 459 | Q11: Jackpot | R11: 5th | S11: 0.1 | T11: 0.09 | U11: 0.08 | V11: 0.1
A12: 0.447751288 | B12: 15 | C12: 5 | D12: 657 | E12: =IF(D12="","",(VLOOKUP(D12,'Membership #'!$A$1:$C$1005,2,0))) -> Laura Morrison | F12: =IF(D12="","",(VLOOKUP(D12,'Membership #'!$A$1:$C$1005,3,0))) -> Steal Ta Fame | G12: 15.452 | I12: 15.452 | N12: Percentage | O12: Money | P12: Ring # | R12: 6th | S12: 0.08 | T12: 0.06 | U12: 0.06
A13: 0.8245965326 | B13: 7 | C13: 6 | D13: 922 | E13: =IF(D13="","",(VLOOKUP(D13,'Membership #'!$A$1:$C$1005,2,0))) -> Stevi Jardine | F13: =IF(D13="","",(VLOOKUP(D13,'Membership #'!$A$1:$C$1005,3,0))) -> Paytons Pretty Cool | G13: 15.5 | I13: 15.5 | M13: 1st | N13: 0.24 | O13: =IF(N13<>0,N$11*N13,"") -> 146.16 | Q13: =IF(P13="","",(VLOOKUP(P13,'Membership #'!$A$1:$C$1005,2,0))) ->  | R13: 7th | T13: 0.03 | U13: 0.05
A14: 0.2717426837 | B14: 19 | C14: 7 | D14: 777 | E14: =IF(D14="","",(VLOOKUP(D14,'Membership #'!$A$1:$C$1005,2,0))) -> Julia Parker | F14: =IF(D14="","",(VLOOKUP(D14,'Membership #'!$A$1:$C$1005,3,0))) -> Doc's Spirit Prairie | G14: 15.504 | I14: 15.504 | M14: 2nd | N14: 0.19 | O14: 115.71 | Q14: =IF(P14="","",(VLOOKUP(P14,'Membership #'!$A$1:$C$1005,2,0))) ->  | R14: 8th | T14: 0.02 | U14: 0.04
A15: 0.55282797 | B15: 13 | C15: 8 | D15: 695 | E15: =IF(D15="","",(VLOOKUP(D15,'Membership #'!$A$1:$C$1005,2,0))) -> Tessa Dicks | F15: =IF(D15="","",(VLOOKUP(D15,'Membership #'!$A$1:$C$1005,3,0))) -> Charge's Dusty Luck | G15: 15.527 | I15: 15.527 | M15: 3rd | N15: 0.16 | O15: 97.44 | Q15: =IF(P15="","",(VLOOKUP(P15,'Membership #'!$A$1:$C$1005,2,0))) ->  | R15: 9th | U15: 0.03
A16: 0.1998641832 | B16: 23 | C16: 9 | D16: 892 | E16: =IF(D16="","",(VLOOKUP(D16,'Membership #'!$A$1:$C$1005,2,0))) -> Donnie MacNeil | F16: =IF(D16="","",(VLOOKUP(D16,'Membership #'!$A$1:$C$1005,3,0))) -> Gifted Go Gold | G16: 15.549 | I16: 15.549 | M16: 4th | N16: 0.13 | O16: 79.17 | Q16: =IF(P16="","",(VLOOKUP(P16,'Membership #'!$A$1:$C$1005,2,0))) ->  | R16: 10th | U16: 0.02
A17: 0.892692267 | B17: 5 | C17: 10 | D17: 556 | E17: =IF(D17="","",(VLOOKUP(D17,'Membership #'!$A$1:$C$1005,2,0))) -> Stephaine Clark | F17: =IF(D17="","",(VLOOKUP(D17,'Membership #'!$A$1:$C$1005,3,0))) -> Perks A Flyin | G17: 15.558 | I17: 15.558 | M17: 5th | N17: 0.08 | O17: 48.72 | Q17: =IF(P17="","",(VLOOKUP(P17,'Membership #'!$A$1:$C$1005,2,0))) -> 
A18: 0.8219420379 | B18: 8 | C18: 11 | D18: 684 | E18: =IF(D18="","",(VLOOKUP(D18,'Membership #'!$A$1:$C$1005,2,0))) -> Shann Cox | F18: =IF(D18="","",(VLOOKUP(D18,'Membership #'!$A$1:$C$1005,3,0))) -> Jags Cash Flow | G18: 15.562 | I18: 15.562 | M18: 6th | N18: 0.06 | O18: 36.54 | Q18: =IF(P18="","",(VLOOKUP(P18,'Membership #'!$A$1:$C$1005,2,0))) -> 
A19: 0.1400636846 | B19: 27 | C19: 12 | D19: 750 | E19: =IF(D19="","",(VLOOKUP(D19,'Membership #'!$A$1:$C$1005,2,0))) -> Tanya Kennedy | F19: =IF(D19="","",(VLOOKUP(D19,'Membership #'!$A$1:$C$1005,3,0))) -> Old Stations Pride | G19: 15.693 | I19: 15.693 | M19: 7th | N19: 0.05 | O19: 30.45 | Q19: =IF(P19="","",(VLOOKUP(P19,'Membership #'!$A$1:$C$1005,2,0))) -> 
A20: 0.2450270799 | B20: 21 | C20: 13 | D20: 928 | E20: =IF(D20="","",(VLOOKUP(D20,'Membership #'!$A$1:$C$1005,2,0))) -> Tessa Dicks | F20: =IF(D20="","",(VLOOKUP(D20,'Membership #'!$A$1:$C$1005,3,0))) -> ELM Dash of Crime | G20: 15.722 | I20: 15.722 | M20: 8th | N20: 0.04 | O20: 24.36 | Q20: =IF(P20="","",(VLOOKUP(P20,'Membership #'!$A$1:$C$1005,2,0))) -> 
A21: 0.1479680153 | B21: 26 | C21: 14 | D21: 914 | E21: =IF(D21="","",(VLOOKUP(D21,'Membership #'!$A$1:$C$1005,2,0))) -> Shelby MacPherson | F21: =IF(D21="","",(VLOOKUP(D21,'Membership #'!$A$1:$C$1005,3,0))) -> Shelbys Badger Bar | G21: 15.842 | I21: 15.842 | M21: 9th | N21: 0.03 | O21: 18.27 | Q21: =IF(P21="","",(VLOOKUP(P21,'Membership #'!$A$1:$C$1005,2,0))) -> 
A22: 0.1293490776 | B22: 28 | C22: 15 | D22: 655 | E22: =IF(D22="","",(VLOOKUP(D22,'Membership #'!$A$1:$C$1005,2,0))) -> Julia Parker | F22: =IF(D22="","",(VLOOKUP(D22,'Membership #'!$A$1:$C$1005,3,0))) -> Boons Feature Star | G22: 15.905 | I22: 15.905 | M22: 10th | N22: 0.02 | O22: 12.18 | Q22: =IF(P22="","",(VLOOKUP(P22,'Membership #'!$A$1:$C$1005,2,0))) -> 
A23: 0.291512719 | B23: 18 | C23: 16 | D23: 966 | E23: =IF(D23="","",(VLOOKUP(D23,'Membership #'!$A$1:$C$1005,2,0))) -> Ava Anderson | F23: =IF(D23="","",(VLOOKUP(D23,'Membership #'!$A$1:$C$1005,3,0))) -> Black Sass | G23: 16.537 | I23: 16.537 | M23: Total Money | O23: =SUM(O13:O22) -> 609
A24: 0.6103749281 | B24: 12 | C24: 17 | D24: 904 | E24: =IF(D24="","",(VLOOKUP(D24,'Membership #'!$A$1:$C$1005,2,0))) -> Ella Cowley | F24: =IF(D24="","",(VLOOKUP(D24,'Membership #'!$A$1:$C$1005,3,0))) -> Blazin Boots | G24: 16.563 | I24: 16.563
A25: 0.7198090264 | B25: 11 | C25: 18 | D25: 732 | E25: =IF(D25="","",(VLOOKUP(D25,'Membership #'!$A$1:$C$1005,2,0))) -> Brenna Carrigan | F25: =IF(D25="","",(VLOOKUP(D25,'Membership #'!$A$1:$C$1005,3,0))) -> Carlos | G25: 16.774 | I25: 16.774 | N25: =IF(M25="","",(VLOOKUP(M25,'Membership #'!$A$1:$C$1005,2,0))) ->  | O25: =IF(M25="","",(VLOOKUP(M25,'Membership #'!$A$1:$C$1005,3,0))) -> 
A26: 0.1728223981 | B26: 24 | C26: 19 | D26: 516 | E26: =IF(D26="","",(VLOOKUP(D26,'Membership #'!$A$1:$C$1005,2,0))) -> Laurie Don Reginato | F26: =IF(D26="","",(VLOOKUP(D26,'Membership #'!$A$1:$C$1005,3,0))) -> TCR Gold Runny | G26: 15.267 | H26: 5 | I26: 20.267 | N26: =IF(M26="","",(VLOOKUP(M26,'Membership #'!$A$1:$C$1005,2,0))) ->  | O26: =IF(M26="","",(VLOOKUP(M26,'Membership #'!$A$1:$C$1005,3,0))) -> 
A27: 0.2002714012 | B27: 22 | C27: 20 | D27: 688 | E27: =IF(D27="","",(VLOOKUP(D27,'Membership #'!$A$1:$C$1005,2,0))) -> Lenee Sampson | F27: =IF(D27="","",(VLOOKUP(D27,'Membership #'!$A$1:$C$1005,3,0))) -> Six Dash Run | G27: 15.726 | H27: 5 | I27: 20.726 | N27: =IF(M27="","",(VLOOKUP(M27,'Membership #'!$A$1:$C$1005,2,0))) ->  | O27: =IF(M27="","",(VLOOKUP(M27,'Membership #'!$A$1:$C$1005,3,0))) -> 
A28: 0.7312003376 | B28: 10 | C28: 21 | D28: 616 | E28: =IF(D28="","",(VLOOKUP(D28,'Membership #'!$A$1:$C$1005,2,0))) -> Judy Bateman | F28: =IF(D28="","",(VLOOKUP(D28,'Membership #'!$A$1:$C$1005,3,0))) -> HM HollywoodRockstar | G28: 16.04 | H28: 5 | I28: 21.04
A29: 0.7664518773 | B29: 9 | C29: 22 | D29: 537 | E29: =IF(D29="","",(VLOOKUP(D29,'Membership #'!$A$1:$C$1005,2,0))) -> Alka Virick | F29: =IF(D29="","",(VLOOKUP(D29,'Membership #'!$A$1:$C$1005,3,0))) -> Corona Identity | G29: 24.187 | I29: 24.187 | O29: =IF(N29="","",(VLOOKUP(N29,'Membership #'!$A$1:$C$1005,2,0))) ->  | P29: =IF(N29="","",(VLOOKUP(N29,'Membership #'!$A$1:$C$1005,3,0))) -> 
A30: 0.9842534176 | B30: 1 | C30: 23 | D30: 971 | E30: =IF(D30="","",(VLOOKUP(D30,'Membership #'!$A$1:$C$1005,2,0))) -> Arielle Burke | F30: =IF(D30="","",(VLOOKUP(D30,'Membership #'!$A$1:$C$1005,3,0))) -> Elm Sally | G30: 42.758 | I30: 42.758
A31: 0.5084630887 | B31: 14 | C31: 24 | D31: 647 | E31: =IF(D31="","",(VLOOKUP(D31,'Membership #'!$A$1:$C$1005,2,0))) -> Courtney Parker | F31: =IF(D31="","",(VLOOKUP(D31,'Membership #'!$A$1:$C$1005,3,0))) -> BW Rare Kinda Love | G31: n | I31: No Time
A32: 0.9227605827 | B32: 4 | C32: 25 | D32: 674 | E32: =IF(D32="","",(VLOOKUP(D32,'Membership #'!$A$1:$C$1005,2,0))) -> Kyle Beaton | F32: =IF(D32="","",(VLOOKUP(D32,'Membership #'!$A$1:$C$1005,3,0))) -> Jus For Kicks | G32: x | I32: Scratch
A33: 0.1600178184 | B33: 25 | C33: 26 | D33: 530 | E33: =IF(D33="","",(VLOOKUP(D33,'Membership #'!$A$1:$C$1005,2,0))) -> Joan Grant | F33: =IF(D33="","",(VLOOKUP(D33,'Membership #'!$A$1:$C$1005,3,0))) -> SLS Dash to Holland | G33: x | I33: Scratch
A34: 0.2650352935 | B34: 20 | C34: 27 | D34: 973 | E34: =IF(D34="","",(VLOOKUP(D34,'Membership #'!$A$1:$C$1005,2,0))) -> Sara Ivey | F34: =IF(D34="","",(VLOOKUP(D34,'Membership #'!$A$1:$C$1005,3,0))) -> Ms Heavenly Gator | G34: x | I34: Scratch
A35: 0.9501396654 | B35: 3 | D35: 78 | E35: =IF(D35="","",(VLOOKUP(D35,'Membership #'!$A$1:$C$1005,2,0))) -> Stephanie Rich | F35: =IF(D35="","",(VLOOKUP(D35,'Membership #'!$A$1:$C$1005,3,0))) -> Texas Mickey | G35: x | I35: Scratch
E36: =IF(D36="","",(VLOOKUP(D36,'Membership #'!$A$1:$C$1005,2,0))) ->  | F36: =IF(D36="","",(VLOOKUP(D36,'Membership #'!$A$1:$C$1005,3,0))) ->  | I36: =IF(G36="n","No Time",IF(G36="x","Scratch",IF(G36<>"",SUM(G36+H36),""))) -> 
E37: =IF(D37="","",(VLOOKUP(D37,'Membership #'!$A$1:$C$1005,2,0))) ->  | F37: =IF(D37="","",(VLOOKUP(D37,'Membership #'!$A$1:$C$1005,3,0))) ->  | I37: =IF(G37="n","No Time",IF(G37="x","Scratch",IF(G37<>"",SUM(G37+H37),""))) -> 
E38: =IF(D38="","",(VLOOKUP(D38,'Membership #'!$A$1:$C$1005,2,0))) ->  | F38: =IF(D38="","",(VLOOKUP(D38,'Membership #'!$A$1:$C$1005,3,0))) -> 
E39: =IF(D39="","",(VLOOKUP(D39,'Membership #'!$A$1:$C$1005,2,0))) ->  | F39: =IF(D39="","",(VLOOKUP(D39,'Membership #'!$A$1:$C$1005,3,0))) -> 
A40: =IF(D40<>"",RAND(),"") ->  | B40: =IF(D40<>"",RANK(A40,A$8:A$96),"") ->  | E40: =IF(D40="","",(VLOOKUP(D40,'Membership #'!$A$1:$C$1005,2,0))) ->  | F40: =IF(D40="","",(VLOOKUP(D40,'Membership #'!$A$1:$C$1005,3,0))) -> 
E41: =IF(D41="","",(VLOOKUP(D41,'Membership #'!$A$1:$C$1005,2,0))) ->  | F41: =IF(D41="","",(VLOOKUP(D41,'Membership #'!$A$1:$C$1005,3,0))) -> 
E42: =IF(D42="","",(VLOOKUP(D42,'Membership #'!$A$1:$C$1005,2,0))) ->  | F42: =IF(D42="","",(VLOOKUP(D42,'Membership #'!$A$1:$C$1005,3,0))) -> 
E43: =IF(D43="","",(VLOOKUP(D43,'Membership #'!$A$1:$C$1005,2,0))) ->  | F43: =IF(D43="","",(VLOOKUP(D43,'Membership #'!$A$1:$C$1005,3,0))) -> 
E44: =IF(D44="","",(VLOOKUP(D44,'Membership #'!$A$1:$C$1005,2,0))) ->  | F44: =IF(D44="","",(VLOOKUP(D44,'Membership #'!$A$1:$C$1005,3,0))) -> 
E45: =IF(D45="","",(VLOOKUP(D45,'Membership #'!$A$1:$C$1005,2,0))) ->  | F45: =IF(D45="","",(VLOOKUP(D45,'Membership #'!$A$1:$C$1005,3,0))) -> 
E46: =IF(D46="","",(VLOOKUP(D46,'Membership #'!$A$1:$C$1005,2,0))) ->  | F46: =IF(D46="","",(VLOOKUP(D46,'Membership #'!$A$1:$C$1005,3,0))) -> 
E47: =IF(D47="","",(VLOOKUP(D47,'Membership #'!$A$1:$C$1005,2,0))) ->  | F47: =IF(D47="","",(VLOOKUP(D47,'Membership #'!$A$1:$C$1005,3,0))) -> 
E48: =IF(D48="","",(VLOOKUP(D48,'Membership #'!$A$1:$C$1005,2,0))) ->  | F48: =IF(D48="","",(VLOOKUP(D48,'Membership #'!$A$1:$C$1005,3,0))) -> 
E49: =IF(D49="","",(VLOOKUP(D49,'Membership #'!$A$1:$C$1005,2,0))) ->  | F49: =IF(D49="","",(VLOOKUP(D49,'Membership #'!$A$1:$C$1005,3,0))) -> 
E50: =IF(D50="","",(VLOOKUP(D50,'Membership #'!$A$1:$C$1005,2,0))) ->  | F50: =IF(D50="","",(VLOOKUP(D50,'Membership #'!$A$1:$C$1005,3,0))) -> 
E51: =IF(D51="","",(VLOOKUP(D51,'Membership #'!$A$1:$C$1005,2,0))) ->  | F51: =IF(D51="","",(VLOOKUP(D51,'Membership #'!$A$1:$C$1005,3,0))) -> 
E52: =IF(D52="","",(VLOOKUP(D52,'Membership #'!$A$1:$C$1005,2,0))) ->  | F52: =IF(D52="","",(VLOOKUP(D52,'Membership #'!$A$1:$C$1005,3,0))) -> 
E53: =IF(D53="","",(VLOOKUP(D53,'Membership #'!$A$1:$C$1005,2,0))) ->  | F53: =IF(D53="","",(VLOOKUP(D53,'Membership #'!$A$1:$C$1005,3,0))) -> 
E54: =IF(D54="","",(VLOOKUP(D54,'Membership #'!$A$1:$C$1005,2,0))) ->  | F54: =IF(D54="","",(VLOOKUP(D54,'Membership #'!$A$1:$C$1005,3,0))) -> 
E55: =IF(D55="","",(VLOOKUP(D55,'Membership #'!$A$1:$C$1005,2,0))) ->  | F55: =IF(D55="","",(VLOOKUP(D55,'Membership #'!$A$1:$C$1005,3,0))) -> 
E56: =IF(D56="","",(VLOOKUP(D56,'Membership #'!$A$1:$C$1005,2,0))) ->  | F56: =IF(D56="","",(VLOOKUP(D56,'Membership #'!$A$1:$C$1005,3,0))) ->  | I56: =IF(G56="n","No Time",IF(G56="x","Scratch",IF(G56<>"",SUM(G56+H56),""))) -> 
E57: =IF(D57="","",(VLOOKUP(D57,'Membership #'!$A$1:$C$1005,2,0))) ->  | F57: =IF(D57="","",(VLOOKUP(D57,'Membership #'!$A$1:$C$1005,3,0))) -> 
E58: =IF(D58="","",(VLOOKUP(D58,'Membership #'!$A$1:$C$1005,2,0))) ->  | F58: =IF(D58="","",(VLOOKUP(D58,'Membership #'!$A$1:$C$1005,3,0))) -> 
E59: =IF(D59="","",(VLOOKUP(D59,'Membership #'!$A$1:$C$1005,2,0))) ->  | F59: =IF(D59="","",(VLOOKUP(D59,'Membership #'!$A$1:$C$1005,3,0))) ->  | I59: =IF(G59="n","No Time",IF(G59="x","Scratch",IF(G59<>"",SUM(G59+H59),""))) -> 
E60: =IF(D60="","",(VLOOKUP(D60,'Membership #'!$A$1:$C$1005,2,0))) ->  | F60: =IF(D60="","",(VLOOKUP(D60,'Membership #'!$A$1:$C$1005,3,0))) -> 
E61: =IF(D61="","",(VLOOKUP(D61,'Membership #'!$A$1:$C$1005,2,0))) ->  | F61: =IF(D61="","",(VLOOKUP(D61,'Membership #'!$A$1:$C$1005,3,0))) -> 
E62: =IF(D62="","",(VLOOKUP(D62,'Membership #'!$A$1:$C$1005,2,0))) ->  | F62: =IF(D62="","",(VLOOKUP(D62,'Membership #'!$A$1:$C$1005,3,0))) -> 
E63: =IF(D63="","",(VLOOKUP(D63,'Membership #'!$A$1:$C$1005,2,0))) ->  | F63: =IF(D63="","",(VLOOKUP(D63,'Membership #'!$A$1:$C$1005,3,0))) -> 
E64: =IF(D64="","",(VLOOKUP(D64,'Membership #'!$A$1:$C$1005,2,0))) ->  | F64: =IF(D64="","",(VLOOKUP(D64,'Membership #'!$A$1:$C$1005,3,0))) -> 
E65: =IF(D65="","",(VLOOKUP(D65,'Membership #'!$A$1:$C$1005,2,0))) ->  | F65: =IF(D65="","",(VLOOKUP(D65,'Membership #'!$A$1:$C$1005,3,0))) -> 
E66: =IF(D66="","",(VLOOKUP(D66,'Membership #'!$A$1:$C$1005,2,0))) ->  | F66: =IF(D66="","",(VLOOKUP(D66,'Membership #'!$A$1:$C$1005,3,0))) -> 
A67: =IF(D67<>"",RAND(),"") ->  | E67: =IF(D67="","",(VLOOKUP(D67,'Membership #'!$A$1:$C$1005,2,0))) ->  | F67: =IF(D67="","",(VLOOKUP(D67,'Membership #'!$A$1:$C$1005,3,0))) -> 
E68: =IF(D68="","",(VLOOKUP(D68,'Membership #'!$A$1:$C$1005,2,0))) ->  | F68: =IF(D68="","",(VLOOKUP(D68,'Membership #'!$A$1:$C$1005,3,0))) ->  | I68: =IF(G68="n","No Time",IF(G68="x","Scratch",IF(G68<>"",SUM(G68+H68),""))) -> 
E69: =IF(D69="","",(VLOOKUP(D69,'Membership #'!$A$1:$C$1005,2,0))) ->  | F69: =IF(D69="","",(VLOOKUP(D69,'Membership #'!$A$1:$C$1005,3,0))) -> 
E70: =IF(D70="","",(VLOOKUP(D70,'Membership #'!$A$1:$C$1005,2,0))) ->  | F70: =IF(D70="","",(VLOOKUP(D70,'Membership #'!$A$1:$C$1005,3,0))) -> 
E71: =IF(D71="","",(VLOOKUP(D71,'Membership #'!$A$1:$C$1005,2,0))) ->  | F71: =IF(D71="","",(VLOOKUP(D71,'Membership #'!$A$1:$C$1005,3,0))) -> 
B72: =IF(D72<>"",RANK(A72,A$8:A$96),"") ->  | E72: =IF(D72="","",(VLOOKUP(D72,'Membership #'!$A$1:$C$1005,2,0))) ->  | F72: =IF(D72="","",(VLOOKUP(D72,'Membership #'!$A$1:$C$1005,3,0))) -> 
E73: =IF(D73="","",(VLOOKUP(D73,'Membership #'!$A$1:$C$1005,2,0))) ->  | F73: =IF(D73="","",(VLOOKUP(D73,'Membership #'!$A$1:$C$1005,3,0))) -> 
E74: =IF(D74="","",(VLOOKUP(D74,'Membership #'!$A$1:$C$1005,2,0))) ->  | F74: =IF(D74="","",(VLOOKUP(D74,'Membership #'!$A$1:$C$1005,3,0))) -> 
E75: =IF(D75="","",(VLOOKUP(D75,'Membership #'!$A$1:$C$1005,2,0))) ->  | F75: =IF(D75="","",(VLOOKUP(D75,'Membership #'!$A$1:$C$1005,3,0))) -> 
E76: =IF(D76="","",(VLOOKUP(D76,'Membership #'!$A$1:$C$1005,2,0))) ->  | F76: =IF(D76="","",(VLOOKUP(D76,'Membership #'!$A$1:$C$1005,3,0))) -> 
E77: =IF(D77="","",(VLOOKUP(D77,'Membership #'!$A$1:$C$1005,2,0))) ->  | F77: =IF(D77="","",(VLOOKUP(D77,'Membership #'!$A$1:$C$1005,3,0))) -> 
E78: =IF(D78="","",(VLOOKUP(D78,'Membership #'!$A$1:$C$1005,2,0))) ->  | F78: =IF(D78="","",(VLOOKUP(D78,'Membership #'!$A$1:$C$1005,3,0))) -> 
E79: =IF(D79="","",(VLOOKUP(D79,'Membership #'!$A$1:$C$1005,2,0))) ->  | F79: =IF(D79="","",(VLOOKUP(D79,'Membership #'!$A$1:$C$1005,3,0))) -> 
E80: =IF(D80="","",(VLOOKUP(D80,'Membership #'!$A$1:$C$1005,2,0))) ->  | F80: =IF(D80="","",(VLOOKUP(D80,'Membership #'!$A$1:$C$1005,3,0))) -> 
E81: =IF(D81="","",(VLOOKUP(D81,'Membership #'!$A$1:$C$1005,2,0))) ->  | F81: =IF(D81="","",(VLOOKUP(D81,'Membership #'!$A$1:$C$1005,3,0))) -> 
E82: =IF(D82="","",(VLOOKUP(D82,'Membership #'!$A$1:$C$1005,2,0))) ->  | F82: =IF(D82="","",(VLOOKUP(D82,'Membership #'!$A$1:$C$1005,3,0))) -> 
E83: =IF(D83="","",(VLOOKUP(D83,'Membership #'!$A$1:$C$1005,2,0))) ->  | F83: =IF(D83="","",(VLOOKUP(D83,'Membership #'!$A$1:$C$1005,3,0))) -> 
E84: =IF(D84="","",(VLOOKUP(D84,'Membership #'!$A$1:$C$1005,2,0))) ->  | F84: =IF(D84="","",(VLOOKUP(D84,'Membership #'!$A$1:$C$1005,3,0))) -> 
E85: =IF(D85="","",(VLOOKUP(D85,'Membership #'!$A$1:$C$1005,2,0))) ->  | F85: =IF(D85="","",(VLOOKUP(D85,'Membership #'!$A$1:$C$1005,3,0))) -> 
E86: =IF(D86="","",(VLOOKUP(D86,'Membership #'!$A$1:$C$1005,2,0))) ->  | F86: =IF(D86="","",(VLOOKUP(D86,'Membership #'!$A$1:$C$1005,3,0))) -> 
E87: =IF(D87="","",(VLOOKUP(D87,'Membership #'!$A$1:$C$1005,2,0))) ->  | F87: =IF(D87="","",(VLOOKUP(D87,'Membership #'!$A$1:$C$1005,3,0))) -> 
E88: =IF(D88="","",(VLOOKUP(D88,'Membership #'!$A$1:$C$1005,2,0))) ->  | F88: =IF(D88="","",(VLOOKUP(D88,'Membership #'!$A$1:$C$1005,3,0))) -> 
E89: =IF(D89="","",(VLOOKUP(D89,'Membership #'!$A$1:$C$1005,2,0))) ->  | F89: =IF(D89="","",(VLOOKUP(D89,'Membership #'!$A$1:$C$1005,3,0))) -> 
E90: =IF(D90="","",(VLOOKUP(D90,'Membership #'!$A$1:$C$1005,2,0))) ->  | F90: =IF(D90="","",(VLOOKUP(D90,'Membership #'!$A$1:$C$1005,3,0))) -> 
E91: =IF(D91="","",(VLOOKUP(D91,'Membership #'!$A$1:$C$1005,2,0))) ->  | F91: =IF(D91="","",(VLOOKUP(D91,'Membership #'!$A$1:$C$1005,3,0))) -> 
E92: =IF(D92="","",(VLOOKUP(D92,'Membership #'!$A$1:$C$1005,2,0))) ->  | F92: =IF(D92="","",(VLOOKUP(D92,'Membership #'!$A$1:$C$1005,3,0))) -> 
E93: =IF(D93="","",(VLOOKUP(D93,'Membership #'!$A$1:$C$1005,2,0))) ->  | F93: =IF(D93="","",(VLOOKUP(D93,'Membership #'!$A$1:$C$1005,3,0))) -> 
E94: =IF(D94="","",(VLOOKUP(D94,'Membership #'!$A$1:$C$1005,2,0))) ->  | F94: =IF(D94="","",(VLOOKUP(D94,'Membership #'!$A$1:$C$1005,3,0))) -> 
E95: =IF(D95="","",(VLOOKUP(D95,'Membership #'!$A$1:$C$1005,2,0))) ->  | F95: =IF(D95="","",(VLOOKUP(D95,'Membership #'!$A$1:$C$1005,3,0))) -> 
E96: =IF(D96="","",(VLOOKUP(D96,'Membership #'!$A$1:$C$1005,2,0))) ->  | F96: =IF(D96="","",(VLOOKUP(D96,'Membership #'!$A$1:$C$1005,3,0))) -> 

Sheet NOVICE POLES
A1: Tom Burt & Mark McGuire Memorial Jackpot Aug 22, 2021 | M1: x=Scratch
A2: NOVICE POLES | M2: n=No Time
A3: # Enteries: | E3: =COUNTIF($D$8:$D$97,">0") -> 19 | R3: Don't Erase these numbers below!!
A4: Rand Draw | B4: Seed | C4: Running Order | D4: RING # | E4: NAME | F4: HORSE NAME | G4: TIME | H4: PENALTY | I4: TOTAL | J4: PLACINGS | K4: POINTS | R4: =IF(N9=2,7,IF(N9=3,6,IF(N9=4,5,IF(N9=5,4,IF(AND(N9>5,N11>600),3,IF(AND(N9>5,N11<600,N11>299.99),2,IF(AND(N9>5,N11<300),1,8))))))) -> 1 | S4: 1 | T4: 2 | U4: 3 | V4: 4 | W4: 5 | X4: 6 | Y4: 7 | Z4: 8
S5: 299 | T5: $300- | U5: $600 -
M6: NOVICE POLES | S6: or less | T6: 599 | U6: More | V6: 5 Entries | W6: 4 Entries | X6: 3 Entries | Y6: 2 Entries
R7: 1st | S7: 0.32 | T7: 0.27 | U7: 0.24 | V7: 0.35 | W7: 0.4 | X7: 0.46 | Y7: 0.6
A8: =IF(D8<>"",RAND(),"") -> 0.7670164831 | B8: =IF(D8<>"",RANK(A8,A$8:A$98),"") -> 4 | C8: 1 | D8: 556 | E8: =IF(D8="","",(VLOOKUP(D8,'Membership #'!$A$1:$C$1005,2,0))) -> Stephaine Clark | F8: =IF(D8="","",(VLOOKUP(D8,'Membership #'!$A$1:$C$1005,3,0))) -> Perks A Flyin | G8: 23.029 | I8: =IF(G8="n","No Time",IF(G8="x","Scratch",IF(G8<>"",SUM(G8+H8),""))) -> 23.029 | M8: Added | N8: 75 | R8: 2nd | S8: 0.23 | T8: 0.22 | U8: 0.19 | V8: 0.25 | W8: 0.28 | X8: 0.34 | Y8: 0.4
A9: 0.03729367037 | B9: 18 | C9: 2 | D9: 750 | E9: =IF(D9="","",(VLOOKUP(D9,'Membership #'!$A$1:$C$1005,2,0))) -> Tanya Kennedy | F9: =IF(D9="","",(VLOOKUP(D9,'Membership #'!$A$1:$C$1005,3,0))) -> Old Stations Pride | G9: 23.096 | I9: 23.096 | M9: Entries | N9: 19 | P9: 10 | Q9: per head | R9: 3rd | S9: 0.15 | T9: 0.18 | U9: 0.16 | V9: 0.17 | W9: 0.18 | X9: 0.2
A10: 0.4521631461 | B10: 9 | C10: 3 | D10: 909 | E10: =IF(D10="","",(VLOOKUP(D10,'Membership #'!$A$1:$C$1005,2,0))) -> Rebecca Gillis | F10: =IF(D10="","",(VLOOKUP(D10,'Membership #'!$A$1:$C$1005,3,0))) -> Martha's Tivio Moon | G10: 23.579 | I10: 23.579 | M10: Jackpot | N10: =P9*N9 -> 190 | P10: 0.85 | Q10: payback | R10: 4th | S10: 0.12 | T10: 0.13 | U10: 0.13 | V10: 0.13 | W10: 0.14
A11: 0.228850613 | B11: 14 | C11: 4 | D11: 928 | E11: =IF(D11="","",(VLOOKUP(D11,'Membership #'!$A$1:$C$1005,2,0))) -> Tessa Dicks | F11: =IF(D11="","",(VLOOKUP(D11,'Membership #'!$A$1:$C$1005,3,0))) -> ELM Dash of Crime | G11: 25.134 | I11: 25.134 | M11: Total Money | N11: =N8+(N10*P10) -> 236.5 | P11: =N10*P10 -> 161.5 | Q11: Jackpot | R11: 5th | S11: 0.1 | T11: 0.09 | U11: 0.08 | V11: 0.1
A12: 0.3966934136 | B12: 12 | C12: 5 | D12: 904 | E12: =IF(D12="","",(VLOOKUP(D12,'Membership #'!$A$1:$C$1005,2,0))) -> Ella Cowley | F12: =IF(D12="","",(VLOOKUP(D12,'Membership #'!$A$1:$C$1005,3,0))) -> Blazin Boots | G12: 26.748 | I12: 26.748 | N12: Percentage | O12: Money | P12: Ring # | R12: 6th | S12: 0.08 | T12: 0.06 | U12: 0.06
A13: 0.05002940119 | B13: 17 | C13: 6 | D13: 600 | E13: =IF(D13="","",(VLOOKUP(D13,'Membership #'!$A$1:$C$1005,2,0))) -> Stan Brown | F13: =IF(D13="","",(VLOOKUP(D13,'Membership #'!$A$1:$C$1005,3,0))) -> A Perty Sure Thing | G13: 27.312 | I13: 27.312 | M13: 1st | N13: =HLOOKUP($R$4,$S$4:$Z$17,4,0) -> 0.32 | O13: =IF(N13<>0,N$11*N13,"") -> 75.68 | Q13: =IF(P13="","",(VLOOKUP(P13,'Membership #'!$A$1:$C$1005,2,0))) ->  | R13: 7th | T13: 0.03 | U13: 0.05
A14: 0.9532913316 | B14: 2 | C14: 7 | D14: 973 | E14: =IF(D14="","",(VLOOKUP(D14,'Membership #'!$A$1:$C$1005,2,0))) -> Sara Ivey | F14: =IF(D14="","",(VLOOKUP(D14,'Membership #'!$A$1:$C$1005,3,0))) -> Ms Heavenly Gator | G14: 27.821 | I14: 27.821 | M14: 2nd | N14: =HLOOKUP($R$4,$S$4:$Z$17,5,0) -> 0.23 | O14: 54.395 | Q14: =IF(P14="","",(VLOOKUP(P14,'Membership #'!$A$1:$C$1005,2,0))) ->  | R14: 8th | T14: 0.02 | U14: 0.04
A15: 0.4742773219 | B15: 8 | C15: 8 | D15: 954 | E15: =IF(D15="","",(VLOOKUP(D15,'Membership #'!$A$1:$C$1005,2,0))) -> Scotia MacEachern | F15: =IF(D15="","",(VLOOKUP(D15,'Membership #'!$A$1:$C$1005,3,0))) -> Hick-a-Licious | G15: 28.008 | I15: 28.008 | M15: 3rd | N15: =HLOOKUP($R$4,$S$4:$Z$17,6,0) -> 0.15 | O15: 35.475 | Q15: =IF(P15="","",(VLOOKUP(P15,'Membership #'!$A$1:$C$1005,2,0))) ->  | R15: 9th | U15: 0.03
A16: 0.08060015006 | B16: 16 | C16: 9 | D16: 966 | E16: =IF(D16="","",(VLOOKUP(D16,'Membership #'!$A$1:$C$1005,2,0))) -> Ava Anderson | F16: =IF(D16="","",(VLOOKUP(D16,'Membership #'!$A$1:$C$1005,3,0))) -> Black Sass | G16: 29.093 | I16: 29.093 | M16: 4th | N16: =HLOOKUP($R$4,$S$4:$Z$17,7,0) -> 0.12 | O16: 28.38 | Q16: =IF(P16="","",(VLOOKUP(P16,'Membership #'!$A$1:$C$1005,2,0))) ->  | R16: 10th | U16: 0.02
A17: 0.2540618345 | B17: 13 | C17: 10 | D17: 753 | E17: =IF(D17="","",(VLOOKUP(D17,'Membership #'!$A$1:$C$1005,2,0))) -> Kayla Boudreau | F17: =IF(D17="","",(VLOOKUP(D17,'Membership #'!$A$1:$C$1005,3,0))) -> Lady Jane | G17: 30.347 | I17: 30.347 | M17: 5th | N17: =HLOOKUP($R$4,$S$4:$Z$17,8,0) -> 0.1 | O17: 23.65 | Q17: =IF(P17="","",(VLOOKUP(P17,'Membership #'!$A$1:$C$1005,2,0))) -> 
A18: 0.5539111024 | B18: 7 | C18: 11 | D18: 855 | E18: =IF(D18="","",(VLOOKUP(D18,'Membership #'!$A$1:$C$1005,2,0))) -> Jenelle Collier | F18: =IF(D18="","",(VLOOKUP(D18,'Membership #'!$A$1:$C$1005,3,0))) -> Peppy Sans Surprise | G18: 28.133 | H18: 10 | I18: 38.133 | M18: 6th | N18: =HLOOKUP($R$4,$S$4:$Z$17,9,0) -> 0.08 | O18: 18.92 | Q18: =IF(P18="","",(VLOOKUP(P18,'Membership #'!$A$1:$C$1005,2,0))) -> 
A19: 0.6690988104 | B19: 5 | C19: 12 | D19: 892 | E19: =IF(D19="","",(VLOOKUP(D19,'Membership #'!$A$1:$C$1005,2,0))) -> Donnie MacNeil | F19: =IF(D19="","",(VLOOKUP(D19,'Membership #'!$A$1:$C$1005,3,0))) -> Gifted Go Gold | G19: 24.611 | H19: 15 | I19: 39.611 | M19: 7th | N19: =HLOOKUP($R$4,$S$4:$Z$17,10,0) -> 0 | Q19: =IF(P19="","",(VLOOKUP(P19,'Membership #'!$A$1:$C$1005,2,0))) -> 
A20: 0.02791073048 | B20: 19 | C20: 13 | D20: 652 | E20: =IF(D20="","",(VLOOKUP(D20,'Membership #'!$A$1:$C$1005,2,0))) -> Molly O'Grady | F20: =IF(D20="","",(VLOOKUP(D20,'Membership #'!$A$1:$C$1005,3,0))) -> Teelano's Twister | G20: 37.495 | H20: 10 | I20: 47.495 | M20: 8th | N20: =HLOOKUP($R$4,$S$4:$Z$17,11,0) -> 0 | Q20: =IF(P20="","",(VLOOKUP(P20,'Membership #'!$A$1:$C$1005,2,0))) -> 
A21: 0.4253683643 | B21: 10 | C21: 14 | D21: 732 | E21: =IF(D21="","",(VLOOKUP(D21,'Membership #'!$A$1:$C$1005,2,0))) -> Brenna Carrigan | F21: =IF(D21="","",(VLOOKUP(D21,'Membership #'!$A$1:$C$1005,3,0))) -> Carlos | G21: 45.548 | H21: 5 | I21: 50.548 | M21: 9th | N21: =HLOOKUP($R$4,$S$4:$Z$17,12,0) -> 0 | Q21: =IF(P21="","",(VLOOKUP(P21,'Membership #'!$A$1:$C$1005,2,0))) -> 
A22: 0.9601928677 | B22: 1 | C22: 15 | D22: 716 | E22: =IF(D22="","",(VLOOKUP(D22,'Membership #'!$A$1:$C$1005,2,0))) -> Kayla Martin | F22: =IF(D22="","",(VLOOKUP(D22,'Membership #'!$A$1:$C$1005,3,0))) -> Dash Ta Home | G22: n | I22: No Time | M22: 10th | N22: =HLOOKUP($R$4,$S$4:$Z$17,13,0) -> 0
A23: 0.5663681625 | B23: 6 | C23: 16 | D23: 78 | E23: =IF(D23="","",(VLOOKUP(D23,'Membership #'!$A$1:$C$1005,2,0))) -> Stephanie Rich | F23: =IF(D23="","",(VLOOKUP(D23,'Membership #'!$A$1:$C$1005,3,0))) -> Texas Mickey | G23: x | I23: Scratch | M23: Total Money | O23: =SUM(O13:O22) -> 236.5
A24: 0.1059956386 | B24: 15 | C24: 17 | D24: 889 | E24: =IF(D24="","",(VLOOKUP(D24,'Membership #'!$A$1:$C$1005,2,0))) -> Adelaine Cowley | F24: =IF(D24="","",(VLOOKUP(D24,'Membership #'!$A$1:$C$1005,3,0))) -> Frenchman's Promise | G24: x | I24: Scratch
A25: 0.9513516599 | B25: 3 | C25: 18 | D25: 971 | E25: =IF(D25="","",(VLOOKUP(D25,'Membership #'!$A$1:$C$1005,2,0))) -> Arielle Burke | F25: =IF(D25="","",(VLOOKUP(D25,'Membership #'!$A$1:$C$1005,3,0))) -> Elm Sally | G25: x | I25: Scratch | O25: =IF(M25="","",(VLOOKUP(M25,'Membership #'!$A$1:$C$1005,3,0))) -> 
A26: 0.4087253615 | B26: 11 | C26: 19 | D26: 746 | E26: =IF(D26="","",(VLOOKUP(D26,'Membership #'!$A$1:$C$1005,2,0))) -> Cassie MacDonald | F26: =IF(D26="","",(VLOOKUP(D26,'Membership #'!$A$1:$C$1005,3,0))) -> Sandy Dew | G26: x | I26: Scratch
E27: =IF(D27="","",(VLOOKUP(D27,'Membership #'!$A$1:$C$1005,2,0))) ->  | F27: =IF(D27="","",(VLOOKUP(D27,'Membership #'!$A$1:$C$1005,3,0))) ->  | I27: =IF(G27="n","No Time",IF(G27="x","Scratch",IF(G27<>"",SUM(G27+H27),""))) -> 
E28: =IF(D28="","",(VLOOKUP(D28,'Membership #'!$A$1:$C$1005,2,0))) ->  | F28: =IF(D28="","",(VLOOKUP(D28,'Membership #'!$A$1:$C$1005,3,0))) -> 
E29: =IF(D29="","",(VLOOKUP(D29,'Membership #'!$A$1:$C$1005,2,0))) ->  | F29: =IF(D29="","",(VLOOKUP(D29,'Membership #'!$A$1:$C$1005,3,0))) -> 
E30: =IF(D30="","",(VLOOKUP(D30,'Membership #'!$A$1:$C$1005,2,0))) ->  | F30: =IF(D30="","",(VLOOKUP(D30,'Membership #'!$A$1:$C$1005,3,0))) -> 
E31: =IF(D31="","",(VLOOKUP(D31,'Membership #'!$A$1:$C$1005,2,0))) ->  | F31: =IF(D31="","",(VLOOKUP(D31,'Membership #'!$A$1:$C$1005,3,0))) -> 
E32: =IF(D32="","",(VLOOKUP(D32,'Membership #'!$A$1:$C$1005,2,0))) ->  | F32: =IF(D32="","",(VLOOKUP(D32,'Membership #'!$A$1:$C$1005,3,0))) -> 
E33: =IF(D33="","",(VLOOKUP(D33,'Membership #'!$A$1:$C$1005,2,0))) ->  | F33: =IF(D33="","",(VLOOKUP(D33,'Membership #'!$A$1:$C$1005,3,0))) -> 
E34: =IF(D34="","",(VLOOKUP(D34,'Membership #'!$A$1:$C$1005,2,0))) ->  | F34: =IF(D34="","",(VLOOKUP(D34,'Membership #'!$A$1:$C$1005,3,0))) ->  | I34: =IF(G34="n","No Time",IF(G34="x","Scratch",IF(G34<>"",SUM(G34+H34),""))) -> 
E35: =IF(D35="","",(VLOOKUP(D35,'Membership #'!$A$1:$C$1005,2,0))) ->  | F35: =IF(D35="","",(VLOOKUP(D35,'Membership #'!$A$1:$C$1005,3,0))) -> 
E36: =IF(D36="","",(VLOOKUP(D36,'Membership #'!$A$1:$C$1005,2,0))) ->  | F36: =IF(D36="","",(VLOOKUP(D36,'Membership #'!$A$1:$C$1005,3,0))) -> 
E37: =IF(D37="","",(VLOOKUP(D37,'Membership #'!$A$1:$C$1005,2,0))) ->  | F37: =IF(D37="","",(VLOOKUP(D37,'Membership #'!$A$1:$C$1005,3,0))) -> 
E38: =IF(D38="","",(VLOOKUP(D38,'Membership #'!$A$1:$C$1005,2,0))) ->  | F38: =IF(D38="","",(VLOOKUP(D38,'Membership #'!$A$1:$C$1005,3,0))) ->  | I38: =IF(G38="n","No Time",IF(G38="x","Scratch",IF(G38<>"",SUM(G38+H38),""))) -> 
E39: =IF(D39="","",(VLOOKUP(D39,'Membership #'!$A$1:$C$1005,2,0))) ->  | F39: =IF(D39="","",(VLOOKUP(D39,'Membership #'!$A$1:$C$1005,3,0))) -> 
B40: =IF(D40<>"",RANK(A40,A$8:A$98),"") ->  | E40: =IF(D40="","",(VLOOKUP(D40,'Membership #'!$A$1:$C$1005,2,0))) ->  | F40: =IF(D40="","",(VLOOKUP(D40,'Membership #'!$A$1:$C$1005,3,0))) -> 
E41: =IF(D41="","",(VLOOKUP(D41,'Membership #'!$A$1:$C$1005,2,0))) ->  | F41: =IF(D41="","",(VLOOKUP(D41,'Membership #'!$A$1:$C$1005,3,0))) -> 
E42: =IF(D42="","",(VLOOKUP(D42,'Membership #'!$A$1:$C$1005,2,0))) ->  | F42: =IF(D42="","",(VLOOKUP(D42,'Membership #'!$A$1:$C$1005,3,0))) -> 
E43: =IF(D43="","",(VLOOKUP(D43,'Membership #'!$A$1:$C$1005,2,0))) ->  | F43: =IF(D43="","",(VLOOKUP(D43,'Membership #'!$A$1:$C$1005,3,0))) -> 
E44: =IF(D44="","",(VLOOKUP(D44,'Membership #'!$A$1:$C$1005,2,0))) ->  | F44: =IF(D44="","",(VLOOKUP(D44,'Membership #'!$A$1:$C$1005,3,0))) -> 
E45: =IF(D45="","",(VLOOKUP(D45,'Membership #'!$A$1:$C$1005,2,0))) ->  | F45: =IF(D45="","",(VLOOKUP(D45,'Membership #'!$A$1:$C$1005,3,0))) -> 
E46: =IF(D46="","",(VLOOKUP(D46,'Membership #'!$A$1:$C$1005,2,0))) ->  | F46: =IF(D46="","",(VLOOKUP(D46,'Membership #'!$A$1:$C$1005,3,0))) -> 
E47: =IF(D47="","",(VLOOKUP(D47,'Membership #'!$A$1:$C$1005,2,0))) ->  | F47: =IF(D47="","",(VLOOKUP(D47,'Membership #'!$A$1:$C$1005,3,0))) -> 
E48: =IF(D48="","",(VLOOKUP(D48,'Membership #'!$A$1:$C$1005,2,0))) ->  | F48: =IF(D48="","",(VLOOKUP(D48,'Membership #'!$A$1:$C$1005,3,0))) -> 
E49: =IF(D49="","",(VLOOKUP(D49,'Membership #'!$A$1:$C$1005,2,0))) ->  | F49: =IF(D49="","",(VLOOKUP(D49,'Membership #'!$A$1:$C$1005,3,0))) -> 
E50: =IF(D50="","",(VLOOKUP(D50,'Membership #'!$A$1:$C$1005,2,0))) ->  | F50: =IF(D50="","",(VLOOKUP(D50,'Membership #'!$A$1:$C$1005,3,0))) -> 
E51: =IF(D51="","",(VLOOKUP(D51,'Membership #'!$A$1:$C$1005,2,0))) ->  | F51: =IF(D51="","",(VLOOKUP(D51,'Membership #'!$A$1:$C$1005,3,0))) -> 
E52: =IF(D52="","",(VLOOKUP(D52,'Membership #'!$A$1:$C$1005,2,0))) ->  | F52: =IF(D52="","",(VLOOKUP(D52,'Membership #'!$A$1:$C$1005,3,0))) -> 
E53: =IF(D53="","",(VLOOKUP(D53,'Membership #'!$A$1:$C$1005,2,0))) ->  | F53: =IF(D53="","",(VLOOKUP(D53,'Membership #'!$A$1:$C$1005,3,0))) -> 
E54: =IF(D54="","",(VLOOKUP(D54,'Membership #'!$A$1:$C$1005,2,0))) ->  | F54: =IF(D54="","",(VLOOKUP(D54,'Membership #'!$A$1:$C$1005,3,0))) -> 
E55: =IF(D55="","",(VLOOKUP(D55,'Membership #'!$A$1:$C$1005,2,0))) ->  | F55: =IF(D55="","",(VLOOKUP(D55,'Membership #'!$A$1:$C$1005,3,0))) -> 
E56: =IF(D56="","",(VLOOKUP(D56,'Membership #'!$A$1:$C$1005,2,0))) ->  | F56: =IF(D56="","",(VLOOKUP(D56,'Membership #'!$A$1:$C$1005,3,0))) -> 
E57: =IF(D57="","",(VLOOKUP(D57,'Membership #'!$A$1:$C$1005,2,0))) ->  | F57: =IF(D57="","",(VLOOKUP(D57,'Membership #'!$A$1:$C$1005,3,0))) -> 
E58: =IF(D58="","",(VLOOKUP(D58,'Membership #'!$A$1:$C$1005,2,0))) ->  | F58: =IF(D58="","",(VLOOKUP(D58,'Membership #'!$A$1:$C$1005,3,0))) -> 
E59: =IF(D59="","",(VLOOKUP(D59,'Membership #'!$A$1:$C$1005,2,0))) ->  | F59: =IF(D59="","",(VLOOKUP(D59,'Membership #'!$A$1:$C$1005,3,0))) -> 
E60: =IF(D60="","",(VLOOKUP(D60,'Membership #'!$A$1:$C$1005,2,0))) ->  | F60: =IF(D60="","",(VLOOKUP(D60,'Membership #'!$A$1:$C$1005,3,0))) -> 
E61: =IF(D61="","",(VLOOKUP(D61,'Membership #'!$A$1:$C$1005,2,0))) ->  | F61: =IF(D61="","",(VLOOKUP(D61,'Membership #'!$A$1:$C$1005,3,0))) -> 
E62: =IF(D62="","",(VLOOKUP(D62,'Membership #'!$A$1:$C$1005,2,0))) ->  | F62: =IF(D62="","",(VLOOKUP(D62,'Membership #'!$A$1:$C$1005,3,0))) -> 
E63: =IF(D63="","",(VLOOKUP(D63,'Membership #'!$A$1:$C$1005,2,0))) ->  | F63: =IF(D63="","",(VLOOKUP(D63,'Membership #'!$A$1:$C$1005,3,0))) -> 
E64: =IF(D64="","",(VLOOKUP(D64,'Membership #'!$A$1:$C$1005,2,0))) ->  | F64: =IF(D64="","",(VLOOKUP(D64,'Membership #'!$A$1:$C$1005,3,0))) -> 
E65: =IF(D65="","",(VLOOKUP(D65,'Membership #'!$A$1:$C$1005,2,0))) ->  | F65: =IF(D65="","",(VLOOKUP(D65,'Membership #'!$A$1:$C$1005,3,0))) -> 
E66: =IF(D66="","",(VLOOKUP(D66,'Membership #'!$A$1:$C$1005,2,0))) ->  | F66: =IF(D66="","",(VLOOKUP(D66,'Membership #'!$A$1:$C$1005,3,0))) -> 
E67: =IF(D67="","",(VLOOKUP(D67,'Membership #'!$A$1:$C$1005,2,0))) ->  | F67: =IF(D67="","",(VLOOKUP(D67,'Membership #'!$A$1:$C$1005,3,0))) -> 
E68: =IF(D68="","",(VLOOKUP(D68,'Membership #'!$A$1:$C$1005,2,0))) ->  | F68: =IF(D68="","",(VLOOKUP(D68,'Membership #'!$A$1:$C$1005,3,0))) -> 
A69: =IF(D69<>"",RAND(),"") ->  | E69: =IF(D69="","",(VLOOKUP(D69,'Membership #'!$A$1:$C$1005,2,0))) ->  | F69: =IF(D69="","",(VLOOKUP(D69,'Membership #'!$A$1:$C$1005,3,0))) -> 
E70: =IF(D70="","",(VLOOKUP(D70,'Membership #'!$A$1:$C$1005,2,0))) ->  | F70: =IF(D70="","",(VLOOKUP(D70,'Membership #'!$A$1:$C$1005,3,0))) ->  | I70: =IF(G70="n","No Time",IF(G70="x","Scratch",IF(G70<>"",SUM(G70+H70),""))) -> 
E71: =IF(D71="","",(VLOOKUP(D71,'Membership #'!$A$1:$C$1005,2,0))) ->  | F71: =IF(D71="","",(VLOOKUP(D71,'Membership #'!$A$1:$C$1005,3,0))) -> 
B72: =IF(D72<>"",RANK(A72,A$8:A$98),"") ->  | E72: =IF(D72="","",(VLOOKUP(D72,'Membership #'!$A$1:$C$1005,2,0))) ->  | F72: =IF(D72="","",(VLOOKUP(D72,'Membership #'!$A$1:$C$1005,3,0))) -> 
E73: =IF(D73="","",(VLOOKUP(D73,'Membership #'!$A$1:$C$1005,2,0))) ->  | F73: =IF(D73="","",(VLOOKUP(D73,'Membership #'!$A$1:$C$1005,3,0))) -> 
E74: =IF(D74="","",(VLOOKUP(D74,'Membership #'!$A$1:$C$1005,2,0))) ->  | F74: =IF(D74="","",(VLOOKUP(D74,'Membership #'!$A$1:$C$1005,3,0))) -> 
E75: =IF(D75="","",(VLOOKUP(D75,'Membership #'!$A$1:$C$1005,2,0))) ->  | F75: =IF(D75="","",(VLOOKUP(D75,'Membership #'!$A$1:$C$1005,3,0))) -> 
E76: =IF(D76="","",(VLOOKUP(D76,'Membership #'!$A$1:$C$1005,2,0))) ->  | F76: =IF(D76="","",(VLOOKUP(D76,'Membership #'!$A$1:$C$1005,3,0))) -> 
E77: =IF(D77="","",(VLOOKUP(D77,'Membership #'!$A$1:$C$1005,2,0))) ->  | F77: =IF(D77="","",(VLOOKUP(D77,'Membership #'!$A$1:$C$1005,3,0))) -> 
E78: =IF(D78="","",(VLOOKUP(D78,'Membership #'!$A$1:$C$1005,2,0))) ->  | F78: =IF(D78="","",(VLOOKUP(D78,'Membership #'!$A$1:$C$1005,3,0))) -> 
E79: =IF(D79="","",(VLOOKUP(D79,'Membership #'!$A$1:$C$1005,2,0))) ->  | F79: =IF(D79="","",(VLOOKUP(D79,'Membership #'!$A$1:$C$1005,3,0))) -> 
E80: =IF(D80="","",(VLOOKUP(D80,'Membership #'!$A$1:$C$1005,2,0))) ->  | F80: =IF(D80="","",(VLOOKUP(D80,'Membership #'!$A$1:$C$1005,3,0))) -> 
E81: =IF(D81="","",(VLOOKUP(D81,'Membership #'!$A$1:$C$1005,2,0))) ->  | F81: =IF(D81="","",(VLOOKUP(D81,'Membership #'!$A$1:$C$1005,3,0))) -> 
E82: =IF(D82="","",(VLOOKUP(D82,'Membership #'!$A$1:$C$1005,2,0))) ->  | F82: =IF(D82="","",(VLOOKUP(D82,'Membership #'!$A$1:$C$1005,3,0))) -> 
E83: =IF(D83="","",(VLOOKUP(D83,'Membership #'!$A$1:$C$1005,2,0))) ->  | F83: =IF(D83="","",(VLOOKUP(D83,'Membership #'!$A$1:$C$1005,3,0))) -> 
E84: =IF(D84="","",(VLOOKUP(D84,'Membership #'!$A$1:$C$1005,2,0))) ->  | F84: =IF(D84="","",(VLOOKUP(D84,'Membership #'!$A$1:$C$1005,3,0))) -> 
E85: =IF(D85="","",(VLOOKUP(D85,'Membership #'!$A$1:$C$1005,2,0))) ->  | F85: =IF(D85="","",(VLOOKUP(D85,'Membership #'!$A$1:$C$1005,3,0))) -> 
E86: =IF(D86="","",(VLOOKUP(D86,'Membership #'!$A$1:$C$1005,2,0))) ->  | F86: =IF(D86="","",(VLOOKUP(D86,'Membership #'!$A$1:$C$1005,3,0))) -> 
E87: =IF(D87="","",(VLOOKUP(D87,'Membership #'!$A$1:$C$1005,2,0))) ->  | F87: =IF(D87="","",(VLOOKUP(D87,'Membership #'!$A$1:$C$1005,3,0))) -> 
E88: =IF(D88="","",(VLOOKUP(D88,'Membership #'!$A$1:$C$1005,2,0))) ->  | F88: =IF(D88="","",(VLOOKUP(D88,'Membership #'!$A$1:$C$1005,3,0))) -> 
E89: =IF(D89="","",(VLOOKUP(D89,'Membership #'!$A$1:$C$1005,2,0))) ->  | F89: =IF(D89="","",(VLOOKUP(D89,'Membership #'!$A$1:$C$1005,3,0))) -> 
E90: =IF(D90="","",(VLOOKUP(D90,'Membership #'!$A$1:$C$1005,2,0))) ->  | F90: =IF(D90="","",(VLOOKUP(D90,'Membership #'!$A$1:$C$1005,3,0))) -> 
E91: =IF(D91="","",(VLOOKUP(D91,'Membership #'!$A$1:$C$1005,2,0))) ->  | F91: =IF(D91="","",(VLOOKUP(D91,'Membership #'!$A$1:$C$1005,3,0))) -> 
E92: =IF(D92="","",(VLOOKUP(D92,'Membership #'!$A$1:$C$1005,2,0))) ->  | F92: =IF(D92="","",(VLOOKUP(D92,'Membership #'!$A$1:$C$1005,3,0))) -> 
E93: =IF(D93="","",(VLOOKUP(D93,'Membership #'!$A$1:$C$1005,2,0))) ->  | F93: =IF(D93="","",(VLOOKUP(D93,'Membership #'!$A$1:$C$1005,3,0))) -> 
E94: =IF(D94="","",(VLOOKUP(D94,'Membership #'!$A$1:$C$1005,2,0))) ->  | F94: =IF(D94="","",(VLOOKUP(D94,'Membership #'!$A$1:$C$1005,3,0))) -> 
E95: =IF(D95="","",(VLOOKUP(D95,'Membership #'!$A$1:$C$1005,2,0))) ->  | F95: =IF(D95="","",(VLOOKUP(D95,'Membership #'!$A$1:$C$1005,3,0))) -> 
E96: =IF(D96="","",(VLOOKUP(D96,'Membership #'!$A$1:$C$1005,2,0))) ->  | F96: =IF(D96="","",(VLOOKUP(D96,'Membership #'!$A$1:$C$1005,3,0))) -> 
E97: =IF(D97="","",(VLOOKUP(D97,'Membership #'!$A$1:$C$1005,2,0))) ->  | F97: =IF(D97="","",(VLOOKUP(D97,'Membership #'!$A$1:$C$1005,3,0))) -> 
E98: =IF(D98="","",(VLOOKUP(D98,'Membership #'!$A$1:$C$1005,2,0))) ->  | F98: =IF(D98="","",(VLOOKUP(D98,'Membership #'!$A$1:$C$1005,3,0))) -> 

Sheet OPEN POLES
A1: Tom Burt & Mark McGuire Memorial Jackpot Aug 22, 2021 | M1: x=Scratch
A2: OPEN POLES | M2: n=No Time
A3: # Enteries: | E3: =COUNTIF($D$8:$D$100,">0") -> 20 | R3: Don't Erase these numbers below!!
A4: Rand Draw | B4: Seed | C4: Running Order | D4: RING # | E4: NAME | F4: HORSE NAME | G4: TIME | H4: PENALTY | I4: TOTAL | J4: PLACINGS | K4: POINTS | R4: =IF(N9=2,7,IF(N9=3,6,IF(N9=4,5,IF(N9=5,4,IF(AND(N9>5,N11>600),3,IF(AND(N9>5,N11<600,N11>299.99),2,IF(AND(N9>5,N11<300),1,8))))))) -> 2 | S4: 1 | T4: 2 | U4: 3 | V4: 4 | W4: 5 | X4: 6 | Y4: 7 | Z4: 8
S5: 299 | T5: $300- | U5: $600 -
M6: OPEN Poles | S6: or less | T6: 599 | U6: More | V6: 5 Entries | W6: 4 Entries | X6: 3 Entries | Y6: 2 Entries
R7: 1st | S7: 0.32 | T7: 0.27 | U7: 0.24 | V7: 0.35 | W7: 0.4 | X7: 0.46 | Y7: 0.6
A8: =IF(D8<>"",RAND(),"") -> 0.9473977013 | B8: =IF(D8<>"",RANK(A8,A$8:A$101),"") -> 1 | C8: 1 | D8: 616 | E8: =IF(D8="","",(VLOOKUP(D8,'Membership #'!$A$1:$C$1005,2,0))) -> Judy Bateman | F8: =IF(D8="","",(VLOOKUP(D8,'Membership #'!$A$1:$C$1005,3,0))) -> HM HollywoodRockstar | G8: 22.471 | I8: =IF(G8="n","No Time",IF(G8="x","Scratch",IF(G8<>"",SUM(G8+H8),""))) -> 22.471 | M8: Added | N8: 150 | R8: 2nd | S8: 0.23 | T8: 0.22 | U8: 0.19 | V8: 0.25 | W8: 0.28 | X8: 0.34 | Y8: 0.4
A9: =IF(D9<>"",RAND(),"") -> 0.4415347452 | B9: =IF(D9<>"",RANK(A9,A$8:A$101),"") -> 13 | C9: 2 | D9: 695 | E9: =IF(D9="","",(VLOOKUP(D9,'Membership #'!$A$1:$C$1005,2,0))) -> Tessa Dicks | F9: =IF(D9="","",(VLOOKUP(D9,'Membership #'!$A$1:$C$1005,3,0))) -> Charge's Dusty Luck | G9: 23.19 | I9: 23.19 | M9: Entries | N9: 19 | P9: 20 | Q9: per head | R9: 3rd | S9: 0.15 | T9: 0.18 | U9: 0.16 | V9: 0.17 | W9: 0.18 | X9: 0.2
A10: =IF(D10<>"",RAND(),"") -> 0.5715580667 | B10: =IF(D10<>"",RANK(A10,A$8:A$101),"") -> 11 | C10: 3 | D10: 909 | E10: =IF(D10="","",(VLOOKUP(D10,'Membership #'!$A$1:$C$1005,2,0))) -> Rebecca Gillis | F10: =IF(D10="","",(VLOOKUP(D10,'Membership #'!$A$1:$C$1005,3,0))) -> Martha's Tivio Moon | G10: 23.673 | I10: 23.673 | M10: Jackpot | N10: =P9*N9 -> 380 | P10: 0.85 | Q10: payback | R10: 4th | S10: 0.12 | T10: 0.13 | U10: 0.13 | V10: 0.13 | W10: 0.14
A11: =IF(D11<>"",RAND(),"") -> 0.5951959356 | B11: =IF(D11<>"",RANK(A11,A$8:A$101),"") -> 10 | C11: 4 | D11: 855 | E11: =IF(D11="","",(VLOOKUP(D11,'Membership #'!$A$1:$C$1005,2,0))) -> Jenelle Collier | F11: =IF(D11="","",(VLOOKUP(D11,'Membership #'!$A$1:$C$1005,3,0))) -> Peppy Sans Surprise | G11: 24.63 | I11: 24.63 | M11: Total Money | N11: =N8+(N10*P10) -> 473 | P11: =N10*P10 -> 323 | Q11: Jackpot | R11: 5th | S11: 0.1 | T11: 0.09 | U11: 0.08 | V11: 0.1
A12: 0.9083620045 | B12: 2 | C12: 5 | D12: 732 | E12: =IF(D12="","",(VLOOKUP(D12,'Membership #'!$A$1:$C$1005,2,0))) -> Brenna Carrigan | F12: =IF(D12="","",(VLOOKUP(D12,'Membership #'!$A$1:$C$1005,3,0))) -> Carlos | G12: 25.75 | I12: 25.75 | N12: Percentage | O12: Money | P12: Ring # | R12: 6th | S12: 0.08 | T12: 0.06 | U12: 0.06
A13: 0.3484006208 | B13: 15 | C13: 7 | D13: 703 | E13: =IF(D13="","",(VLOOKUP(D13,'Membership #'!$A$1:$C$1005,2,0))) -> Chris Baker | F13: =IF(D13="","",(VLOOKUP(D13,'Membership #'!$A$1:$C$1005,3,0))) -> Jamer All Fired Up | G13: 21.522 | H13: 5 | I13: 26.522 | M13: 1st | N13: =HLOOKUP($R$4,$S$4:$Z$17,4,0) -> 0.27 | O13: =IF(N13<>0,N$11*N13,"") -> 127.71 | Q13: =IF(P13="","",(VLOOKUP(P13,'Membership #'!$A$1:$C$1005,2,0))) ->  | R13: 7th | T13: 0.03 | U13: 0.05
A14: 0.4793459742 | B14: 12 | C14: 8 | D14: 966 | E14: =IF(D14="","",(VLOOKUP(D14,'Membership #'!$A$1:$C$1005,2,0))) -> Ava Anderson | F14: =IF(D14="","",(VLOOKUP(D14,'Membership #'!$A$1:$C$1005,3,0))) -> Black Sass | G14: 26.816 | I14: 26.816 | M14: 2nd | N14: =HLOOKUP($R$4,$S$4:$Z$17,5,0) -> 0.22 | O14: 104.06 | Q14: =IF(P14="","",(VLOOKUP(P14,'Membership #'!$A$1:$C$1005,2,0))) ->  | R14: 8th | T14: 0.02 | U14: 0.04
A15: 0.2011696613 | B15: 18 | C15: 9 | D15: 516 | E15: =IF(D15="","",(VLOOKUP(D15,'Membership #'!$A$1:$C$1005,2,0))) -> Laurie Don Reginato | F15: =IF(D15="","",(VLOOKUP(D15,'Membership #'!$A$1:$C$1005,3,0))) -> TCR Gold Runny | G15: 22.292 | H15: 5 | I15: 27.292 | M15: 3rd | N15: =HLOOKUP($R$4,$S$4:$Z$17,6,0) -> 0.18 | O15: 85.14 | Q15: =IF(P15="","",(VLOOKUP(P15,'Membership #'!$A$1:$C$1005,2,0))) ->  | R15: 9th | U15: 0.03
A16: 0.8484914616 | B16: 7 | C16: 10 | D16: 914 | E16: =IF(D16="","",(VLOOKUP(D16,'Membership #'!$A$1:$C$1005,2,0))) -> Shelby MacPherson | F16: =IF(D16="","",(VLOOKUP(D16,'Membership #'!$A$1:$C$1005,3,0))) -> Shelbys Badger Bar | G16: 22.585 | H16: 5 | I16: 27.585 | M16: 4th | N16: =HLOOKUP($R$4,$S$4:$Z$17,7,0) -> 0.13 | O16: 61.49 | Q16: =IF(P16="","",(VLOOKUP(P16,'Membership #'!$A$1:$C$1005,2,0))) ->  | R16: 10th | U16: 0.02
A17: 0.1076599874 | B17: 19 | C17: 6 | D17: 892 | E17: =IF(D17="","",(VLOOKUP(D17,'Membership #'!$A$1:$C$1005,2,0))) -> Donnie MacNeil | F17: =IF(D17="","",(VLOOKUP(D17,'Membership #'!$A$1:$C$1005,3,0))) -> Gifted Go Gold | G17: 26.463 | H17: 5 | I17: 31.463 | M17: 5th | N17: =HLOOKUP($R$4,$S$4:$Z$17,8,0) -> 0.09 | O17: 42.57 | Q17: =IF(P17="","",(VLOOKUP(P17,'Membership #'!$A$1:$C$1005,2,0))) -> 
A18: 0.8575827047 | B18: 6 | C18: 11 | D18: 922 | E18: =IF(D18="","",(VLOOKUP(D18,'Membership #'!$A$1:$C$1005,2,0))) -> Stevi Jardine | F18: =IF(D18="","",(VLOOKUP(D18,'Membership #'!$A$1:$C$1005,3,0))) -> Paytons Pretty Cool | G18: 21.624 | H18: 10 | I18: 31.624 | M18: 6th | N18: =HLOOKUP($R$4,$S$4:$Z$17,9,0) -> 0.06 | O18: 28.38 | Q18: =IF(P18="","",(VLOOKUP(P18,'Membership #'!$A$1:$C$1005,2,0))) -> 
A19: 0.8865066733 | B19: 3 | C19: 12 | D19: 777 | E19: =IF(D19="","",(VLOOKUP(D19,'Membership #'!$A$1:$C$1005,2,0))) -> Julia Parker | F19: =IF(D19="","",(VLOOKUP(D19,'Membership #'!$A$1:$C$1005,3,0))) -> Doc's Spirit Prairie | G19: 21.78 | H19: 10 | I19: 31.78 | M19: 7th | N19: =HLOOKUP($R$4,$S$4:$Z$17,10,0) -> 0.03 | O19: 14.19 | Q19: =IF(P19="","",(VLOOKUP(P19,'Membership #'!$A$1:$C$1005,2,0))) -> 
A20: 0.7027913343 | B20: 8 | C20: 13 | D20: 698 | E20: =IF(D20="","",(VLOOKUP(D20,'Membership #'!$A$1:$C$1005,2,0))) -> Kaleigh Denton | F20: =IF(D20="","",(VLOOKUP(D20,'Membership #'!$A$1:$C$1005,3,0))) -> Coleasaki | G20: 22.039 | H20: 10 | I20: 32.039 | M20: 8th | N20: =HLOOKUP($R$4,$S$4:$Z$17,11,0) -> 0.02 | O20: 9.46 | Q20: =IF(P20="","",(VLOOKUP(P20,'Membership #'!$A$1:$C$1005,2,0))) -> 
A21: 0.2805792256 | B21: 17 | C21: 14 | D21: 684 | E21: =IF(D21="","",(VLOOKUP(D21,'Membership #'!$A$1:$C$1005,2,0))) -> Shann Cox | F21: =IF(D21="","",(VLOOKUP(D21,'Membership #'!$A$1:$C$1005,3,0))) -> Jags Cash Flow | G21: 22.85 | H21: 10 | I21: 32.85 | M21: 9th | N21: =HLOOKUP($R$4,$S$4:$Z$17,12,0) -> 0 | Q21: =IF(P21="","",(VLOOKUP(P21,'Membership #'!$A$1:$C$1005,2,0))) -> 
A22: 0.614499381 | B22: 9 | C22: 15 | D22: 700 | E22: =IF(D22="","",(VLOOKUP(D22,'Membership #'!$A$1:$C$1005,2,0))) -> Lindsay Baker | F22: =IF(D22="","",(VLOOKUP(D22,'Membership #'!$A$1:$C$1005,3,0))) -> Boons Laughing Boy | G22: 35.157 | H22: 15 | I22: 50.157 | M22: 10th | N22: =HLOOKUP($R$4,$S$4:$Z$17,13,0) -> 0 | Q22: =IF(P22="","",(VLOOKUP(P22,'Membership #'!$A$1:$C$1005,2,0))) -> 
A23: 0.8759711358 | B23: 4 | C23: 16 | D23: 904 | E23: =IF(D23="","",(VLOOKUP(D23,'Membership #'!$A$1:$C$1005,2,0))) -> Ella Cowley | F23: =IF(D23="","",(VLOOKUP(D23,'Membership #'!$A$1:$C$1005,3,0))) -> Blazin Boots | G23: n | I23: No Time | M23: Total Money | O23: =SUM(O13:O22) -> 473
A24: 0.05695352013 | B24: 20 | C24: 17 | D24: 674 | E24: =IF(D24="","",(VLOOKUP(D24,'Membership #'!$A$1:$C$1005,2,0))) -> Kyle Beaton | F24: =IF(D24="","",(VLOOKUP(D24,'Membership #'!$A$1:$C$1005,3,0))) -> Jus For Kicks | G24: x | I24: Scratch
A25: 0.423468457 | B25: 14 | C25: 18 | D25: 971 | E25: =IF(D25="","",(VLOOKUP(D25,'Membership #'!$A$1:$C$1005,2,0))) -> Arielle Burke | F25: =IF(D25="","",(VLOOKUP(D25,'Membership #'!$A$1:$C$1005,3,0))) -> Elm Sally | G25: x | I25: Scratch
A26: 0.3379247773 | B26: 16 | C26: 19 | D26: 973 | E26: =IF(D26="","",(VLOOKUP(D26,'Membership #'!$A$1:$C$1005,2,0))) -> Sara Ivey | F26: =IF(D26="","",(VLOOKUP(D26,'Membership #'!$A$1:$C$1005,3,0))) -> Ms Heavenly Gator | G26: x | I26: Scratch
A27: 0.8637091693 | B27: 5 | D27: 78 | E27: =IF(D27="","",(VLOOKUP(D27,'Membership #'!$A$1:$C$1005,2,0))) -> Stephanie Rich | F27: =IF(D27="","",(VLOOKUP(D27,'Membership #'!$A$1:$C$1005,3,0))) -> Texas Mickey | G27: x | I27: Scratch
E28: =IF(D28="","",(VLOOKUP(D28,'Membership #'!$A$1:$C$1005,2,0))) ->  | F28: =IF(D28="","",(VLOOKUP(D28,'Membership #'!$A$1:$C$1005,3,0))) ->  | I28: =IF(G28="n","No Time",IF(G28="x","Scratch",IF(G28<>"",SUM(G28+H28),""))) -> 
E29: =IF(D29="","",(VLOOKUP(D29,'Membership #'!$A$1:$C$1005,2,0))) ->  | F29: =IF(D29="","",(VLOOKUP(D29,'Membership #'!$A$1:$C$1005,3,0))) -> 
E30: =IF(D30="","",(VLOOKUP(D30,'Membership #'!$A$1:$C$1005,2,0))) ->  | F30: =IF(D30="","",(VLOOKUP(D30,'Membership #'!$A$1:$C$1005,3,0))) -> 
A31: =IF(D31<>"",RAND(),"") ->  | B31: =IF(D31<>"",RANK(A31,A$8:A$101),"") ->  | E31: =IF(D31="","",(VLOOKUP(D31,'Membership #'!$A$1:$C$1005,2,0))) ->  | F31: =IF(D31="","",(VLOOKUP(D31,'Membership #'!$A$1:$C$1005,3,0))) ->  | I31: =IF(G31="n","No Time",IF(G31="x","Scratch",IF(G31<>"",SUM(G31+H31),""))) -> 
E32: =IF(D32="","",(VLOOKUP(D32,'Membership #'!$A$1:$C$1005,2,0))) ->  | F32: =IF(D32="","",(VLOOKUP(D32,'Membership #'!$A$1:$C$1005,3,0))) -> 
E33: =IF(D33="","",(VLOOKUP(D33,'Membership #'!$A$1:$C$1005,2,0))) ->  | F33: =IF(D33="","",(VLOOKUP(D33,'Membership #'!$A$1:$C$1005,3,0))) -> 
E34: =IF(D34="","",(VLOOKUP(D34,'Membership #'!$A$1:$C$1005,2,0))) ->  | F34: =IF(D34="","",(VLOOKUP(D34,'Membership #'!$A$1:$C$1005,3,0))) ->  | I34: =IF(G34="n","No Time",IF(G34="x","Scratch",IF(G34<>"",SUM(G34+H34),""))) -> 
E35: =IF(D35="","",(VLOOKUP(D35,'Membership #'!$A$1:$C$1005,2,0))) ->  | F35: =IF(D35="","",(VLOOKUP(D35,'Membership #'!$A$1:$C$1005,3,0))) ->  | I35: =IF(G35="n","No Time",IF(G35="x","Scratch",IF(G35<>"",SUM(G35+H35),""))) -> 
E36: =IF(D36="","",(VLOOKUP(D36,'Membership #'!$A$1:$C$1005,2,0))) ->  | F36: =IF(D36="","",(VLOOKUP(D36,'Membership #'!$A$1:$C$1005,3,0))) -> 
E37: =IF(D37="","",(VLOOKUP(D37,'Membership #'!$A$1:$C$1005,2,0))) ->  | F37: =IF(D37="","",(VLOOKUP(D37,'Membership #'!$A$1:$C$1005,3,0))) -> 
E38: =IF(D38="","",(VLOOKUP(D38,'Membership #'!$A$1:$C$1005,2,0))) ->  | F38: =IF(D38="","",(VLOOKUP(D38,'Membership #'!$A$1:$C$1005,3,0))) ->  | I38: =IF(G38="n","No Time",IF(G38="x","Scratch",IF(G38<>"",SUM(G38+H38),""))) -> 
E39: =IF(D39="","",(VLOOKUP(D39,'Membership #'!$A$1:$C$1005,2,0))) ->  | F39: =IF(D39="","",(VLOOKUP(D39,'Membership #'!$A$1:$C$1005,3,0))) -> 
B40: =IF(D40<>"",RANK(A40,A$8:A$101),"") ->  | E40: =IF(D40="","",(VLOOKUP(D40,'Membership #'!$A$1:$C$1005,2,0))) ->  | F40: =IF(D40="","",(VLOOKUP(D40,'Membership #'!$A$1:$C$1005,3,0))) -> 
E41: =IF(D41="","",(VLOOKUP(D41,'Membership #'!$A$1:$C$1005,2,0))) ->  | F41: =IF(D41="","",(VLOOKUP(D41,'Membership #'!$A$1:$C$1005,3,0))) -> 
E42: =IF(D42="","",(VLOOKUP(D42,'Membership #'!$A$1:$C$1005,2,0))) ->  | F42: =IF(D42="","",(VLOOKUP(D42,'Membership #'!$A$1:$C$1005,3,0))) -> 
E43: =IF(D43="","",(VLOOKUP(D43,'Membership #'!$A$1:$C$1005,2,0))) ->  | F43: =IF(D43="","",(VLOOKUP(D43,'Membership #'!$A$1:$C$1005,3,0))) -> 
E44: =IF(D44="","",(VLOOKUP(D44,'Membership #'!$A$1:$C$1005,2,0))) ->  | F44: =IF(D44="","",(VLOOKUP(D44,'Membership #'!$A$1:$C$1005,3,0))) -> 
E45: =IF(D45="","",(VLOOKUP(D45,'Membership #'!$A$1:$C$1005,2,0))) ->  | F45: =IF(D45="","",(VLOOKUP(D45,'Membership #'!$A$1:$C$1005,3,0))) -> 
E46: =IF(D46="","",(VLOOKUP(D46,'Membership #'!$A$1:$C$1005,2,0))) ->  | F46: =IF(D46="","",(VLOOKUP(D46,'Membership #'!$A$1:$C$1005,3,0))) -> 
E47: =IF(D47="","",(VLOOKUP(D47,'Membership #'!$A$1:$C$1005,2,0))) ->  | F47: =IF(D47="","",(VLOOKUP(D47,'Membership #'!$A$1:$C$1005,3,0))) -> 
E48: =IF(D48="","",(VLOOKUP(D48,'Membership #'!$A$1:$C$1005,2,0))) ->  | F48: =IF(D48="","",(VLOOKUP(D48,'Membership #'!$A$1:$C$1005,3,0))) -> 
E49: =IF(D49="","",(VLOOKUP(D49,'Membership #'!$A$1:$C$1005,2,0))) ->  | F49: =IF(D49="","",(VLOOKUP(D49,'Membership #'!$A$1:$C$1005,3,0))) -> 
E50: =IF(D50="","",(VLOOKUP(D50,'Membership #'!$A$1:$C$1005,2,0))) ->  | F50: =IF(D50="","",(VLOOKUP(D50,'Membership #'!$A$1:$C$1005,3,0))) -> 
E51: =IF(D51="","",(VLOOKUP(D51,'Membership #'!$A$1:$C$1005,2,0))) ->  | F51: =IF(D51="","",(VLOOKUP(D51,'Membership #'!$A$1:$C$1005,3,0))) -> 
E52: =IF(D52="","",(VLOOKUP(D52,'Membership #'!$A$1:$C$1005,2,0))) ->  | F52: =IF(D52="","",(VLOOKUP(D52,'Membership #'!$A$1:$C$1005,3,0))) -> 
E53: =IF(D53="","",(VLOOKUP(D53,'Membership #'!$A$1:$C$1005,2,0))) ->  | F53: =IF(D53="","",(VLOOKUP(D53,'Membership #'!$A$1:$C$1005,3,0))) -> 
E54: =IF(D54="","",(VLOOKUP(D54,'Membership #'!$A$1:$C$1005,2,0))) ->  | F54: =IF(D54="","",(VLOOKUP(D54,'Membership #'!$A$1:$C$1005,3,0))) -> 
E55: =IF(D55="","",(VLOOKUP(D55,'Membership #'!$A$1:$C$1005,2,0))) ->  | F55: =IF(D55="","",(VLOOKUP(D55,'Membership #'!$A$1:$C$1005,3,0))) -> 
E56: =IF(D56="","",(VLOOKUP(D56,'Membership #'!$A$1:$C$1005,2,0))) ->  | F56: =IF(D56="","",(VLOOKUP(D56,'Membership #'!$A$1:$C$1005,3,0))) -> 
E57: =IF(D57="","",(VLOOKUP(D57,'Membership #'!$A$1:$C$1005,2,0))) ->  | F57: =IF(D57="","",(VLOOKUP(D57,'Membership #'!$A$1:$C$1005,3,0))) -> 
E58: =IF(D58="","",(VLOOKUP(D58,'Membership #'!$A$1:$C$1005,2,0))) ->  | F58: =IF(D58="","",(VLOOKUP(D58,'Membership #'!$A$1:$C$1005,3,0))) -> 
E59: =IF(D59="","",(VLOOKUP(D59,'Membership #'!$A$1:$C$1005,2,0))) ->  | F59: =IF(D59="","",(VLOOKUP(D59,'Membership #'!$A$1:$C$1005,3,0))) -> 
E60: =IF(D60="","",(VLOOKUP(D60,'Membership #'!$A$1:$C$1005,2,0))) ->  | F60: =IF(D60="","",(VLOOKUP(D60,'Membership #'!$A$1:$C$1005,3,0))) -> 
E61: =IF(D61="","",(VLOOKUP(D61,'Membership #'!$A$1:$C$1005,2,0))) ->  | F61: =IF(D61="","",(VLOOKUP(D61,'Membership #'!$A$1:$C$1005,3,0))) -> 
E62: =IF(D62="","",(VLOOKUP(D62,'Membership #'!$A$1:$C$1005,2,0))) ->  | F62: =IF(D62="","",(VLOOKUP(D62,'Membership #'!$A$1:$C$1005,3,0))) -> 
E63: =IF(D63="","",(VLOOKUP(D63,'Membership #'!$A$1:$C$1005,2,0))) ->  | F63: =IF(D63="","",(VLOOKUP(D63,'Membership #'!$A$1:$C$1005,3,0))) -> 
E64: =IF(D64="","",(VLOOKUP(D64,'Membership #'!$A$1:$C$1005,2,0))) ->  | F64: =IF(D64="","",(VLOOKUP(D64,'Membership #'!$A$1:$C$1005,3,0))) -> 
E65: =IF(D65="","",(VLOOKUP(D65,'Membership #'!$A$1:$C$1005,2,0))) ->  | F65: =IF(D65="","",(VLOOKUP(D65,'Membership #'!$A$1:$C$1005,3,0))) -> 
E66: =IF(D66="","",(VLOOKUP(D66,'Membership #'!$A$1:$C$1005,2,0))) ->  | F66: =IF(D66="","",(VLOOKUP(D66,'Membership #'!$A$1:$C$1005,3,0))) -> 
E67: =IF(D67="","",(VLOOKUP(D67,'Membership #'!$A$1:$C$1005,2,0))) ->  | F67: =IF(D67="","",(VLOOKUP(D67,'Membership #'!$A$1:$C$1005,3,0))) -> 
E68: =IF(D68="","",(VLOOKUP(D68,'Membership #'!$A$1:$C$1005,2,0))) ->  | F68: =IF(D68="","",(VLOOKUP(D68,'Membership #'!$A$1:$C$1005,3,0))) -> 
E69: =IF(D69="","",(VLOOKUP(D69,'Membership #'!$A$1:$C$1005,2,0))) ->  | F69: =IF(D69="","",(VLOOKUP(D69,'Membership #'!$A$1:$C$1005,3,0))) -> 
E70: =IF(D70="","",(VLOOKUP(D70,'Membership #'!$A$1:$C$1005,2,0))) ->  | F70: =IF(D70="","",(VLOOKUP(D70,'Membership #'!$A$1:$C$1005,3,0))) -> 
E71: =IF(D71="","",(VLOOKUP(D71,'Membership #'!$A$1:$C$1005,2,0))) ->  | F71: =IF(D71="","",(VLOOKUP(D71,'Membership #'!$A$1:$C$1005,3,0))) -> 
B72: =IF(D72<>"",RANK(A72,A$8:A$101),"") ->  | E72: =IF(D72="","",(VLOOKUP(D72,'Membership #'!$A$1:$C$1005,2,0))) ->  | F72: =IF(D72="","",(VLOOKUP(D72,'Membership #'!$A$1:$C$1005,3,0))) -> 
E73: =IF(D73="","",(VLOOKUP(D73,'Membership #'!$A$1:$C$1005,2,0))) ->  | F73: =IF(D73="","",(VLOOKUP(D73,'Membership #'!$A$1:$C$1005,3,0))) ->  | I73: =IF(G73="n","No Time",IF(G73="x","Scratch",IF(G73<>"",SUM(G73+H73),""))) -> 
E74: =IF(D74="","",(VLOOKUP(D74,'Membership #'!$A$1:$C$1005,2,0))) ->  | F74: =IF(D74="","",(VLOOKUP(D74,'Membership #'!$A$1:$C$1005,3,0))) -> 
E75: =IF(D75="","",(VLOOKUP(D75,'Membership #'!$A$1:$C$1005,2,0))) ->  | F75: =IF(D75="","",(VLOOKUP(D75,'Membership #'!$A$1:$C$1005,3,0))) -> 
E76: =IF(D76="","",(VLOOKUP(D76,'Membership #'!$A$1:$C$1005,2,0))) ->  | F76: =IF(D76="","",(VLOOKUP(D76,'Membership #'!$A$1:$C$1005,3,0))) -> 
E77: =IF(D77="","",(VLOOKUP(D77,'Membership #'!$A$1:$C$1005,2,0))) ->  | F77: =IF(D77="","",(VLOOKUP(D77,'Membership #'!$A$1:$C$1005,3,0))) -> 
E78: =IF(D78="","",(VLOOKUP(D78,'Membership #'!$A$1:$C$1005,2,0))) ->  | F78: =IF(D78="","",(VLOOKUP(D78,'Membership #'!$A$1:$C$1005,3,0))) -> 
E79: =IF(D79="","",(VLOOKUP(D79,'Membership #'!$A$1:$C$1005,2,0))) ->  | F79: =IF(D79="","",(VLOOKUP(D79,'Membership #'!$A$1:$C$1005,3,0))) -> 
E80: =IF(D80="","",(VLOOKUP(D80,'Membership #'!$A$1:$C$1005,2,0))) ->  | F80: =IF(D80="","",(VLOOKUP(D80,'Membership #'!$A$1:$C$1005,3,0))) -> 
E81: =IF(D81="","",(VLOOKUP(D81,'Membership #'!$A$1:$C$1005,2,0))) ->  | F81: =IF(D81="","",(VLOOKUP(D81,'Membership #'!$A$1:$C$1005,3,0))) -> 
E82: =IF(D82="","",(VLOOKUP(D82,'Membership #'!$A$1:$C$1005,2,0))) ->  | F82: =IF(D82="","",(VLOOKUP(D82,'Membership #'!$A$1:$C$1005,3,0))) -> 
E83: =IF(D83="","",(VLOOKUP(D83,'Membership #'!$A$1:$C$1005,2,0))) ->  | F83: =IF(D83="","",(VLOOKUP(D83,'Membership #'!$A$1:$C$1005,3,0))) -> 
E84: =IF(D84="","",(VLOOKUP(D84,'Membership #'!$A$1:$C$1005,2,0))) ->  | F84: =IF(D84="","",(VLOOKUP(D84,'Membership #'!$A$1:$C$1005,3,0))) -> 
E85: =IF(D85="","",(VLOOKUP(D85,'Membership #'!$A$1:$C$1005,2,0))) ->  | F85: =IF(D85="","",(VLOOKUP(D85,'Membership #'!$A$1:$C$1005,3,0))) -> 
E86: =IF(D86="","",(VLOOKUP(D86,'Membership #'!$A$1:$C$1005,2,0))) ->  | F86: =IF(D86="","",(VLOOKUP(D86,'Membership #'!$A$1:$C$1005,3,0))) -> 
A87: =IF(D87<>"",RAND(),"") ->  | E87: =IF(D87="","",(VLOOKUP(D87,'Membership #'!$A$1:$C$1005,2,0))) ->  | F87: =IF(D87="","",(VLOOKUP(D87,'Membership #'!$A$1:$C$1005,3,0))) -> 
E88: =IF(D88="","",(VLOOKUP(D88,'Membership #'!$A$1:$C$1005,2,0))) ->  | F88: =IF(D88="","",(VLOOKUP(D88,'Membership #'!$A$1:$C$1005,3,0))) -> 
E89: =IF(D89="","",(VLOOKUP(D89,'Membership #'!$A$1:$C$1005,2,0))) ->  | F89: =IF(D89="","",(VLOOKUP(D89,'Membership #'!$A$1:$C$1005,3,0))) -> 
E90: =IF(D90="","",(VLOOKUP(D90,'Membership #'!$A$1:$C$1005,2,0))) ->  | F90: =IF(D90="","",(VLOOKUP(D90,'Membership #'!$A$1:$C$1005,3,0))) -> 
E91: =IF(D91="","",(VLOOKUP(D91,'Membership #'!$A$1:$C$1005,2,0))) ->  | F91: =IF(D91="","",(VLOOKUP(D91,'Membership #'!$A$1:$C$1005,3,0))) -> 
E92: =IF(D92="","",(VLOOKUP(D92,'Membership #'!$A$1:$C$1005,2,0))) ->  | F92: =IF(D92="","",(VLOOKUP(D92,'Membership #'!$A$1:$C$1005,3,0))) -> 
E93: =IF(D93="","",(VLOOKUP(D93,'Membership #'!$A$1:$C$1005,2,0))) ->  | F93: =IF(D93="","",(VLOOKUP(D93,'Membership #'!$A$1:$C$1005,3,0))) -> 
E94: =IF(D94="","",(VLOOKUP(D94,'Membership #'!$A$1:$C$1005,2,0))) ->  | F94: =IF(D94="","",(VLOOKUP(D94,'Membership #'!$A$1:$C$1005,3,0))) -> 
E95: =IF(D95="","",(VLOOKUP(D95,'Membership #'!$A$1:$C$1005,2,0))) ->  | F95: =IF(D95="","",(VLOOKUP(D95,'Membership #'!$A$1:$C$1005,3,0))) -> 
E96: =IF(D96="","",(VLOOKUP(D96,'Membership #'!$A$1:$C$1005,2,0))) ->  | F96: =IF(D96="","",(VLOOKUP(D96,'Membership #'!$A$1:$C$1005,3,0))) -> 
E97: =IF(D97="","",(VLOOKUP(D97,'Membership #'!$A$1:$C$1005,2,0))) ->  | F97: =IF(D97="","",(VLOOKUP(D97,'Membership #'!$A$1:$C$1005,3,0))) -> 
E98: =IF(D98="","",(VLOOKUP(D98,'Membership #'!$A$1:$C$1005,2,0))) ->  | F98: =IF(D98="","",(VLOOKUP(D98,'Membership #'!$A$1:$C$1005,3,0))) -> 
E99: =IF(D99="","",(VLOOKUP(D99,'Membership #'!$A$1:$C$1005,2,0))) ->  | F99: =IF(D99="","",(VLOOKUP(D99,'Membership #'!$A$1:$C$1005,3,0))) -> 
E100: =IF(D100="","",(VLOOKUP(D100,'Membership #'!$A$1:$C$1005,2,0))) ->  | F100: =IF(D100="","",(VLOOKUP(D100,'Membership #'!$A$1:$C$1005,3,0))) -> 
E101: =IF(D101="","",(VLOOKUP(D101,'Membership #'!$A$1:$C$1005,2,0))) ->  | F101: =IF(D101="","",(VLOOKUP(D101,'Membership #'!$A$1:$C$1005,3,0))) -> 

Sheet 3D Barrels
A1: Tom Burt & Mark McGuire Memorial Jackpot Aug 21, 2021 | M1: x=Scratch
A2: 3D Barrels | M2: n=No Time
A3: # Enteries: | E3: =COUNTIF($D$8:$D$102,">0") -> 0 | R3: 1 -29 horses per class pay 3 placings
A4: Rand Draw | B4: Seed | C4: Running Order | D4: RING # | E4: NAME | F4: HORSE NAME | G4: TIME | H4: PENALTY | I4: TOTAL | J4: PLACINGS | K4: POINTS | M4: 3D Sponsored By | R4: 30 -39 horses per class pay 4 placings
R5: 40 and over horses per class pay 5 placings
M6: 3D Barrels
S7: 5 Entries | T7: 4 Entries | U7: 3 Entries | V7: 2 Entries
A8: =IF(D8<>"",RAND(),"") ->  | B8: =IF(D8<>"",RANK(A8,A$8:A$103),"") ->  | C8: 1 | E8: =IF(D8="","",(VLOOKUP(D8,'Membership #'!$A$1:$C$1005,2,0))) ->  | F8: =IF(D8="","",(VLOOKUP(D8,'Membership #'!$A$1:$C$1005,3,0))) ->  | I8: =IF(G8="n","No Time",IF(G8="x","Scratch",IF(G8<>"",SUM(G8+H8),""))) ->  | M8: Added | R8: 1st | S8: 0.35 | T8: 0.4 | U8: 0.5 | V8: 0.6
C9: 2 | E9: =IF(D9="","",(VLOOKUP(D9,'Membership #'!$A$1:$C$1005,2,0))) ->  | F9: =IF(D9="","",(VLOOKUP(D9,'Membership #'!$A$1:$C$1005,3,0))) ->  | M9: Entries | P9: 15 | Q9: per head | R9: 2nd | S9: 0.25 | T9: 0.3 | U9: 0.3 | V9: 0.4
C10: 3 | E10: =IF(D10="","",(VLOOKUP(D10,'Membership #'!$A$1:$C$1005,2,0))) ->  | F10: =IF(D10="","",(VLOOKUP(D10,'Membership #'!$A$1:$C$1005,3,0))) ->  | M10: Jackpot | N10: =P9*N9 -> 0 | P10: 0.85 | Q10: payback | R10: 3rd | S10: 0.2 | T10: 0.2 | U10: 0.2
C11: 4 | E11: =IF(D11="","",(VLOOKUP(D11,'Membership #'!$A$1:$C$1005,2,0))) ->  | F11: =IF(D11="","",(VLOOKUP(D11,'Membership #'!$A$1:$C$1005,3,0))) ->  | M11: Total Money | N11: =N8+(N10*P10) -> 0 | P11: =N10*P10 -> 0 | Q11: Jackpot | R11: 4th | S11: 0.15 | T11: 0.1
C12: 5 | E12: =IF(D12="","",(VLOOKUP(D12,'Membership #'!$A$1:$C$1005,2,0))) ->  | F12: =IF(D12="","",(VLOOKUP(D12,'Membership #'!$A$1:$C$1005,3,0))) ->  | M12: 1D | N12: Percentage | O12: Money | P12: Ring # | R12: 5th | S12: 0.05
C13: 6 | E13: =IF(D13="","",(VLOOKUP(D13,'Membership #'!$A$1:$C$1005,2,0))) ->  | F13: =IF(D13="","",(VLOOKUP(D13,'Membership #'!$A$1:$C$1005,3,0))) ->  | M13: 1st | N13: 0.35 | O13: =N$11/3*N13 -> 0 | Q13: =IF(P13="","",(VLOOKUP(P13,'Membership #'!$A$1:$C$1005,2,0))) -> 
C14: 7 | E14: =IF(D14="","",(VLOOKUP(D14,'Membership #'!$A$1:$C$1005,2,0))) ->  | F14: =IF(D14="","",(VLOOKUP(D14,'Membership #'!$A$1:$C$1005,3,0))) ->  | M14: 2nd | N14: 0.25 | O14: =N$11/3*N14 -> 0 | Q14: =IF(P14="",0,(VLOOKUP(P14,'Membership #'!$A$1:$C$1005,2,0))) -> 0
C15: 8 | E15: =IF(D15="","",(VLOOKUP(D15,'Membership #'!$A$1:$C$1005,2,0))) ->  | F15: =IF(D15="","",(VLOOKUP(D15,'Membership #'!$A$1:$C$1005,3,0))) ->  | M15: 3rd | N15: 0.2 | O15: =N$11/3*N15 -> 0 | Q15: =IF(P15="",0,(VLOOKUP(P15,'Membership #'!$A$1:$C$1005,2,0))) -> 0
C16: 9 | E16: =IF(D16="","",(VLOOKUP(D16,'Membership #'!$A$1:$C$1005,2,0))) ->  | F16: =IF(D16="","",(VLOOKUP(D16,'Membership #'!$A$1:$C$1005,3,0))) ->  | M16: 4th | N16: 0.15 | O16: =N$11/3*N16 -> 0 | Q16: =IF(P16="",0,(VLOOKUP(P16,'Membership #'!$A$1:$C$1005,2,0))) -> 0
C17: 10 | E17: =IF(D17="","",(VLOOKUP(D17,'Membership #'!$A$1:$C$1005,2,0))) ->  | F17: =IF(D17="","",(VLOOKUP(D17,'Membership #'!$A$1:$C$1005,3,0))) ->  | M17: 5th | N17: 0.05 | O17: =N$11/3*N17 -> 0 | Q17: =IF(P17="","",(VLOOKUP(P17,'Membership #'!$A$1:$C$1005,2,0))) -> 
C18: 11 | E18: =IF(D18="","",(VLOOKUP(D18,'Membership #'!$A$1:$C$1005,2,0))) ->  | F18: =IF(D18="","",(VLOOKUP(D18,'Membership #'!$A$1:$C$1005,3,0))) ->  | M18: 2D | N18: Percentage | O18: Money | P18: Ring #
C19: 12 | E19: =IF(D19="","",(VLOOKUP(D19,'Membership #'!$A$1:$C$1005,2,0))) ->  | F19: =IF(D19="","",(VLOOKUP(D19,'Membership #'!$A$1:$C$1005,3,0))) ->  | M19: 1st | N19: 0.35 | O19: =N$11/3*N19 -> 0 | Q19: =IF(P19="","",(VLOOKUP(P19,'Membership #'!$A$1:$C$1005,2,0))) -> 
C20: 13 | E20: =IF(D20="","",(VLOOKUP(D20,'Membership #'!$A$1:$C$1005,2,0))) ->  | F20: =IF(D20="","",(VLOOKUP(D20,'Membership #'!$A$1:$C$1005,3,0))) ->  | M20: 2nd | N20: 0.25 | O20: =N$11/3*N20 -> 0 | Q20: =IF(P20="","",(VLOOKUP(P20,'Membership #'!$A$1:$C$1005,2,0))) -> 
C21: 14 | E21: =IF(D21="","",(VLOOKUP(D21,'Membership #'!$A$1:$C$1005,2,0))) ->  | F21: =IF(D21="","",(VLOOKUP(D21,'Membership #'!$A$1:$C$1005,3,0))) ->  | M21: 3rd | N21: 0.2 | O21: =N$11/3*N21 -> 0 | Q21: =IF(P21="","",(VLOOKUP(P21,'Membership #'!$A$1:$C$1005,2,0))) -> 
C22: 15 | E22: =IF(D22="","",(VLOOKUP(D22,'Membership #'!$A$1:$C$1005,2,0))) ->  | F22: =IF(D22="","",(VLOOKUP(D22,'Membership #'!$A$1:$C$1005,3,0))) ->  | M22: 4th | N22: 0.15 | O22: =N$11/3*N22 -> 0 | Q22: =IF(P22="","",(VLOOKUP(P22,'Membership #'!$A$1:$C$1005,2,0))) -> 
C23: 16 | E23: =IF(D23="","",(VLOOKUP(D23,'Membership #'!$A$1:$C$1005,2,0))) ->  | F23: =IF(D23="","",(VLOOKUP(D23,'Membership #'!$A$1:$C$1005,3,0))) ->  | M23: 5th | N23: 0.05 | O23: =N$11/3*N23 -> 0 | Q23: =IF(P23="","",(VLOOKUP(P23,'Membership #'!$A$1:$C$1005,2,0))) -> 
C24: 17 | E24: =IF(D24="","",(VLOOKUP(D24,'Membership #'!$A$1:$C$1005,2,0))) ->  | F24: =IF(D24="","",(VLOOKUP(D24,'Membership #'!$A$1:$C$1005,3,0))) ->  | M24: 3D | N24: Percentage | O24: Money | P24: Ring #
C25: 18 | E25: =IF(D25="","",(VLOOKUP(D25,'Membership #'!$A$1:$C$1005,2,0))) ->  | F25: =IF(D25="","",(VLOOKUP(D25,'Membership #'!$A$1:$C$1005,3,0))) ->  | M25: 1st | N25: 0.35 | O25: =N$11/3*N25 -> 0 | Q25: =IF(P25="","",(VLOOKUP(P25,'Membership #'!$A$1:$C$1005,2,0))) -> 
C26: 19 | E26: =IF(D26="","",(VLOOKUP(D26,'Membership #'!$A$1:$C$1005,2,0))) ->  | F26: =IF(D26="","",(VLOOKUP(D26,'Membership #'!$A$1:$C$1005,3,0))) ->  | M26: 2nd | N26: 0.25 | O26: =N$11/3*N26 -> 0 | Q26: =IF(P26="","",(VLOOKUP(P26,'Membership #'!$A$1:$C$1005,2,0))) -> 
C27: 20 | E27: =IF(D27="","",(VLOOKUP(D27,'Membership #'!$A$1:$C$1005,2,0))) ->  | F27: =IF(D27="","",(VLOOKUP(D27,'Membership #'!$A$1:$C$1005,3,0))) ->  | M27: 3rd | N27: 0.2 | O27: =N$11/3*N27 -> 0 | Q27: =IF(P27="","",(VLOOKUP(P27,'Membership #'!$A$1:$C$1005,2,0))) -> 
C28: 21 | E28: =IF(D28="","",(VLOOKUP(D28,'Membership #'!$A$1:$C$1005,2,0))) ->  | F28: =IF(D28="","",(VLOOKUP(D28,'Membership #'!$A$1:$C$1005,3,0))) ->  | M28: 4th | N28: 0.15 | O28: =N$11/3*N28 -> 0 | Q28: =IF(P28="","",(VLOOKUP(P28,'Membership #'!$A$1:$C$1005,2,0))) -> 
C29: 22 | E29: =IF(D29="","",(VLOOKUP(D29,'Membership #'!$A$1:$C$1005,2,0))) ->  | F29: =IF(D29="","",(VLOOKUP(D29,'Membership #'!$A$1:$C$1005,3,0))) ->  | M29: 5th | N29: 0.05 | O29: =N$11/3*N29 -> 0 | Q29: =IF(P29="","",(VLOOKUP(P29,'Membership #'!$A$1:$C$1005,2,0))) -> 
C30: 23 | E30: =IF(D30="","",(VLOOKUP(D30,'Membership #'!$A$1:$C$1005,2,0))) ->  | F30: =IF(D30="","",(VLOOKUP(D30,'Membership #'!$A$1:$C$1005,3,0))) -> 
C31: 24 | E31: =IF(D31="","",(VLOOKUP(D31,'Membership #'!$A$1:$C$1005,2,0))) ->  | F31: =IF(D31="","",(VLOOKUP(D31,'Membership #'!$A$1:$C$1005,3,0))) ->  | O31: =SUM(O13:O17,O19:O23,O25:O29) -> 0
C32: 25 | E32: =IF(D32="","",(VLOOKUP(D32,'Membership #'!$A$1:$C$1005,2,0))) ->  | F32: =IF(D32="","",(VLOOKUP(D32,'Membership #'!$A$1:$C$1005,3,0))) -> 
C33: 26 | E33: =IF(D33="","",(VLOOKUP(D33,'Membership #'!$A$1:$C$1005,2,0))) ->  | F33: =IF(D33="","",(VLOOKUP(D33,'Membership #'!$A$1:$C$1005,3,0))) -> 
C34: 27 | E34: =IF(D34="","",(VLOOKUP(D34,'Membership #'!$A$1:$C$1005,2,0))) ->  | F34: =IF(D34="","",(VLOOKUP(D34,'Membership #'!$A$1:$C$1005,3,0))) -> 
C35: 28 | E35: =IF(D35="","",(VLOOKUP(D35,'Membership #'!$A$1:$C$1005,2,0))) ->  | F35: =IF(D35="","",(VLOOKUP(D35,'Membership #'!$A$1:$C$1005,3,0))) -> 
C36: 29 | E36: =IF(D36="","",(VLOOKUP(D36,'Membership #'!$A$1:$C$1005,2,0))) ->  | F36: =IF(D36="","",(VLOOKUP(D36,'Membership #'!$A$1:$C$1005,3,0))) ->  | N36: =IF(M36="","",(VLOOKUP(M36,'Membership #'!$A$1:$C$1005,2,0))) ->  | O36: =IF(M36="","",(VLOOKUP(M36,'Membership #'!$A$1:$C$1005,3,0))) -> 
C37: 30 | E37: =IF(D37="","",(VLOOKUP(D37,'Membership #'!$A$1:$C$1005,2,0))) ->  | F37: =IF(D37="","",(VLOOKUP(D37,'Membership #'!$A$1:$C$1005,3,0))) ->  | N37: =IF(M37="","",(VLOOKUP(M37,'Membership #'!$A$1:$C$1005,2,0))) ->  | O37: =IF(M37="","",(VLOOKUP(M37,'Membership #'!$A$1:$C$1005,3,0))) -> 
C38: 31 | E38: =IF(D38="","",(VLOOKUP(D38,'Membership #'!$A$1:$C$1005,2,0))) ->  | F38: =IF(D38="","",(VLOOKUP(D38,'Membership #'!$A$1:$C$1005,3,0))) ->  | N38: =IF(M38="","",(VLOOKUP(M38,'Membership #'!$A$1:$C$1005,2,0))) ->  | O38: =IF(M38="","",(VLOOKUP(M38,'Membership #'!$A$1:$C$1005,3,0))) -> 
C39: 32 | E39: =IF(D39="","",(VLOOKUP(D39,'Membership #'!$A$1:$C$1005,2,0))) ->  | F39: =IF(D39="","",(VLOOKUP(D39,'Membership #'!$A$1:$C$1005,3,0))) ->  | I39: =IF(G39="n","No Time",IF(G39="x","Scratch",IF(G39<>"",SUM(G39+H39),""))) ->  | N39: =IF(M39="","",(VLOOKUP(M39,'Membership #'!$A$1:$C$1005,2,0))) ->  | O39: =IF(M39="","",(VLOOKUP(M39,'Membership #'!$A$1:$C$1005,3,0))) -> 
B40: =IF(D40<>"",RANK(A40,A$8:A$103),"") ->  | C40: 33 | E40: =IF(D40="","",(VLOOKUP(D40,'Membership #'!$A$1:$C$1005,2,0))) ->  | F40: =IF(D40="","",(VLOOKUP(D40,'Membership #'!$A$1:$C$1005,3,0))) ->  | N40: =IF(M40="","",(VLOOKUP(M40,'Membership #'!$A$1:$C$1005,2,0))) ->  | O40: =IF(M40="","",(VLOOKUP(M40,'Membership #'!$A$1:$C$1005,3,0))) -> 
C41: 34 | E41: =IF(D41="","",(VLOOKUP(D41,'Membership #'!$A$1:$C$1005,2,0))) ->  | F41: =IF(D41="","",(VLOOKUP(D41,'Membership #'!$A$1:$C$1005,3,0))) ->  | N41: =IF(M41="","",(VLOOKUP(M41,'Membership #'!$A$1:$C$1005,2,0))) ->  | O41: =IF(M41="","",(VLOOKUP(M41,'Membership #'!$A$1:$C$1005,3,0))) -> 
C42: 35 | E42: =IF(D42="","",(VLOOKUP(D42,'Membership #'!$A$1:$C$1005,2,0))) ->  | F42: =IF(D42="","",(VLOOKUP(D42,'Membership #'!$A$1:$C$1005,3,0))) ->  | N42: =IF(M42="","",(VLOOKUP(M42,'Membership #'!$A$1:$C$1005,2,0))) ->  | O42: =IF(M42="","",(VLOOKUP(M42,'Membership #'!$A$1:$C$1005,3,0))) -> 
C43: 36 | E43: =IF(D43="","",(VLOOKUP(D43,'Membership #'!$A$1:$C$1005,2,0))) ->  | F43: =IF(D43="","",(VLOOKUP(D43,'Membership #'!$A$1:$C$1005,3,0))) -> 
C44: 37 | E44: =IF(D44="","",(VLOOKUP(D44,'Membership #'!$A$1:$C$1005,2,0))) ->  | F44: =IF(D44="","",(VLOOKUP(D44,'Membership #'!$A$1:$C$1005,3,0))) -> 
C45: 38 | E45: =IF(D45="","",(VLOOKUP(D45,'Membership #'!$A$1:$C$1005,2,0))) ->  | F45: =IF(D45="","",(VLOOKUP(D45,'Membership #'!$A$1:$C$1005,3,0))) -> 
C46: 39 | E46: =IF(D46="","",(VLOOKUP(D46,'Membership #'!$A$1:$C$1005,2,0))) ->  | F46: =IF(D46="","",(VLOOKUP(D46,'Membership #'!$A$1:$C$1005,3,0))) -> 
E47: =IF(D47="","",(VLOOKUP(D47,'Membership #'!$A$1:$C$1005,2,0))) ->  | F47: =IF(D47="","",(VLOOKUP(D47,'Membership #'!$A$1:$C$1005,3,0))) -> 
E48: =IF(D48="","",(VLOOKUP(D48,'Membership #'!$A$1:$C$1005,2,0))) ->  | F48: =IF(D48="","",(VLOOKUP(D48,'Membership #'!$A$1:$C$1005,3,0))) -> 
E49: =IF(D49="","",(VLOOKUP(D49,'Membership #'!$A$1:$C$1005,2,0))) ->  | F49: =IF(D49="","",(VLOOKUP(D49,'Membership #'!$A$1:$C$1005,3,0))) -> 
E50: =IF(D50="","",(VLOOKUP(D50,'Membership #'!$A$1:$C$1005,2,0))) ->  | F50: =IF(D50="","",(VLOOKUP(D50,'Membership #'!$A$1:$C$1005,3,0))) -> 
E51: =IF(D51="","",(VLOOKUP(D51,'Membership #'!$A$1:$C$1005,2,0))) ->  | F51: =IF(D51="","",(VLOOKUP(D51,'Membership #'!$A$1:$C$1005,3,0))) -> 
E52: =IF(D52="","",(VLOOKUP(D52,'Membership #'!$A$1:$C$1005,2,0))) ->  | F52: =IF(D52="","",(VLOOKUP(D52,'Membership #'!$A$1:$C$1005,3,0))) -> 
E53: =IF(D53="","",(VLOOKUP(D53,'Membership #'!$A$1:$C$1005,2,0))) ->  | F53: =IF(D53="","",(VLOOKUP(D53,'Membership #'!$A$1:$C$1005,3,0))) -> 
E54: =IF(D54="","",(VLOOKUP(D54,'Membership #'!$A$1:$C$1005,2,0))) ->  | F54: =IF(D54="","",(VLOOKUP(D54,'Membership #'!$A$1:$C$1005,3,0))) -> 
A55: =IF(D55<>"",RAND(),"") ->  | E55: =IF(D55="","",(VLOOKUP(D55,'Membership #'!$A$1:$C$1005,2,0))) ->  | F55: =IF(D55="","",(VLOOKUP(D55,'Membership #'!$A$1:$C$1005,3,0))) -> 
E56: =IF(D56="","",(VLOOKUP(D56,'Membership #'!$A$1:$C$1005,2,0))) ->  | F56: =IF(D56="","",(VLOOKUP(D56,'Membership #'!$A$1:$C$1005,3,0))) -> 
E57: =IF(D57="","",(VLOOKUP(D57,'Membership #'!$A$1:$C$1005,2,0))) ->  | F57: =IF(D57="","",(VLOOKUP(D57,'Membership #'!$A$1:$C$1005,3,0))) -> 
E58: =IF(D58="","",(VLOOKUP(D58,'Membership #'!$A$1:$C$1005,2,0))) ->  | F58: =IF(D58="","",(VLOOKUP(D58,'Membership #'!$A$1:$C$1005,3,0))) -> 
E59: =IF(D59="","",(VLOOKUP(D59,'Membership #'!$A$1:$C$1005,2,0))) ->  | F59: =IF(D59="","",(VLOOKUP(D59,'Membership #'!$A$1:$C$1005,3,0))) ->  | I59: =IF(G59="n","No Time",IF(G59="x","Scratch",IF(G59<>"",SUM(G59+H59),""))) -> 
E60: =IF(D60="","",(VLOOKUP(D60,'Membership #'!$A$1:$C$1005,2,0))) ->  | F60: =IF(D60="","",(VLOOKUP(D60,'Membership #'!$A$1:$C$1005,3,0))) ->  | I60: =IF(G60="n","No Time",IF(G60="x","Scratch",IF(G60<>"",SUM(G60+H60),""))) -> 
E61: =IF(D61="","",(VLOOKUP(D61,'Membership #'!$A$1:$C$1005,2,0))) ->  | F61: =IF(D61="","",(VLOOKUP(D61,'Membership #'!$A$1:$C$1005,3,0))) -> 
E62: =IF(D62="","",(VLOOKUP(D62,'Membership #'!$A$1:$C$1005,2,0))) ->  | F62: =IF(D62="","",(VLOOKUP(D62,'Membership #'!$A$1:$C$1005,3,0))) -> 
E63: =IF(D63="","",(VLOOKUP(D63,'Membership #'!$A$1:$C$1005,2,0))) ->  | F63: =IF(D63="","",(VLOOKUP(D63,'Membership #'!$A$1:$C$1005,3,0))) -> 
E64: =IF(D64="","",(VLOOKUP(D64,'Membership #'!$A$1:$C$1005,2,0))) ->  | F64: =IF(D64="","",(VLOOKUP(D64,'Membership #'!$A$1:$C$1005,3,0))) -> 
E65: =IF(D65="","",(VLOOKUP(D65,'Membership #'!$A$1:$C$1005,2,0))) ->  | F65: =IF(D65="","",(VLOOKUP(D65,'Membership #'!$A$1:$C$1005,3,0))) -> 
E66: =IF(D66="","",(VLOOKUP(D66,'Membership #'!$A$1:$C$1005,2,0))) ->  | F66: =IF(D66="","",(VLOOKUP(D66,'Membership #'!$A$1:$C$1005,3,0))) -> 
E67: =IF(D67="","",(VLOOKUP(D67,'Membership #'!$A$1:$C$1005,2,0))) ->  | F67: =IF(D67="","",(VLOOKUP(D67,'Membership #'!$A$1:$C$1005,3,0))) -> 
E68: =IF(D68="","",(VLOOKUP(D68,'Membership #'!$A$1:$C$1005,2,0))) ->  | F68: =IF(D68="","",(VLOOKUP(D68,'Membership #'!$A$1:$C$1005,3,0))) ->  | I68: =IF(G68="n","No Time",IF(G68="x","Scratch",IF(G68<>"",SUM(G68+H68),""))) -> 
E69: =IF(D69="","",(VLOOKUP(D69,'Membership #'!$A$1:$C$1005,2,0))) ->  | F69: =IF(D69="","",(VLOOKUP(D69,'Membership #'!$A$1:$C$1005,3,0))) -> 
E70: =IF(D70="","",(VLOOKUP(D70,'Membership #'!$A$1:$C$1005,2,0))) ->  | F70: =IF(D70="","",(VLOOKUP(D70,'Membership #'!$A$1:$C$1005,3,0))) -> 
E71: =IF(D71="","",(VLOOKUP(D71,'Membership #'!$A$1:$C$1005,2,0))) ->  | F71: =IF(D71="","",(VLOOKUP(D71,'Membership #'!$A$1:$C$1005,3,0))) -> 
B72: =IF(D72<>"",RANK(A72,A$8:A$103),"") ->  | E72: =IF(D72="","",(VLOOKUP(D72,'Membership #'!$A$1:$C$1005,2,0))) ->  | F72: =IF(D72="","",(VLOOKUP(D72,'Membership #'!$A$1:$C$1005,3,0))) ->  | I72: =IF(G72="n","No Time",IF(G72="x","Scratch",IF(G72<>"",SUM(G72+H72),""))) -> 
E73: =IF(D73="","",(VLOOKUP(D73,'Membership #'!$A$1:$C$1005,2,0))) ->  | F73: =IF(D73="","",(VLOOKUP(D73,'Membership #'!$A$1:$C$1005,3,0))) -> 
E74: =IF(D74="","",(VLOOKUP(D74,'Membership #'!$A$1:$C$1005,2,0))) ->  | F74: =IF(D74="","",(VLOOKUP(D74,'Membership #'!$A$1:$C$1005,3,0))) -> 
E75: =IF(D75="","",(VLOOKUP(D75,'Membership #'!$A$1:$C$1005,2,0))) ->  | F75: =IF(D75="","",(VLOOKUP(D75,'Membership #'!$A$1:$C$1005,3,0))) -> 
E76: =IF(D76="","",(VLOOKUP(D76,'Membership #'!$A$1:$C$1005,2,0))) ->  | F76: =IF(D76="","",(VLOOKUP(D76,'Membership #'!$A$1:$C$1005,3,0))) -> 
E77: =IF(D77="","",(VLOOKUP(D77,'Membership #'!$A$1:$C$1005,2,0))) ->  | F77: =IF(D77="","",(VLOOKUP(D77,'Membership #'!$A$1:$C$1005,3,0))) -> 
E78: =IF(D78="","",(VLOOKUP(D78,'Membership #'!$A$1:$C$1005,2,0))) ->  | F78: =IF(D78="","",(VLOOKUP(D78,'Membership #'!$A$1:$C$1005,3,0))) -> 
E79: =IF(D79="","",(VLOOKUP(D79,'Membership #'!$A$1:$C$1005,2,0))) ->  | F79: =IF(D79="","",(VLOOKUP(D79,'Membership #'!$A$1:$C$1005,3,0))) -> 
E80: =IF(D80="","",(VLOOKUP(D80,'Membership #'!$A$1:$C$1005,2,0))) ->  | F80: =IF(D80="","",(VLOOKUP(D80,'Membership #'!$A$1:$C$1005,3,0))) -> 
E81: =IF(D81="","",(VLOOKUP(D81,'Membership #'!$A$1:$C$1005,2,0))) ->  | F81: =IF(D81="","",(VLOOKUP(D81,'Membership #'!$A$1:$C$1005,3,0))) -> 
E82: =IF(D82="","",(VLOOKUP(D82,'Membership #'!$A$1:$C$1005,2,0))) ->  | F82: =IF(D82="","",(VLOOKUP(D82,'Membership #'!$A$1:$C$1005,3,0))) -> 
E83: =IF(D83="","",(VLOOKUP(D83,'Membership #'!$A$1:$C$1005,2,0))) ->  | F83: =IF(D83="","",(VLOOKUP(D83,'Membership #'!$A$1:$C$1005,3,0))) ->  | I83: =IF(G83="n","No Time",IF(G83="x","Scratch",IF(G83<>"",SUM(G83+H83),""))) -> 
A84: =IF(D84<>"",RAND(),"") ->  | E84: =IF(D84="","",(VLOOKUP(D84,'Membership #'!$A$1:$C$1005,2,0))) ->  | F84: =IF(D84="","",(VLOOKUP(D84,'Membership #'!$A$1:$C$1005,3,0))) -> 
E85: =IF(D85="","",(VLOOKUP(D85,'Membership #'!$A$1:$C$1005,2,0))) ->  | F85: =IF(D85="","",(VLOOKUP(D85,'Membership #'!$A$1:$C$1005,3,0))) ->  | I85: =IF(G85="n","No Time",IF(G85="x","Scratch",IF(G85<>"",SUM(G85+H85),""))) -> 
E86: =IF(D86="","",(VLOOKUP(D86,'Membership #'!$A$1:$C$1005,2,0))) ->  | F86: =IF(D86="","",(VLOOKUP(D86,'Membership #'!$A$1:$C$1005,3,0))) -> 
E87: =IF(D87="","",(VLOOKUP(D87,'Membership #'!$A$1:$C$1005,2,0))) ->  | F87: =IF(D87="","",(VLOOKUP(D87,'Membership #'!$A$1:$C$1005,3,0))) ->  | I87: =IF(G87="n","No Time",IF(G87="x","Scratch",IF(G87<>"",SUM(G87+H87),""))) -> 
E88: =IF(D88="","",(VLOOKUP(D88,'Membership #'!$A$1:$C$1005,2,0))) ->  | F88: =IF(D88="","",(VLOOKUP(D88,'Membership #'!$A$1:$C$1005,3,0))) -> 
E89: =IF(D89="","",(VLOOKUP(D89,'Membership #'!$A$1:$C$1005,2,0))) ->  | F89: =IF(D89="","",(VLOOKUP(D89,'Membership #'!$A$1:$C$1005,3,0))) -> 
E90: =IF(D90="","",(VLOOKUP(D90,'Membership #'!$A$1:$C$1005,2,0))) ->  | F90: =IF(D90="","",(VLOOKUP(D90,'Membership #'!$A$1:$C$1005,3,0))) ->  | I90: =IF(G90="n","No Time",IF(G90="x","Scratch",IF(G90<>"",SUM(G90+H90),""))) -> 
E91: =IF(D91="","",(VLOOKUP(D91,'Membership #'!$A$1:$C$1005,2,0))) ->  | F91: =IF(D91="","",(VLOOKUP(D91,'Membership #'!$A$1:$C$1005,3,0))) -> 
E92: =IF(D92="","",(VLOOKUP(D92,'Membership #'!$A$1:$C$1005,2,0))) ->  | F92: =IF(D92="","",(VLOOKUP(D92,'Membership #'!$A$1:$C$1005,3,0))) -> 
E93: =IF(D93="","",(VLOOKUP(D93,'Membership #'!$A$1:$C$1005,2,0))) ->  | F93: =IF(D93="","",(VLOOKUP(D93,'Membership #'!$A$1:$C$1005,3,0))) -> 
E94: =IF(D94="","",(VLOOKUP(D94,'Membership #'!$A$1:$C$1005,2,0))) ->  | F94: =IF(D94="","",(VLOOKUP(D94,'Membership #'!$A$1:$C$1005,3,0))) -> 
E95: =IF(D95="","",(VLOOKUP(D95,'Membership #'!$A$1:$C$1005,2,0))) ->  | F95: =IF(D95="","",(VLOOKUP(D95,'Membership #'!$A$1:$C$1005,3,0))) -> 
E96: =IF(D96="","",(VLOOKUP(D96,'Membership #'!$A$1:$C$1005,2,0))) ->  | F96: =IF(D96="","",(VLOOKUP(D96,'Membership #'!$A$1:$C$1005,3,0))) -> 
E97: =IF(D97="","",(VLOOKUP(D97,'Membership #'!$A$1:$C$1005,2,0))) ->  | F97: =IF(D97="","",(VLOOKUP(D97,'Membership #'!$A$1:$C$1005,3,0))) -> 
E98: =IF(D98="","",(VLOOKUP(D98,'Membership #'!$A$1:$C$1005,2,0))) ->  | F98: =IF(D98="","",(VLOOKUP(D98,'Membership #'!$A$1:$C$1005,3,0))) -> 
E99: =IF(D99="","",(VLOOKUP(D99,'Membership #'!$A$1:$C$1005,2,0))) ->  | F99: =IF(D99="","",(VLOOKUP(D99,'Membership #'!$A$1:$C$1005,3,0))) -> 
E100: =IF(D100="","",(VLOOKUP(D100,'Membership #'!$A$1:$C$1005,2,0))) ->  | F100: =IF(D100="","",(VLOOKUP(D100,'Membership #'!$A$1:$C$1005,3,0))) -> 
E101: =IF(D101="","",(VLOOKUP(D101,'Membership #'!$A$1:$C$1005,2,0))) ->  | F101: =IF(D101="","",(VLOOKUP(D101,'Membership #'!$A$1:$C$1005,3,0))) -> 
E102: =IF(D102="","",(VLOOKUP(D102,'Membership #'!$A$1:$C$1005,2,0))) ->  | F102: =IF(D102="","",(VLOOKUP(D102,'Membership #'!$A$1:$C$1005,3,0))) -> 
E103: =IF(D103="","",(VLOOKUP(D103,'Membership #'!$A$1:$C$1005,2,0))) ->  | F103: =IF(D103="","",(VLOOKUP(D103,'Membership #'!$A$1:$C$1005,3,0))) -> 

Sheet GT_Custom (hidden)
A1: C1 | B1: Custom 1
A2: C2 | B2: Custom 2
A3: C3 | B3: Custom 3
A4: C4 | B4: Custom 4
A5: C5 | B5: Custom 5
A6: C6 | B6: Custom 6
A7: C7 | B7: Custom 7
A8: C8 | B8: Custom 8

Sheet Payouts
A1: Money | B1: Ring # | C1: Class
A2: ='JUNIOR HORSE BARRELS'!O$13 -> 34.73 | B2: ='JUNIOR HORSE BARRELS'!P$13 -> 0 | C2: Jr Horse | F2: Sum of Money
A3: ='JUNIOR HORSE BARRELS'!O$14 -> 25.67 | B3: ='JUNIOR HORSE BARRELS'!P$14 -> 0 | C3: Jr Horse | F3: Ring # | G3: Class | H3: Total
A4: ='JUNIOR HORSE BARRELS'!O$15 -> 15.1 | B4: ='JUNIOR HORSE BARRELS'!P$15 -> 0 | C4: Jr Horse | F4: 0 | G4: 3D Barrels | H4: 200
A5: ='JUNIOR HORSE BARRELS'!O$16 ->  | B5: ='JUNIOR HORSE BARRELS'!P$16 -> 0 | C5: Jr Horse | G5: Adult Barrels | H5: 25
A6: ='JUNIOR HORSE BARRELS'!O$17 ->  | B6: ='JUNIOR HORSE BARRELS'!P$17 -> 0 | C6: Jr Horse | G6: Adult Poles | H6: 25
A7: ='JUNIOR HORSE BARRELS'!O$18 ->  | B7: ='JUNIOR HORSE BARRELS'!P$18 -> 0 | C7: Jr Horse | G7: Jr Horse | H7: 50
A8: ='JUNIOR HORSE BARRELS'!O$19 ->  | B8: ='JUNIOR HORSE BARRELS'!P$19 -> 0 | C8: Jr Horse | G8: Novice Barrels | H8: 0
A9: ='JUNIOR HORSE BARRELS'!O$20 ->  | B9: ='JUNIOR HORSE BARRELS'!P$20 -> 0 | C9: Jr Horse | G9: Novice Poles | H9: 0
A10: ='JUNIOR HORSE BARRELS'!O$21 ->  | B10: ='JUNIOR HORSE BARRELS'!P$21 -> 0 | C10: Jr Horse | G10: Open Barrels | H10: 150
A11: ='JUNIOR HORSE BARRELS'!O$22 ->  | B11: ='JUNIOR HORSE BARRELS'!P$22 -> 0 | C11: Jr Horse | G11: Open Poles | H11: 0
A12: ='YOUTH BARRELS'!O$13 -> 28.4 | B12: ='YOUTH BARRELS'!P$13 -> 0 | C12: Youth Barrels | G12: Youth Barrels | H12: 25
A13: ='YOUTH BARRELS'!O$14 -> 20.4125 | B13: ='YOUTH BARRELS'!P$14 -> 0 | C13: Youth Barrels | G13: Youth Poles | H13: 25
A14: ='YOUTH BARRELS'!O$15 -> 13.3125 | B14: ='YOUTH BARRELS'!P$15 -> 0 | C14: Youth Barrels | F14: 0 Total | H14: 500
A15: ='YOUTH BARRELS'!O$16 -> 10.65 | B15: ='YOUTH BARRELS'!P$16 -> 0 | C15: Youth Barrels | F15: Grand Total | H15: 500
A16: ='YOUTH BARRELS'!O$17 -> 8.875 | B16: ='YOUTH BARRELS'!P$17 -> 0 | C16: Youth Barrels
A17: ='YOUTH BARRELS'!O$18 -> 7.1 | B17: ='YOUTH BARRELS'!P$18 -> 0 | C17: Youth Barrels
A18: ='YOUTH BARRELS'!O$19 ->  | B18: ='YOUTH BARRELS'!P$19 -> 0 | C18: Youth Barrels
A19: ='YOUTH BARRELS'!O$20 ->  | B19: ='YOUTH BARRELS'!P$20 -> 0 | C19: Youth Barrels
A20: ='YOUTH BARRELS'!O$21 ->  | B20: ='YOUTH BARRELS'!P$21 -> 0 | C20: Youth Barrels
A21: ='YOUTH BARRELS'!O$22 ->  | B21: ='YOUTH BARRELS'!P$22 -> 0 | C21: Youth Barrels
A22: ='NOVICE BARRELS'!O$13 -> 92 | B22: ='NOVICE BARRELS'!P$13 -> 0 | C22: Novice Barrels
A23: ='NOVICE BARRELS'!O$14 -> 66.125 | B23: ='NOVICE BARRELS'!P$14 -> 0 | C23: Novice Barrels
A24: ='NOVICE BARRELS'!O$15 -> 43.125 | B24: ='NOVICE BARRELS'!P$15 -> 0 | C24: Novice Barrels
A25: ='NOVICE BARRELS'!O$16 -> 34.5 | B25: ='NOVICE BARRELS'!P$16 -> 0 | C25: Novice Barrels
A26: ='NOVICE BARRELS'!O$17 -> 28.75 | B26: ='NOVICE BARRELS'!P$17 -> 0 | C26: Novice Barrels
A27: ='NOVICE BARRELS'!O$18 -> 23 | B27: ='NOVICE BARRELS'!P$18 -> 0 | C27: Novice Barrels
A28: ='NOVICE BARRELS'!O$19 ->  | B28: ='NOVICE BARRELS'!P$19 -> 0 | C28: Novice Barrels
A29: ='NOVICE BARRELS'!O$20 ->  | B29: ='NOVICE BARRELS'!P$20 -> 0 | C29: Novice Barrels
A30: ='NOVICE BARRELS'!O$21 ->  | B30: ='NOVICE BARRELS'!P$21 -> 0 | C30: Novice Barrels
A31: ='NOVICE BARRELS'!O$22 ->  | B31: ='NOVICE BARRELS'!P$22 -> 0 | C31: Novice Barrels
A32: ='OPEN BARRELS'!O$13 -> 146.16 | B32: ='OPEN BARRELS'!P$13 -> 0 | C32: Open Barrels
A33: ='OPEN BARRELS'!O$14 -> 115.71 | B33: ='OPEN BARRELS'!P$14 -> 0 | C33: Open Barrels
A34: ='OPEN BARRELS'!O$15 -> 97.44 | B34: ='OPEN BARRELS'!P$15 -> 0 | C34: Open Barrels
A35: ='OPEN BARRELS'!O$16 -> 79.17 | B35: ='OPEN BARRELS'!P$16 -> 0 | C35: Open Barrels
A36: ='OPEN BARRELS'!O$17 -> 48.72 | B36: ='OPEN BARRELS'!P$17 -> 0 | C36: Open Barrels
A37: ='OPEN BARRELS'!O$18 -> 36.54 | B37: ='OPEN BARRELS'!P$18 -> 0 | C37: Open Barrels
A38: ='OPEN BARRELS'!O$19 -> 30.45 | B38: ='OPEN BARRELS'!P$19 -> 0 | C38: Open Barrels
A39: ='OPEN BARRELS'!O$20 -> 24.36 | B39: ='OPEN BARRELS'!P$20 -> 0 | C39: Open Barrels
A40: ='OPEN BARRELS'!O$21 -> 18.27 | B40: ='OPEN BARRELS'!P$21 -> 0 | C40: Open Barrels
A41: ='OPEN BARRELS'!O$22 -> 12.18 | B41: ='OPEN BARRELS'!P$22 -> 0 | C41: Open Barrels
A42: ='YOUTH POLES'!O$13 -> 28.4 | B42: ='YOUTH POLES'!P$13 -> 0 | C42: Youth Poles
A43: ='YOUTH POLES'!O$14 -> 20.4125 | B43: ='YOUTH POLES'!P$14 -> 0 | C43: Youth Poles
A44: ='YOUTH POLES'!O$15 -> 13.3125 | B44: ='YOUTH POLES'!P$15 -> 0 | C44: Youth Poles
A45: ='YOUTH POLES'!O$16 -> 10.65 | B45: ='YOUTH POLES'!P$16 -> 0 | C45: Youth Poles
A46: ='YOUTH POLES'!O$17 -> 8.875 | B46: ='YOUTH POLES'!P$17 -> 0 | C46: Youth Poles
A47: ='YOUTH POLES'!O$18 -> 7.1 | B47: ='YOUTH POLES'!P$18 -> 0 | C47: Youth Poles
A48: ='YOUTH POLES'!O$19 ->  | B48: ='YOUTH POLES'!P$19 -> 0 | C48: Youth Poles
A49: ='YOUTH POLES'!O$20 ->  | B49: ='YOUTH POLES'!P$20 -> 0 | C49: Youth Poles
A50: ='YOUTH POLES'!O$21 ->  | B50: ='YOUTH POLES'!P$21 -> 0 | C50: Youth Poles
A51: ='YOUTH POLES'!O$22 ->  | B51: ='YOUTH POLES'!P$22 -> 0 | C51: Youth Poles
A52: ='NOVICE POLES'!O$13 -> 75.68 | B52: ='NOVICE POLES'!P$13 -> 0 | C52: Novice Poles
A53: ='NOVICE POLES'!O$14 -> 54.395 | B53: ='NOVICE POLES'!P$14 -> 0 | C53: Novice Poles
A54: ='NOVICE POLES'!O$15 -> 35.475 | B54: ='NOVICE POLES'!P$15 -> 0 | C54: Novice Poles
A55: ='NOVICE POLES'!O$16 -> 28.38 | B55: ='NOVICE POLES'!P$16 -> 0 | C55: Novice Poles
A56: ='NOVICE POLES'!O$17 -> 23.65 | B56: ='NOVICE POLES'!P$17 -> 0 | C56: Novice Poles
A57: ='NOVICE POLES'!O$18 -> 18.92 | B57: ='NOVICE POLES'!P$18 -> 0 | C57: Novice Poles
A58: ='NOVICE POLES'!O$19 ->  | B58: ='NOVICE POLES'!P$19 -> 0 | C58: Novice Poles
A59: ='NOVICE POLES'!O$20 ->  | B59: ='NOVICE POLES'!P$20 -> 0 | C59: Novice Poles
A60: ='NOVICE POLES'!O$21 ->  | B60: ='NOVICE POLES'!P$21 -> 0 | C60: Novice Poles
A61: ='NOVICE POLES'!O$22 ->  | B61: ='NOVICE POLES'!P$22 -> 0 | C61: Novice Poles
A62: ='OPEN POLES'!O$13 -> 127.71 | B62: ='OPEN POLES'!P$13 -> 0 | C62: Open Poles
A63: ='OPEN POLES'!O$14 -> 104.06 | B63: ='OPEN POLES'!P$14 -> 0 | C63: Open Poles
A64: ='OPEN POLES'!O$15 -> 85.14 | B64: ='OPEN POLES'!P$15 -> 0 | C64: Open Poles
A65: ='OPEN POLES'!O$16 -> 61.49 | B65: ='OPEN POLES'!P$16 -> 0 | C65: Open Poles
A66: ='OPEN POLES'!O$17 -> 42.57 | B66: ='OPEN POLES'!P$17 -> 0 | C66: Open Poles
A67: ='OPEN POLES'!O$18 -> 28.38 | B67: ='OPEN POLES'!P$18 -> 0 | C67: Open Poles
A68: ='OPEN POLES'!O$19 -> 14.19 | B68: ='OPEN POLES'!P$19 -> 0 | C68: Open Poles
A69: ='OPEN POLES'!O$20 -> 9.46 | B69: ='OPEN POLES'!P$20 -> 0 | C69: Open Poles
A70: ='OPEN POLES'!O$21 ->  | B70: ='OPEN POLES'!P$21 -> 0 | C70: Open Poles
A71: ='OPEN POLES'!O$22 ->  | B71: ='OPEN POLES'!P$22 -> 0 | C71: Open Poles
A72: ='3D Barrels'!O13 -> 0 | B72: ='3D Barrels'!P13 -> 0 | C72: 3D Barrels
A73: ='3D Barrels'!O14 -> 0 | B73: ='3D Barrels'!P14 -> 0 | C73: 3D Barrels
A74: ='3D Barrels'!O15 -> 0 | B74: ='3D Barrels'!P15 -> 0 | C74: 3D Barrels
A75: ='3D Barrels'!O16 -> 0 | B75: ='3D Barrels'!P16 -> 0 | C75: 3D Barrels
A76: ='3D Barrels'!O17 -> 0 | B76: ='3D Barrels'!P17 -> 0 | C76: 3D Barrels
A77: ='3D Barrels'!O19 -> 0 | B77: ='3D Barrels'!P19 -> 0 | C77: 3D Barrels
A78: ='3D Barrels'!O20 -> 0 | B78: ='3D Barrels'!P20 -> 0 | C78: 3D Barrels
A79: ='3D Barrels'!O21 -> 0 | B79: ='3D Barrels'!P21 -> 0 | C79: 3D Barrels
A80: ='3D Barrels'!O22 -> 0 | B80: ='3D Barrels'!P22 -> 0 | C80: 3D Barrels
A81: ='3D Barrels'!O23 -> 0 | B81: ='3D Barrels'!P23 -> 0 | C81: 3D Barrels
A82: ='3D Barrels'!O25 -> 0 | B82: ='3D Barrels'!P25 -> 0 | C82: 3D Barrels
A83: ='3D Barrels'!O26 -> 0 | B83: ='3D Barrels'!P26 -> 0 | C83: 3D Barrels
A84: ='3D Barrels'!O27 -> 0 | B84: ='3D Barrels'!P27 -> 0 | C84: 3D Barrels
A85: ='3D Barrels'!O28 -> 0 | B85: ='3D Barrels'!P28 -> 0 | C85: 3D Barrels
A86: ='3D Barrels'!O29 -> 0 | B86: ='3D Barrels'!P29 -> 0 | C86: 3D Barrels
A87: ='Adult Green Barrels'!O$13 -> 25.2 | B87: ='Adult Green Barrels'!P$13 -> 0 | C87: Adult Barrels
A88: ='Adult Green Barrels'!O$14 -> 16.8 | B88: ='Adult Green Barrels'!P$14 -> 0 | C88: Adult Barrels
A89: ='Adult Green Barrels'!O$15 ->  | B89: ='Adult Green Barrels'!P$15 -> 0 | C89: Adult Barrels
A90: ='Adult Green Barrels'!O$16 ->  | B90: ='Adult Green Barrels'!P$16 -> 0 | C90: Adult Barrels
A91: ='Adult Green Barrels'!O$17 ->  | B91: ='Adult Green Barrels'!P$17 -> 0 | C91: Adult Barrels
A92: ='Adult Green Barrels'!O$18 ->  | B92: ='Adult Green Barrels'!P$18 -> 0 | C92: Adult Barrels
A93: ='Adult Green Barrels'!O$19 ->  | B93: ='Adult Green Barrels'!P$19 -> 0 | C93: Adult Barrels
A94: ='Adult Green Barrels'!O$20 ->  | B94: ='Adult Green Barrels'!P$20 -> 0 | C94: Adult Barrels
A95: ='ADULT GREEN POLES'!O$13 -> 25.2 | B95: ='ADULT GREEN POLES'!P$13 -> 0 | C95: Adult Poles
A96: ='ADULT GREEN POLES'!O$14 -> 16.8 | B96: ='ADULT GREEN POLES'!P$14 -> 0 | C96: Adult Poles
A97: ='ADULT GREEN POLES'!O$15 ->  | B97: ='ADULT GREEN POLES'!P$15 -> 0 | C97: Adult Poles
A98: ='ADULT GREEN POLES'!O$16 ->  | B98: ='ADULT GREEN POLES'!P$16 -> 0 | C98: Adult Poles
A99: ='ADULT GREEN POLES'!O$17 ->  | B99: ='ADULT GREEN POLES'!P$17 -> 0 | C99: Adult Poles
A100: ='ADULT GREEN POLES'!O$18 ->  | B100: ='ADULT GREEN POLES'!P$18 -> 0 | C100: Adult Poles
A101: ='ADULT GREEN POLES'!O$19 ->  | B101: ='ADULT GREEN POLES'!P$19 -> 0 | C101: Adult Poles
A102: ='ADULT GREEN POLES'!O$20 ->  | B102: ='ADULT GREEN POLES'!P$20 -> 0 | C102: Adult Poles

Sheet Show Report
A1: MBRA Jackpot - Windsor - July 24 & 25, 2021
A3: INCOME
A4: Head Fee | B4: 2250
A5: Drug Fee | B5: 225
A6: Class Fee Day 1 | B6: 1090
A7: Class Fee Day 2 | B7: 1120
A8: 3D | B8: 585
A9: Added Day 1 | B9: 600
A10: Added Day 2 | B10: 600
A11: 3D Sponsor | B11: 100
B13: =SUM(B4:B11) -> 6570 | D13: =SUM(B13) -> 6570
A15: EXPENSES
A16: Heather/Timer
A17: Day 1 Payouts (15%) | C17: -2124
A18: Day 2 Payouts (15%) | C18: -1552 | E18: =SUM(C17:C18) -> -3676
A19: Kids Prizes
A20: Ground Rental
A21: User Fee 69 @ $5
C22: =SUM(C16:C21) -> -3676 | D22: =SUM(C22) -> -3676
A23: Total Income
A25: CASH ON HAND | D25: =SUM(D13:D22) -> 2894

Sheet Sheet3
